Workbook

Sheet Grow Wrap Fee Calculator
B2: CALCULATE FEES FOR: | C2: GROW WRAP SUPER AND PENSION SERVICE | G2: ( select service )
C5: AMOUNT INVESTED: | D5: 0 | E5: (enter fixed dollar amount)
B8: ADVISER SERVICE FEES:
C10: INITIAL ADVICE FEE / AD-HOC SERVICE FEE: | D10: 0 | E10: (enter fixed dollar amount inclusive of 10% GST)
C13: ADVISER SERVICE FEE - ONGOING:
C15: Flat Dollar Fee | D15: 0 | E15: (enter fixed dollar amount inclusive of 10% GST)
C17: and/or
C19: % of Account Balance Fee | D19: Fixed percentage | E19: (choose fixed percentage or tiered percentage)
C21: =IF(bASFpercent="Fixed Percentage","Fixed percentage (selected)","Fixed percentage (not selected)") -> Fixed percentage (selected) | D21: 0 | E21: =IF(bASFpercent="Fixed percentage","(enter percentage inclusive of 10% GST)","") -> (enter percentage inclusive of 10% GST)
C23: =IF(bASFpercent="Tiered percentage","Tiered percentages (selected)","Tiered percentages (not selected)") -> Tiered percentages (not selected)
B24: $0 to | C24: 0 | D24: 0 | E24: Enter percentage inclusive of 10% GST
B25: 0 | C25: 0 | D25: 0 | E25: =IF(AND(B25=0, C25=0), "", IF(OR(B25<>C24,C25<B25),"Check tier values", "")) -> 
B26: 0 | C26: 0 | D26: 0 | E26: =IF(AND(B26=0, C26=0), "", IF(OR(B26<>C25,C26<B26),"Check tier values", "")) -> 
B27: 0 | C27: 0 | D27: 0
B28: 0 | C28: 0 | D28: 0 | E28: =IF(AND(B28=0, C28=0), "", IF(OR(B28<>C27,C28<B28),"Check tier values", "")) -> 
C29: =CONCATENATE("Amounts over "&TEXT(TierUpper5,"$#,##0.00")) -> Amounts over $0.00 | D29: 0
B32: ADMINISTRATION FEES: | I32: Boolean Flag
C34: Aligned Dealer Group Client: | D34: No
D36: % Fee p.a. | E36: $ Fee p.a. | F36: Applicable | G36: % Fee p.a. applies to first:
B38: Essentials Administration Fee | D38: =IF(bADGclient="Yes",0.38%,0.43%) -> 0.0043 | E38: =IF(F38="Yes",MIN(D5, iMaxBalanceForFees) * D38,"$0.00") -> 0 | F38: Yes | G38: 750000 | I38: =IF(F38="yes",1,0) -> 1
B40: + Administration Fee for Optional Extras
B41: Extended Managed Fund Menu | D41: 0.0007 | E41: =IF(F41="Yes",MIN(D5, G41) * D41,"$0.00") -> 0 | F41: Yes | G41: 750000 | I41: =IF(F41="yes",1,0) -> 1
B42: ASX Listed Securities/ETFs | D42: 0.0005 | E42: =IF(F42="Yes",MIN(D5, G42) * D42,"$0.00") -> 0 | F42: Yes | G42: 750000 | I42: =IF(F42="yes",1,0) -> 1
B43: SMAs | D43: 0.0005 | E43: =IF(F43="Yes",MIN(D5, G43) * D43,"$0.00") -> 0 | F43: Yes | G43: 750000 | I43: =IF(F43="yes",1,0) -> 1
B45: + Administration Expense Recovery (estimate) | D45: =IF((sWrapService="GROW WRAP INVESTMENT SERVICE"), 0%, 0.02%) -> 0.0002 | E45: =IF(F45="Yes",D5 * D45,"$0.00") -> 0 | F45: Yes | I45: =IF(F45="yes",1,0) -> 1
B47: Total % and $ Administration Fees | D47: =SUMPRODUCT(D38:D45,$I38:$I45) -> 0.0062 | E47: =SUMPRODUCT(E38:E45,$I38:$I45) -> 0
B49: Minimum annual administration | D49: =IF(bADGclient="Yes",15.83,17.91)*12 -> 214.92 | E49: p.a.
B51: Family discount applies? | D51: No | E51: (Select Yes or No)
B53: TRANSACTION FEES:
B54: Number of non-automated Managed Fund, SMA and Term Deposit transactions | D54: 0
B57: Number of ASX Trades | D57: 0
B58: Average ASX Trade Value | D58: 0
B60: Managed Funds/SMAs/Term Deposits fee per transaction | D60: 20.5
B61: ASX Listed Securities fee per transaction | D61: 10.25
B62: ASX brokerage % | D62: 0.0012
B63: ASX brokerage minimum fee | D63: 30
B64: ASX brokerage maximum fee | D64: 100
B66: =sWrapService&" - ACTUAL FEES:" -> GROW WRAP SUPER AND PENSION SERVICE - ACTUAL FEES:
D68: TOTAL
B69: Initial Advice Fee/ Adviser Ad-Hoc Fee | D69: =ASF_oneoff_dollar -> 0
B70: Adviser Service Fee - Ongoing | D70: =(ASF_ongoingflatfee + (bASFpercent="Fixed Percentage")*AccountBalance*ASF_ongoing_fixedpercent + (bASFpercent="Tiered Percentage")*( MIN(TierUpper1,AccountBalance)*TierPercent1+MAX(0,MIN(AccountBalance-TierUpper1, (TierUpper2-TierUpper1)))*TierPercent2+MAX(0,MIN(AccountBalance-TierUpper2,(TierUpper3-TierUpper2)))*TierPercent3 +MAX(0,MIN(AccountBalance-TierUpper3,(TierUpper4-TierUpper3)))*TierPercent4+MAX(0,MIN(AccountBalance-TierUpper4,(TierUpper5-TierUpper4)))*TierPercent5 +MAX(0,AccountBalance-TierUpper5)*TierPercent6) ) -> 0
B71: Essentials + Optional Extras Administration Fee | D71: =SUM(E38:E43) * IF(bFamilyDiscount="No", 1, 0.8) -> 0
B72: Administration Expense Recovery (estimate)1 | D72: =iExpenseRecovery*AccountBalance -> 0
B73: Managed Funds, SMAs, TDs and ASX Transaction fees | D73: =(iInvestmentSwitches)*iTransFee+iASXTrades*iShareTransFee -> 0
B74: ASX Brokerage Fees | D74: =iASXTrades*MIN(iMaxBrokerage, MAX(iMinBrokerage, iBrokeragePercent*AvgShareTradeValue)) -> 0
B75: Total First Year Advice and Administration Fees | D75: =SUM(D69:D74) -> 0
B77: Initial Advice / Ad-Hoc Advice Fee | D77: =IFERROR(D69 / AccountBalance,0) -> 0 | E77: p.a.
B78: Adviser Service Fee - Ongoing | D78: =IFERROR(D70 / AccountBalance,0) -> 0 | E78: p.a.
B79: Essentials + Optional Extras Administration Fee | D79: =IFERROR(D71 / $D$5,0) -> 0 | E79: p.a.
B80: Administration Expense Recovery (estimate)1 | D80: =IFERROR(D72 / $D$5,0) -> 0 | E80: p.a.
B81: Transaction/Brokerage Fees | D81: =IFERROR(SUM(D73:D74)/AccountBalance,0) -> 0 | E81: p.a.
D82: =SUM(D77:D81) -> 0 | E82: p.a.
B84: NOTE: All fees are shown inclusive of GST and net of RITC where applicable. Certain fees displayed here may be higher than those actually charged due to rounding.
B86: 1 The Administration Expense Recovery is estimated to be up to 0.02% p.a. of the account balance for the Grow Wrap Super and Pension Service and up to 0.00% p.a. of the
B87: account balance for the Grow Wrap Investment Service for the 12 months to 30 June 2025. The Administration Expense Recovery is a reimbursement of the out of pocket
B88: costs that OnePath Custodians is entitled to recover.

Sheet Investment Fees & Rebates (hidden)
C3: INVESTMENT FEES CALCULATOR
C5: =IF(ABS(SUM(G18:G45)-C9)<0.005, "", IF(SUM(G18:G45)-C9>=0.005,"Sum of $ allocations must equal "&TEXT(C9,"$#,####.00")&". Current overallocation is "&TEXT(SUM(G18:G45)-C9,"$#,###,###,###.00"), IF(SUM(G18:G45)-C9<=0.005,"Sum of $ allocations must equal "&TEXT(C9,"$#,####.00")&". Current unallocated amount is "&TEXT(C9-SUM(G18:G45),"$#,###,###,###.00"),""))) -> 
B7: INVESTMENT MENU: | C7: =IF(bFullMenu="No","Essentials","Extended Managed Fund Menu") -> Extended Managed Fund Menu
B9: TOTAL AMOUNT INVESTED AFTER UPFRONT FEE: | C9: ='Grow Wrap Fee Calculator'!D5-'Grow Wrap Fee Calculator'!D69 -> 0
B11: MODEL PORTFOLIO OPTIONS: | D11: (Optional selection to pre-populate table)
M13: $
M14: %
B15: ( Select Asset Classes, then Fund, SMA and/or ETF names, and enter allocations in the white shaded sections below. If you enter $ Allocations, press the Autofill % Allocations button.)
B17: Asset Class | C17: Fund, SMA or ETF Name | D17: APIR / ASX Code | E17: Investment Fee | F17: Fund Rebate | G17: $ Allocation | H17: % Allocation | I17: Investment Fee ($) | J17: Manager Rebate ($) | K17: Diversification Limit1
B18: Cash Account | E18: 0 | K18: =IF( sWrapService="GROW WRAP SUPER AND PENSION SERVICE", 100%, "N/A") -> 1
B19: Term Deposits | E19: 0 | K19: =IF( sWrapService="GROW WRAP SUPER AND PENSION SERVICE", 100%, "N/A") -> 1
B20: ASX listed securities excluding ETFs2 | E20: N/A
A21: =IF(OR(AND(bMenu="Essentials",B21="International Shares - Commodities and Resources"), AND(bMenu="Essentials",D21<>"")), IF(OR(ISNA(VLOOKUP(B21,'Asset Class'!$B$2:$B$38,1,FALSE)), ISNA(VLOOKUP(D21,'Essentials menu'!$C$8:$C$308,1,FALSE))), "INVALID!",""), IF(AND(bMenu<>"Essentials",D21<>""), IF(ISNA(VLOOKUP(B21,'Asset Class'!$A$2:$A$38,1,FALSE)), "INVALID!",""),"")) ->  | D21: =IF(ISNA(VLOOKUP(C21,LookupAPIR,2,FALSE)),"",VLOOKUP(C21,LookupAPIR,2,FALSE)) ->  | E21: =IF(C21="","",VLOOKUP(C21,LookupICR,9,FALSE)) ->  | F21: =IFERROR(IF(D21="","",VLOOKUP(D21,LookupFMRebate,3,FALSE)*iRebates),0%) ->  | I21: =IF(C21="","",G21*E21) ->  | J21: =IF(C21="","",G21*F21) ->  | K21: =IF( sWrapService="GROW WRAP SUPER AND PENSION SERVICE", IF(D21<>"",VLOOKUP(D21,diversification,5,FALSE),""), "N/A") ->  | L21: =IF( sWrapService="GROW WRAP SUPER AND PENSION SERVICE", IF(H21>K21, "Warning! Over diversification limit!", ""),"") ->  | M21: =IF(C21<>"", VLOOKUP(C21,LookupAssetClass,29,FALSE),"") -> 
A22: =IF(OR(AND(bMenu="Essentials",B22="International Shares - Commodities and Resources"), AND(bMenu="Essentials",D22<>"")), IF(OR(ISNA(VLOOKUP(B22,'Asset Class'!$B$2:$B$38,1,FALSE)), ISNA(VLOOKUP(D22,'Essentials menu'!$C$8:$C$308,1,FALSE))), "INVALID!",""), IF(AND(bMenu<>"Essentials",D22<>""), IF(ISNA(VLOOKUP(B22,'Asset Class'!$A$2:$A$38,1,FALSE)), "INVALID!",""),"")) ->  | I22: =IF(C22="","",G22*E22) ->  | J22: =IF(C22="","",G22*F22) -> 
A23: =IF(OR(AND(bMenu="Essentials",B23="International Shares - Commodities and Resources"), AND(bMenu="Essentials",D23<>"")), IF(OR(ISNA(VLOOKUP(B23,'Asset Class'!$B$2:$B$38,1,FALSE)), ISNA(VLOOKUP(D23,'Essentials menu'!$C$8:$C$308,1,FALSE))), "INVALID!",""), IF(AND(bMenu<>"Essentials",D23<>""), IF(ISNA(VLOOKUP(B23,'Asset Class'!$A$2:$A$38,1,FALSE)), "INVALID!",""),"")) -> 
A24: =IF(OR(AND(bMenu="Essentials",B24="International Shares - Commodities and Resources"), AND(bMenu="Essentials",D24<>"")), IF(OR(ISNA(VLOOKUP(B24,'Asset Class'!$B$2:$B$38,1,FALSE)), ISNA(VLOOKUP(D24,'Essentials menu'!$C$8:$C$308,1,FALSE))), "INVALID!",""), IF(AND(bMenu<>"Essentials",D24<>""), IF(ISNA(VLOOKUP(B24,'Asset Class'!$A$2:$A$38,1,FALSE)), "INVALID!",""),"")) -> 
A25: =IF(OR(AND(bMenu="Essentials",B25="International Shares - Commodities and Resources"), AND(bMenu="Essentials",D25<>"")), IF(OR(ISNA(VLOOKUP(B25,'Asset Class'!$B$2:$B$38,1,FALSE)), ISNA(VLOOKUP(D25,'Essentials menu'!$C$8:$C$308,1,FALSE))), "INVALID!",""), IF(AND(bMenu<>"Essentials",D25<>""), IF(ISNA(VLOOKUP(B25,'Asset Class'!$A$2:$A$38,1,FALSE)), "INVALID!",""),"")) -> 
A26: =IF(OR(AND(bMenu="Essentials",B26="International Shares - Commodities and Resources"), AND(bMenu="Essentials",D26<>"")), IF(OR(ISNA(VLOOKUP(B26,'Asset Class'!$B$2:$B$38,1,FALSE)), ISNA(VLOOKUP(D26,'Essentials menu'!$C$8:$C$308,1,FALSE))), "INVALID!",""), IF(AND(bMenu<>"Essentials",D26<>""), IF(ISNA(VLOOKUP(B26,'Asset Class'!$A$2:$A$38,1,FALSE)), "INVALID!",""),"")) -> 
A27: =IF(OR(AND(bMenu="Essentials",B27="International Shares - Commodities and Resources"), AND(bMenu="Essentials",D27<>"")), IF(OR(ISNA(VLOOKUP(B27,'Asset Class'!$B$2:$B$38,1,FALSE)), ISNA(VLOOKUP(D27,'Essentials menu'!$C$8:$C$308,1,FALSE))), "INVALID!",""), IF(AND(bMenu<>"Essentials",D27<>""), IF(ISNA(VLOOKUP(B27,'Asset Class'!$A$2:$A$38,1,FALSE)), "INVALID!",""),"")) -> 
A28: =IF(OR(AND(bMenu="Essentials",B28="International Shares - Commodities and Resources"), AND(bMenu="Essentials",D28<>"")), IF(OR(ISNA(VLOOKUP(B28,'Asset Class'!$B$2:$B$38,1,FALSE)), ISNA(VLOOKUP(D28,'Essentials menu'!$C$8:$C$308,1,FALSE))), "INVALID!",""), IF(AND(bMenu<>"Essentials",D28<>""), IF(ISNA(VLOOKUP(B28,'Asset Class'!$A$2:$A$38,1,FALSE)), "INVALID!",""),"")) -> 
A29: =IF(OR(AND(bMenu="Essentials",B29="International Shares - Commodities and Resources"), AND(bMenu="Essentials",D29<>"")), IF(OR(ISNA(VLOOKUP(B29,'Asset Class'!$B$2:$B$38,1,FALSE)), ISNA(VLOOKUP(D29,'Essentials menu'!$C$8:$C$308,1,FALSE))), "INVALID!",""), IF(AND(bMenu<>"Essentials",D29<>""), IF(ISNA(VLOOKUP(B29,'Asset Class'!$A$2:$A$38,1,FALSE)), "INVALID!",""),"")) -> 
A30: =IF(OR(AND(bMenu="Essentials",B30="International Shares - Commodities and Resources"), AND(bMenu="Essentials",D30<>"")), IF(OR(ISNA(VLOOKUP(B30,'Asset Class'!$B$2:$B$38,1,FALSE)), ISNA(VLOOKUP(D30,'Essentials menu'!$C$8:$C$308,1,FALSE))), "INVALID!",""), IF(AND(bMenu<>"Essentials",D30<>""), IF(ISNA(VLOOKUP(B30,'Asset Class'!$A$2:$A$38,1,FALSE)), "INVALID!",""),"")) -> 
A31: =IF(OR(AND(bMenu="Essentials",B31="International Shares - Commodities and Resources"), AND(bMenu="Essentials",D31<>"")), IF(OR(ISNA(VLOOKUP(B31,'Asset Class'!$B$2:$B$38,1,FALSE)), ISNA(VLOOKUP(D31,'Essentials menu'!$C$8:$C$308,1,FALSE))), "INVALID!",""), IF(AND(bMenu<>"Essentials",D31<>""), IF(ISNA(VLOOKUP(B31,'Asset Class'!$A$2:$A$38,1,FALSE)), "INVALID!",""),"")) -> 
A32: =IF(OR(AND(bMenu="Essentials",B32="International Shares - Commodities and Resources"), AND(bMenu="Essentials",D32<>"")), IF(OR(ISNA(VLOOKUP(B32,'Asset Class'!$B$2:$B$38,1,FALSE)), ISNA(VLOOKUP(D32,'Essentials menu'!$C$8:$C$308,1,FALSE))), "INVALID!",""), IF(AND(bMenu<>"Essentials",D32<>""), IF(ISNA(VLOOKUP(B32,'Asset Class'!$A$2:$A$38,1,FALSE)), "INVALID!",""),"")) ->  | D32: =IF(ISNA(VLOOKUP(C32,LookupAPIR,2,FALSE)),"",VLOOKUP(C32,LookupAPIR,2,FALSE)) ->  | E32: =IF(C32="","",VLOOKUP(C32,LookupICR,9,FALSE)) ->  | M32: =IF(C32<>"", VLOOKUP(C32,LookupAssetClass,29,FALSE),"") -> 
A33: =IF(OR(AND(bMenu="Essentials",B33="International Shares - Commodities and Resources"), AND(bMenu="Essentials",D33<>"")), IF(OR(ISNA(VLOOKUP(B33,'Asset Class'!$B$2:$B$38,1,FALSE)), ISNA(VLOOKUP(D33,'Essentials menu'!$C$8:$C$308,1,FALSE))), "INVALID!",""), IF(AND(bMenu<>"Essentials",D33<>""), IF(ISNA(VLOOKUP(B33,'Asset Class'!$A$2:$A$38,1,FALSE)), "INVALID!",""),"")) -> 
A34: =IF(OR(AND(bMenu="Essentials",B34="International Shares - Commodities and Resources"), AND(bMenu="Essentials",D34<>"")), IF(OR(ISNA(VLOOKUP(B34,'Asset Class'!$B$2:$B$38,1,FALSE)), ISNA(VLOOKUP(D34,'Essentials menu'!$C$8:$C$308,1,FALSE))), "INVALID!",""), IF(AND(bMenu<>"Essentials",D34<>""), IF(ISNA(VLOOKUP(B34,'Asset Class'!$A$2:$A$38,1,FALSE)), "INVALID!",""),"")) -> 
A35: =IF(OR(AND(bMenu="Essentials",B35="International Shares - Commodities and Resources"), AND(bMenu="Essentials",D35<>"")), IF(OR(ISNA(VLOOKUP(B35,'Asset Class'!$B$2:$B$38,1,FALSE)), ISNA(VLOOKUP(D35,'Essentials menu'!$C$8:$C$308,1,FALSE))), "INVALID!",""), IF(AND(bMenu<>"Essentials",D35<>""), IF(ISNA(VLOOKUP(B35,'Asset Class'!$A$2:$A$38,1,FALSE)), "INVALID!",""),"")) -> 
A36: =IF(OR(AND(bMenu="Essentials",B36="International Shares - Commodities and Resources"), AND(bMenu="Essentials",D36<>"")), IF(OR(ISNA(VLOOKUP(B36,'Asset Class'!$B$2:$B$38,1,FALSE)), ISNA(VLOOKUP(D36,'Essentials menu'!$C$8:$C$308,1,FALSE))), "INVALID!",""), IF(AND(bMenu<>"Essentials",D36<>""), IF(ISNA(VLOOKUP(B36,'Asset Class'!$A$2:$A$38,1,FALSE)), "INVALID!",""),"")) -> 
A37: =IF(OR(AND(bMenu="Essentials",B37="International Shares - Commodities and Resources"), AND(bMenu="Essentials",D37<>"")), IF(OR(ISNA(VLOOKUP(B37,'Asset Class'!$B$2:$B$38,1,FALSE)), ISNA(VLOOKUP(D37,'Essentials menu'!$C$8:$C$308,1,FALSE))), "INVALID!",""), IF(AND(bMenu<>"Essentials",D37<>""), IF(ISNA(VLOOKUP(B37,'Asset Class'!$A$2:$A$38,1,FALSE)), "INVALID!",""),"")) -> 
A38: =IF(OR(AND(bMenu="Essentials",B38="International Shares - Commodities and Resources"), AND(bMenu="Essentials",D38<>"")), IF(OR(ISNA(VLOOKUP(B38,'Asset Class'!$B$2:$B$38,1,FALSE)), ISNA(VLOOKUP(D38,'Essentials menu'!$C$8:$C$308,1,FALSE))), "INVALID!",""), IF(AND(bMenu<>"Essentials",D38<>""), IF(ISNA(VLOOKUP(B38,'Asset Class'!$A$2:$A$38,1,FALSE)), "INVALID!",""),"")) -> 
A39: =IF(OR(AND(bMenu="Essentials",B39="International Shares - Commodities and Resources"), AND(bMenu="Essentials",D39<>"")), IF(OR(ISNA(VLOOKUP(B39,'Asset Class'!$B$2:$B$38,1,FALSE)), ISNA(VLOOKUP(D39,'Essentials menu'!$C$8:$C$308,1,FALSE))), "INVALID!",""), IF(AND(bMenu<>"Essentials",D39<>""), IF(ISNA(VLOOKUP(B39,'Asset Class'!$A$2:$A$38,1,FALSE)), "INVALID!",""),"")) -> 
A40: =IF(OR(AND(bMenu="Essentials",B40="International Shares - Commodities and Resources"), AND(bMenu="Essentials",D40<>"")), IF(OR(ISNA(VLOOKUP(B40,'Asset Class'!$B$2:$B$38,1,FALSE)), ISNA(VLOOKUP(D40,'Essentials menu'!$C$8:$C$308,1,FALSE))), "INVALID!",""), IF(AND(bMenu<>"Essentials",D40<>""), IF(ISNA(VLOOKUP(B40,'Asset Class'!$A$2:$A$38,1,FALSE)), "INVALID!",""),"")) -> 
A41: =IF(OR(AND(bMenu="Essentials",B41="International Shares - Commodities and Resources"), AND(bMenu="Essentials",D41<>"")), IF(OR(ISNA(VLOOKUP(B41,'Asset Class'!$B$2:$B$38,1,FALSE)), ISNA(VLOOKUP(D41,'Essentials menu'!$C$8:$C$308,1,FALSE))), "INVALID!",""), IF(AND(bMenu<>"Essentials",D41<>""), IF(ISNA(VLOOKUP(B41,'Asset Class'!$A$2:$A$38,1,FALSE)), "INVALID!",""),"")) -> 
A42: =IF(OR(AND(bMenu="Essentials",B42="International Shares - Commodities and Resources"), AND(bMenu="Essentials",D42<>"")), IF(OR(ISNA(VLOOKUP(B42,'Asset Class'!$B$2:$B$38,1,FALSE)), ISNA(VLOOKUP(D42,'Essentials menu'!$C$8:$C$308,1,FALSE))), "INVALID!",""), IF(AND(bMenu<>"Essentials",D42<>""), IF(ISNA(VLOOKUP(B42,'Asset Class'!$A$2:$A$38,1,FALSE)), "INVALID!",""),"")) -> 
A43: =IF(OR(AND(bMenu="Essentials",B43="International Shares - Commodities and Resources"), AND(bMenu="Essentials",D43<>"")), IF(OR(ISNA(VLOOKUP(B43,'Asset Class'!$B$2:$B$38,1,FALSE)), ISNA(VLOOKUP(D43,'Essentials menu'!$C$8:$C$308,1,FALSE))), "INVALID!",""), IF(AND(bMenu<>"Essentials",D43<>""), IF(ISNA(VLOOKUP(B43,'Asset Class'!$A$2:$A$38,1,FALSE)), "INVALID!",""),"")) -> 
A44: =IF(OR(AND(bMenu="Essentials",B44="International Shares - Commodities and Resources"), AND(bMenu="Essentials",D44<>"")), IF(OR(ISNA(VLOOKUP(B44,'Asset Class'!$B$2:$B$38,1,FALSE)), ISNA(VLOOKUP(D44,'Essentials menu'!$C$8:$C$308,1,FALSE))), "INVALID!",""), IF(AND(bMenu<>"Essentials",D44<>""), IF(ISNA(VLOOKUP(B44,'Asset Class'!$A$2:$A$38,1,FALSE)), "INVALID!",""),"")) -> 
A45: =IF(OR(AND(bMenu="Essentials",B45="International Shares - Commodities and Resources"), AND(bMenu="Essentials",D45<>"")), IF(OR(ISNA(VLOOKUP(B45,'Asset Class'!$B$2:$B$38,1,FALSE)), ISNA(VLOOKUP(D45,'Essentials menu'!$C$8:$C$308,1,FALSE))), "INVALID!",""), IF(AND(bMenu<>"Essentials",D45<>""), IF(ISNA(VLOOKUP(B45,'Asset Class'!$A$2:$A$38,1,FALSE)), "INVALID!",""),"")) -> 
B46: TOTAL | G46: =SUM(G18:G45) -> 0 | H46: =SUM(H18:H45) -> 0 | I46: =SUM(I18:I45) -> 0 | J46: =SUM(J18:J45) -> 0
B47: 1 Please note that the diversification limits shown are for Single Class Managed Investments and Exchange Traded Funds, and not the aggregated limits. For the applicable single listed security limits and aggregated limits for listed equities
B48: and managed funds, please refer to the Grow Wrap PDS. Diversification limits do not apply to the Grow Wrap Investment Service (IDPS).
B49: 2 Please note that some ASX listed securities such as listed investment companies have underlying investment fees which are not assessed (N/A) in this Fee Calculator.

Sheet Version control (hidden)
A1: Version | B1: Date | C1: Change description | D1: Doer
A2: 1 | B2: 2012-03-01 | C2: First version of new calculator | D2: Vincent Chan
A3: 1.01 | B3: 2012-03-21 | C3: Added MER calculation section at request of Emidio Masi / Michael Nurse | D3: Greg Baker
A4: 1.02 | B4: 2012-03-28 | C4: Updated Managed Funds list and added Exchange traded funds | D4: Greg Baker
A5: 1.03 | B5: 2012-04-05 | C5: Enhanced Inv Fees sheet to show amount of funds unallocated in warning cell | D5: Greg Baker
C6: Added warnings to when data validation is breached on input cells
A7: 1.04 | B7: 2012-04-11 | C7: Added additional disclosures / disclaimers per legal review | D7: Greg Baker
C8: Password for Protected version is "Tigers" or "tigers"
A9: 1.05 | B9: 2012-05-01 | C9: Corrected the APIR codes for a handful of funds | D9: Greg Baker
A10: 1.06 | B10: 2012-05-30 | C10: Fix bug where $ allocations could not be entered In Inv Fees sheet | D10: Greg Baker
C11: Changed protection to allow copying and pasting in Inv Fees sheet
A12: 1.07 | B12: 2012-06-13 | C12: Introduce changes for FoFA: | D12: Greg Baker
C13: Remove up front fees
C14: Introduce One Off ASF
C15: Allow Ongoing ASF to be fixed and/or Percentage (Flat or Tiered )
A16: 1.08 | B16: 2012-06-14 | C16: Update to Excel 2011 | D16: Greg Baker
C17: Rename "unlimited transaction fee" to "transaction service"
C18: Change labelling of ASF to ASF ongoing in IDPS
A19: 1.09 | B19: 2012-06-18 | C19: Add footnotes and update ICR data | D19: Greg Baker
A20: 1.1 | B20: 2012-07-13 | C20: Change 'Cash Account' to 'Cash Account/Term Deposits/Shares' in cell B18 of [Inv Fees] | D20: Greg Baker
C21: Put ETFs back in ICR data, taken from version 7
A22: 1.11 | B22: 2012-08-08 | C22: Show 'Total Investment Fees' from [Inv fees] on both [SMT] and [IDPS] sheets | D22: Greg Baker
C23: Bug fix on IDPS tiered ASF
C24: Include 20% Family Admin Fee Discount option
C25: Updated investments list
A26: 1.12 | B26: 2012-10-19 | C26: Fix bug on min fee when account balance < 100k and family discount applies | D26: Greg Baker
A27: 1.13 | B27: 2013-03-06 | C27: Change wording and footnotes to allow for new transaction fee basis | D27: Greg Baker
A28: 1.14 | B28: 2013-08-12 | C28: Updated investment list | D28: Greg Baker
A29: 1.15 | B29: 2014-03-13 | C29: Updated investment list | D29: Paul Rehill
A30: 1.16 | B30: 2014-06-17 | C30: Changed min account balance from $100K to $50K for IDPS and Super. | D30: Paul Rehill
A31: 1.16 | B31: 2014-06-17 | C31: Changed exact admin fee to $275.04 for Super and $234.96 for IDPS. | D31: Paul Rehill
A32: 1.16 | B32: 2014-06-17 | C32: Changed cell D43 on both SMT and IDPS sheets to take exact admin fee if account balance is less than or equal to minimum account balance of $50,000. | D32: Paul Rehill
A33: 1.17 | B33: 2014-06-17 | C33: Applied family discount to minimum fee. | D33: Paul Rehill
A35: v1 | B35: 2016-02-15 | C35: Took Voyage Calculator Ver 20151210.xlsm (latest investment management fees) as base calculator to be modified for Grow Wrap Super and Pension Service and Grow Wrap Investment Service.
A36: v1.01 | B36: 2016-02-15 | C36: Added ad-hoc service fee to S & P | D36: Paul Rehill
A37: v1.05 | B37: 2016-03-23 | C37: Changed S & P sheet name to Grow Wrap Fee Calculator | D37: Paul Rehill
A38: v1.05 | B38: 2016-03-23 | C38: Modified to reflect Grow Wrap fee structure | D38: Paul Rehill
A39: v1.05 | B39: 2016-03-23 | C39: Included allowance for Brokerage fees | D39: Paul Rehill
A40: v1.05 | B40: 2016-03-23 | C40: Modified minimum admin fees for ADG and non-ADG noting dealer service fee is excluded when applying minimum admin fee. $189.96 p.a. for ADGs, $214.92 p.a. for non-ADGs. | D40: Paul Rehill
A41: v1.05 | B41: 2016-03-23 | C41: Investment Fees & Rebates sheet uses Voyage sheet modified for asset class selection, Essentials/Full Menu and rebates | D41: Paul Rehill
A42: v1.05 | B42: 2016-03-23 | C42: Asset Class worksheet lists valid asset classes for Essentials and Full Menu | D42: Paul Rehill
A43: v1.05 | B43: 2016-03-23 | C43: "Full menu" worksheet is source for asset class lookup, fund manager name lookup, ICR, rebate, APIR code | D43: Paul Rehill
A44: v1.05 | B44: 2016-03-23 | C44: "Essentials" worksheet is source for asset class lookup, fund manager name lookup. ICR, rebate and APIR code is still sourced from "Full menu" worksheet. | D44: Paul Rehill
A45: v1.05 | B45: 2016-03-23 | C45: "Fund Lists" used to lookup inscope fund manager options when Essentials or Full Menu is selected on the Investment Fees and Rebates worksheet. Then Investment Fees and Rebates worksheet uses this information to populate each Fund Name data validation dropdown box after an Asset Class is selected. | D45: Paul Rehill
A46: v1.05 | B46: 2016-03-23 | C46: Deleted Investment Service worksheet and ICR worksheet. | D46: Paul Rehill
A47: v1.07 | B47: 2016-04-08 | C47: Investment Fees & Rebates worksheet: Added diversification limits | D47: Paul Rehill
A48: v1.07 | B48: 2016-04-08 | C48: Investment Fees & Rebates worksheet: Added diversification limits warnings (column L) | D48: Paul Rehill
A49: v1.07 | B49: 2016-04-08 | C49: Investment Fees & Rebates worksheet: Added invalid warning for invalid asset class or menu option or ETF selection (column A) when switching option for direct shares off or changing from Full menu to Essentials menu. | D49: Paul Rehill
A50: v1.07 | B50: 2016-04-08 | C50: Investment Fees & Rebates worksheet: Added Input cells button | D50: Paul Rehill
A51: v1.08 | B51: 2016-04-22 | C51: Changes to notes | D51: Emidio Masi
A52: v1.08 | B52: 2016-04-28 | C52: Set APIR code for OnePath Alternative Growth Fund | D52: Paul Rehill
A53: v1.08 | B53: 2016-04-28 | C53: Relabelled Adviser establishment fee - one off to Initial Advice Fee. | D53: Paul Rehill
A54: v1.08 | B54: 2016-04-28 | C54: DSF can be modified | D54: Paul Rehill
A55: v1.08 | B55: 2016-04-28 | C55: Removed family discount on DSF. | D55: Paul Rehill
A56: v1.08 | B56: 2016-04-29 | C56: Relabelled DSF as Adviser’s Licensee Service fee | D56: Paul Rehill
A57: v1.08 | B57: 2016-04-29 | C57: Changed website reference on Investment Fees & Rebates tab to wrapinvest.com.au | D57: Paul Rehill
A58: v1.08 | B58: 2016-04-29 | C58: Changed Winton Global Alpha Fund to Essentials menu | D58: Paul Rehill
A59: v1.08 | B59: 2016-04-29 | C59: Changed Plato Australian Shares Income Fund to Essentials menu | D59: Paul Rehill
A60: v1.08 | B60: 2016-04-29 | C60: Changed Henderson Australian Fixed Interest Fund to Essentials menu | D60: Paul Rehill
A61: v1.08 | B61: 2016-04-29 | C61: Changed Franklin Templeton Multisector Bond Fund (Class W) to Essentials menu | D61: Paul Rehill
A62: v1.08 | B62: 2016-05-02 | C62: Changed Franklin Templeton Multisector Bond Fund (Class W) back to full menu only | D62: Paul Rehill
A63: v1.08 | B63: 2016-05-02 | C63: Added Perpetual Wholesale Smaller Companies Fund (PER0048AU) to full menu | D63: Paul Rehill
A64: v1.08 | B64: 2016-05-02 | C64: Changed Henderson Australian Equity Fund rebate from 12bp to 20bp (IOF0048AU) | D64: Paul Rehill
A65: v1.08 | B65: 2016-05-02 | C65: Change OnePath Alternative Growth Fund rebate to 20 bps | D65: Paul Rehill
A66: v1.08 | B66: 2016-05-02 | C66: Removed OnePath Alternative Growth Fund as its PDS is not ready | D66: Paul Rehill
A67: v1.08 | B67: 2016-05-02 | C67: Renamed GST variables to GST and Rebates variables and added 0/1 variable to turn rebates off/on. | D67: Paul Rehill
A68: v1.08 | B68: 2016-05-02 | C68: Turned rebates off, setting iRebate = 0. | D68: Paul Rehill
A69: v1.09 | B69: 2016-05-02 | C69: Saved as v1.09 and removed rebate check on Full and Essentials menu worksheets. | D69: Paul Rehill
A70: v1.10 | B70: 2016-05-10 | C70: Renamed full menu to Extended Managed Investments menu | D70: Paul Rehill
A71: v1.10 | B71: 2016-05-10 | C71: Removed $750K account balance cap applying to DSF (adviser's licensee service fee) | D71: Paul Rehill
A72: v1.11 | B72: 2016-05-10 | C72: Added OnePath Alternative Growth back as a menu item | D72: Paul Rehill
A73: v1.12 | B73: 2016-05-17 | C73: Added 2 more tiers for adviser services fees with Tiered Percentages | D73: Paul Rehill
A74: v1.12 | B74: 2016-05-17 | C74: Adjusted ASF - Ongoing calculation for the two new tiers | D74: Paul Rehill
A75: v1.12 | B75: 2016-05-17 | C75: Removed link in between ADG client Yes/No flag and adviser's licensee service fee | D75: Paul Rehill
A76: v1.12 | B76: 2016-05-17 | C76: Moved ADG client Yes/No flag to underneath Administration fees heading and moved sub-headings down (e.g. % Fee p.a., $ Fee p.a.) | D76: Paul Rehill
A77: v1.12 | B77: 2016-05-17 | C77: ADG client Yes/No flag affects Essentials fee and minimum admin fee only. | D77: Paul Rehill
A78: v1.12 | B78: 2016-05-17 | C78: Deleted Note 3 on the Grow Wrap Fee Calculator tab. | D78: Paul Rehill
A79: v1.12 | B79: 2016-05-17 | C79: Included TDs alongside Managed Funds for non-automated per transaction fees. | D79: Paul Rehill
A80: v1.13 | B80: 2016-05-19 | C80: Added Murray Reid's rebate list (to display) and took lowest rebate when a range is provided (rebates sheet) | D80: Paul Rehill
A81: v1.13 | B81: 2016-05-19 | C81: Linked 2 menu sheets to rebates and cross checked number of rebates on list (56 essentials, 72 full) | D81: Paul Rehill
A82: v1.13 | B82: 2016-05-19 | C82: Turned rebates on, setting iRebate = 1 | D82: Paul Rehill
A83: v1.13 | B83: 2016-05-19 | C83: Two Perennial managed funds moved to Essentials menu. | D83: Paul Rehill
A84: v1.14 | B84: 2016-05-19 | C84: Cleared 100% diversification limit against Term Deposits/Shares as can't assess it. | D84: Paul Rehill
A85: v1.14 | B85: 2016-05-19 | C85: Added diversification limit note about applicable to single managed funds and ETFs only | D85: Paul Rehill
A86: v1.15 | B86: 2016-05-27 | C86: Linked investment menu chosen on Investment Fees & Rebates to fee paid on Fee Calculator tab. | D86: Paul Rehill
A87: v1.16 | B87: 2016-06-03 | C87: ETL0398AU is on the Essentials menu. | D87: Paul Rehill
A88: v1.16 | B88: 2016-06-03 | C88: Missing ICRs: ETL0398AU (0.46%) and TYN0040AU (1%) | D88: Paul Rehill
A89: v1.17 | B89: 2016-06-16 | C89: Additional investment manager rebates | D89: Paul Rehill
A90: v1.18 | B90: 2016-06-30 | C90: Branded calculator | D90: Paul Rehill
A91: v1.19 | B91: 2016-06-30 | C91: Increased column width on Investment Fees & Rebates sheet for large numbers. | D91: Paul Rehill
A92: v1.20 | B92: 2016-07-21 | C92: Investment Fees & Rebates wsh - Request came through for functionality to select investment option rather than asset class so formula added to cater for both. | D92: Paul Rehill
A93: v1.20 | B93: 2016-07-21 | C93: Investment Fees & Rebates wsh - Cells M18:M42 contain formula to lookup the asset class belonging to a selected investment option. Named these cells LookupClass1 to LookupClass24 respectively. Column M is hidden. | D93: Paul Rehill
A94: v1.20 | B94: 2016-07-21 | C94: Asset Class wsh - Added 4 sorted lists to populate investment options on Investment Fees & Rebates wsh when no asset class has been selected. Name the 4 lists appearing in columns D:G, EssentialsMenuNoETFsorted, EssentialsMenuETFsorted, FullMenuNoETFsorted and FullMenuETFsorted. | D94: Paul Rehill
A95: v1.20 | B95: 2016-07-21 | C95: Full menu wsh - Copied asset class from column A to Column AD which is used to look up the asset class from the investment option name. Defined the named range LookupAssetClass as columns B:AD for vlookup. | D95: Paul Rehill
A96: v1.20 | B96: 2016-07-21 | C96: Investment Fees & Rebates wsh - Adjusted the data validation rules in B18:C42 to allow investment option to be selected first, which then allows the corresponding asset class to be selected (only 1 asset class can be chosen) and then if the asset class dropdown arrow is reselected, all of the asset classes are shown rather than the one specific to the first investment option chosen. | D96: Paul Rehill
A97: v1.20 | B97: 2016-07-21 | C97: rebates wsh - updated column G cells as marked in yellow for advised rebate updates (a number had 0%) | D97: Paul Rehill
A98: v1.21 | B98: 2016-07-21 | C98: rebates wsh - updated column G cells for rebate as advised by Murray. | D98: Paul Rehill
A99: v1.22 | B99: 2016-09-13 | C99: Investment Fees & Rebates wsh - Introduced Model Portfolio selection option to pre-populate table. | D99: Paul Rehill
A100: v1.22 | B100: 2016-09-13 | C100: Model Portfolios wsh - Introduced Model Portfolios worksheet for portfolio input data. This worksheet contains named ranges referenced in a VBA macro located on the worksheet's VBA module. | D100: Paul Rehill
A101: v1.22 | B101: 2016-09-13 | C101: Model Portfolios wsh - ModelPortfolioList named range contains list of 18 model portfolios | D101: Paul Rehill
A102: v1.22 | B102: 2016-09-14 | C102: Model Portfolios wsh - ModelPortfolioList named range contains list of 18 model portfolios | D102: Paul Rehill
A103: v1.22 | B103: 2016-09-14 | C103: Full menu wsh - Columns AD and AE data used to lookup asset class and investment option name using APIR codes | D103: Paul Rehill
A104: v1.22 | B104: 2016-09-14 | C104: TurnOnShares and WarnSharesTurnedOn macros added to ClearInvestmentSelections module. Used in Worksheet_Change event in the Investment Fees & Rebates worksheet VBA section. This change event checks to see if a model portfolio is selected, asks adviser % of portfolio invested in model and then takes information on the Model Portfolios wsh and populates the asset class, investment option and % invested in the invested option on the investment fees & rebates wsh. | D104: Paul Rehill
A105: v1.23 | B105: 2016-09-26 | C105: Changed date of information calculator is based upon from May 2016 to September 2016. | D105: Paul Rehill
A106: v1.24 | B106: 2016-09-27 | C106: Added IFAview and ADGview macros to hide/show model portfolio features specific to IFA/ADG advisers respectively and change the Essentials administration fee. Box to change ADG Client to Yes/No is hidden in both calcualtors. | D106: Paul Rehill
A107: v1.25 | B107: 2006-12-06 | C107: Matt Hadodo requested 3 versions of the calculator. ADG and IFA as well as a third version that shows the box to change ADG Client to Yes/No which is currently hidden in both calculators as well as hidden model porftolios. | D107: Paul Rehill
A108: The following menu items are no longer on the menu and have been removed from the Full menu worksheet and the Essential menu worksheet. | E108: APIR
C109: International Shares | D109: IFP Global Franchise Fund | E109: MAQ0404AU | F109: Optional Extensive MFs | G109: 0 | H109: TL_CUSTOM_GROUP.ANZSingleClass | I109: 0.3 | J109: n/a | K109: n/a | L109: 0.0138 | M109: 6 | N109: High | O109: 12160 | P109: 2015-12-31 | Q109: 0.0049
C110: ETF - Listed Global shares | D110: iShares MSCI BRIC | E110: IBK | H110: TL_CUSTOM_GROUP.ANZETP | I110: 0.2 | L110: 0.0068
A111: v1.25 | B111: 2006-12-06 | C111: Updated ICRs on Full Menu worksheet (and Essentials menu worksheet although shouldn't be used for ICR lookup) | D111: Paul Rehill
A112: v1.25 | B112: 2006-12-06 | C112: Two new menu options added (see below) | D112: Paul Rehill
B113: Balanced | C113: AMP1685AU | D113: AMP Capital Multi-Asset Fund | E113: Optional Extras: Extended Mgd Invest. Menu | F113: 1 | G113: n/a | H113: 0.0093 | K113: 5 | L113: Medium to high
B114: Growth | C114: PWA0822AU | D114: BlackRock Wholesale Balanced Fund | E114: Essentials | F114: 1 | G114: n/a | H114: 0.0095 | K114: 6 | L114: High
A115: v1.25 | B115: 2006-12-06 | C115: No ETFs have been removed but 5 new ETFs have been added to the menu (see below) | D115: Paul Rehill | H115: ICR
C116: IHCB | D116: iShares Global Corporate Bond (AUD Hedged) | E116: Optional Extras: ASX Listed Securities | F116: 0.3 | G116: n/a | H116: 0.0026
C117: VCF | D117: Vanguard International Credit Securities Index (Hedged) | E117: Optional Extras: ASX Listed Securities | F117: 0.3 | G117: n/a | H117: 0.003
C118: VIF | D118: Vanguard International Fixed Interest (Hedged) | E118: Optional Extras: ASX Listed Securities | F118: 0.3 | G118: n/a | H118: 0.002
C119: IHOO | D119: iShares Global 100 AUD Hedged | E119: Optional Extras: ASX Listed Securities | F119: 0.3 | G119: n/a | H119: 0.0043
C120: IHVV | D120: iShares S&P 500 AUD Hedged | E120: Optional Extras: ASX Listed Securities | F120: 0.3 | G120: n/a | H120: 0.001
A121: v1.26 | B121: 2017-02-02 | C121: Model portfolios wsh - updated to reflect new accumulation wrap and low cost accumulation wrap portfolios. | D121: Paul Rehill
A122: v1.26 | B122: 2017-02-02 | C122: Updated ETL0398AU ICR from 0.46% to 0.40% for T. Rowe Price Dynamic Global Bond Fund | D122: Paul Rehill
A123: v1.26 | B123: 2017-02-02 | C123: Updated AAP0104au rebate from 0 to 10bp for Ausbil Emerging leaders. | D123: Paul Rehill
A124: v1.27 | B124: 2017-02-03 | C124: Abby Macnish requested using 100%/0% and 85%/15% where I had changed the growth defensive split to 92%/8% and 84.5%/15.5%. Affected model portfolios wsh and Investment Fees & Rebates Worksheet_Change event where these percentages are referenced for the model portfolio data dump. | D124: Paul Rehill
A125: v1.27 | B125: 2017-02-03 | C125: Model Portfolios wsh - Abby Macnish requested Schroders real return model portfolio items be grouped as they appear twice in two sections of the model portfolio but for purpose of Investment Fees & Rebates wsh, they can be grouped. | D125: Paul Rehill
A126: v1.28 | B126: 2017-04-12 | C126: Added Zurich Investments Emerging Markets Equity Fund (ZUR0614AU) with manager rebate range 0.18%-0.22% (so used 0.18%) to the full menu. MER is 1.4%. Needed to add it to the Asset Class wsh in the FullMenuNoETFsorted and FullMenuETFsorted lists, as well as the Full menu wsh. Rebate was added to the Rebates wsh and referenced by vlookup. | D126: Paul Rehill
A127: v1.28 | B127: 2017-04-12 | C127: Updated Zurich rebates on rebates wsh to reflect the new lower bound in new ranges: | D127: Paul Rehill
C128: Zurich Investments Australian Property Securities Fund (0.09%-0.13%) | D128: Paul Rehill
C129: Zurich Investments Equity Income Fund (0.04%-0.08%)
C130: Zurich Investments Global Growth Share Fund (0.09%-0.13%)
C131: Zurich Investments Global Thematic Share Fund (0.04%-0.08%)
A132: v1.29 | B132: 2017-05-24 | C132: Grow Wrap Fee Calculator wsh - Showed hidden row 57 which had SMA fee pricing already configured. | D132: Paul Rehill
A133: v1.29 | B133: 2017-05-24 | C133: Asset Class wsh - Added 4 additional sorted lists (in additional to columns D:G) to populate investment options on Investment Fees & Rebates wsh when no asset class has been selected and SMA option is selected. The 8 lists appearing in columns D:K are now (note had to work with short defined names as data validation box accepts maximum of 256 characters): | D133: Paul Rehill
C134: Mn_1 - Essentials with No ETFs, No SMAs
C135: Mn_3 - Essentials with ETFs, no SMAs
C136: Mn_5 - Full with No ETFs, No SMAs
C137: Mn_7 - Full Menu with ETFs, No SMAs
C138: Mn_2 - Essentials with No ETFs, with SMAs
C139: Mn_4 - Essentials with ETFs, with SMAs
C140: Mn_6 - Full with No ETFs, with SMAs
C141: Mn_8 - Full with ETFs, with SMAs
A142: v1.29 | B142: 2017-05-24 | C142: Asset Class wsh - Recoded columns A and B that summarise asset classes available for Essentials and Full menu which is dependent on whether ETFs and SMAs optional fee options have been selected. Cells A29:A35 and cells B28:B34 were recoded | D142: Paul Rehill
A143: v1.29 | B143: 2017-05-24 | C143: Full Menu wsh - Added 13 SMAs to investment options list | D143: Paul Rehill
A144: v1.29 | B144: 2017-05-24 | C144: Essentials wsh - Added 13 SMAs to investment options list | D144: Paul Rehill
A145: v1.29 | B145: 2017-05-24 | C145: Asset Class wsh - Added 13 SMAs investment options to lists in columns H, I, J and K and sorted alphabetically. | D145: Paul Rehill
A146: v1.29 | B146: 2017-05-24 | C146: Investment Fees & Rebates wsh - Updated data validation for Fund01 through to Fund25 which represent cells C20 through to C44. | D146: Paul Rehill
A147: v1.29 | B147: 2017-05-24 | C147: Updated ICRs on Full Menu worksheet (and Essentials menu worksheet although shouldn't be used for ICR lookup) | D147: Paul Rehill
A148: v1.30 | B148: 2017-06-01 | C148: Updated incorrect ICRs which only are valid later on 1 July 2017 on Full Menu worksheet (and Essentials menu worksheet although shouldn't be used for ICR lookup). That is, need to revert to older ICRs. | D148: Paul Rehill
A149: v1.31 | B149: 2017-06-15 | C149: Changed accumulation and retirement model portfolios to reflect single property fund change of UBS Clarion to Vanguard. | D149: Paul Rehill
A150: v1.32 | B150: 2017-06-21 | C150: Low cost portfolios with ETFs decommissioned from CIO's model portfolios so no longer accessible. Removed from list on model portfolios worksheet. | D150: Paul Rehill
A151: v1.33 | B151: 2017-06-28 | C151: Updated investment menu for fee changes including ETFs, addition of new Antipodes fund and removal of Blackrock Absolute Return fund. | D151: Paul Rehill
A152: v1.34 | B152: 2017-08-28 | C152: Added the following investment menu option to the Full Menu. | D152: Paul Rehill
C153: - ETL0365AU Paradice Global Small Mid Cap Fund
C154: - rebate of 14bps but the FM requires a range of 10 to 20bps which requires the calculator to reflect 10bps.
A155: v1.34 | B155: 2017-08-28 | C155: Checked ICRs against August menu and noticed two investment options had differences. | D155: Paul Rehill
C156: - BlackRock Wholesale Balanced Fund
C157: - Bennelong Australian Equity Fund
C158: - Winton Global Alpha Fund
A159: v1.34 | B159: 2017-08-28 | C159: Added Paradice Global Small Mid Cap Fund to 4 columns in Asset Class spreadsheet so investment option can be selected directly rather than by first selecting asset class. | D159: Paul Rehill
A160: v1.35 | B160: 2017-09-28 | C160: Added Administration Expense Recovery (estimate) under list of Administration fees (0.01% p.a. for IDPS and 0.02% p.a. for Super/Pension). In the fees summary, separately list Essentials + Optional Extras Administration Fee, and Administration Expense Recovery (estimate). | D160: Paul Rehill
A161: v1.35 | B161: 2017-09-28 | C161: Added an * footnote to the Administration Expense Recovery (estimate). | D161: Paul Rehill
A162: v1.35 | B162: 2017-09-28 | C162: Deleted the following two investment options that no longer appear on the investment menu. | D162: Paul Rehill
C163: SGH20 Wholesale Fund (ETL0042AU)
C164: Arnhem Australian Equity (SMAARN01S)
A165: v1.35 | B165: 2017-09-28 | C165: Updated a few changed ICRs | D165: Paul Rehill
A166: v1.36 | B166: 2017-10-30 | C166: Changed rebate for BFL0001AU Bennelong Australian Equities Fund to 0.10%. | D166: Paul Rehill
A167: v1.36 | B167: 2017-10-30 | C167: Updated notes to reflect inclusion of indirect costs for 5 Blackrock SMAs and minimum $50,000 investment for SMAs. | D167: Paul Rehill
A168: v1.36 | B168: 2017-10-30 | C168: Updated ICRs for 5 Blackrock SMAs. | D168: Paul Rehill
A169: v1.37 | B169: 2017-11-01 | C169: "(Please note: The minimum required initial investment is $5,000 for managed funds and $50,000 for SMAs)" was added above the Investment Fees & Rebates worksheet table. | D169: Paul Rehill
A170: v1.37 | B170: 2017-11-02 | C170: Asset Class worksheet list investment option names which must match those on the Full Menu worksheet. Corrections needed to be made as follows: | D170: Paul Rehill
A171: v1.37 | B171: 2017-11-02 | C171: Changed "ANZ ETFS Physical Gold ETF " to "ETFS Physical Gold ETF " | D171: Paul Rehill
A172: v1.37 | B172: 2017-11-02 | C172: Changed "ANZ ETFS Physical Renminbi ETF " to "ETFS Physical Renminbi ETF " | D172: Paul Rehill
A173: v1.37 | B173: 2017-11-02 | C173: Changed "ANZ ETFS Physical US Dollar ETF " to "ETFS Physical US Dollar ETF " | D173: Paul Rehill
A174: v1.37 | B174: 2017-11-02 | C174: Changed "ANZ ETFS S&P 500 High Yield Low Volitility ETF " to "ETFS S&P 500 High Yield Low Volitility ETF " | D174: Paul Rehill
A175: v1.37 | B175: 2017-11-02 | C175: Changed "ANZ ETFS S&P/ASX 100 ETF" to "ETFS S&P/ASX 100 ETF" | D175: Paul Rehill
A176: v1.37 | B176: 2017-11-02 | C176: Changed "ANZ ETFS S&P/ASX 300 High Yield Plus ETF " to "ETFS S&P/ASX 300 High Yield Plus ETF " | D176: Paul Rehill
A177: v1.37 | B177: 2017-11-02 | C177: Deleted Arnhem Australian Equity (SMA option) from menu lists noting there is also a Arnhem Australian Equity Fund which is a managed fund. | D177: Paul Rehill
A178: v1.37 | B178: 2017-11-02 | C178: Deleted IFP Global Franchise Fund | D178: Paul Rehill
A179: v1.37 | B179: 2017-11-02 | C179: Deleted iShares MSCI BRIC | D179: Paul Rehill
A180: v1.37 | B180: 2017-11-02 | C180: Deleted SGH20 Wholesale Fund | D180: Paul Rehill
A181: v1.38 | B181: 2017-11-15 | C181: Investment Fees & Rebates worksheet changes: | D181: Paul Rehill
C182: Removed reliance of worksheet on "SELECT ALLOCATION AS $ OR %: " | D182: Paul Rehill
C183: Removed conditional formatting in columns G and H which linked to cell C13 ($ or %) so that both columns are visible. | D183: Paul Rehill
C184: Introduced VBA code on worksheet's change event that looked for changes in cell G18:G44 ($ amount inputted) and then update the adjacent cell in column H for the corresponding %. | D184: Paul Rehill
C185: Introduced VBA code on worksheet's change event that looked for changes in cell H18:H44 (% amount inputted) and then update the adjacent cell in column G for the corresponding $ amount. | D185: Paul Rehill
C186: Removed cells L20:L44 dependency on cell C13. | D186: Paul Rehill
C187: Changed cell C5 so it no longer refers to cell C13. | D187: Paul Rehill
C188: Cleared data in row 13 and hid the row so not to break any other spreadsheet references which could occur if I deleted this unnecessary row.
A189: v1.39 | B189: 2017-11-22 | C189: Put Term Deposits and "ASX listed securities excluding ETFs" as separate row items in the investment fees & rebates worksheet. | D189: Paul Rehill
A190: v1.39 | B190: 2017-11-22 | C190: Investment Fees & Rebates worksheet changes: | D190: Paul Rehill
C191: Changed Cell B15 to ( Select Asset Classes, Fund Names, ETF Names and enter allocations in yellow shaded sections below) | D191: Paul Rehill
C192: Changed SPDR S&P/ASX 200 Small Ordinaries Fund reference to SPDR S&P/ASX Small Ordinaries | D192: Paul Rehill
C193: Changed "ETFS Physical Gold ETF " reference to "ETFS Physical Singapore Gold ETF" | D193: Paul Rehill
C194: Changed "ETFS Physical Renminbi ETF " reference to "ETFS Physical Renminbi ETF" | D194: Paul Rehill
C195: Changed "ETFS Physical US Dollar ETF" reference to "ETFS Physical US Dollar ETF" | D195: Paul Rehill
C196: Changed "iShares Core S&P Midcap" reference to "iShares Core S&P Mid-Cap" | D196: Paul Rehill
C197: Changed "iShares Core S&P Small-Cap " reference to "iShares Core S&P Small-Cap" | D197: Paul Rehill
C198: Changed "iShares Russell 2000 " reference to "iShares Russell 2000" | D198: Paul Rehill
C199: Changed "Vanguard MSCI Index International Shares " reference to "Vanguard MSCI International Shares Index" | D199: Paul Rehill
C200: Changed "Vanguard MSCI Index International Shares Hedged" reference to "Vanguard MSCI International Shares Hedged Index" | D200: Paul Rehill
C201: Changed "SPDR S&P/ASX 200 Listed Property " reference to "SPDR S&P/ASX 200 Listed Property" | D201: Paul Rehill
... 314 more rows

Sheet Asset Class (hidden)
A1: Asset Class Full Menu | B1: Asset Class Essentials | D1: Mn_1 - Essentials with No ETFs, No SMAs | E1: Mn_3 - Essentials with ETFs, no SMAs | F1: Mn_5 - Full with No ETFs, No SMAs | G1: Mn_7 - Full Menu with ETFs, No SMAs | H1: Mn_2 - Essentials with No ETFs, with SMAs | I1: Mn_4 - Essentials with ETFs, with SMAs | J1: Mn_6 - Full with No ETFs, with SMAs | K1: Mn_8 - Full with ETFs, with SMAs
A2: Conservative | B2: Conservative | D2: AB Global Equities Fund | E2: AB Global Equities Fund | F2: AB Global Equities Fund | G2: AB Global Equities Fund | H2: AB Global Equities Fund | I2: AB Global Equities Fund | J2: AB Global Equities Fund | K2: AB Global Equities Fund
A3: Moderate | B3: Moderate | D3: Aberdeen Standard Emerging Opportunities Fund | E3: Aberdeen Standard Emerging Opportunities Fund | F3: Aberdeen Standard Asian Opportunities Fund | G3: Aberdeen Standard Asian Opportunities Fund | H3: Acadian Global Managed Volatility Equity Fund | I3: Acadian Global Managed Volatility Equity Fund | J3: Aberdeen Standard Asian Opportunities Fund | K3: Aberdeen Standard Asian Opportunities Fund
A4: Balanced | B4: Balanced | D4: Acadian Global Managed Volatility Equity Fund | E4: Acadian Global Managed Volatility Equity Fund | F4: Aberdeen Standard Emerging Opportunities Fund | G4: Aberdeen Standard Emerging Opportunities Fund | H4: Allan Gray Australia Equity Fund | I4: Allan Gray Australia Equity Fund | J4: Aberdeen Standard Emerging Opportunities Fund | K4: Aberdeen Standard Emerging Opportunities Fund
A5: Growth | B5: Growth | D5: Allan Gray Australia Equity Fund | E5: Allan Gray Australia Equity Fund | F5: Aberdeen Standard Ex-20 Australian Equities Fund | G5: Aberdeen Standard Ex-20 Australian Equities Fund | H5: Alphinity Sustainable Share Fund | I5: Alphinity Sustainable Share Fund | J5: Aberdeen Standard Ex-20 Australian Equities Fund | K5: Aberdeen Standard Ex-20 Australian Equities Fund
A6: High Growth | B6: High Growth | D6: Alphinity Sustainable Share Fund | E6: Alphinity Sustainable Share Fund | F6: Aberdeen Standard International Equity Fund | G6: Aberdeen Standard International Equity Fund | H6: Altius Sustainable Bond Fund | I6: Altius Sustainable Bond Fund | J6: Aberdeen Standard International Equity Fund | K6: Aberdeen Standard International Equity Fund
A7: Cash | B7: Cash | D7: Altius Sustainable Bond Fund | E7: Altius Sustainable Bond Fund | F7: Acadian Global Managed Volatility Equity Fund | G7: Acadian Global Managed Volatility Equity Fund | H7: Antares Core Opportunities | I7: Antares Core Opportunities | J7: Acadian Global Managed Volatility Equity Fund | K7: Acadian Global Managed Volatility Equity Fund
A8: Australian Fixed Interest | B8: Australian Fixed Interest | D8: Arrowstreet Global Equity Fund | E8: Arrowstreet Global Equity Fund | F8: Acadian Wholesale Australian Equity Long Short Fund | G8: Acadian Wholesale Australian Equity Long Short Fund | H8: Antares Dividend Builder | I8: Antares Dividend Builder | J8: Acadian Wholesale Australian Equity Long Short Fund | K8: Acadian Wholesale Australian Equity Long Short Fund
A9: International Fixed Interest | B9: International Fixed Interest | D9: Arrowstreet Global Equity Fund Hedged | E9: Arrowstreet Global Equity Fund Hedged | F9: Allan Gray Australia Equity Fund | G9: Allan Gray Australia Equity Fund | H9: Arrowstreet Global Equity Fund | I9: Arrowstreet Global Equity Fund | J9: Allan Gray Australia Equity Fund | K9: Allan Gray Australia Equity Fund
A10: Diversified Fixed Interest | B10: Diversified Fixed Interest | D10: Ausbil 130/30 Focus Fund | E10: Ausbil 130/30 Focus Fund | F10: Alphinity Sustainable Share Fund | G10: Alphinity Sustainable Share Fund | H10: Arrowstreet Global Equity Fund Hedged | I10: Arrowstreet Global Equity Fund Hedged | J10: Alphinity Sustainable Share Fund | K10: Alphinity Sustainable Share Fund
A11: Diversified Credit | B11: Diversified Credit | D11: Australian Ethical Australian Share Fund | E11: Australian Ethical Australian Share Fund | F11: Altius Sustainable Bond Fund | G11: Altius Sustainable Bond Fund | H11: Ausbil 130/30 Focus Fund | I11: Ausbil 130/30 Focus Fund | J11: Altius Sustainable Bond Fund | K11: Altius Sustainable Bond Fund
A12: Growth Fixed Income | B12: Growth Fixed Income | D12: AXA IM Sustainable Equity Fund | E12: AXA IM Sustainable Equity Fund | F12: Altrinsic Global Equities Trust | G12: Altrinsic Global Equities Trust | H12: Australian Ethical Australian Share Fund | I12: Australian Ethical Australian Share Fund | J12: Altrinsic Global Equities Trust | K12: Altrinsic Global Equities Trust
A13: Property - Australian | B13: Property - Australian | D13: Bell Global Emerging Companies Fund | E13: Bell Global Emerging Companies Fund | F13: AMP Capital Multi-Asset Fund | G13: AMP Capital Multi-Asset Fund | H13: AXA IM Sustainable Equity Fund | I13: AXA IM Sustainable Equity Fund | J13: AMP Capital Multi-Asset Fund | K13: AMP Capital Multi-Asset Fund
A14: Property - Global | B14: Property - Global | D14: Bennelong Australian Equity Fund | E14: Bennelong Australian Equity Fund | F14: Antipodes Global Fund | G14: Antipodes Global Fund | H14: Bell Global Emerging Companies Fund | I14: Bell Global Emerging Companies Fund | J14: Antares Core Opportunities | K14: Antares Core Opportunities
A15: Australian Shares | B15: Australian Shares | D15: Bentham Global Income Fund | E15: Bentham Global Income Fund | F15: APN AREIT Fund | G15: APN AREIT Fund | H15: Bennelong Australian Equity Fund | I15: Bennelong Australian Equity Fund | J15: Antares Dividend Builder | K15: Antares Dividend Builder
A16: Australian Shares - Imputation | B16: Australian Shares - Imputation | D16: BetaShares Global Quality Leaders ETF – Currency Hedged | E16: BetaShares Active Australian Hybrids Fund (ETMF) | F16: Ardea Real Outcome Fund | G16: Ardea Real Outcome Fund | H16: Bentham Global Income Fund | I16: Bentham Global Income Fund | J16: Antipodes Global Fund | K16: Antipodes Global Fund
A17: Australian Shares - Concentrated | B17: Australian Shares - Concentrated | D17: BetaShares Global Quality Leaders ETF | E17: BetaShares Australian 200 ETF | F17: Arrowstreet Global Equity Fund | G17: Arrowstreet Global Equity Fund | H17: BetaShares Global Quality Leaders ETF – Currency Hedged | I17: BetaShares Active Australian Hybrids Fund (ETMF) | J17: APN AREIT Fund | K17: APN AREIT Fund
A18: Australian Shares - Ethical | B18: Australian Shares - Ethical | D18: BlackRock Tactical Growth Fund | E18: BetaShares Australian Bank Senior Floating Rate Bond ETF | F18: Arrowstreet Global Equity Fund Hedged | G18: Arrowstreet Global Equity Fund Hedged | H18: BetaShares Global Quality Leaders ETF | I18: BetaShares Australian 200 ETF | J18: Ardea Real Outcome Fund | K18: Ardea Real Outcome Fund
A19: Australian Shares - Geared | B19: Australian Shares - Geared | D19: Capital New Perspective Fund | E19: BetaShares Australian Sustainability | F19: Ausbil 130/30 Focus Fund | G19: Ausbil 130/30 Focus Fund | H19: BlackRock iShares Enhanced Strategic Aggressive | I19: BetaShares Australian Bank Senior Floating Rate Bond ETF | J19: Arrowstreet Global Equity Fund | K19: Arrowstreet Global Equity Fund
A20: Australian Shares - Specialist | B20: Australian Shares - Specialist | D20: ClearBridge RARE Infrastructure Value Fund - Hedged | E20: Betashares FTSE 100 ETF | F20: Ausbil Australian Active Equity Fund | G20: Ausbil Australian Active Equity Fund | H20: BlackRock iShares Enhanced Strategic Balanced | I20: BetaShares Australian Sustainability | J20: Arrowstreet Global Equity Fund Hedged | K20: Arrowstreet Global Equity Fund Hedged
A21: Australian Smaller Companies Portfolios | B21: Australian Smaller Companies Portfolios | D21: ClearBridge RARE Infrastructure Value Fund - Unhedged | E21: BetaShares FTSE RAFI Australian 200 ETF | F21: Ausbil Australian Emerging Leader Fund | G21: Ausbil Australian Emerging Leader Fund | H21: BlackRock iShares Enhanced Strategic Conservative | I21: Betashares FTSE 100 ETF | J21: Ausbil 130/30 Focus Fund | K21: Ausbil 130/30 Focus Fund
A22: International Shares | B22: International Shares | D22: Colchester Global Government Bond Fund - Class I | E22: BetaShares Global Quality Leaders ETF – Currency Hedged | F22: Australian Ethical Australian Share Fund | G22: Australian Ethical Australian Share Fund | H22: BlackRock iShares Enhanced Strategic Growth | I22: BetaShares FTSE RAFI Australian 200 ETF | J22: Ausbil Australian Active Equity Fund | K22: Ausbil Australian Active Equity Fund
A23: International Shares - Hedged | B23: International Shares - Hedged | D23: Epoch Global Equity ShareHolder Yield (Hedged) Fund | E23: BetaShares Global Quality Leaders ETF | F23: AXA IM Sustainable Equity Fund | G23: AXA IM Sustainable Equity Fund | H23: BlackRock iShares Enhanced Strategic Moderate | I23: BetaShares Global Quality Leaders ETF – Currency Hedged | J23: Ausbil Australian Emerging Leader Fund | K23: Ausbil Australian Emerging Leader Fund
A24: International Shares - Regional and Emerging Markets | B24: International Shares - Regional and Emerging Markets | D24: Epoch Global Equity ShareHolder Yield (Unhedged) Fund | E24: BetaShares Global Sustainability Leaders | F24: Bell Global Emerging Companies Fund | G24: Bell Global Emerging Companies Fund | H24: BlackRock Tactical Growth Fund | I24: BetaShares Global Quality Leaders ETF | J24: Australian Ethical Australian Share Fund | K24: Australian Ethical Australian Share Fund
A25: International Shares - Small Companies | B25: International Shares - Small Companies | D25: ETFS FANG+ ETF | E25: BetaShares Gold Bullion ETF (A$ Hedged) | F25: Bennelong Australian Equity Fund | G25: Bennelong Australian Equity Fund | H25: Capital New Perspective Fund | I25: BetaShares Global Sustainability Leaders | J25: AXA IM Sustainable Equity Fund | K25: AXA IM Sustainable Equity Fund
A26: International Shares - Infrastructure | B26: International Shares - Infrastructure | D26: Fidelity Australian Equities Fund | E26: Betashares Managed Risk Australian Share Fund | F26: Bennelong Emerging Companies Fund | G26: Bennelong Emerging Companies Fund | H26: ClearBridge RARE Infrastructure Value Fund - Hedged | I26: BetaShares Gold Bullion ETF (A$ Hedged) | J26: Bell Global Emerging Companies Fund | K26: Bell Global Emerging Companies Fund
A27: International Shares - Commodities and Resources | B27: International Shares - Specialist | D27: Fidelity Australian Opportunities Fund | E27: BetaShares NASDAQ 100 ETF | F27: Bennelong Ex-20 Australian Equities Fund | G27: Bennelong Ex-20 Australian Equities Fund | H27: ClearBridge RARE Infrastructure Value Fund - Unhedged | I27: Betashares Managed Risk Australian Share Fund | J27: Bennelong Australian Equity Fund | K27: Bennelong Australian Equity Fund
A28: International Shares - Specialist | B28: Alternatives | D28: First Sentier Wholesale Global Credit Income Fund | E28: BetaShares S&P/ASX Australian Technology | F28: Bentham Global Income Fund | G28: Bentham Global Income Fund | H28: Colchester Global Government Bond Fund - Class I | I28: BetaShares NASDAQ 100 ETF | J28: Bennelong Emerging Companies Fund | K28: Bennelong Emerging Companies Fund
A29: Alternatives | B29: =IF(bASX="Yes","ETF - Listed Alternatives", IF(bSMAs="Yes", "SMAs - Multisector", "")) -> ETF - Listed Alternatives | D29: GMO Systematic Global Macro Trust | E29: BlackRock Tactical Growth Fund | F29: Bentham Syndicated Loan Fund | G29: Bentham Syndicated Loan Fund | H29: DNR Capital Australian Equities High Conviction | I29: BetaShares S&P/ASX Australian Technology | J29: Bennelong Ex-20 Australian Equities Fund | K29: Bennelong Ex-20 Australian Equities Fund
A30: =IF(bASX="Yes","ETF - Listed Alternatives", IF(bSMAs="Yes", "SMAs - Multisector", "")) -> ETF - Listed Alternatives | B30: =IF(bASX="Yes","ETF - Listed Australian Shares",IF(bSMAs="Yes", "SMAs - Australian Shares", "")) -> ETF - Listed Australian Shares | D30: Greencape Broadcap Fund | E30: Capital New Perspective Fund | F30: BetaShares Global Quality Leaders ETF – Currency Hedged | G30: BetaShares Active Australian Hybrids Fund (ETMF) | H30: DNR Capital Australian Equities Income | I30: BlackRock iShares Enhanced Strategic Aggressive | J30: Bentham Global Income Fund | K30: Bentham Global Income Fund
A31: =IF(bASX="Yes","ETF - Listed Australian Shares",IF(bSMAs="Yes", "SMAs - Australian Shares", "")) -> ETF - Listed Australian Shares | B31: =IF(bASX="Yes","ETF - Listed Fixed Income or Cash","") -> ETF - Listed Fixed Income or Cash | D31: IOOF Cash Management Trust | E31: ClearBridge RARE Infrastructure Value Fund - Hedged | F31: BetaShares Global Quality Leaders ETF | G31: BetaShares Australian 200 ETF | H31: Epoch Global Equity ShareHolder Yield (Hedged) Fund | I31: BlackRock iShares Enhanced Strategic Balanced | J31: Bentham Syndicated Loan Fund | K31: Bentham Syndicated Loan Fund
A32: =IF(bASX="Yes","ETF - Listed Fixed Income or Cash","") -> ETF - Listed Fixed Income or Cash | B32: =IF(bASX="Yes","ETF - Listed Global Shares","") -> ETF - Listed Global Shares | D32: IOOF Cash Management Trust | E32: ClearBridge RARE Infrastructure Value Fund - Unhedged | F32: BlackRock Advantage International Equity Fund | G32: BetaShares Australian Bank Senior Floating Rate Bond ETF | H32: Epoch Global Equity ShareHolder Yield (Unhedged) Fund | I32: BlackRock iShares Enhanced Strategic Conservative | J32: BetaShares Global Quality Leaders ETF – Currency Hedged | K32: BetaShares Active Australian Hybrids Fund (ETMF)
A33: =IF(bASX="Yes","ETF - Listed Global Shares","") -> ETF - Listed Global Shares | B33: =IF(bASX="Yes","ETF - Listed Multi Sector","") -> ETF - Listed Multi Sector | D33: IOOF MultiMix Australian Share Trust | E33: Colchester Global Government Bond Fund - Class I | F33: BlackRock Tactical Growth Fund | G33: BetaShares Australian Sustainability | H33: ETFS FANG+ ETF | I33: BlackRock iShares Enhanced Strategic Growth | J33: BetaShares Global Quality Leaders ETF | K33: BetaShares Australian 200 ETF
A34: =IF(bASX="Yes","ETF - Listed Multi Sector","") -> ETF - Listed Multi Sector | B34: =IF(bASX="Yes","ETF - Listed Property","") -> ETF - Listed Property | D34: IOOF MultiMix Balanced Growth Trust | E34: Epoch Global Equity ShareHolder Yield (Hedged) Fund | F34: Capital New Perspective Fund | G34: Betashares FTSE 100 ETF | H34: Fidelity Australian Equities Fund | I34: BlackRock iShares Enhanced Strategic Moderate | J34: BlackRock Advantage International Equity Fund | K34: BetaShares Australian Bank Senior Floating Rate Bond ETF
A35: =IF(bASX="Yes","ETF - Listed Property","") -> ETF - Listed Property | B35: =IF(bASX="Yes","ETFM - Exchange Traded Managed Funds","") -> ETFM - Exchange Traded Managed Funds | D35: IOOF MultiMix Capital Stable Trust | E35: Epoch Global Equity ShareHolder Yield (Unhedged) Fund | F35: CC Sage Capital Absolute Return Fund | G35: BetaShares FTSE RAFI Australian 200 ETF | H35: Fidelity Australian Opportunities Fund | I35: BlackRock Tactical Growth Fund | J35: BlackRock iShares Enhanced Strategic Aggressive | K35: BetaShares Australian Sustainability
A36: =IF(bASX="Yes","ETFM - Exchange Traded Managed Funds","") -> ETFM - Exchange Traded Managed Funds | B36: =IF(AND(bASX="Yes",bSMAs="Yes"), "SMAs - Multisector", "") -> SMAs - Multisector | D36: IOOF MultiMix Cash Enhanced Trust | E36: ETFS EURO STOXX 50 ETF | F36: ClearBridge RARE Infrastructure Value Fund - Hedged | G36: BetaShares Global Quality Leaders ETF – Currency Hedged | H36: First Sentier Wholesale Global Credit Income Fund | I36: Capital New Perspective Fund | J36: BlackRock iShares Enhanced Strategic Balanced | K36: Betashares FTSE 100 ETF
A37: =IF(AND(bASX="Yes",bSMAs="Yes"), "SMAs - Multisector", "") -> SMAs - Multisector | B37: =IF(AND(bASX="Yes",bSMAs="Yes"), "SMAs - Australian Shares", "") -> SMAs - Australian Shares | D37: IOOF MultiMix Conservative Trust | E37: ETFS FANG+ ETF | F37: ClearBridge RARE Infrastructure Value Fund - Unhedged | G37: BetaShares Global Quality Leaders ETF | H37: GMO Systematic Global Macro Trust | I37: ClearBridge RARE Infrastructure Value Fund - Hedged | J37: BlackRock iShares Enhanced Strategic Conservative | K37: BetaShares FTSE RAFI Australian 200 ETF
A38: =IF(AND(bASX="Yes",bSMAs="Yes"), "SMAs - Australian Shares", "") -> SMAs - Australian Shares | D38: IOOF MultiMix Diversified Fixed Interest Trust | E38: ETFS Morningstar Global Technology ETF | F38: Colchester Global Government Bond Fund - Class I | G38: BetaShares Global Sustainability Leaders | H38: Greencape Broadcap Fund | I38: ClearBridge RARE Infrastructure Value Fund - Unhedged | J38: BlackRock iShares Enhanced Strategic Growth | K38: BetaShares Global Quality Leaders ETF – Currency Hedged
D39: IOOF MultiMix Growth Trust | E39: ETFS Physical Gold ETF | F39: Eley Griffiths Group Small Companies Fund | G39: BetaShares Gold Bullion ETF (A$ Hedged) | H39: IOOF Cash Management Trust | I39: Colchester Global Government Bond Fund - Class I | J39: BlackRock iShares Enhanced Strategic Moderate | K39: BetaShares Global Quality Leaders ETF
D40: IOOF MultiMix International Shares Trust | E40: ETFS ROBO Global Robotics and Automation ETF | F40: Epoch Global Equity ShareHolder Yield (Hedged) Fund | G40: Betashares Managed Risk Australian Share Fund | H40: IOOF Cash Management Trust | I40: DNR Capital Australian Equities High Conviction | J40: BlackRock Tactical Growth Fund | K40: BetaShares Global Sustainability Leaders
D41: IOOF MultiMix Moderate Growth Trust | E41: ETFS S&P 500 High Yield Low Volitility ETF | F41: Epoch Global Equity ShareHolder Yield (Unhedged) Fund | G41: BetaShares NASDAQ 100 ETF | H41: IOOF MultiMix Australian Share Trust | I41: DNR Capital Australian Equities Income | J41: Capital New Perspective Fund | K41: BetaShares Gold Bullion ETF (A$ Hedged)
A42: The following two ranges are defined in the Name Manager as a formula: | D42: IOOF MultiSeries 30 Trust | E42: ETFS S&P/ASX 300 High Yield Plus ETF | F42: ETFS FANG+ ETF | G42: BetaShares S&P/ASX Australian Technology | H42: IOOF MultiMix Balanced Growth Trust | I42: Epoch Global Equity ShareHolder Yield (Hedged) Fund | J42: CC Sage Capital Absolute Return Fund | K42: Betashares Managed Risk Australian Share Fund
A43: - AssetClassFullMenu=OFFSET('Asset Class'!$A$2,0,0, 37 - COUNTBLANK('Asset Class'!$A$2:$A$38),1) | D43: IOOF MultiSeries 50 Trust | E43: Fidelity Australian Equities Fund | F43: Fidelity Asia Fund | G43: BlackRock Advantage International Equity Fund | H43: IOOF MultiMix Capital Stable Trust | I43: Epoch Global Equity ShareHolder Yield (Unhedged) Fund | J43: ClearBridge RARE Infrastructure Value Fund - Hedged | K43: BetaShares NASDAQ 100 ETF
A44: - AssetClassEssentials=OFFSET('Asset Class'!$B$2,0,0, 37 - COUNTBLANK('Asset Class'!$B$2:$B$38),1) | D44: IOOF MultiSeries 70 Trust | E44: Fidelity Australian Opportunities Fund | F44: Fidelity Australian Equities Fund | G44: BlackRock Tactical Growth Fund | H44: IOOF MultiMix Cash Enhanced Trust | I44: ETFS EURO STOXX 50 ETF | J44: ClearBridge RARE Infrastructure Value Fund - Unhedged | K44: BetaShares S&P/ASX Australian Technology
D45: IOOF MultiSeries 90 Trust | E45: First Sentier Wholesale Global Credit Income Fund | F45: Fidelity Australian Opportunities Fund | G45: Capital New Perspective Fund | H45: IOOF MultiMix Conservative Trust | I45: ETFS FANG+ ETF | J45: Colchester Global Government Bond Fund - Class I | K45: BlackRock Advantage International Equity Fund
A46: ETFs and SMAs put in cells A29:A37 and B28:B36 as a formula referencing the Grow Wrap Fee Calculator worksheet's direct shares selection (i.e. selected or not) and SMAs selection (i.e. selected or not) | D46: IOOF Specialist Property Fund | E46: GMO Systematic Global Macro Trust | F46: Fidelity China Fund | G46: CC Sage Capital Absolute Return Fund | H46: IOOF MultiMix Diversified Fixed Interest Trust | I46: ETFS Morningstar Global Technology ETF | J46: DNR Capital Australian Equities High Conviction | K46: BlackRock iShares Enhanced Strategic Aggressive
A47: DO NOT DELETE FORMULA | D47: Ironbark Global (ex-Australia) Property Securities Fund | E47: Greencape Broadcap Fund | F47: Fidelity Global Equities Fund | G47: ClearBridge RARE Infrastructure Value Fund - Hedged | H47: IOOF MultiMix Growth Trust | I47: ETFS Physical Gold ETF | J47: DNR Capital Australian Equities Income | K47: BlackRock iShares Enhanced Strategic Balanced
D48: Janus Henderson Australian Fixed Interest Fund | E48: IOOF Cash Management Trust | F48: Fidelity India Fund | G48: ClearBridge RARE Infrastructure Value Fund - Unhedged | H48: IOOF MultiMix International Shares Trust | I48: ETFS ROBO Global Robotics and Automation ETF | J48: Eley Griffiths Group Small Companies Fund | K48: BlackRock iShares Enhanced Strategic Conservative
D49: Janus Henderson Tactical Income Fund | E49: IOOF Cash Management Trust | F49: First Sentier Wholesale Equity Income Fund | G49: Colchester Global Government Bond Fund - Class I | H49: IOOF MultiMix Moderate Growth Trust | I49: ETFS S&P 500 High Yield Low Volitility ETF | J49: Epoch Global Equity ShareHolder Yield (Hedged) Fund | K49: BlackRock iShares Enhanced Strategic Growth
D50: Kapstream Absolute Return Income Fund | E50: IOOF MultiMix Australian Share Trust | F50: First Sentier Wholesale Geared Share Fund | G50: Eley Griffiths Group Small Companies Fund | H50: IOOF MultiSeries 30 Trust | I50: ETFS S&P/ASX 300 High Yield Plus ETF | J50: Epoch Global Equity ShareHolder Yield (Unhedged) Fund | K50: BlackRock iShares Enhanced Strategic Moderate
D51: Lazard Australian Equity Fund - Wholesale | E51: IOOF MultiMix Balanced Growth Trust | F51: First Sentier Wholesale Global Credit Income Fund | G51: Epoch Global Equity ShareHolder Yield (Hedged) Fund | H51: IOOF MultiSeries 50 Trust | I51: Fidelity Australian Equities Fund | J51: ETFS FANG+ ETF | K51: BlackRock Tactical Growth Fund
D52: Legg Mason Martin Currie Diversified Income Fund | E52: IOOF MultiMix Capital Stable Trust | F52: FirstChoice Wholesale Geared Global Share Fund | G52: Epoch Global Equity ShareHolder Yield (Unhedged) Fund | H52: IOOF MultiSeries 70 Trust | I52: Fidelity Australian Opportunities Fund | J52: Fidelity Asia Fund | K52: Capital New Perspective Fund
D53: Legg Mason Martin Currie Real Income Fund | E53: IOOF MultiMix Cash Enhanced Trust | F53: Franklin Australian Absolute Return Bond | G53: ETFS EURO STOXX 50 ETF | H53: IOOF MultiSeries 90 Trust | I53: First Sentier Wholesale Global Credit Income Fund | J53: Fidelity Australian Equities Fund | K53: CC Sage Capital Absolute Return Fund
A54: ='Asset Class'!A1:B38IF(OR(LookupClass1="",AssetClass1<>""), IF(bMenu="Essentials",AssetClassEssentials, AssetClassFullMenu),LookupClass1) | D54: Legg Mason Western Asset Australian Bond Fund | E54: IOOF MultiMix Conservative Trust | F54: Franklin Global Growth Fund | G54: ETFS FANG+ ETF | H54: IOOF Specialist Property Fund | I54: GMO Systematic Global Macro Trust | J54: Fidelity Australian Opportunities Fund | K54: ClearBridge RARE Infrastructure Value Fund - Hedged
D55: Loomis Sayles Global Equity ETF | E55: IOOF MultiMix Diversified Fixed Interest Trust | F55: Franklin Templeton Multisector Bond Fund (Class W) | G55: ETFS Morningstar Global Technology ETF | H55: Ironbark Global (ex-Australia) Property Securities Fund | I55: Greencape Broadcap Fund | J55: Fidelity China Fund | K55: ClearBridge RARE Infrastructure Value Fund - Unhedged
D56: Macquarie Australian Fixed Interest Fund | E56: IOOF MultiMix Growth Trust | F56: GMO Systematic Global Macro Trust | G56: ETFS Physical Gold ETF | H56: Janus Henderson Australian Fixed Interest Fund | I56: IOOF Cash Management Trust | J56: Fidelity Global Equities Fund | K56: Colchester Global Government Bond Fund - Class I
D57: Macquarie Income Opportunities Fund | E57: IOOF MultiMix International Shares Trust | F57: GQG Partners Emerging Markets Equity Fund | G57: ETFS ROBO Global Robotics and Automation ETF | H57: Janus Henderson Tactical Income Fund | I57: IOOF Cash Management Trust | J57: Fidelity India Fund | K57: DNR Capital Australian Equities High Conviction
D58: Magellan Global Fund | E58: IOOF MultiMix Moderate Growth Trust | F58: GQG Partners Global Equity Fund - A Class | G58: ETFS S&P 500 High Yield Low Volitility ETF | H58: Kapstream Absolute Return Income Fund | I58: IOOF MultiMix Australian Share Trust | J58: First Sentier Wholesale Equity Income Fund | K58: DNR Capital Australian Equities Income
D59: Magellan Global Fund (Hedged) | E59: IOOF MultiSeries 30 Trust | F59: Greencape Broadcap Fund | G59: ETFS S&P/ASX 300 High Yield Plus ETF | H59: Lazard Australian Equity Fund - Wholesale | I59: IOOF MultiMix Balanced Growth Trust | J59: First Sentier Wholesale Geared Share Fund | K59: Eley Griffiths Group Small Companies Fund
D60: Magellan Infrastructure Fund | E60: IOOF MultiSeries 50 Trust | F60: Hyperion Australian Growth Companies Fund | G60: Fidelity Asia Fund | H60: Legg Mason Martin Currie Diversified Income Fund | I60: IOOF MultiMix Capital Stable Trust | J60: First Sentier Wholesale Global Credit Income Fund | K60: Epoch Global Equity ShareHolder Yield (Hedged) Fund
D61: Man AHL Alpha (AUD) Fund | E61: IOOF MultiSeries 70 Trust | F61: Hyperion Global Growth Companies Fund — Class B | G61: Fidelity Australian Equities Fund | H61: Legg Mason Martin Currie Real Income Fund | I61: IOOF MultiMix Cash Enhanced Trust | J61: FirstChoice Wholesale Geared Global Share Fund | K61: Epoch Global Equity ShareHolder Yield (Unhedged) Fund
D62: Merlon Australian Share Income Fund | E62: IOOF MultiSeries 90 Trust | F62: Hyperion Small Growth Companies Fund | G62: Fidelity Australian Opportunities Fund | H62: Legg Mason Western Asset Australian Bond Fund | I62: IOOF MultiMix Conservative Trust | J62: Franklin Australian Absolute Return Bond | K62: ETFS EURO STOXX 50 ETF
D63: MFS Global Equity Trust | E63: IOOF Specialist Property Fund | F63: IFP Global Franchise Fund | G63: Fidelity China Fund | H63: Loomis Sayles Global Equity ETF | I63: IOOF MultiMix Diversified Fixed Interest Trust | J63: Franklin Global Growth Fund | K63: ETFS FANG+ ETF
D64: Nanuk New World Fund | E64: Ironbark Global (ex-Australia) Property Securities Fund | F64: Investors Mutual All Industrials Share Fund | G64: Fidelity Global Equities Fund | H64: Macquarie Australian Fixed Interest Fund | I64: IOOF MultiMix Growth Trust | J64: Franklin Templeton Multisector Bond Fund (Class W) | K64: ETFS Morningstar Global Technology ETF
D65: Nikko AM Australian Share Wholesale Fund | E65: iShare S&P/ASX 20 | F65: Investors Mutual Australian Share Fund | G65: Fidelity India Fund | H65: Macquarie Income Opportunities Fund | I65: IOOF MultiMix International Shares Trust | J65: GMO Systematic Global Macro Trust | K65: ETFS Physical Gold ETF
D66: OnePath Alternatives Growth Fund | E66: iShares China Large-Cap | F66: Investors Mutual Australian Small Companies Fund | G66: First Sentier Wholesale Equity Income Fund | H66: Magellan Global Fund | I66: IOOF MultiMix Moderate Growth Trust | J66: GQG Partners Emerging Markets Equity Fund | K66: ETFS ROBO Global Robotics and Automation ETF
D67: OnePath Sustainable Investments Wholesale Australian Share Trust | E67: iShares Composite Bond ETF | F67: Investors Mutual Future Leaders Fund | G67: First Sentier Wholesale Geared Share Fund | H67: Magellan Global Fund (Hedged) | I67: IOOF MultiSeries 30 Trust | J67: GQG Partners Global Equity Fund - A Class | K67: ETFS S&P 500 High Yield Low Volitility ETF
D68: OnePath Wholesale Australian Share Trust | E68: iShares Core Cash ETF | F68: IOOF Cash Management Trust | G68: First Sentier Wholesale Global Credit Income Fund | H68: Magellan Infrastructure Fund | I68: IOOF MultiSeries 50 Trust | J68: Greencape Broadcap Fund | K68: ETFS S&P/ASX 300 High Yield Plus ETF
D69: OnePath Wholesale Blue Chip Imputation Trust | E69: iShares Core MSCI World All Cap AUD Hedged ETF | F69: IOOF Cash Management Trust | G69: FirstChoice Wholesale Geared Global Share Fund | H69: Man AHL Alpha (AUD) Fund | I69: IOOF MultiSeries 70 Trust | J69: Hyperion Australian Growth Companies Fund | K69: Fidelity Asia Fund
D70: OnePath Wholesale Diversified Fixed Interest Trust | E70: iShares Core MSCI World All Cap ETF | F70: IOOF MultiMix Australian Share Trust | G70: Franklin Australian Absolute Return Bond | H70: Merlon Australian Share Income Fund | I70: IOOF MultiSeries 90 Trust | J70: Hyperion Global Growth Companies Fund — Class B | K70: Fidelity Australian Equities Fund
D71: OnePath Wholesale Emerging Companies Trust | E71: iShares Core S&P Mid-Cap | F71: IOOF MultiMix Balanced Growth Trust | G71: Franklin Global Growth Fund | H71: MFS Global Equity Trust | I71: IOOF Specialist Property Fund | J71: Hyperion Small Growth Companies Fund | K71: Fidelity Australian Opportunities Fund
D72: OnePath Wholesale Geared Australian Shares Index Trust | E72: iShares Core S&P Small-Cap | F72: IOOF MultiMix Capital Stable Trust | G72: Franklin Templeton Multisector Bond Fund (Class W) | H72: Morningstar Australian Shares Income | I72: Ironbark Global (ex-Australia) Property Securities Fund | J72: IFP Global Franchise Fund | K72: Fidelity China Fund
D73: OnePath Wholesale Global Emerging Markets Share Trust | E73: iShares Edge MSCI Australia Multifactor ETF | F73: IOOF MultiMix Cash Enhanced Trust | G73: GMO Systematic Global Macro Trust | H73: Nanuk New World Fund | I73: iShare S&P/ASX 20 | J73: Investors Mutual All Industrials Share Fund | K73: Fidelity Global Equities Fund
D74: OnePath Wholesale Property Securities Trust | E74: iShares Edge MSCI World Multifactor ETF | F74: IOOF MultiMix Conservative Trust | G74: GQG Partners Emerging Markets Equity Fund | H74: Nikko AM Australian Share Wholesale Fund | I74: iShares China Large-Cap | J74: Investors Mutual Australian Share Fund | K74: Fidelity India Fund
D75: OnePath Wholesale Select Leaders Trust | E75: iShares Europe | F75: IOOF MultiMix Diversified Fixed Interest Trust | G75: GQG Partners Global Equity Fund - A Class | H75: OnePath Alternatives Growth Fund | I75: iShares Composite Bond ETF | J75: Investors Mutual Australian Small Companies Fund | K75: First Sentier Wholesale Equity Income Fund
D76: Optimix Wholesale Balanced Trust Class B Units | E76: iShares Global 100 AUD Hedged | F76: IOOF MultiMix Growth Trust | G76: Greencape Broadcap Fund | H76: OnePath Sustainable Investments Wholesale Australian Share Trust | I76: iShares Core Cash ETF | J76: Investors Mutual Future Leaders Fund | K76: First Sentier Wholesale Geared Share Fund
D77: Optimix Wholesale Conservative Trust Class B Units | E77: iShares Global Consumer Staples ETF | F77: IOOF MultiMix International Shares Trust | G77: Hyperion Australian Growth Companies Fund | H77: OnePath Wholesale Australian Share Trust | I77: iShares Core MSCI World All Cap AUD Hedged ETF | J77: IOOF Cash Management Trust | K77: First Sentier Wholesale Global Credit Income Fund
D78: Optimix Wholesale Global Smaller Companies Trust Class B Units | E78: iShares Global Corporate Bond (AUD Hedged) | F78: IOOF MultiMix Moderate Growth Trust | G78: Hyperion Global Growth Companies Fund — Class B | H78: OnePath Wholesale Blue Chip Imputation Trust | I78: iShares Core MSCI World All Cap ETF | J78: IOOF Cash Management Trust | K78: FirstChoice Wholesale Geared Global Share Fund
D79: Optimix Wholesale Growth Trust Class B Units | E79: iShares Global Healthcare ETF | F79: IOOF MultiSeries 30 Trust | G79: Hyperion Small Growth Companies Fund | H79: OnePath Wholesale Diversified Fixed Interest Trust | I79: iShares Core S&P Mid-Cap | J79: IOOF MultiMix Australian Share Trust | K79: Franklin Australian Absolute Return Bond
D80: Optimix Wholesale High Growth Trust Class B Units | E80: iShares Japan | F80: IOOF MultiSeries 50 Trust | G80: IFP Global Franchise Fund | H80: OnePath Wholesale Emerging Companies Trust | I80: iShares Core S&P Small-Cap | J80: IOOF MultiMix Balanced Growth Trust | K80: Franklin Global Growth Fund
D81: Optimix Wholesale Moderate Trust Class B Units | E81: iShares MSCI Australia 200 | F81: IOOF MultiSeries 70 Trust | G81: Investors Mutual All Industrials Share Fund | H81: OnePath Wholesale Geared Australian Shares Index Trust | I81: iShares Edge MSCI Australia Multifactor ETF | J81: IOOF MultiMix Capital Stable Trust | K81: Franklin Templeton Multisector Bond Fund (Class W)
D82: Orbis Global Equity Fund | E82: iShares MSCI EAFE | F82: IOOF MultiSeries 90 Trust | G82: Investors Mutual Australian Share Fund | H82: OnePath Wholesale Global Emerging Markets Share Trust | I82: iShares Edge MSCI World Multifactor ETF | J82: IOOF MultiMix Cash Enhanced Trust | K82: GMO Systematic Global Macro Trust
D83: Payden Global Income Opportunities Fund | E83: iShares MSCI Emerging Markets | F83: IOOF Specialist Property Fund | G83: Investors Mutual Australian Small Companies Fund | H83: OnePath Wholesale Property Securities Trust | I83: iShares Europe | J83: IOOF MultiMix Conservative Trust | K83: GQG Partners Emerging Markets Equity Fund
D84: Pendal Ethical Share Fund | E84: iShares S&P 500 | F84: Ironbark GCM Global Macro Fund | G84: Investors Mutual Future Leaders Fund | H84: OnePath Wholesale Select Leaders Trust | I84: iShares Global 100 AUD Hedged | J84: IOOF MultiMix Diversified Fixed Interest Trust | K84: GQG Partners Global Equity Fund - A Class
D85: Pendal Global Emerging Market Opportunities Fund | E85: iShares S&P 500 AUD Hedged | F85: Ironbark Global (ex-Australia) Property Securities Fund | G85: IOOF Cash Management Trust | H85: Optimix Wholesale Balanced Trust Class B Units | I85: iShares Global Consumer Staples ETF | J85: IOOF MultiMix Growth Trust | K85: Greencape Broadcap Fund
D86: Pendal Monthly Income Plus Fund | E86: iShares S&P Asia 50 | F86: Ironbark Royal London Concentrated Global Share Fund | G86: IOOF Cash Management Trust | H86: Optimix Wholesale Conservative Trust Class B Units | I86: iShares Global Corporate Bond (AUD Hedged) | J86: IOOF MultiMix International Shares Trust | K86: Hyperion Australian Growth Companies Fund
D87: Pendal Smaller Companies Fund | E87: iShares S&P Global 100 | F87: J P Morgan Global Strategic Bond Fund | G87: IOOF MultiMix Australian Share Trust | H87: Optimix Wholesale Global Smaller Companies Trust Class B Units | I87: iShares Global Healthcare ETF | J87: IOOF MultiMix Moderate Growth Trust | K87: Hyperion Global Growth Companies Fund — Class B
D88: Pendal Sustainable Australian Fixed Interest Fund | E88: iShares S&P/ASX Dividend Opportunities | F88: Janus Henderson Australian Fixed Interest Fund | G88: IOOF MultiMix Balanced Growth Trust | H88: Optimix Wholesale Growth Trust Class B Units | I88: iShares Japan | J88: IOOF MultiSeries 30 Trust | K88: Hyperion Small Growth Companies Fund
D89: Pengana WHEB Sustainable Impact Fund | E89: iShares S&P/ASX Small Ordinaries | F89: Janus Henderson Global Natural Resources Fund | G89: IOOF MultiMix Capital Stable Trust | H89: Optimix Wholesale High Growth Trust Class B Units | I89: iShares MSCI Australia 200 | J89: IOOF MultiSeries 50 Trust | K89: IFP Global Franchise Fund
D90: Perennial Value Shares for Income Trust | E90: iShares Treasury ETF | F90: Janus Henderson Tactical Income Fund | G90: IOOF MultiMix Cash Enhanced Trust | H90: Optimix Wholesale Moderate Trust Class B Units | I90: iShares MSCI EAFE | J90: IOOF MultiSeries 70 Trust | K90: Investors Mutual All Industrials Share Fund
D91: Perennial Value Shares Wholesale Trust | E91: iShares Yield Plus ETF | F91: Kapstream Absolute Return Income Fund | G91: IOOF MultiMix Conservative Trust | H91: Orbis Global Equity Fund | I91: iShares MSCI Emerging Markets | J91: IOOF MultiSeries 90 Trust | K91: Investors Mutual Australian Share Fund
D92: Perpetual Exact Market Return Fund | E92: Janus Henderson Australian Fixed Interest Fund | F92: Lazard Australian Equity Fund - Wholesale | G92: IOOF MultiMix Diversified Fixed Interest Trust | H92: Payden Global Income Opportunities Fund | I92: iShares S&P 500 | J92: IOOF Specialist Property Fund | K92: Investors Mutual Australian Small Companies Fund
D93: Perpetual Wholesale Australian Share Fund | E93: Janus Henderson Tactical Income Fund | F93: Lazard Global Listed Infrastructure Fund | G93: IOOF MultiMix Growth Trust | H93: Pendal Ethical Share Fund | I93: iShares S&P 500 AUD Hedged | J93: Ironbark GCM Global Macro Fund | K93: Investors Mutual Future Leaders Fund
D94: PIMCO Diversified Fixed Interest Fund - Wholesale Class | E94: Kapstream Absolute Return Income Fund | F94: Lazard Global Small Cap Fund W Class | G94: IOOF MultiMix International Shares Trust | H94: Pendal Global Emerging Market Opportunities Fund | I94: iShares S&P Asia 50 | J94: Ironbark Global (ex-Australia) Property Securities Fund | K94: IOOF Cash Management Trust
D95: PIMCO ESG Global Bond Fund - Wholesale Class | E95: Lazard Australian Equity Fund - Wholesale | F95: Legg Mason Martin Currie Diversified Income Fund | G95: IOOF MultiMix Moderate Growth Trust | H95: Pendal Monthly Income Plus Fund | I95: iShares S&P Global 100 | J95: Ironbark Royal London Concentrated Global Share Fund | K95: IOOF Cash Management Trust
D96: PIMCO Wholesale Australian Bond Fund | E96: Legg Mason Martin Currie Diversified Income Fund | F96: Legg Mason Martin Currie Real Income Fund | G96: IOOF MultiSeries 30 Trust | H96: Pendal Smaller Companies Fund | I96: iShares S&P/ASX Dividend Opportunities | J96: J P Morgan Global Strategic Bond Fund | K96: IOOF MultiMix Australian Share Trust
D97: PIMCO Wholesale Global Bond Fund | E97: Legg Mason Martin Currie Real Income Fund | F97: Legg Mason Western Asset Australian Bond Fund | G97: IOOF MultiSeries 50 Trust | H97: Pendal Sustainable Australian Fixed Interest Fund | I97: iShares S&P/ASX Small Ordinaries | J97: Janus Henderson Australian Fixed Interest Fund | K97: IOOF MultiMix Balanced Growth Trust
D98: Platinum Asia Fund | E98: Legg Mason Western Asset Australian Bond Fund | F98: Loftus Global Disruption Fund | G98: IOOF MultiSeries 70 Trust | H98: Pengana WHEB Sustainable Impact Fund | I98: iShares Treasury ETF | J98: Janus Henderson Global Natural Resources Fund | K98: IOOF MultiMix Capital Stable Trust
D99: Platinum International Fund | E99: Loomis Sayles Global Equity ETF | F99: Loomis Sayles Global Equity ETF | G99: IOOF MultiSeries 90 Trust | H99: Perennial Value Shares for Income Trust | I99: iShares Yield Plus ETF | J99: Janus Henderson Tactical Income Fund | K99: IOOF MultiMix Cash Enhanced Trust
D100: Plato Australian Shares Income Fund | E100: Macquarie Australian Fixed Interest Fund | F100: Macquarie Australian Fixed Interest Fund | G100: IOOF Specialist Property Fund | H100: Perennial Value Shares Wholesale Trust | I100: Janus Henderson Australian Fixed Interest Fund | J100: Kapstream Absolute Return Income Fund | K100: IOOF MultiMix Conservative Trust
D101: Quay Global Real Estate Fund | E101: Macquarie Income Opportunities Fund | F101: Macquarie Australian Share Fund | G101: Ironbark GCM Global Macro Fund | H101: Perpetual Exact Market Return Fund | I101: Janus Henderson Tactical Income Fund | J101: Lazard Australian Equity Fund - Wholesale | K101: IOOF MultiMix Diversified Fixed Interest Trust
D102: Resolution Capital Global Property Securities Fund | E102: Magellan Global Equities Fund (Hedged) | F102: Macquarie Australian Small Companies Fund | G102: Ironbark Global (ex-Australia) Property Securities Fund | H102: Perpetual Wholesale Australian Share Fund | I102: Kapstream Absolute Return Income Fund | J102: Lazard Global Listed Infrastructure Fund | K102: IOOF MultiMix Growth Trust
D103: Resolution Capital Global Property Securities Fund Series II | E103: Magellan Global Fund | F103: Macquarie Dynamic Bond Fund | G103: Ironbark Royal London Concentrated Global Share Fund | H103: PIMCO Diversified Fixed Interest Fund - Wholesale Class | I103: Lazard Australian Equity Fund - Wholesale | J103: Lazard Global Small Cap Fund W Class | K103: IOOF MultiMix International Shares Trust
D104: Resolution Capital Global Property Securities Fund Series II - Unhedged | E104: Magellan Global Fund (Hedged) | F104: Macquarie Income Opportunities Fund | G104: iShare S&P/ASX 20 | H104: PIMCO ESG Global Bond Fund - Wholesale Class | I104: Legg Mason Martin Currie Diversified Income Fund | J104: Legg Mason Martin Currie Diversified Income Fund | K104: IOOF MultiMix Moderate Growth Trust
D105: Schroder Fixed Income Fund | E105: Magellan Infrastructure Fund | F105: Macquarie International Infrastructure Securities Fund (Hedged) | G105: iShares China Large-Cap | H105: PIMCO Wholesale Australian Bond Fund | I105: Legg Mason Martin Currie Real Income Fund | J105: Legg Mason Martin Currie Real Income Fund | K105: IOOF MultiSeries 30 Trust
D106: Schroder Real Return Fund | E106: Magellan Infrastructure Fund (Hedged) | F106: Macquarie Master Cash Fund | G106: iShares Composite Bond ETF | H106: PIMCO Wholesale Global Bond Fund | I106: Legg Mason Western Asset Australian Bond Fund | J106: Legg Mason Western Asset Australian Bond Fund | K106: IOOF MultiSeries 50 Trust
D107: Schroder Wholesale Australian Equity Fund | E107: Man AHL Alpha (AUD) Fund | F107: Magellan Global Fund | G107: iShares Core Cash ETF | H107: Platinum Asia Fund | I107: Loomis Sayles Global Equity ETF | J107: Loftus Global Disruption Fund | K107: IOOF MultiSeries 70 Trust
D108: Spheria Australian Small Companies Fund | E108: Merlon Australian Share Income Fund | F108: Magellan Global Fund (Hedged) | G108: iShares Core MSCI World All Cap AUD Hedged ETF | H108: Platinum International Fund | I108: Macquarie Australian Fixed Interest Fund | J108: Loomis Sayles Global Equity ETF | K108: IOOF MultiSeries 90 Trust
D109: State Street Australian Equity Fund | E109: MFS Global Equity Trust | F109: Magellan Global Fund (Open Class) | G109: iShares Core MSCI World All Cap ETF | H109: Plato Australian Shares Income Fund | I109: Macquarie Income Opportunities Fund | J109: Macquarie Australian Fixed Interest Fund | K109: IOOF Specialist Property Fund
D110: State Street Global Equity Fund | E110: Nanuk New World Fund | F110: Magellan Infrastructure Fund | G110: iShares Core S&P Mid-Cap | H110: Quay Global Real Estate Fund | I110: Magellan Global Equities Fund (Hedged) | J110: Macquarie Australian Share Fund | K110: Ironbark GCM Global Macro Fund
D111: Stewart Investors Worldwide Sustainability Fund | E111: Nikko AM Australian Share Wholesale Fund | F111: Man AHL Alpha (AUD) Fund | G111: iShares Core S&P Small-Cap | H111: Resolution Capital Global Property Securities Fund | I111: Magellan Global Fund | J111: Macquarie Australian Small Companies Fund | K111: Ironbark Global (ex-Australia) Property Securities Fund
D112: T. Rowe Price Dynamic Global Bond Fund | E112: OnePath Alternatives Growth Fund | F112: Merlon Australian Share Income Fund | G112: iShares Edge MSCI Australia Multifactor ETF | H112: Resolution Capital Global Property Securities Fund Series II | I112: Magellan Global Fund (Hedged) | J112: Macquarie Dynamic Bond Fund | K112: Ironbark Royal London Concentrated Global Share Fund
D113: Talaria Global Equity Fund - Hedged | E113: OnePath Sustainable Investments Wholesale Australian Share Trust | F113: MFS Global Equity Trust | G113: iShares Edge MSCI World Multifactor ETF | H113: Resolution Capital Global Property Securities Fund Series II - Unhedged | I113: Magellan Infrastructure Fund | J113: Macquarie Income Opportunities Fund | K113: iShare S&P/ASX 20
D114: UBS Cash Fund | E114: OnePath Wholesale Australian Share Trust | F114: MLC Wholesale Horizon 2 Income Fund | G114: iShares Europe | H114: Schroder Fixed Income Fund | I114: Magellan Infrastructure Fund (Hedged) | J114: Macquarie International Infrastructure Securities Fund (Hedged) | K114: iShares China Large-Cap
D115: UBS Clarion Global Property Securities Fund | E115: OnePath Wholesale Blue Chip Imputation Trust | F115: MLC Wholesale Horizon 3 Conservative Growth Portfolio | G115: iShares Global 100 AUD Hedged | H115: Schroder Real Return Fund | I115: Man AHL Alpha (AUD) Fund | J115: Macquarie Master Cash Fund | K115: iShares Composite Bond ETF
D116: UBS Diversified Fixed Income Fund | E116: OnePath Wholesale Diversified Fixed Interest Trust | F116: MLC Wholesale Horizon 4 Balanced Portfolio Fund | G116: iShares Global Consumer Staples ETF | H116: Schroder Wholesale Australian Equity Fund | I116: Merlon Australian Share Income Fund | J116: Magellan Global Fund | K116: iShares Core Cash ETF
D117: UBS Tactical Beta - Balanced | E117: OnePath Wholesale Emerging Companies Trust | F117: MLC Wholesale Horizon 5 Growth Portfolio Fund | G117: iShares Global Corporate Bond (AUD Hedged) | H117: Spheria Australian Small Companies Fund | I117: MFS Global Equity Trust | J117: Magellan Global Fund (Hedged) | K117: iShares Core MSCI World All Cap AUD Hedged ETF
D118: UBS Tactical Beta - Conservative | E118: OnePath Wholesale Geared Australian Shares Index Trust | F118: MLC Wholesale Horizon 6 Share Portfolio | G118: iShares Global Healthcare ETF | H118: State Street Australian Equity Fund | I118: Morningstar Australian Shares Income | J118: Magellan Global Fund (Open Class) | K118: iShares Core MSCI World All Cap ETF
D119: UBS Tactical Beta - Growth | E119: OnePath Wholesale Global Emerging Markets Share Trust | F119: MLC Wholesale Horizon 7 Accelerated Growth Portfolio | G119: iShares Japan | H119: State Street Global Equity Fund | I119: Nanuk New World Fund | J119: Magellan Infrastructure Fund | K119: iShares Core S&P Mid-Cap
D120: Vanguard Australian Fixed Interest Index Fund | E120: OnePath Wholesale Property Securities Trust | F120: MLC Wholesale IncomeBuilder FundTM | G120: iShares MSCI Australia 200 | H120: Stewart Investors Worldwide Sustainability Fund | I120: Nikko AM Australian Share Wholesale Fund | J120: Man AHL Alpha (AUD) Fund | K120: iShares Core S&P Small-Cap
D121: Vanguard Australian Property Securities Index Fund | E121: OnePath Wholesale Select Leaders Trust | F121: Nanuk New World Fund | G121: iShares MSCI EAFE | H121: T. Rowe Price Dynamic Global Bond Fund | I121: OnePath Alternatives Growth Fund | J121: Merlon Australian Share Income Fund | K121: iShares Edge MSCI Australia Multifactor ETF
D122: Vanguard Australian Shares High Yield Fund | E122: Optimix Wholesale Balanced Trust Class B Units | F122: Nikko AM Australian Bond Fund | G122: iShares MSCI Emerging Markets | H122: Talaria Global Equity Fund - Hedged | I122: OnePath Sustainable Investments Wholesale Australian Share Trust | J122: MFS Global Equity Trust | K122: iShares Edge MSCI World Multifactor ETF
D123: Vanguard Australian Shares Index Fund | E123: Optimix Wholesale Conservative Trust Class B Units | F123: Nikko AM Australian Share Concentrated Fund | G123: iShares S&P 500 | H123: UBS Cash Fund | I123: OnePath Wholesale Australian Share Trust | J123: MLC Wholesale Horizon 2 Income Fund | K123: iShares Europe
D124: Vanguard Balanced Index Fund | E124: Optimix Wholesale Global Smaller Companies Trust Class B Units | F124: Nikko AM Australian Share Wholesale Fund | G124: iShares S&P 500 AUD Hedged | H124: UBS Clarion Global Property Securities Fund | I124: OnePath Wholesale Blue Chip Imputation Trust | J124: MLC Wholesale Horizon 3 Conservative Growth Portfolio | K124: iShares Global 100 AUD Hedged
D125: Vanguard Conservative Index Fund | E125: Optimix Wholesale Growth Trust Class B Units | F125: OC Dynamic Equity Fund | G125: iShares S&P Asia 50 | H125: UBS Diversified Fixed Income Fund | I125: OnePath Wholesale Diversified Fixed Interest Trust | J125: MLC Wholesale Horizon 4 Balanced Portfolio Fund | K125: iShares Global Consumer Staples ETF
D126: Vanguard Diversified Bond Index Fund | E126: Optimix Wholesale High Growth Trust Class B Units | F126: OC Premium Small Companies Fund | G126: iShares S&P Global 100 | H126: UBS Tactical Beta - Balanced | I126: OnePath Wholesale Emerging Companies Trust | J126: MLC Wholesale Horizon 5 Growth Portfolio Fund | K126: iShares Global Corporate Bond (AUD Hedged)
D127: Vanguard Emerging Markets Shares Index Fund | E127: Optimix Wholesale Moderate Trust Class B Units | F127: OnePath Alternatives Growth Fund | G127: iShares S&P/ASX Dividend Opportunities | H127: UBS Tactical Beta - Conservative | I127: OnePath Wholesale Geared Australian Shares Index Trust | J127: MLC Wholesale Horizon 6 Share Portfolio | K127: iShares Global Healthcare ETF
D128: Vanguard Global Infrastructure Index ETF | E128: Orbis Global Equity Fund | F128: OnePath Sustainable Investments Wholesale Australian Share Trust | G128: iShares S&P/ASX Small Ordinaries | H128: UBS Tactical Beta - Growth | I128: OnePath Wholesale Global Emerging Markets Share Trust | J128: MLC Wholesale Horizon 7 Accelerated Growth Portfolio | K128: iShares Japan
D129: Vanguard Growth Index Fund | E129: Payden Global Income Opportunities Fund | F129: OnePath Tax Effective Income Trust Wholesale Units | G129: iShares Treasury ETF | H129: Vanguard Australian Fixed Interest Index Fund | I129: OnePath Wholesale Property Securities Trust | J129: MLC Wholesale IncomeBuilder FundTM | K129: iShares MSCI Australia 200
D130: Vanguard High Growth Index Fund | E130: Pendal Ethical Share Fund | F130: OnePath Wholesale Australian Share Trust | G130: iShares Yield Plus ETF | H130: Vanguard Australian Property Securities Index Fund | I130: OnePath Wholesale Select Leaders Trust | J130: Morningstar Australian Shares Income | K130: iShares MSCI EAFE
D131: Vanguard International Fixed Interest Index Fund (Hedged) | E131: Pendal Global Emerging Market Opportunities Fund | F131: OnePath Wholesale Blue Chip Imputation Trust | G131: J P Morgan Global Strategic Bond Fund | H131: Vanguard Australian Shares High Yield Fund | I131: Optimix Wholesale Balanced Trust Class B Units | J131: Nanuk New World Fund | K131: iShares MSCI Emerging Markets
D132: Vanguard International Property Securities Index Fund | E132: Pendal Monthly Income Plus Fund | F132: OnePath Wholesale Diversified Fixed Interest Trust | G132: Janus Henderson Australian Fixed Interest Fund | H132: Vanguard Australian Shares Index Fund | I132: Optimix Wholesale Conservative Trust Class B Units | J132: Nikko AM Australian Bond Fund | K132: iShares S&P 500
D133: Vanguard International Property Securities Index Fund (Hedged) | E133: Pendal Smaller Companies Fund | F133: OnePath Wholesale Emerging Companies Trust | G133: Janus Henderson Global Natural Resources Fund | H133: Vanguard Balanced Index Fund | I133: Optimix Wholesale Global Smaller Companies Trust Class B Units | J133: Nikko AM Australian Share Concentrated Fund | K133: iShares S&P 500 AUD Hedged
D134: Vanguard International Shares Index Fund | E134: Pendal Sustainable Australian Fixed Interest Fund | F134: OnePath Wholesale Geared Australian Shares Index Trust | G134: Janus Henderson Tactical Income Fund | H134: Vanguard Conservative Index Fund | I134: Optimix Wholesale Growth Trust Class B Units | J134: Nikko AM Australian Share Wholesale Fund | K134: iShares S&P Asia 50
D135: Vanguard International Shares Index Fund (Hedged) | E135: Pengana WHEB Sustainable Impact Fund | F135: OnePath Wholesale Global Emerging Markets Share Trust | G135: Kapstream Absolute Return Income Fund | H135: Vanguard Diversified Bond Index Fund | I135: Optimix Wholesale High Growth Trust Class B Units | J135: OC Dynamic Equity Fund | K135: iShares S&P Global 100
D136: Vanguard International Small Companies Index Fund | E136: Perennial Value Shares for Income Trust | F136: OnePath Wholesale Property Securities Trust | G136: Lazard Australian Equity Fund - Wholesale | H136: Vanguard Emerging Markets Shares Index Fund | I136: Optimix Wholesale Moderate Trust Class B Units | J136: OC Premium Small Companies Fund | K136: iShares S&P/ASX Dividend Opportunities
D137: Vanguard International Small Companies Index Fund (Hedged) | E137: Perennial Value Shares Wholesale Trust | F137: OnePath Wholesale Select Leaders Trust | G137: Lazard Global Listed Infrastructure Fund | H137: Vanguard Global Infrastructure Index ETF | I137: Orbis Global Equity Fund | J137: OnePath Alternatives Growth Fund | K137: iShares S&P/ASX Small Ordinaries
D138: Wavestone Dynamic Equity Fund | E138: Perpetual Exact Market Return Fund | F138: Optimix Wholesale Balanced Trust Class B Units | G138: Lazard Global Small Cap Fund W Class | H138: Vanguard Growth Index Fund | I138: Payden Global Income Opportunities Fund | J138: OnePath Sustainable Investments Wholesale Australian Share Trust | K138: iShares Treasury ETF
D139: Winton Global Alpha Fund | E139: Perpetual Wholesale Australian Share Fund | F139: Optimix Wholesale Conservative Trust Class B Units | G139: Legg Mason Martin Currie Diversified Income Fund | H139: Vanguard High Growth Index Fund | I139: Pendal Ethical Share Fund | J139: OnePath Tax Effective Income Trust Wholesale Units | K139: iShares Yield Plus ETF
D140: Zurich Investments Australian Property Securities Fund | E140: PIMCO Diversified Fixed Interest Fund - Wholesale Class | F140: Optimix Wholesale Global Smaller Companies Trust Class B Units | G140: Legg Mason Martin Currie Real Income Fund | H140: Vanguard International Fixed Interest Index Fund (Hedged) | I140: Pendal Global Emerging Market Opportunities Fund | J140: OnePath Wholesale Australian Share Trust | K140: J P Morgan Global Strategic Bond Fund
E141: PIMCO ESG Global Bond Fund - Wholesale Class | F141: Optimix Wholesale Growth Trust Class B Units | G141: Legg Mason Western Asset Australian Bond Fund | H141: Vanguard International Property Securities Index Fund | I141: Pendal Monthly Income Plus Fund | J141: OnePath Wholesale Blue Chip Imputation Trust | K141: Janus Henderson Australian Fixed Interest Fund
E142: PIMCO Wholesale Australian Bond Fund | F142: Optimix Wholesale High Growth Trust Class B Units | G142: Loftus Global Disruption Fund | H142: Vanguard International Property Securities Index Fund (Hedged) | I142: Pendal Smaller Companies Fund | J142: OnePath Wholesale Diversified Fixed Interest Trust | K142: Janus Henderson Global Natural Resources Fund
E143: PIMCO Wholesale Global Bond Fund | F143: Optimix Wholesale Moderate Trust Class B Units | G143: Loomis Sayles Global Equity ETF | H143: Vanguard International Shares Index Fund | I143: Pendal Sustainable Australian Fixed Interest Fund | J143: OnePath Wholesale Emerging Companies Trust | K143: Janus Henderson Tactical Income Fund
E144: Platinum Asia Fund | F144: Orbis Global Equity Fund | G144: Macquarie Australian Fixed Interest Fund | H144: Vanguard International Shares Index Fund (Hedged) | I144: Pengana WHEB Sustainable Impact Fund | J144: OnePath Wholesale Geared Australian Shares Index Trust | K144: Kapstream Absolute Return Income Fund
E145: Platinum Asia Fund (ETFM) | F145: Paradice Global Small Cap Fund | G145: Macquarie Australian Share Fund | H145: Vanguard International Small Companies Index Fund | I145: Perennial Value Shares for Income Trust | J145: OnePath Wholesale Global Emerging Markets Share Trust | K145: Lazard Australian Equity Fund - Wholesale
E146: Platinum International Fund | F146: Payden Global Income Opportunities Fund | G146: Macquarie Australian Small Companies Fund | H146: Vanguard International Small Companies Index Fund (Hedged) | I146: Perennial Value Shares Wholesale Trust | J146: OnePath Wholesale Property Securities Trust | K146: Lazard Global Listed Infrastructure Fund
E147: Platinum International Fund (ETFM) | F147: Pendal Active Conservative Fund | G147: Macquarie Dynamic Bond Fund | H147: Wavestone Dynamic Equity Fund | I147: Perpetual Exact Market Return Fund | J147: OnePath Wholesale Select Leaders Trust | K147: Lazard Global Small Cap Fund W Class
E148: Plato Australian Shares Income Fund | F148: Pendal Asian Share Fund | G148: Macquarie Income Opportunities Fund | H148: Winton Global Alpha Fund | I148: Perpetual Wholesale Australian Share Fund | J148: Optimix Wholesale Balanced Trust Class B Units | K148: Legg Mason Martin Currie Diversified Income Fund
E149: Quay Global Real Estate Fund | F149: Pendal Australian Share Fund | G149: Macquarie International Infrastructure Securities Fund (Hedged) | H149: Zurich Investments Australian Property Securities Fund | I149: PIMCO Diversified Fixed Interest Fund - Wholesale Class | J149: Optimix Wholesale Conservative Trust Class B Units | K149: Legg Mason Martin Currie Real Income Fund
E150: Resolution Capital Global Property Securities Fund | F150: Pendal Balanced Returns Fund | G150: Macquarie Master Cash Fund | I150: PIMCO ESG Global Bond Fund - Wholesale Class | J150: Optimix Wholesale Global Smaller Companies Trust Class B Units | K150: Legg Mason Western Asset Australian Bond Fund
E151: Resolution Capital Global Property Securities Fund Series II | F151: Pendal Concentrated Global Share Fund No.2 | G151: Magellan Global Equities Fund (Hedged) | I151: PIMCO Wholesale Australian Bond Fund | J151: Optimix Wholesale Growth Trust Class B Units | K151: Loftus Global Disruption Fund
E152: Resolution Capital Global Property Securities Fund Series II - Unhedged | F152: Pendal Ethical Share Fund | G152: Magellan Global Fund | I152: PIMCO Wholesale Global Bond Fund | J152: Optimix Wholesale High Growth Trust Class B Units | K152: Loomis Sayles Global Equity ETF
E153: Schroder Fixed Income Fund | F153: Pendal Global Emerging Market Opportunities Fund | G153: Magellan Global Fund (Hedged) | I153: Platinum Asia Fund | J153: Optimix Wholesale Moderate Trust Class B Units | K153: Macquarie Australian Fixed Interest Fund
E154: Schroder Real Return (Managed Fund) | F154: Pendal Imputation Fund | G154: Magellan Global Fund (Open Class) | I154: Platinum Asia Fund (ETFM) | J154: Orbis Global Equity Fund | K154: Macquarie Australian Share Fund
E155: Schroder Real Return Fund | F155: Pendal Monthly Income Plus Fund | G155: Magellan Infrastructure Fund | I155: Platinum International Fund | J155: Paradice Global Small Cap Fund | K155: Macquarie Australian Small Companies Fund
E156: Schroder Wholesale Australian Equity Fund | F156: Pendal Property Investment Fund | G156: Magellan Infrastructure Fund (Hedged) | I156: Platinum International Fund (ETFM) | J156: Payden Global Income Opportunities Fund | K156: Macquarie Dynamic Bond Fund
E157: SPDR Dow Jones Global Real Estate | F157: Pendal Smaller Companies Fund | G157: Man AHL Alpha (AUD) Fund | I157: Plato Australian Shares Income Fund | J157: Pendal Active Conservative Fund | K157: Macquarie Income Opportunities Fund
E158: SPDR MSCI Australia Select High Dividend | F158: Pendal Sustainable Australian Fixed Interest Fund | G158: Merlon Australian Share Income Fund | I158: Quay Global Real Estate Fund | J158: Pendal Asian Share Fund | K158: Macquarie International Infrastructure Securities Fund (Hedged)
E159: SPDR MSCI World Quality Mix Fund | F159: Pengana WHEB Sustainable Impact Fund | G159: MFS Global Equity Trust | I159: Resolution Capital Global Property Securities Fund | J159: Pendal Australian Share Fund | K159: Macquarie Master Cash Fund
E160: SPDR S&P Global Dividend | F160: Perennial Value Shares for Income Trust | G160: MLC Wholesale Horizon 2 Income Fund | I160: Resolution Capital Global Property Securities Fund Series II | J160: Pendal Balanced Returns Fund | K160: Magellan Global Equities Fund (Hedged)
E161: SPDR S&P World ex Australia (Hedged) Fund | F161: Perennial Value Shares Wholesale Trust | G161: MLC Wholesale Horizon 3 Conservative Growth Portfolio | I161: Resolution Capital Global Property Securities Fund Series II - Unhedged | J161: Pendal Concentrated Global Share Fund No.2 | K161: Magellan Global Fund
E162: SPDR S&P World ex Australia Fund | F162: Perpetual Exact Market Return Fund | G162: MLC Wholesale Horizon 4 Balanced Portfolio Fund | I162: Schroder Fixed Income Fund | J162: Pendal Ethical Share Fund | K162: Magellan Global Fund (Hedged)
E163: SPDR S&P/ASX 200 | F163: Perpetual Wholesale Australian Share Fund | G163: MLC Wholesale Horizon 5 Growth Portfolio Fund | I163: Schroder Real Return (Managed Fund) | J163: Pendal Global Emerging Market Opportunities Fund | K163: Magellan Global Fund (Open Class)
E164: SPDR S&P/ASX 200 Financials ex A-REITs Fund | F164: Perpetual Wholesale Concentrated Equity Fund | G164: MLC Wholesale Horizon 6 Share Portfolio | I164: Schroder Real Return Fund | J164: Pendal Imputation Fund | K164: Magellan Infrastructure Fund
E165: SPDR S&P/ASX 200 Listed Property | F165: Perpetual Wholesale Conservative Growth Fund | G165: MLC Wholesale Horizon 7 Accelerated Growth Portfolio | I165: Schroder Wholesale Australian Equity Fund | J165: Pendal Monthly Income Plus Fund | K165: Magellan Infrastructure Fund (Hedged)
E166: SPDR S&P/ASX 200 Resources Fund | F166: Perpetual Wholesale Diversified Income Fund | G166: MLC Wholesale IncomeBuilder FundTM | I166: SPDR Dow Jones Global Real Estate | J166: Pendal Property Investment Fund | K166: Man AHL Alpha (AUD) Fund
E167: SPDR S&P/ASX 50 | F167: Perpetual Wholesale Ethical SRI Fund | G167: Nanuk New World Fund | I167: SPDR MSCI Australia Select High Dividend | J167: Pendal Smaller Companies Fund | K167: Merlon Australian Share Income Fund
E168: SPDR S&P/ASX Small Ordinaries | F168: Perpetual Wholesale Geared Australian Share Fund | G168: Nikko AM Australian Bond Fund | I168: SPDR MSCI World Quality Mix Fund | J168: Pendal Sustainable Australian Fixed Interest Fund | K168: MFS Global Equity Trust
E169: Spheria Australian Small Companies Fund | F169: Perpetual Wholesale Industrial Share Fund | G169: Nikko AM Australian Share Concentrated Fund | I169: SPDR S&P Global Dividend | J169: Pengana WHEB Sustainable Impact Fund | K169: MLC Wholesale Horizon 2 Income Fund
E170: State Street Australian Equity Fund | F170: Perpetual Wholesale International Share Fund | G170: Nikko AM Australian Share Wholesale Fund | I170: SPDR S&P World ex Australia (Hedged) Fund | J170: Perennial Value Shares for Income Trust | K170: MLC Wholesale Horizon 3 Conservative Growth Portfolio
E171: State Street Global Equity Fund | F171: Perpetual Wholesale Smaller Companies Fund | G171: OC Dynamic Equity Fund | I171: SPDR S&P World ex Australia Fund | J171: Perennial Value Shares Wholesale Trust | K171: MLC Wholesale Horizon 4 Balanced Portfolio Fund
E172: Stewart Investors Worldwide Sustainability Fund | F172: PIMCO Diversified Fixed Interest Fund - Wholesale Class | G172: OC Premium Small Companies Fund | I172: SPDR S&P/ASX 200 | J172: Perpetual Exact Market Return Fund | K172: MLC Wholesale Horizon 5 Growth Portfolio Fund
E173: T. Rowe Price Dynamic Global Bond Fund | F173: PIMCO ESG Global Bond Fund - Wholesale Class | G173: OnePath Alternatives Growth Fund | I173: SPDR S&P/ASX 200 Financials ex A-REITs Fund | J173: Perpetual Wholesale Australian Share Fund | K173: MLC Wholesale Horizon 6 Share Portfolio
E174: Talaria Global Equity Fund - Hedged | F174: PIMCO Income Fund - Wholesale Class | G174: OnePath Sustainable Investments Wholesale Australian Share Trust | I174: SPDR S&P/ASX 200 Listed Property | J174: Perpetual Wholesale Concentrated Equity Fund | K174: MLC Wholesale Horizon 7 Accelerated Growth Portfolio
E175: UBS Cash Fund | F175: PIMCO Wholesale Australian Bond Fund | G175: OnePath Tax Effective Income Trust Wholesale Units | I175: SPDR S&P/ASX 200 Resources Fund | J175: Perpetual Wholesale Conservative Growth Fund | K175: MLC Wholesale IncomeBuilder FundTM
E176: UBS Clarion Global Property Securities Fund | F176: PIMCO Wholesale Global Bond Fund | G176: OnePath Wholesale Australian Share Trust | I176: SPDR S&P/ASX 50 | J176: Perpetual Wholesale Diversified Income Fund | K176: Morningstar Australian Shares Income
E177: UBS Diversified Fixed Income Fund | F177: Platinum Asia Fund | G177: OnePath Wholesale Blue Chip Imputation Trust | I177: SPDR S&P/ASX Small Ordinaries | J177: Perpetual Wholesale Ethical SRI Fund | K177: Nanuk New World Fund
E178: UBS IQ Morningstar Australia Dividend Yield ETF | F178: Platinum European Fund | G178: OnePath Wholesale Diversified Fixed Interest Trust | I178: Spheria Australian Small Companies Fund | J178: Perpetual Wholesale Geared Australian Share Fund | K178: Nikko AM Australian Bond Fund
E179: UBS IQ MSCI USA Ethical ETF | F179: Platinum International Brands Fund | G179: OnePath Wholesale Emerging Companies Trust | I179: State Street Australian Equity Fund | J179: Perpetual Wholesale Industrial Share Fund | K179: Nikko AM Australian Share Concentrated Fund
E180: UBS Tactical Beta - Balanced | F180: Platinum International Fund | G180: OnePath Wholesale Geared Australian Shares Index Trust | I180: State Street Global Equity Fund | J180: Perpetual Wholesale International Share Fund | K180: Nikko AM Australian Share Wholesale Fund
E181: UBS Tactical Beta - Conservative | F181: Plato Australian Shares Income Fund | G181: OnePath Wholesale Global Emerging Markets Share Trust | I181: Stewart Investors Worldwide Sustainability Fund | J181: Perpetual Wholesale Smaller Companies Fund | K181: OC Dynamic Equity Fund
E182: UBS Tactical Beta - Growth | F182: Platypus Australian Equities Fund - Wholesale | G182: OnePath Wholesale Property Securities Trust | I182: T. Rowe Price Dynamic Global Bond Fund | J182: PIMCO Diversified Fixed Interest Fund - Wholesale Class | K182: OC Premium Small Companies Fund
E183: VanEck Emerging Income Opportunities Active ETF (Managed Fund) | F183: Quay Global Real Estate Fund | G183: OnePath Wholesale Select Leaders Trust | I183: Talaria Global Equity Fund - Hedged | J183: PIMCO ESG Global Bond Fund - Wholesale Class | K183: OnePath Alternatives Growth Fund
E184: VanEck Vectors FTSE Global Infrastructure (Hedged) ETF | F184: Realindex Australian Small Companies Fund - Class A | G184: Optimix Wholesale Balanced Trust Class B Units | I184: UBS Cash Fund | J184: PIMCO Income Fund - Wholesale Class | K184: OnePath Sustainable Investments Wholesale Australian Share Trust
E185: VanEck Vectors FTSE International Property (Hedged) ETF | F185: Resolution Capital Global Property Securities Fund | G185: Optimix Wholesale Conservative Trust Class B Units | I185: UBS Clarion Global Property Securities Fund | J185: PIMCO Wholesale Australian Bond Fund | K185: OnePath Tax Effective Income Trust Wholesale Units
E186: VanEck Vectors Global Healthcare Leaders ETF | F186: Resolution Capital Global Property Securities Fund Series II | G186: Optimix Wholesale Global Smaller Companies Trust Class B Units | I186: UBS Diversified Fixed Income Fund | J186: PIMCO Wholesale Global Bond Fund | K186: OnePath Wholesale Australian Share Trust
E187: VanEck Vectors Morningstar Wide Moat ETF | F187: Resolution Capital Global Property Securities Fund Series II - Unhedged | G187: Optimix Wholesale Growth Trust Class B Units | I187: UBS IQ Morningstar Australia Dividend Yield ETF | J187: Platinum Asia Fund | K187: OnePath Wholesale Blue Chip Imputation Trust
E188: VanEck Vectors MSCI International Sustainable Equity ETF | F188: Russell Investments Balanced Fund Class A | G188: Optimix Wholesale High Growth Trust Class B Units | I188: UBS IQ MSCI USA Ethical ETF | J188: Platinum European Fund | K188: OnePath Wholesale Diversified Fixed Interest Trust
E189: VanEck Vectors MSCI Multifactor Emerging Markets Equity ETF | F189: Russell Investments Conservative Fund Class A | G189: Optimix Wholesale Moderate Trust Class B Units | I189: UBS Tactical Beta - Balanced | J189: Platinum International Brands Fund | K189: OnePath Wholesale Emerging Companies Trust
E190: VanEck Vectors MSCI World ex Australia Quality ETF | F190: Russell Investments Diversified 50 Fund Class A | G190: Orbis Global Equity Fund | I190: UBS Tactical Beta - Conservative | J190: Platinum International Fund | K190: OnePath Wholesale Geared Australian Shares Index Trust
E191: VanEck Vectors Video Gaming and eSports ETF | F191: Russell Investments Growth Fund Class A | G191: Paradice Global Small Cap Fund | I191: UBS Tactical Beta - Growth | J191: Plato Australian Shares Income Fund | K191: OnePath Wholesale Global Emerging Markets Share Trust
E192: Vanguard All-World ex-US Shares Index | F192: Russell Investments High Growth Fund Class A | G192: Payden Global Income Opportunities Fund | I192: VanEck Emerging Income Opportunities Active ETF (Managed Fund) | J192: Platypus Australian Equities Fund - Wholesale | K192: OnePath Wholesale Property Securities Trust
E193: Vanguard Australian Corporate Fixed Interest Index ETF | F193: Schroder Fixed Income Fund | G193: Pendal Active Conservative Fund | I193: VanEck Vectors FTSE Global Infrastructure (Hedged) ETF | J193: Quay Global Real Estate Fund | K193: OnePath Wholesale Select Leaders Trust
E194: Vanguard Australian Fixed Interest | F194: Schroder Real Return Fund | G194: Pendal Asian Share Fund | I194: VanEck Vectors FTSE International Property (Hedged) ETF | J194: Realindex Australian Small Companies Fund - Class A | K194: Optimix Wholesale Balanced Trust Class B Units
E195: Vanguard Australian Fixed Interest Index Fund | F195: Schroder Strategic Growth Fund | G195: Pendal Australian Share Fund | I195: VanEck Vectors Global Healthcare Leaders ETF | J195: Resolution Capital Global Property Securities Fund | K195: Optimix Wholesale Conservative Trust Class B Units
E196: Vanguard Australian Government Bond | F196: Schroder Wholesale Australian Equity Fund | G196: Pendal Balanced Returns Fund | I196: VanEck Vectors Morningstar Wide Moat ETF | J196: Resolution Capital Global Property Securities Fund Series II | K196: Optimix Wholesale Global Smaller Companies Trust Class B Units
E197: Vanguard Australian Property Securities Index | F197: Spheria Australian Small Companies Fund | G197: Pendal Concentrated Global Share Fund No.2 | I197: VanEck Vectors MSCI International Sustainable Equity ETF | J197: Resolution Capital Global Property Securities Fund Series II - Unhedged | K197: Optimix Wholesale Growth Trust Class B Units
E198: Vanguard Australian Property Securities Index Fund | F198: State Street Australian Equity Fund | G198: Pendal Ethical Share Fund | I198: VanEck Vectors MSCI Multifactor Emerging Markets Equity ETF | J198: Russell Investments Balanced Fund Class A | K198: Optimix Wholesale High Growth Trust Class B Units
E199: Vanguard Australian Shares High Yield | F199: State Street Global Equity Fund | G199: Pendal Global Emerging Market Opportunities Fund | I199: VanEck Vectors MSCI World ex Australia Quality ETF | J199: Russell Investments Conservative Fund Class A | K199: Optimix Wholesale Moderate Trust Class B Units
E200: Vanguard Australian Shares High Yield Fund | F200: Stewart Investors Worldwide Sustainability Fund | G200: Pendal Imputation Fund | I200: VanEck Vectors Video Gaming and eSports ETF | J200: Russell Investments Diversified 50 Fund Class A | K200: Orbis Global Equity Fund
... 142 more rows

Sheet GST and Rebates variables (hidden)
A1: Universal Vars
A2: GST | B2: 0.1
A3: GST Strain | B3: =1 + var_GST * ( 1 - 75% ) -> 1.025
A5: iRebates | B5: 1 | C5: 1 for in, 0 for out

Sheet Menu Change Instruction (hidden)
A1: Asset Class worksheet contains the names of asset classes for the Full Menu and Essentials menu.
A2: - This is the source information for asset classes selected on the Investment Fees & Rebates worksheet.
A3: - If asset class names need to be changed, you must change it here and fix any name modifications on both the Full menu and Essentials worksheet in column A. This is important for look up references to populate menu options in each asset class.
A5: The investment menu options appear on two sheets:
A6: - Full menu
A7: - Essentials
A8: So any changes made to the Essentials menu worksheet must also be made to the Full menu worksheet. Make changes to the Full Menu first and copy formula on Essentials worksheet to reference investment fees on the Full Menu worksheet.
A10: The Full menu and Essentials menu worksheet tabs need to be updated for any changes in the investment menu options. The following columns are important:
A11: - Column A: Asset class - Group all menu options together in the same asset class noting they will be shown in the same order as seen on the worksheet.
A12: - Column B: Product - The name of the investment menu option. Update here if needed.
A13: - Column C: APIR code
A14: - Column E: FM Rebates confirmed - Enter fee rebates here
A15: - Column G: Update % Single Limit for diversification limits here
A16: - Column J: Update ICR here
A18: - Column A: Asset class - Group all menu options together in the same asset class noting they will be shown in the same order as seen on the worksheet.
A20: When changes are made to the full menu and essentials menu that affect names of investment options, the Asset Class worksheet must be modified as it has 8 lists that have investment options that need to be correspondingly updated.

Sheet Essentials menu (hidden)
O1: Asset Allocation
B2: Product | C2: APIR Code | D2: Blue Menu | E2: FM Rebates confirmed | F2: Single Asset Diversification Rules | G2: % Single Limit | H2: Aggregated Diversification Rules | I2: % Aggregated Limit | J2: ICR | K2: Risk Band | L2: Risk Label | M2: MorningStar ID | N2: Month End Date | O2: Cash | P2: Cash | Q2: Aust F.I | R2: Aust F.I | S2: Int'l F.I | T2: Int'l F.I | U2: Aust Shares | V2: Aust Shares | W2: Int'l Shares | X2: Int'l Shares | Y2: Prop | Z2: Prop | AA2: Other | AB2: Other | AC2: Buy/Sell Spread | AD2: Check should be on Essentials menu
B3: Cash Account / Hub | C3: n/a | F3: No applicable limits to cash accounts | G3: 1 | H3: n/a | I3: n/a
B4: ANZ Term Deposits | C4: ANZTD | D4: Essentials | F4: No applicable limits to term deposits | G4: 1 | H4: n/a | I4: n/a
B5: Macquarie Term Deposits | C5: MACTD | D5: Essentials | F5: No applicable limits to term deposits | G5: 1 | H5: n/a | I5: n/a
A8: Conservative | B8: =INDEX(MenuOptionFullMenu,MATCH(C8,'Full menu'!C:C,0)) -> IOOF MultiMix Capital Stable Trust | C8: IOF0094AU | D8: Essentials | E8: =IFERROR(VLOOKUP(TRIM(C8),rebates!A:G,7,FALSE),"") ->  | G8: 1 | H8: n/a | I8: n/a | J8: =VLOOKUP(C8,'Full menu'!C:J,8,FALSE) -> 0.0059 | K8: 3 | L8: Low to medium | AC8: 0.0004
A9: Moderate | B9: =INDEX(MenuOptionFullMenu,MATCH(C9,'Full menu'!C:C,0)) -> IOOF MultiMix Conservative Trust | C9: IOF0095AU | D9: Essentials | E9: =IFERROR(VLOOKUP(TRIM(C9),rebates!A:G,7,FALSE),"") ->  | G9: 1 | H9: n/a | I9: n/a | J9: =VLOOKUP(C9,'Full menu'!C:J,8,FALSE) -> 0.008 | K9: 4 | L9: Medium | O9: 0 | P9: 0.4 | Q9: 0 | R9: 0.4 | S9: 0.07 | T9: 0.37 | U9: 0.04 | V9: 0.24 | W9: 0 | X9: 0.2 | Y9: 0 | Z9: 0.1 | AA9: 0.02 | AB9: 0.18 | AC9: 0.0016 | AD9: 1
A10: Moderate | B10: =INDEX(MenuOptionFullMenu,MATCH(C10,'Full menu'!C:C,0)) -> IOOF MultiSeries 30 Trust | C10: IOF0253AU | D10: Essentials | E10: =IFERROR(VLOOKUP(TRIM(C10),rebates!A:G,7,FALSE),"") ->  | G10: 1 | H10: n/a | I10: n/a | J10: =VLOOKUP(C10,'Full menu'!C:J,8,FALSE) -> 0.004 | K10: 4 | L10: Medium | O10: 0 | P10: 0.4 | Q10: 0 | R10: 0.4 | S10: 0.07 | T10: 0.37 | U10: 0.04 | V10: 0.24 | W10: 0 | X10: 0.2 | Y10: 0 | Z10: 0.1 | AA10: 0.02 | AB10: 0.18 | AD10: 1
A11: Moderate | B11: =INDEX(MenuOptionFullMenu,MATCH(C11,'Full menu'!C:C,0)) -> Optimix Wholesale Conservative Trust Class B Units | C11: LEF0108AU | D11: Essentials | E11: =IFERROR(VLOOKUP(TRIM(C11),rebates!A:G,7,FALSE),"") -> 0.0005 | F11: TL_CUSTOM_GROUP.ANZMultiAsset | G11: 1 | H11: n/a | I11: n/a | J11: =VLOOKUP(C11,'Full menu'!C:J,8,FALSE) -> 0.0101 | K11: 4 | L11: Medium | M11: 4732 | N11: 2015-12-31 | O11: 0 | P11: 0.4 | Q11: 0 | R11: 0.4 | S11: 0.07 | T11: 0.37 | U11: 0.04 | V11: 0.24 | W11: 0 | X11: 0.2 | Y11: 0 | Z11: 0.1 | AA11: 0.02 | AB11: 0.18 | AC11: 0.001 | AD11: 1
A12: Moderate | B12: =INDEX(MenuOptionFullMenu,MATCH(C12,'Full menu'!C:C,0)) -> Pendal Monthly Income Plus Fund | C12: BTA0318AU | D12: Essentials | E12: =IFERROR(VLOOKUP(TRIM(C12),rebates!A:G,7,FALSE),"") -> 0.0005 | F12: TL_CUSTOM_GROUP.ANZMultiAsset | G12: 1 | H12: n/a | I12: n/a | J12: =VLOOKUP(C12,'Full menu'!C:J,8,FALSE) -> 0.0065 | K12: 5 | L12: Medium to high | M12: 17784 | N12: 2015-12-31 | O12: 0 | P12: 0.5 | Q12: 0.2 | R12: 1 | S12: 0 | T12: 0 | U12: 0 | V12: 0.3 | W12: 0 | X12: 0 | Y12: 0 | Z12: 0 | AA12: 0 | AB12: 0 | AC12: 0.001445 | AD12: 2
A13: Moderate | B13: =INDEX(MenuOptionFullMenu,MATCH(C13,'Full menu'!C:C,0)) -> UBS Tactical Beta - Conservative | C13: UBS0036AU | D13: Essentials | E13: =IFERROR(VLOOKUP(TRIM(C13),rebates!A:G,7,FALSE),"") ->  | F13: TL_CUSTOM_GROUP.ANZMultiAsset | G13: 1 | H13: n/a | I13: n/a | J13: =VLOOKUP(C13,'Full menu'!C:J,8,FALSE) -> 0.0037 | K13: 4 | L13: Medium | M13: 19477 | N13: 2015-12-31 | O13: 0 | P13: 0.3 | Q13: 0 | R13: 0.9 | S13: 0 | T13: 0.9 | U13: 0 | V13: 0.3 | W13: 0 | X13: 0.5 | Y13: 0 | Z13: 0.1 | AA13: 0 | AB13: 0 | AC13: 0.003015 | AD13: 3
A14: Moderate | B14: =INDEX(MenuOptionFullMenu,MATCH(C14,'Full menu'!C:C,0)) -> Vanguard Conservative Index Fund | C14: VAN0109AU | D14: Essentials | E14: =IFERROR(VLOOKUP(TRIM(C14),rebates!A:G,7,FALSE),"") -> 0.0004 | F14: TL_CUSTOM_GROUP.ANZMultiAsset | G14: 1 | H14: n/a | I14: n/a | J14: =VLOOKUP(C14,'Full menu'!C:J,8,FALSE) -> 0.0029 | K14: 5 | L14: Medium to high | M14: 9143 | N14: 2015-12-31 | O14: 0.08 | P14: 0.12 | Q14: 0.22 | R14: 0.26 | S14: 0.32 | T14: 0.4 | U14: 0.11 | V14: 0.15 | W14: 0.08 | X14: 0.19 | Y14: 0 | Z14: 0.08 | AA14: 0 | AB14: 0 | AC14: 0.002 | AD14: 4
A15: Balanced | B15: =INDEX(MenuOptionFullMenu,MATCH(C15,'Full menu'!C:C,0)) -> IOOF MultiMix Moderate Growth Trust | C15: UFM0051AU | D15: Essentials | E15: =IFERROR(VLOOKUP(TRIM(C15),rebates!A:G,7,FALSE),"") ->  | G15: 1 | H15: n/a | I15: n/a | J15: =VLOOKUP(C15,'Full menu'!C:J,8,FALSE) -> 0.0087 | AD15: 5
A16: Balanced | B16: =INDEX(MenuOptionFullMenu,MATCH(C16,'Full menu'!C:C,0)) -> IOOF MultiSeries 50 Trust | C16: IOF0254AU | D16: Essentials | E16: =IFERROR(VLOOKUP(TRIM(C16),rebates!A:G,7,FALSE),"") ->  | G16: 1 | H16: n/a | I16: n/a | J16: =VLOOKUP(C16,'Full menu'!C:J,8,FALSE) -> 0.0045 | AD16: 5
A17: Balanced | B17: =INDEX(MenuOptionFullMenu,MATCH(C17,'Full menu'!C:C,0)) -> Legg Mason Martin Currie Diversified Income Fund | C17: SSB0061AU | D17: Essentials | E17: =IFERROR(VLOOKUP(TRIM(C17),rebates!A:G,7,FALSE),"") -> 0.001 | F17: TL_CUSTOM_GROUP.ANZMultiAsset | G17: 1 | H17: n/a | I17: n/a | J17: =VLOOKUP(C17,'Full menu'!C:J,8,FALSE) -> 0.008 | AD17: 5
A18: Balanced | B18: =INDEX(MenuOptionFullMenu,MATCH(C18,'Full menu'!C:C,0)) -> Optimix Wholesale Moderate Trust Class B Units | C18: LEF0027AU | D18: Essentials | E18: =IFERROR(VLOOKUP(TRIM(C18),rebates!A:G,7,FALSE),"") -> 0.0005 | F18: TL_CUSTOM_GROUP.ANZMultiAsset | G18: 1 | H18: n/a | I18: n/a | J18: =VLOOKUP(C18,'Full menu'!C:J,8,FALSE) -> 0.0113 | K18: 5 | L18: Medium to high | M18: 10006 | N18: 2015-12-31 | O18: 0 | P18: 0.28 | Q18: 0 | R18: 0.35 | S18: 0.05 | T18: 0.35 | U18: 0.1 | V18: 0.3 | W18: 0.09 | X18: 0.29 | Y18: 0 | Z18: 0.2 | AA18: 0.06 | AB18: 0.2 | AC18: 0.0025 | AD18: 6
A19: Balanced | B19: =INDEX(MenuOptionFullMenu,MATCH(C19,'Full menu'!C:C,0)) -> Schroder Real Return Fund | C19: SCH0047AU | D19: Essentials | E19: =IFERROR(VLOOKUP(TRIM(C19),rebates!A:G,7,FALSE),"") -> 0 | F19: TL_CUSTOM_GROUP.ANZMultiAsset | G19: 1 | H19: n/a | I19: n/a | J19: =VLOOKUP(C19,'Full menu'!C:J,8,FALSE) -> 0.0086 | K19: 3 | L19: Low to medium | M19: 18353 | N19: 2015-12-31 | O19: 0 | P19: 1 | Q19: 0 | R19: 1 | S19: 0 | T19: 1 | U19: 0 | V19: 0.75 | W19: 0 | X19: 0.75 | Y19: 0 | Z19: 0.75 | AA19: 0 | AB19: 1 | AC19: 0.004 | AD19: 7
A20: Balanced | B20: =INDEX(MenuOptionFullMenu,MATCH(C20,'Full menu'!C:C,0)) -> UBS Tactical Beta - Balanced | C20: UBS0041AU | D20: Essentials | E20: =IFERROR(VLOOKUP(TRIM(C20),rebates!A:G,7,FALSE),"") ->  | F20: TL_CUSTOM_GROUP.ANZMultiAsset | G20: 1 | H20: n/a | I20: n/a | J20: =VLOOKUP(C20,'Full menu'!C:J,8,FALSE) -> 0.0036 | K20: 5 | L20: Medium to high | M20: 19582 | N20: 2015-12-31 | O20: 0 | P20: 0.3 | Q20: 0 | R20: 0.75 | S20: 0 | T20: 0.75 | U20: 0.08 | V20: 0.45 | W20: 0.08 | X20: 0.6 | Y20: 0 | Z20: 0.13 | AA20: 0 | AB20: 0 | AC20: 0.003011 | AD20: 8
A21: Balanced | B21: =INDEX(MenuOptionFullMenu,MATCH(C21,'Full menu'!C:C,0)) -> Vanguard Balanced Index Fund | C21: VAN0108AU | D21: Essentials | E21: =IFERROR(VLOOKUP(TRIM(C21),rebates!A:G,7,FALSE),"") -> 0.0004 | F21: TL_CUSTOM_GROUP.ANZMultiAsset | G21: 1 | H21: n/a | I21: n/a | J21: =VLOOKUP(C21,'Full menu'!C:J,8,FALSE) -> 0.0029 | K21: 5 | L21: Medium to high | M21: 9144 | N21: 2015-12-31 | O21: 0.2 | P21: 0.24 | Q21: 0.09 | R21: 0.13 | S21: 0.15 | T21: 0.19 | U21: 0.22 | V21: 0.26 | W21: 0.165 | X21: 0.235 | Y21: 0.05 | Z21: 0.07 | AA21: 0 | AB21: 0 | AC21: 0.0026 | AD21: 9
A22: Growth | B22: =INDEX(MenuOptionFullMenu,MATCH(C22,'Full menu'!C:C,0)) -> BlackRock Tactical Growth Fund | C22: PWA0822AU | D22: Essentials | E22: =IFERROR(VLOOKUP(C22,rebates!A:G,7,FALSE),"") ->  | F22: TL_CUSTOM_GROUP.ANZMultiAsset | G22: 1 | H22: n/a | I22: n/a | J22: =VLOOKUP(C22,'Full menu'!C:J,8,FALSE) -> 0.0085 | K22: 6 | L22: High | N22: 2015-12-31 | O22: 0 | P22: 0.1 | Q22: 0.05 | R22: 0.3 | S22: 0.15 | T22: 0.25 | U22: 0.2 | V22: 0.45 | W22: 0.1 | X22: 0.4 | Y22: 0 | Z22: 0.15 | AA22: 0 | AB22: 0.15 | AD22: 10
A23: Growth | B23: =INDEX(MenuOptionFullMenu,MATCH(C23,'Full menu'!C:C,0)) -> IOOF MultiMix Balanced Growth Trust | C23: IOF0093AU | D23: Essentials | E23: =IFERROR(VLOOKUP(C23,rebates!A:G,7,FALSE),"") ->  | F23: TL_CUSTOM_GROUP.ANZMultiAsset | G23: 1 | H23: n/a | I23: n/a | J23: =VLOOKUP(C23,'Full menu'!C:J,8,FALSE) -> 0.0109 | K23: 6 | L23: High | N23: 2015-12-31 | O23: 0 | P23: 0.1 | Q23: 0.05 | R23: 0.3 | S23: 0.15 | T23: 0.25 | U23: 0.2 | V23: 0.45 | W23: 0.1 | X23: 0.4 | Y23: 0 | Z23: 0.15 | AA23: 0 | AB23: 0.15 | AD23: 10
A24: Growth | B24: =INDEX(MenuOptionFullMenu,MATCH(C24,'Full menu'!C:C,0)) -> IOOF MultiSeries 70 Trust | C24: IOF0090AU | D24: Essentials | E24: =IFERROR(VLOOKUP(C24,rebates!A:G,7,FALSE),"") ->  | F24: TL_CUSTOM_GROUP.ANZMultiAsset | G24: 1 | H24: n/a | I24: n/a | J24: =VLOOKUP(C24,'Full menu'!C:J,8,FALSE) -> 0.005 | K24: 6 | L24: High | N24: 2015-12-31 | O24: 0 | P24: 0.1 | Q24: 0.05 | R24: 0.3 | S24: 0.15 | T24: 0.25 | U24: 0.2 | V24: 0.45 | W24: 0.1 | X24: 0.4 | Y24: 0 | Z24: 0.15 | AA24: 0 | AB24: 0.15 | AD24: 10
A25: Growth | B25: =INDEX(MenuOptionFullMenu,MATCH(C25,'Full menu'!C:C,0)) -> Optimix Wholesale Balanced Trust Class B Units | C25: LEF0107AU | D25: Essentials | E25: =IFERROR(VLOOKUP(TRIM(C25),rebates!A:G,7,FALSE),"") -> 0.0005 | F25: TL_CUSTOM_GROUP.ANZMultiAsset | G25: 1 | H25: n/a | I25: n/a | J25: =VLOOKUP(C25,'Full menu'!C:J,8,FALSE) -> 0.0121 | K25: 5 | L25: Medium to high | M25: 4733 | N25: 2015-12-31 | O25: 0 | P25: 0.19 | Q25: 0 | R25: 0.25 | S25: 0 | T25: 0.26 | U25: 0.19 | V25: 0.39 | W25: 0.17 | X25: 0.37 | Y25: 0 | Z25: 0.2 | AA25: 0.07 | AB25: 0.21 | AC25: 0.0035 | AD25: 11
A26: Growth | B26: =INDEX(MenuOptionFullMenu,MATCH(C26,'Full menu'!C:C,0)) -> Optimix Wholesale Growth Trust Class B Units | C26: LEF0106AU | D26: Essentials | E26: =IFERROR(VLOOKUP(TRIM(C26),rebates!A:G,7,FALSE),"") -> 0.0005 | F26: TL_CUSTOM_GROUP.ANZMultiAsset | G26: 1 | H26: n/a | I26: n/a | J26: =VLOOKUP(C26,'Full menu'!C:J,8,FALSE) -> 0.0115 | K26: 6 | L26: High | M26: 4734 | N26: 2015-12-31 | O26: 0 | P26: 0.16 | Q26: 0 | R26: 0.15 | S26: 0 | T26: 0.19 | U26: 0.27 | V26: 0.47 | W26: 0.23 | X26: 0.43 | Y26: 0 | Z26: 0.2 | AA26: 0.08 | AB26: 0.22 | AC26: 0.0042 | AD26: 12
A27: Growth | B27: =INDEX(MenuOptionFullMenu,MATCH(C27,'Full menu'!C:C,0)) -> UBS Tactical Beta - Growth | C27: UBS0037AU | D27: Essentials | E27: =IFERROR(VLOOKUP(TRIM(C27),rebates!A:G,7,FALSE),"") ->  | F27: TL_CUSTOM_GROUP.ANZMultiAsset | G27: 1 | H27: n/a | I27: n/a | J27: =VLOOKUP(C27,'Full menu'!C:J,8,FALSE) -> 0.0033 | K27: 5 | L27: Medium to high | M27: 19478 | N27: 2015-12-31 | O27: 0 | P27: 0.3 | Q27: 0 | R27: 0.6 | S27: 0 | T27: 0.6 | U27: 0.15 | V27: 0.6 | W27: 0.15 | X27: 0.6 | Y27: 0 | Z27: 0.15 | AA27: 0 | AB27: 0 | AC27: 0.002999 | AD27: 13
A28: Growth | B28: =INDEX(MenuOptionFullMenu,MATCH(C28,'Full menu'!C:C,0)) -> Vanguard Growth Index Fund | C28: VAN0110AU | D28: Essentials | E28: =IFERROR(VLOOKUP(TRIM(C28),rebates!A:G,7,FALSE),"") -> 0.0004 | F28: TL_CUSTOM_GROUP.ANZMultiAsset | G28: 1 | H28: n/a | I28: n/a | J28: =VLOOKUP(C28,'Full menu'!C:J,8,FALSE) -> 0.0029 | K28: 6 | L28: High | M28: 9145 | N28: 2015-12-31 | O28: 0.01 | P28: 0.03 | Q28: 0.09 | R28: 0.13 | S28: 0.15 | T28: 0.19 | U28: 0.32 | V28: 0.36 | W28: 0.245 | X28: 0.315 | Y28: 0.07 | Z28: 0.09 | AA28: 0 | AB28: 0 | AC28: 0.0024 | AD28: 14
A29: High Growth | B29: =INDEX(MenuOptionFullMenu,MATCH(C29,'Full menu'!C:C,0)) -> IOOF MultiSeries 90 Trust | C29: IOF0255AU | D29: Essentials | E29: =IFERROR(VLOOKUP(TRIM(C29),rebates!A:G,7,FALSE),"") ->  | F29: TL_CUSTOM_GROUP.ANZMultiAsset | G29: 1 | H29: n/a | I29: n/a | J29: =VLOOKUP(C29,'Full menu'!C:J,8,FALSE) -> 0.0055 | K29: 6 | L29: High | M29: 6709 | N29: 2015-12-31 | O29: 0 | P29: 0.1 | Q29: 0 | R29: 0 | S29: 0 | T29: 0 | U29: 0.25 | V29: 0.65 | W29: 0.28 | X29: 0.63 | Y29: 0 | Z29: 0.19 | AA29: 0.07 | AB29: 0.2 | AC29: 0.0052 | AD29: 15
A30: High Growth | B30: =INDEX(MenuOptionFullMenu,MATCH(C30,'Full menu'!C:C,0)) -> IOOF MultiMix Growth Trust | C30: IOF0097AU | D30: Essentials | E30: =IFERROR(VLOOKUP(TRIM(C30),rebates!A:G,7,FALSE),"") ->  | F30: TL_CUSTOM_GROUP.ANZMultiAsset | G30: 1 | H30: n/a | I30: n/a | J30: =VLOOKUP(C30,'Full menu'!C:J,8,FALSE) -> 0.0114 | K30: 6 | L30: High | M30: 6709 | N30: 2015-12-31 | O30: 0 | P30: 0.1 | Q30: 0 | R30: 0 | S30: 0 | T30: 0 | U30: 0.25 | V30: 0.65 | W30: 0.28 | X30: 0.63 | Y30: 0 | Z30: 0.19 | AA30: 0.07 | AB30: 0.2 | AC30: 0.0052 | AD30: 15
A31: High Growth | B31: =INDEX(MenuOptionFullMenu,MATCH(C31,'Full menu'!C:C,0)) -> Optimix Wholesale High Growth Trust Class B Units | C31: LEF0100AU | D31: Essentials | E31: =IFERROR(VLOOKUP(TRIM(C31),rebates!A:G,7,FALSE),"") -> 0.0005 | F31: TL_CUSTOM_GROUP.ANZMultiAsset | G31: 1 | H31: n/a | I31: n/a | J31: =VLOOKUP(C31,'Full menu'!C:J,8,FALSE) -> 0.011 | K31: 6 | L31: High | M31: 6709 | N31: 2015-12-31 | O31: 0 | P31: 0.1 | Q31: 0 | R31: 0 | S31: 0 | T31: 0 | U31: 0.25 | V31: 0.65 | W31: 0.28 | X31: 0.63 | Y31: 0 | Z31: 0.19 | AA31: 0.07 | AB31: 0.2 | AC31: 0.0052 | AD31: 15
A32: High Growth | B32: =INDEX(MenuOptionFullMenu,MATCH(C32,'Full menu'!C:C,0)) -> Vanguard High Growth Index Fund | C32: VAN0111AU | D32: Essentials | E32: =IFERROR(VLOOKUP(TRIM(C32),rebates!A:G,7,FALSE),"") -> 0.0004 | F32: TL_CUSTOM_GROUP.ANZMultiAsset | G32: 1 | H32: n/a | I32: n/a | J32: =VLOOKUP(C32,'Full menu'!C:J,8,FALSE) -> 0.0029 | K32: 6 | L32: High | M32: 9146 | N32: 2015-12-31 | O32: 0 | P32: 0 | Q32: 0.02 | R32: 0.06 | S32: 0.02 | T32: 0.06 | U32: 0.38 | V32: 0.42 | W32: 0.29 | X32: 0.33 | Y32: 0.03 | Z32: 0.07 | AA32: 0 | AB32: 0 | AC32: 0.0024 | AD32: 16
A33: Cash | B33: =INDEX(MenuOptionFullMenu,MATCH(C33,'Full menu'!C:C,0)) -> IOOF Cash Management Trust | C33: AUX0021AU | D33: Essentials | E33: =IFERROR(VLOOKUP(TRIM(C33),rebates!A:G,7,FALSE),"") ->  | F33: TL_CUSTOM_GROUP.ANZSingleClass | G33: 1 | H33: n/a | I33: n/a | J33: =VLOOKUP(C33,'Full menu'!C:J,8,FALSE) -> 0.003 | K33: 2 | L33: Low | O33: 0 | P33: 1 | Q33: 0 | R33: 1 | S33: 0 | T33: 0 | U33: 0 | V33: 0 | W33: 0 | X33: 0 | Y33: 0 | Z33: 0 | AA33: 0 | AB33: 0 | AC33: 0 | AD33: 17
A34: Cash | B34: =INDEX(MenuOptionFullMenu,MATCH(C34,'Full menu'!C:C,0)) -> IOOF MultiMix Cash Enhanced Trust | C34: IOF0091AU | D34: Essentials | E34: =IFERROR(VLOOKUP(TRIM(C34),rebates!A:G,7,FALSE),"") ->  | F34: TL_CUSTOM_GROUP.ANZSingleClass | G34: 1 | H34: n/a | I34: n/a | J34: =VLOOKUP(C34,'Full menu'!C:J,8,FALSE) -> 0.0036 | K34: 2 | L34: Low | O34: 0 | P34: 1 | Q34: 0 | R34: 1 | S34: 0 | T34: 0 | U34: 0 | V34: 0 | W34: 0 | X34: 0 | Y34: 0 | Z34: 0 | AA34: 0 | AB34: 0 | AC34: 0 | AD34: 17
A35: Cash | B35: =INDEX(MenuOptionFullMenu,MATCH(C35,'Full menu'!C:C,0)) -> Perpetual Exact Market Return Fund | C35: PER0258AU | D35: Essentials | E35: =IFERROR(VLOOKUP(TRIM(C35),rebates!A:G,7,FALSE),"") -> 0 | F35: TL_CUSTOM_GROUP.ANZSingleClass | G35: 1 | H35: n/a | I35: n/a | J35: =VLOOKUP(C35,'Full menu'!C:J,8,FALSE) -> 0 | K35: 2 | L35: Low | M35: 16252 | N35: 2015-12-31 | O35: 0 | P35: 1 | Q35: 0 | R35: 1 | S35: 0 | T35: 0 | U35: 0 | V35: 0 | W35: 0 | X35: 0 | Y35: 0 | Z35: 0 | AA35: 0 | AB35: 0 | AC35: 0 | AD35: 18
A36: Cash | B36: =INDEX(MenuOptionFullMenu,MATCH(C36,'Full menu'!C:C,0)) -> UBS Cash Fund | C36: SBC0811AU | D36: Essentials | E36: =IFERROR(VLOOKUP(TRIM(C36),rebates!A:G,7,FALSE),"") ->  | F36: TL_CUSTOM_GROUP.ANZSingleClass | G36: 1 | H36: n/a | I36: n/a | J36: =VLOOKUP(C36,'Full menu'!C:J,8,FALSE) -> 0.001 | K36: 2 | L36: Low | M36: 2723 | N36: 2015-12-31 | O36: 1 | P36: 1 | Q36: 0 | R36: 0 | S36: 0 | T36: 0 | U36: 0 | V36: 0 | W36: 0 | X36: 0 | Y36: 0 | Z36: 0 | AA36: 0 | AB36: 0 | AC36: 0 | AD36: 19
A37: Australian Fixed Interest | B37: =INDEX(MenuOptionFullMenu,MATCH(C37,'Full menu'!C:C,0)) -> Altius Sustainable Bond Fund | C37: AUS0071AU | D37: Essentials | E37: =IFERROR(VLOOKUP(TRIM(C37),rebates!A:G,7,FALSE),"") -> 0 | F37: TL_CUSTOM_GROUP.ANZSingleClass | G37: 0.3 | H37: n/a | I37: n/a | J37: =VLOOKUP(C37,'Full menu'!C:J,8,FALSE) -> 0.0049 | K37: 4 | L37: Medium | M37: 40709 | N37: 2015-12-31 | O37: 0 | P37: 0.2 | Q37: 0.8 | R37: 1 | S37: 0 | T37: 0 | U37: 0 | V37: 0 | W37: 0 | X37: 0 | Y37: 0 | Z37: 0 | AA37: 0 | AB37: 0 | AC37: 0.001 | AD37: 20
A38: Australian Fixed Interest | B38: =INDEX(MenuOptionFullMenu,MATCH(C38,'Full menu'!C:C,0)) -> Janus Henderson Australian Fixed Interest Fund | C38: IOF0046AU | D38: Essentials | E38: =IFERROR(VLOOKUP(TRIM(C38),rebates!A:G,7,FALSE),"") -> 0.0005 | F38: TL_CUSTOM_GROUP.ANZSingleClass | G38: 0.3 | H38: n/a | I38: n/a | J38: =VLOOKUP(C38,'Full menu'!C:J,8,FALSE) -> 0.0045 | K38: 4 | L38: Medium | M38: 40709 | N38: 2015-12-31 | O38: 0 | P38: 0.2 | Q38: 0.8 | R38: 1 | S38: 0 | T38: 0 | U38: 0 | V38: 0 | W38: 0 | X38: 0 | Y38: 0 | Z38: 0 | AA38: 0 | AB38: 0 | AC38: 0.001 | AD38: 21
A39: Australian Fixed Interest | B39: =INDEX(MenuOptionFullMenu,MATCH(C39,'Full menu'!C:C,0)) -> Janus Henderson Tactical Income Fund | C39: IOF0145AU | D39: Essentials | E39: =IFERROR(VLOOKUP(TRIM(C39),rebates!A:G,7,FALSE),"") -> 0.0005 | F39: TL_CUSTOM_GROUP.ANZSingleClass | G39: 0.3 | H39: n/a | I39: n/a | J39: =VLOOKUP(C39,'Full menu'!C:J,8,FALSE) -> 0.0045 | K39: 4 | L39: Medium | M39: 17406 | N39: 2015-12-31 | O39: 0 | P39: 0.2 | Q39: 0 | R39: 1 | S39: 0 | T39: 0 | U39: 0 | V39: 0 | W39: 0 | X39: 0 | Y39: 0 | Z39: 0 | AA39: 0 | AB39: 0 | AC39: 0 | AD39: 22
A40: Australian Fixed Interest | B40: =INDEX(MenuOptionFullMenu,MATCH(C40,'Full menu'!C:C,0)) -> Legg Mason Western Asset Australian Bond Fund | C40: SSB0122AU | D40: Essentials | E40: =IFERROR(VLOOKUP(TRIM(C40),rebates!A:G,7,FALSE),"") -> 0 | F40: TL_CUSTOM_GROUP.ANZSingleClass | G40: 0.3 | H40: n/a | I40: n/a | J40: =VLOOKUP(C40,'Full menu'!C:J,8,FALSE) -> 0.0042 | K40: 4 | L40: Medium | M40: 5471 | N40: 2015-12-31 | O40: 0 | P40: 0 | Q40: 0.7 | R40: 1 | S40: 0 | T40: 0.3 | U40: 0 | V40: 0 | W40: 0 | X40: 0 | Y40: 0 | Z40: 0 | AA40: 0 | AB40: 0 | AC40: 0.0016 | AD40: 23
A41: Australian Fixed Interest | B41: =INDEX(MenuOptionFullMenu,MATCH(C41,'Full menu'!C:C,0)) -> Macquarie Australian Fixed Interest Fund | C41: MAQ0061AU | D41: Essentials | E41: =IFERROR(VLOOKUP(TRIM(C41),rebates!A:G,7,FALSE),"") ->  | F41: TL_CUSTOM_GROUP.ANZSingleClass | G41: 0.3 | H41: n/a | I41: n/a | J41: =VLOOKUP(C41,'Full menu'!C:J,8,FALSE) -> 0.004 | K41: 4 | L41: Medium | M41: 5471 | N41: 2015-12-31 | O41: 0 | P41: 0 | Q41: 0.7 | R41: 1 | S41: 0 | T41: 0.3 | U41: 0 | V41: 0 | W41: 0 | X41: 0 | Y41: 0 | Z41: 0 | AA41: 0 | AB41: 0 | AC41: 0.0016 | AD41: 23
A42: Australian Fixed Interest | B42: =INDEX(MenuOptionFullMenu,MATCH(C42,'Full menu'!C:C,0)) -> Pendal Sustainable Australian Fixed Interest Fund | C42: BTA0507AU | D42: Essentials | E42: =IFERROR(VLOOKUP(TRIM(C42),rebates!A:G,7,FALSE),"") ->  | F42: TL_CUSTOM_GROUP.ANZSingleClass | G42: 0.3 | H42: n/a | I42: n/a | J42: =VLOOKUP(C42,'Full menu'!C:J,8,FALSE) -> 0.004 | K42: 4 | L42: Medium | M42: 42184 | N42: 2015-12-31 | O42: 0 | P42: 0 | Q42: 0.7 | R42: 1 | S42: 0 | T42: 0.3 | U42: 0 | V42: 0 | W42: 0 | X42: 0 | Y42: 0 | Z42: 0 | AA42: 0 | AB42: 0 | AC42: 0.0014 | AD42: 24
A43: Australian Fixed Interest | B43: =INDEX(MenuOptionFullMenu,MATCH(C43,'Full menu'!C:C,0)) -> PIMCO Wholesale Australian Bond Fund | C43: ETL0015AU | D43: Essentials | E43: =IFERROR(VLOOKUP(TRIM(C43),rebates!A:G,7,FALSE),"") ->  | F43: TL_CUSTOM_GROUP.ANZSingleClass | G43: 0.3 | H43: n/a | I43: n/a | J43: =VLOOKUP(C43,'Full menu'!C:J,8,FALSE) -> 0.0054 | K43: 4 | L43: Medium | M43: 10881 | N43: 2015-12-31 | O43: 0 | P43: 0 | Q43: 0.7 | R43: 1 | S43: 0 | T43: 0.3 | U43: 0 | V43: 0 | W43: 0 | X43: 0 | Y43: 0 | Z43: 0 | AA43: 0 | AB43: 0 | AC43: 0.001 | AD43: 25
A44: Australian Fixed Interest | B44: =INDEX(MenuOptionFullMenu,MATCH(C44,'Full menu'!C:C,0)) -> Schroder Fixed Income Fund | C44: SCH0028AU | D44: Essentials | E44: =IFERROR(VLOOKUP(TRIM(C44),rebates!A:G,7,FALSE),"") -> 0 | F44: TL_CUSTOM_GROUP.ANZSingleClass | G44: 0.3 | H44: n/a | I44: n/a | J44: =VLOOKUP(C44,'Full menu'!C:J,8,FALSE) -> 0.0046 | K44: 4 | L44: Medium | M44: 10862 | N44: 2015-12-31 | O44: 0 | P44: 0.5 | Q44: 0 | R44: 0.75 | S44: 0 | T44: 0.5 | U44: 0 | V44: 0 | W44: 0 | X44: 0 | Y44: 0 | Z44: 0 | AA44: 0 | AB44: 0 | AC44: 0.0023 | AD44: 26
A45: Australian Fixed Interest | B45: =INDEX(MenuOptionFullMenu,MATCH(C45,'Full menu'!C:C,0)) -> UBS Australian Bond Fund | C45: SBC0813AU | D45: Essentials | E45: =IFERROR(VLOOKUP(TRIM(C45),rebates!A:G,7,FALSE),"") -> 0.00045 | F45: TL_CUSTOM_GROUP.ANZSingleClass | G45: 0.3 | H45: n/a | I45: n/a | J45: =VLOOKUP(C45,'Full menu'!C:J,8,FALSE) -> 0.0045 | K45: 4 | L45: Medium | O45: 0 | P45: 0.5 | Q45: 0 | R45: 0.75 | S45: 0 | T45: 0.5 | U45: 0 | V45: 0 | W45: 0 | X45: 0 | Y45: 0 | Z45: 0 | AA45: 0 | AB45: 0
A46: Australian Fixed Interest | B46: =INDEX(MenuOptionFullMenu,MATCH(C46,'Full menu'!C:C,0)) -> Vanguard Australian Fixed Interest Index Fund | C46: VAN0001AU | D46: Essentials | E46: =IFERROR(VLOOKUP(TRIM(C46),rebates!A:G,7,FALSE),"") -> 0.0003 | F46: TL_CUSTOM_GROUP.ANZSingleClass | G46: 0.3 | H46: n/a | I46: n/a | J46: =VLOOKUP(C46,'Full menu'!C:J,8,FALSE) -> 0.0024 | K46: 4 | L46: Medium | M46: 4487 | N46: 2015-12-31 | O46: 0 | P46: 0.1 | Q46: 0.9 | R46: 1 | S46: 0 | T46: 0 | U46: 0 | V46: 0 | W46: 0 | X46: 0 | Y46: 0 | Z46: 0 | AA46: 0 | AB46: 0 | AC46: 0.0016 | AD46: 27
A47: International Fixed Interest | B47: =INDEX(MenuOptionFullMenu,MATCH(C47,'Full menu'!C:C,0)) -> Colchester Global Government Bond Fund - Class I | C47: ETL5525AU | D47: Essentials | E47: =IFERROR(VLOOKUP(TRIM(C47),rebates!A:G,7,FALSE),"") ->  | F47: TL_CUSTOM_GROUP.ANZSingleClass | G47: 0.3 | H47: n/a | I47: n/a | J47: =VLOOKUP(C47,'Full menu'!C:J,8,FALSE) -> 0.0062 | K47: 6 | L47: High | M47: 40930 | N47: 2015-12-31 | O47: 0 | P47: 0.1 | Q47: 0 | R47: 0.1 | S47: 0.9 | T47: 1 | U47: 0 | V47: 0 | W47: 0 | X47: 0 | Y47: 0 | Z47: 0 | AA47: 0 | AB47: 0 | AC47: 0 | AD47: 28
A48: International Fixed Interest | B48: =INDEX(MenuOptionFullMenu,MATCH(C48,'Full menu'!C:C,0)) -> PIMCO ESG Global Bond Fund - Wholesale Class | C48: PIC6396AU | D48: Essentials | E48: =IFERROR(VLOOKUP(TRIM(C48),rebates!A:G,7,FALSE),"") ->  | F48: TL_CUSTOM_GROUP.ANZSingleClass | G48: 0.3 | H48: n/a | I48: n/a | J48: =VLOOKUP(C48,'Full menu'!C:J,8,FALSE) -> 0.0092 | K48: 6 | L48: High | M48: 41702 | N48: 2015-12-31 | O48: 0 | P48: 0.1 | Q48: 0 | R48: 0.1 | S48: 0.9 | T48: 1 | U48: 0 | V48: 0 | W48: 0 | X48: 0 | Y48: 0 | Z48: 0 | AA48: 0 | AB48: 0 | AC48: 0 | AD48: 29
A49: International Fixed Interest | B49: =INDEX(MenuOptionFullMenu,MATCH(C49,'Full menu'!C:C,0)) -> PIMCO Wholesale Global Bond Fund | C49: ETL0018AU | D49: Essentials | E49: =IFERROR(VLOOKUP(TRIM(C49),rebates!A:G,7,FALSE),"") ->  | F49: TL_CUSTOM_GROUP.ANZSingleClass | G49: 0.3 | H49: n/a | I49: n/a | J49: =VLOOKUP(C49,'Full menu'!C:J,8,FALSE) -> 0.0075 | K49: 6 | L49: High | M49: 10883 | N49: 2015-12-31 | O49: 0 | P49: 0.1 | Q49: 0 | R49: 0.1 | S49: 0.9 | T49: 1 | U49: 0 | V49: 0 | W49: 0 | X49: 0 | Y49: 0 | Z49: 0 | AA49: 0 | AB49: 0 | AC49: 0.001 | AD49: 30
A50: International Fixed Interest | B50: =INDEX(MenuOptionFullMenu,MATCH(C50,'Full menu'!C:C,0)) -> T. Rowe Price Dynamic Global Bond Fund | C50: ETL0398AU | D50: Essentials | E50: =IFERROR(VLOOKUP(C50,rebates!A:G,7,FALSE),"") -> 0 | F50: TL_CUSTOM_GROUP.ANZSingleClass | G50: 0.3 | H50: n/a | I50: n/a | J50: =VLOOKUP(C50,'Full menu'!C:J,8,FALSE) -> 0.004 | K50: 6 | L50: High | N50: 2015-12-31 | O50: 0 | P50: 0.1 | Q50: 0 | R50: 0 | S50: 0.9 | T50: 1 | U50: 0 | V50: 0 | W50: 0 | X50: 0 | Y50: 0 | Z50: 0 | AA50: 0 | AB50: 0 | AC50: 0.005 | AD50: 31
A51: International Fixed Interest | B51: =INDEX(MenuOptionFullMenu,MATCH(C51,'Full menu'!C:C,0)) -> Vanguard International Fixed Interest Index Fund (Hedged) | C51: VAN0103AU | D51: Essentials | E51: =IFERROR(VLOOKUP(TRIM(C51),rebates!A:G,7,FALSE),"") -> 0.0003 | F51: TL_CUSTOM_GROUP.ANZSingleClass | G51: 0.3 | H51: n/a | I51: n/a | J51: =VLOOKUP(C51,'Full menu'!C:J,8,FALSE) -> 0.0026 | K51: 6 | L51: High | M51: 6428 | N51: 2015-12-31 | O51: 0 | P51: 0 | Q51: 0 | R51: 0 | S51: 1 | T51: 1 | U51: 0 | V51: 0 | W51: 0 | X51: 0 | Y51: 0 | Z51: 0 | AA51: 0 | AB51: 0 | AC51: 0.002 | AD51: 32
A52: Diversified Fixed Interest | B52: =INDEX(MenuOptionFullMenu,MATCH(C52,'Full menu'!C:C,0)) -> IOOF MultiMix Diversified Fixed Interest Trust | C52: IOF0096AU | D52: Essentials | E52: =IFERROR(VLOOKUP(TRIM(C52),rebates!A:G,7,FALSE),"") ->  | F52: TL_CUSTOM_GROUP.ANZSingleClass | G52: 0.3 | H52: n/a | I52: n/a | J52: =VLOOKUP(C52,'Full menu'!C:J,8,FALSE) -> 0.0066 | K52: 4 | L52: Medium | M52: 7697 | N52: 2015-12-31 | O52: 0 | P52: 0.9 | Q52: 0 | R52: 0.9 | S52: 0 | T52: 0.9 | U52: 0 | V52: 0 | W52: 0 | X52: 0 | Y52: 0 | Z52: 0 | AA52: 0 | AB52: 0 | AC52: 0.0005 | AD52: 33
A53: Diversified Fixed Interest | B53: =INDEX(MenuOptionFullMenu,MATCH(C53,'Full menu'!C:C,0)) -> OnePath Wholesale Diversified Fixed Interest Trust | C53: ANZ0212AU | D53: Essentials | E53: =IFERROR(VLOOKUP(TRIM(C53),rebates!A:G,7,FALSE),"") -> 0.001 | F53: TL_CUSTOM_GROUP.ANZSingleClass | G53: 0.3 | H53: n/a | I53: n/a | J53: =VLOOKUP(C53,'Full menu'!C:J,8,FALSE) -> 0.0063 | K53: 4 | L53: Medium | M53: 7697 | N53: 2015-12-31 | O53: 0 | P53: 0.9 | Q53: 0 | R53: 0.9 | S53: 0 | T53: 0.9 | U53: 0 | V53: 0 | W53: 0 | X53: 0 | Y53: 0 | Z53: 0 | AA53: 0 | AB53: 0 | AC53: 0.0005 | AD53: 33
A54: Diversified Fixed Interest | B54: =INDEX(MenuOptionFullMenu,MATCH(C54,'Full menu'!C:C,0)) -> PIMCO Diversified Fixed Interest Fund - Wholesale Class | C54: ETL0016AU | D54: Essentials | E54: =IFERROR(VLOOKUP(TRIM(C54),rebates!A:G,7,FALSE),"") -> 0 | F54: TL_CUSTOM_GROUP.ANZSingleClass | G54: 0.3 | H54: n/a | I54: n/a | J54: =VLOOKUP(C54,'Full menu'!C:J,8,FALSE) -> 0.0065 | K54: 4 | L54: Medium | M54: 10882 | N54: 2015-12-31 | O54: 0.2 | P54: 0.8 | Q54: 0.2 | R54: 0.8 | S54: 0.2 | T54: 0.8 | U54: 0 | V54: 0 | W54: 0 | X54: 0 | Y54: 0 | Z54: 0 | AA54: 0 | AB54: 0 | AC54: 0.0011 | AD54: 34
A55: Diversified Fixed Interest | B55: =INDEX(MenuOptionFullMenu,MATCH(C55,'Full menu'!C:C,0)) -> UBS Diversified Fixed Income Fund | C55: SBC0007AU | D55: Essentials | E55: =IFERROR(VLOOKUP(TRIM(C55),rebates!A:G,7,FALSE),"") -> 0.00055 | F55: TL_CUSTOM_GROUP.ANZSingleClass | G55: 0.3 | H55: n/a | I55: n/a | J55: =VLOOKUP(C55,'Full menu'!C:J,8,FALSE) -> 0.0055 | K55: 4 | L55: Medium | M55: 4866 | N55: 2015-12-31 | O55: 0.2 | P55: 0.8 | Q55: 0.2 | R55: 0.8 | S55: 0.2 | T55: 0.8 | U55: 0 | V55: 0 | W55: 0 | X55: 0 | Y55: 0 | Z55: 0 | AA55: 0 | AB55: 0 | AC55: 0.002 | AD55: 35
A56: Diversified Fixed Interest | B56: =INDEX(MenuOptionFullMenu,MATCH(C56,'Full menu'!C:C,0)) -> Vanguard Diversified Bond Index Fund | C56: VAN0042AU | D56: Essentials | E56: =IFERROR(VLOOKUP(TRIM(C56),rebates!A:G,7,FALSE),"") -> 0.0004 | F56: TL_CUSTOM_GROUP.ANZSingleClass | G56: 0.3 | H56: n/a | I56: n/a | J56: =VLOOKUP(C56,'Full menu'!C:J,8,FALSE) -> 0.0029 | K56: 4 | L56: Medium | M56: 19090 | N56: 2015-12-31 | O56: 0 | P56: 0 | Q56: 0.4 | R56: 0.4 | S56: 0.6 | T56: 0.6 | U56: 0 | V56: 0 | W56: 0 | X56: 0 | Y56: 0 | Z56: 0 | AA56: 0 | AB56: 0 | AC56: 0.0024 | AD56: 36
A57: Diversified Credit | B57: =INDEX(MenuOptionFullMenu,MATCH(C57,'Full menu'!C:C,0)) -> First Sentier Wholesale Global Credit Income Fund | C57: FSF0084AU | D57: Essentials | E57: =IFERROR(VLOOKUP(TRIM(C57),rebates!A:G,7,FALSE),"") -> 0 | F57: TL_CUSTOM_GROUP.ANZSingleClass | G57: 0.3 | H57: n/a | I57: n/a | J57: =VLOOKUP(C57,'Full menu'!C:J,8,FALSE) -> 0.0062 | K57: 3 | L57: Low to medium | M57: 10872 | N57: 2015-12-31 | O57: 0 | P57: 1 | Q57: 0 | R57: 1 | S57: 0 | T57: 1 | U57: 0 | V57: 0 | W57: 0 | X57: 0 | Y57: 0 | Z57: 0 | AA57: 0 | AB57: 0 | AC57: 0.005 | AD57: 37
A58: Diversified Credit | B58: =INDEX(MenuOptionFullMenu,MATCH(C58,'Full menu'!C:C,0)) -> Kapstream Absolute Return Income Fund | C58: HOW0052AU | D58: Essentials | E58: =IFERROR(VLOOKUP(TRIM(C58),rebates!A:G,7,FALSE),"") -> 0 | F58: TL_CUSTOM_GROUP.ANZSingleClass | G58: 0.3 | H58: n/a | I58: n/a | J58: =VLOOKUP(C58,'Full menu'!C:J,8,FALSE) -> 0.0055 | K58: 3 | L58: Low to medium | M58: 17256 | N58: 2015-12-31 | O58: 0 | P58: 1 | Q58: 0 | R58: 0 | S58: 0 | T58: 1 | U58: 0 | V58: 0 | W58: 0 | X58: 0 | Y58: 0 | Z58: 0 | AA58: 0 | AB58: 0 | AC58: 0 | AD58: 38
A59: Diversified Credit | B59: =INDEX(MenuOptionFullMenu,MATCH(C59,'Full menu'!C:C,0)) -> Macquarie Income Opportunities Fund | C59: MAQ0277AU | D59: Essentials | E59: =IFERROR(VLOOKUP(TRIM(C59),rebates!A:G,7,FALSE),"") -> 0 | F59: TL_CUSTOM_GROUP.ANZSingleClass | G59: 0.3 | H59: n/a | I59: n/a | J59: =VLOOKUP(C59,'Full menu'!C:J,8,FALSE) -> 0.0051 | K59: 3 | L59: Low to medium | M59: 10715 | N59: 2015-12-31 | O59: 0 | P59: 1 | Q59: 0.2 | R59: 1 | S59: 0 | T59: 0.75 | U59: 0 | V59: 0 | W59: 0 | X59: 0 | Y59: 0 | Z59: 0 | AA59: 0 | AB59: 0 | AC59: 0.003 | AD59: 39
A60: Growth Fixed Income | B60: =INDEX(MenuOptionFullMenu,MATCH(C60,'Full menu'!C:C,0)) -> Bentham Global Income Fund | C60: CSA0038AU | D60: Essentials | E60: =IFERROR(VLOOKUP(TRIM(C60),rebates!A:G,7,FALSE),"") -> 0.0025 | F60: TL_CUSTOM_GROUP.ANZSingleClass | G60: 0.3 | H60: n/a | I60: n/a | J60: =VLOOKUP(C60,'Full menu'!C:J,8,FALSE) -> 0.0077 | K60: 6 | L60: High | M60: 10751 | N60: 2015-12-31 | O60: 0 | P60: 0.2 | Q60: 0 | R60: 0.3 | S60: 0.6 | T60: 1 | U60: 0 | V60: 0 | W60: 0 | X60: 0 | Y60: 0 | Z60: 0 | AA60: 0 | AB60: 0 | AC60: 0.009 | AD60: 41
A61: Growth Fixed Income | B61: =INDEX(MenuOptionFullMenu,MATCH(C61,'Full menu'!C:C,0)) -> Payden Global Income Opportunities Fund | C61: GSF0008AU | D61: Essentials | E61: =IFERROR(VLOOKUP(TRIM(C61),rebates!A:G,7,FALSE),"") -> 0.0014 | F61: TL_CUSTOM_GROUP.ANZSingleClass | G61: 0.3 | H61: n/a | I61: n/a | J61: =VLOOKUP(C61,'Full menu'!C:J,8,FALSE) -> 0.0072 | K61: 5 | L61: Medium to high | M61: 19589 | N61: 2015-12-31 | O61: 0 | P61: 0.2 | Q61: 0 | R61: 0 | S61: 0 | T61: 1 | U61: 0 | V61: 0 | W61: 0 | X61: 0 | Y61: 0 | Z61: 0 | AA61: 0 | AB61: 0 | AC61: 0.0019 | AD61: 42
A62: Property - Australian | B62: =INDEX(MenuOptionFullMenu,MATCH(C62,'Full menu'!C:C,0)) -> OnePath Wholesale Property Securities Trust | C62: AJF0803AU | D62: Essentials | E62: =IFERROR(VLOOKUP(TRIM(C62),rebates!A:G,7,FALSE),"") -> 0.0015 | F62: TL_CUSTOM_GROUP.ANZSingleClass | G62: 0.3 | H62: n/a | I62: n/a | J62: =VLOOKUP(C62,'Full menu'!C:J,8,FALSE) -> 0.0095 | K62: 6 | L62: High | M62: 3202 | N62: 2015-12-31 | O62: 0 | P62: 0.05 | Q62: 0 | R62: 0 | S62: 0 | T62: 0 | U62: 0 | V62: 0 | W62: 0 | X62: 0 | Y62: 0.95 | Z62: 1 | AA62: 0 | AB62: 0 | AC62: 0.005 | AD62: 43
A63: Property - Australian | B63: =INDEX(MenuOptionFullMenu,MATCH(C63,'Full menu'!C:C,0)) -> Vanguard Australian Property Securities Index Fund | C63: VAN0004AU | D63: Essentials | E63: =IFERROR(VLOOKUP(TRIM(C63),rebates!A:G,7,FALSE),"") -> 0.0003 | F63: TL_CUSTOM_GROUP.ANZSingleClass | G63: 0.3 | H63: n/a | I63: n/a | J63: =VLOOKUP(C63,'Full menu'!C:J,8,FALSE) -> 0.0023 | K63: 7 | L63: Very high | M63: 4744 | N63: 2015-12-31 | O63: 0 | P63: 0 | Q63: 0 | R63: 0 | S63: 0 | T63: 0 | U63: 0 | V63: 0 | W63: 0 | X63: 0 | Y63: 1 | Z63: 1 | AA63: 0 | AB63: 0 | AC63: 0.002 | AD63: 44
A64: Property - Australian | B64: =INDEX(MenuOptionFullMenu,MATCH(C64,'Full menu'!C:C,0)) -> Zurich Investments Australian Property Securities Fund | C64: ZUR0064AU | D64: Essentials | E64: =IFERROR(VLOOKUP(TRIM(C64),rebates!A:G,7,FALSE),"") -> 0.0009 | F64: TL_CUSTOM_GROUP.ANZSingleClass | G64: 0.3 | H64: n/a | I64: n/a | J64: =VLOOKUP(C64,'Full menu'!C:J,8,FALSE) -> 0.0081 | K64: 6 | L64: High | M64: 5396 | N64: 2015-12-31 | O64: 0 | P64: 0.05 | Q64: 0 | R64: 0 | S64: 0 | T64: 0 | U64: 0 | V64: 0 | W64: 0 | X64: 0 | Y64: 0.95 | Z64: 1 | AA64: 0 | AB64: 0 | AC64: 0.006 | AD64: 45
A65: Property - Global | B65: =INDEX(MenuOptionFullMenu,MATCH(C65,'Full menu'!C:C,0)) -> IOOF Specialist Property Fund | C65: WPC0012AU | D65: Essentials | E65: =IFERROR(VLOOKUP(TRIM(C65),rebates!A:G,7,FALSE),"") ->  | F65: TL_CUSTOM_GROUP.ANZSingleClass | G65: 0.3 | H65: n/a | I65: n/a | J65: =VLOOKUP(C65,'Full menu'!C:J,8,FALSE) -> 0.0097 | K65: 7 | L65: Very high | M65: 12113 | N65: 2015-12-31 | O65: 0 | P65: 0.06 | Q65: 0 | R65: 0 | S65: 0 | T65: 0 | U65: 0 | V65: 0 | W65: 0 | X65: 0 | Y65: 0.94 | Z65: 1 | AA65: 0 | AB65: 0 | AC65: 0.0061 | AD65: 46
A66: Property - Global | B66: =INDEX(MenuOptionFullMenu,MATCH(C66,'Full menu'!C:C,0)) -> Ironbark Global (ex-Australia) Property Securities Fund | C66: MGL0010AU | D66: Essentials | E66: =IFERROR(VLOOKUP(TRIM(C66),rebates!A:G,7,FALSE),"") -> 0.001 | F66: TL_CUSTOM_GROUP.ANZSingleClass | G66: 0.3 | H66: n/a | I66: n/a | J66: =VLOOKUP(C66,'Full menu'!C:J,8,FALSE) -> 0.0123 | K66: 7 | L66: Very high | M66: 12113 | N66: 2015-12-31 | O66: 0 | P66: 0.06 | Q66: 0 | R66: 0 | S66: 0 | T66: 0 | U66: 0 | V66: 0 | W66: 0 | X66: 0 | Y66: 0.94 | Z66: 1 | AA66: 0 | AB66: 0 | AC66: 0.0061 | AD66: 46
A67: Property - Global | B67: =INDEX(MenuOptionFullMenu,MATCH(C67,'Full menu'!C:C,0)) -> Quay Global Real Estate Fund | C67: BFL0020AU | D67: Essentials | E67: =IFERROR(VLOOKUP(TRIM(C67),rebates!A:G,7,FALSE),"") -> 0 | F67: TL_CUSTOM_GROUP.ANZSingleClass | G67: 0.3 | H67: n/a | I67: n/a | J67: =VLOOKUP(C67,'Full menu'!C:J,8,FALSE) -> 0.0153 | K67: 7 | L67: Very high | M67: 40742 | N67: 2015-12-31 | O67: 0 | P67: 0.15 | Q67: 0 | R67: 0 | S67: 0 | T67: 0 | U67: 0 | V67: 0 | W67: 0 | X67: 0 | Y67: 0.85 | Z67: 1 | AA67: 0 | AB67: 0 | AC67: 0.0055 | AD67: 47
A68: Property - Global | B68: =INDEX(MenuOptionFullMenu,MATCH(C68,'Full menu'!C:C,0)) -> Resolution Capital Global Property Securities Fund | C68: WHT0015AU | D68: Essentials | E68: =IFERROR(VLOOKUP(TRIM(C68),rebates!A:G,7,FALSE),"") -> 0.0005 | F68: TL_CUSTOM_GROUP.ANZSingleClass | G68: 0.3 | H68: n/a | I68: n/a | J68: =VLOOKUP(C68,'Full menu'!C:J,8,FALSE) -> 0.008 | K68: 7 | L68: Very high | M68: 16747 | N68: 2015-12-31 | O68: 0 | P68: 0.15 | Q68: 0 | R68: 0 | S68: 0 | T68: 0 | U68: 0 | V68: 0 | W68: 0 | X68: 0 | Y68: 0.85 | Z68: 1 | AA68: 0 | AB68: 0 | AC68: 0.006 | AD68: 48
A69: Property - Global | B69: =INDEX(MenuOptionFullMenu,MATCH(C69,'Full menu'!C:C,0)) -> Resolution Capital Global Property Securities Fund Series II | C69: IOF0081AU | D69: Essentials | E69: =IFERROR(VLOOKUP(TRIM(C69),rebates!A:G,7,FALSE),"") ->  | F69: TL_CUSTOM_GROUP.ANZSingleClass | G69: 0.3 | H69: n/a | I69: n/a | J69: =VLOOKUP(C69,'Full menu'!C:J,8,FALSE) -> 0.0105 | K69: 6 | L69: High | M69: 16747 | N69: 2015-12-31 | O69: 0 | P69: 0.15 | Q69: 0 | R69: 0 | S69: 0 | T69: 0 | U69: 0 | V69: 0 | W69: 0 | X69: 0 | Y69: 0.85 | Z69: 1 | AA69: 0 | AB69: 0 | AC69: 0.006 | AD69: 49
A70: Property - Global | B70: =INDEX(MenuOptionFullMenu,MATCH(C70,'Full menu'!C:C,0)) -> Resolution Capital Global Property Securities Fund Series II - Unhedged | C70: IOF0184AU | D70: Essentials | E70: =IFERROR(VLOOKUP(TRIM(C70),rebates!A:G,7,FALSE),"") ->  | F70: TL_CUSTOM_GROUP.ANZSingleClass | G70: 0.3 | H70: n/a | I70: n/a | J70: =VLOOKUP(C70,'Full menu'!C:J,8,FALSE) -> 0.0105 | K70: 6 | L70: High | M70: 16747 | N70: 2015-12-31 | O70: 0 | P70: 0.15 | Q70: 0 | R70: 0 | S70: 0 | T70: 0 | U70: 0 | V70: 0 | W70: 0 | X70: 0 | Y70: 0.85 | Z70: 1 | AA70: 0 | AB70: 0 | AC70: 0.006 | AD70: 49
A71: Property - Global | B71: =INDEX(MenuOptionFullMenu,MATCH(C71,'Full menu'!C:C,0)) -> UBS Clarion Global Property Securities Fund | C71: HML0016AU | D71: Essentials | E71: =IFERROR(VLOOKUP(TRIM(C71),rebates!A:G,7,FALSE),"") -> 0.0009 | F71: TL_CUSTOM_GROUP.ANZSingleClass | G71: 0.3 | H71: n/a | I71: n/a | J71: =VLOOKUP(C71,'Full menu'!C:J,8,FALSE) -> 0.009 | K71: 6 | L71: High | M71: 14291 | N71: 2015-12-31 | O71: 0 | P71: 0.1 | Q71: 0 | R71: 0 | S71: 0 | T71: 0 | U71: 0 | V71: 0 | W71: 0 | X71: 0 | Y71: 0.9 | Z71: 1 | AA71: 0 | AB71: 0 | AC71: 0.004 | AD71: 50
A72: Property - Global | B72: =INDEX(MenuOptionFullMenu,MATCH(C72,'Full menu'!C:C,0)) -> Vanguard International Property Securities Index Fund | C72: VAN0018AU | D72: Essentials | E72: =IFERROR(VLOOKUP(TRIM(C72),rebates!A:G,7,FALSE),"") -> 0.0004 | F72: TL_CUSTOM_GROUP.ANZSingleClass | G72: 0.3 | H72: n/a | I72: n/a | J72: =VLOOKUP(C72,'Full menu'!C:J,8,FALSE) -> 0.004 | K72: 7 | L72: Very high | M72: 13426 | N72: 2015-12-31 | O72: 0 | P72: 0 | Q72: 0 | R72: 0 | S72: 0 | T72: 0 | U72: 0 | V72: 0 | W72: 0 | X72: 0 | Y72: 1 | Z72: 1 | AA72: 0 | AB72: 0 | AC72: 0.0014 | AD72: 51
A73: Property - Global | B73: =INDEX(MenuOptionFullMenu,MATCH(C73,'Full menu'!C:C,0)) -> Vanguard International Property Securities Index Fund (Hedged) | C73: VAN0019AU | D73: Essentials | E73: =IFERROR(VLOOKUP(TRIM(C73),rebates!A:G,7,FALSE),"") -> 0.0005 | F73: TL_CUSTOM_GROUP.ANZSingleClass | G73: 0.3 | H73: n/a | I73: n/a | J73: =VLOOKUP(C73,'Full menu'!C:J,8,FALSE) -> 0.0043 | K73: 7 | L73: Very high | M73: 13427 | N73: 2015-12-31 | O73: 0 | P73: 0 | Q73: 0 | R73: 0 | S73: 0 | T73: 0 | U73: 0 | V73: 0 | W73: 0 | X73: 0 | Y73: 1 | Z73: 1 | AA73: 0 | AB73: 0 | AC73: 0.0018 | AD73: 52
A74: Australian Shares | B74: =INDEX(MenuOptionFullMenu,MATCH(C74,'Full menu'!C:C,0)) -> Allan Gray Australia Equity Fund | C74: ETL0060AU | D74: Essentials | E74: =IFERROR(VLOOKUP(TRIM(C74),rebates!A:G,7,FALSE),"") ->  | F74: TL_CUSTOM_GROUP.ANZSingleClass | G74: 0.3 | H74: n/a | I74: n/a | J74: =VLOOKUP(C74,'Full menu'!C:J,8,FALSE) -> 0.0132 | K74: 6 | L74: High | AC74: 0.006 | AD74: 77
A75: Australian Shares | B75: =INDEX(MenuOptionFullMenu,MATCH(C75,'Full menu'!C:C,0)) -> Ausbil 130/30 Focus Fund | C75: AAP0008AU | D75: Essentials | E75: =IFERROR(VLOOKUP(TRIM(C75),rebates!A:G,7,FALSE),"") -> 0.001 | F75: TL_CUSTOM_GROUP.ANZSingleClass | G75: 0.3 | H75: n/a | I75: n/a | J75: =VLOOKUP(C75,'Full menu'!C:J,8,FALSE) -> 0.0139 | K75: 6 | L75: High | AC75: 0.006 | AD75: 77
A76: Australian Shares | B76: =INDEX(MenuOptionFullMenu,MATCH(C76,'Full menu'!C:C,0)) -> Bennelong Australian Equity Fund | C76: BFL0001AU | D76: Essentials | E76: =IFERROR(VLOOKUP(TRIM(C76),rebates!A:G,7,FALSE),"") -> 0.001 | F76: TL_CUSTOM_GROUP.ANZSingleClass | G76: 0.3 | H76: n/a | I76: n/a | J76: =VLOOKUP(C76,'Full menu'!C:J,8,FALSE) -> 0.01 | K76: 7 | L76: Very high | M76: 16998 | N76: 2015-12-31 | O76: 0 | P76: 0.1 | Q76: 0 | R76: 0 | S76: 0 | T76: 0 | U76: 0.9 | V76: 1 | W76: 0 | X76: 0 | Y76: 0 | Z76: 0 | AA76: 0 | AB76: 0 | AC76: 0.006 | AD76: 53
A77: Australian Shares | B77: =INDEX(MenuOptionFullMenu,MATCH(C77,'Full menu'!C:C,0)) -> Fidelity Australian Equities Fund | C77: FID0008AU | D77: Essentials | E77: =IFERROR(VLOOKUP(TRIM(C77),rebates!A:G,7,FALSE),"") ->  | F77: TL_CUSTOM_GROUP.ANZSingleClass | G77: 0.3 | H77: n/a | I77: n/a | J77: =VLOOKUP(C77,'Full menu'!C:J,8,FALSE) -> 0.0085 | K77: 6 | L77: High | M77: 12292 | N77: 2015-12-31 | O77: 0 | P77: 0.1 | Q77: 0 | R77: 0 | S77: 0 | T77: 0 | U77: 0.9 | V77: 1 | W77: 0 | X77: 0 | Y77: 0 | Z77: 0 | AA77: 0 | AB77: 0 | AC77: 0.005 | AD77: 54
A78: Australian Shares | B78: =INDEX(MenuOptionFullMenu,MATCH(C78,'Full menu'!C:C,0)) -> Fidelity Australian Opportunities Fund | C78: FID0021AU | D78: Essentials | E78: =IFERROR(VLOOKUP(TRIM(C78),rebates!A:G,7,FALSE),"") ->  | F78: TL_CUSTOM_GROUP.ANZSingleClass | G78: 0.3 | H78: n/a | I78: n/a | J78: =VLOOKUP(C78,'Full menu'!C:J,8,FALSE) -> 0.0085 | K78: 6 | L78: High | M78: 12292 | N78: 2015-12-31 | O78: 0 | P78: 0.1 | Q78: 0 | R78: 0 | S78: 0 | T78: 0 | U78: 0.9 | V78: 1 | W78: 0 | X78: 0 | Y78: 0 | Z78: 0 | AA78: 0 | AB78: 0 | AC78: 0.005 | AD78: 54
A79: Australian Shares | B79: =INDEX(MenuOptionFullMenu,MATCH(C79,'Full menu'!C:C,0)) -> Greencape Broadcap Fund | C79: HOW0034AU | D79: Essentials | E79: =IFERROR(VLOOKUP(TRIM(C79),rebates!A:G,7,FALSE),"") -> 0.001425 | F79: TL_CUSTOM_GROUP.ANZSingleClass | G79: 0.3 | H79: n/a | I79: n/a | J79: =VLOOKUP(C79,'Full menu'!C:J,8,FALSE) -> 0.0146 | K79: 7 | L79: Very high | M79: 14654 | N79: 2015-12-31 | O79: 0 | P79: 0.15 | Q79: 0 | R79: 0 | S79: 0 | T79: 0 | U79: 0.85 | V79: 1 | W79: 0 | X79: 0 | Y79: 0 | Z79: 0 | AA79: 0 | AB79: 0 | AC79: 0.006 | AD79: 55
A80: Australian Shares | B80: =INDEX(MenuOptionFullMenu,MATCH(C80,'Full menu'!C:C,0)) -> IOOF MultiMix Australian Share Trust | C80: IOF0092AU | D80: Essentials | E80: =IFERROR(VLOOKUP(TRIM(C80),rebates!A:G,7,FALSE),"") ->  | F80: TL_CUSTOM_GROUP.ANZSingleClass | G80: 0.3 | H80: n/a | I80: n/a | J80: =VLOOKUP(C80,'Full menu'!C:J,8,FALSE) -> 0.0127 | K80: 7 | L80: Very high | M80: 14654 | N80: 2015-12-31 | O80: 0 | P80: 0.15 | Q80: 0 | R80: 0 | S80: 0 | T80: 0 | U80: 0.85 | V80: 1 | W80: 0 | X80: 0 | Y80: 0 | Z80: 0 | AA80: 0 | AB80: 0 | AC80: 0.006 | AD80: 55
A81: Australian Shares | B81: =INDEX(MenuOptionFullMenu,MATCH(C81,'Full menu'!C:C,0)) -> Lazard Australian Equity Fund - Wholesale | C81: LAZ0010AU | D81: Essentials | E81: =IFERROR(VLOOKUP(TRIM(C81),rebates!A:G,7,FALSE),"") -> 0.0025 | F81: TL_CUSTOM_GROUP.ANZSingleClass | G81: 0.3 | H81: n/a | I81: n/a | J81: =VLOOKUP(C81,'Full menu'!C:J,8,FALSE) -> 0.009 | K81: 7 | L81: Very high | M81: 19794 | N81: 2015-12-31 | O81: 0 | P81: 0.15 | Q81: 0 | R81: 0 | S81: 0 | T81: 0 | U81: 0.85 | V81: 1 | W81: 0 | X81: 0 | Y81: 0 | Z81: 0 | AA81: 0 | AB81: 0 | AC81: 0.0025 | AD81: 56
A82: Australian Shares | B82: =INDEX(MenuOptionFullMenu,MATCH(C82,'Full menu'!C:C,0)) -> Nikko AM Australian Share Wholesale Fund | C82: TYN0028AU | D82: Essentials | E82: =IFERROR(VLOOKUP(TRIM(C82),rebates!A:G,7,FALSE),"") -> 0.0015 | F82: TL_CUSTOM_GROUP.ANZSingleClass | G82: 0.3 | H82: n/a | I82: n/a | J82: =VLOOKUP(C82,'Full menu'!C:J,8,FALSE) -> 0.008 | K82: 6 | L82: High | M82: 3987 | N82: 2015-12-31 | O82: 0 | P82: 0.1 | Q82: 0 | R82: 0 | S82: 0 | T82: 0 | U82: 0 | V82: 1 | W82: 0 | X82: 0 | Y82: 0 | Z82: 0 | AA82: 0 | AB82: 0 | AC82: 0.006 | AD82: 57
A83: Australian Shares | B83: =INDEX(MenuOptionFullMenu,MATCH(C83,'Full menu'!C:C,0)) -> OnePath Wholesale Australian Share Trust | C83: AJF0804AU | D83: Essentials | E83: =IFERROR(VLOOKUP(TRIM(C83),rebates!A:G,7,FALSE),"") -> 0.002 | F83: TL_CUSTOM_GROUP.ANZSingleClass | G83: 0.3 | H83: n/a | I83: n/a | J83: =VLOOKUP(C83,'Full menu'!C:J,8,FALSE) -> 0.0103 | K83: 7 | L83: Very high | M83: 3477 | N83: 2015-12-31 | O83: 0 | P83: 0.05 | Q83: 0 | R83: 0 | S83: 0 | T83: 0 | U83: 0.95 | V83: 1 | W83: 0 | X83: 0 | Y83: 0 | Z83: 0.06 | AA83: 0 | AB83: 0 | AC83: 0 | AD83: 58
A84: Australian Shares | B84: =INDEX(MenuOptionFullMenu,MATCH(C84,'Full menu'!C:C,0)) -> Perennial Value Shares Wholesale Trust | C84: IOF0206AU | D84: Essentials | E84: =IFERROR(VLOOKUP(C84,rebates!A:G,7,FALSE),"") -> 0.0018 | F84: TL_CUSTOM_GROUP.ANZSingleClass | G84: 0.3 | H84: n/a | I84: n/a | J84: =VLOOKUP(C84,'Full menu'!C:J,8,FALSE) -> 0.0092 | K84: 7 | L84: Very high | M84: 7817 | N84: 2015-12-31 | O84: 0 | P84: 0.1 | Q84: 0 | R84: 0 | S84: 0 | T84: 0 | U84: 0.9 | V84: 1 | W84: 0 | X84: 0 | Y84: 0 | Z84: 0 | AA84: 0 | AB84: 0 | AC84: 0.006 | AD84: 59
A85: Australian Shares | B85: =INDEX(MenuOptionFullMenu,MATCH(C85,'Full menu'!C:C,0)) -> Perpetual Wholesale Australian Share Fund | C85: PER0049AU | D85: Essentials | E85: =IFERROR(VLOOKUP(TRIM(C85),rebates!A:G,7,FALSE),"") -> 0.0006 | F85: TL_CUSTOM_GROUP.ANZSingleClass | G85: 0.3 | H85: n/a | I85: n/a | J85: =VLOOKUP(C85,'Full menu'!C:J,8,FALSE) -> 0.0099 | K85: 7 | L85: Very high | M85: 4361 | N85: 2015-12-31 | O85: 0 | P85: 0.1 | Q85: 0 | R85: 0 | S85: 0 | T85: 0 | U85: 0.9 | V85: 1 | W85: 0 | X85: 0 | Y85: 0 | Z85: 0 | AA85: 0 | AB85: 0 | AC85: 0.0035 | AD85: 60
A86: Australian Shares | B86: =INDEX(MenuOptionFullMenu,MATCH(C86,'Full menu'!C:C,0)) -> Schroder Wholesale Australian Equity Fund | C86: SCH0101AU | D86: Essentials | E86: =IFERROR(VLOOKUP(TRIM(C86),rebates!A:G,7,FALSE),"") -> 0 | F86: TL_CUSTOM_GROUP.ANZSingleClass | G86: 0.3 | H86: n/a | I86: n/a | J86: =VLOOKUP(C86,'Full menu'!C:J,8,FALSE) -> 0.008 | K86: 6 | L86: High | M86: 8847 | N86: 2015-12-31 | O86: 0 | P86: 0.05 | Q86: 0 | R86: 0 | S86: 0 | T86: 0 | U86: 0.95 | V86: 1 | W86: 0 | X86: 0 | Y86: 0 | Z86: 0 | AA86: 0 | AB86: 0 | AC86: 0.005 | AD86: 61
A87: Australian Shares | B87: =INDEX(MenuOptionFullMenu,MATCH(C87,'Full menu'!C:C,0)) -> State Street Australian Equity Fund | C87: SST0048AU | D87: Essentials | E87: =IFERROR(VLOOKUP(TRIM(C87),rebates!A:G,7,FALSE),"") -> 0.0005 | F87: TL_CUSTOM_GROUP.ANZSingleClass | G87: 0.3 | H87: n/a | I87: n/a | J87: =VLOOKUP(C87,'Full menu'!C:J,8,FALSE) -> 0.007 | K87: 6 | L87: High | M87: 19501 | N87: 2015-12-31 | O87: 0 | P87: 0.05 | Q87: 0 | R87: 0 | S87: 0 | T87: 0 | U87: 0.95 | V87: 1 | W87: 0 | X87: 0 | Y87: 0 | Z87: 0 | AA87: 0 | AB87: 0 | AC87: 0.0001 | AD87: 62
A88: Australian Shares | B88: =INDEX(MenuOptionFullMenu,MATCH(C88,'Full menu'!C:C,0)) -> Vanguard Australian Shares Index Fund | C88: VAN0002AU | D88: Essentials | E88: =IFERROR(VLOOKUP(TRIM(C88),rebates!A:G,7,FALSE),"") -> 0.0002 | F88: TL_CUSTOM_GROUP.ANZSingleClass | G88: 0.3 | H88: n/a | I88: n/a | J88: =VLOOKUP(C88,'Full menu'!C:J,8,FALSE) -> 0.0016 | K88: 7 | L88: Very high | M88: 4488 | N88: 2015-12-31 | O88: 0 | P88: 0 | Q88: 0 | R88: 0 | S88: 0 | T88: 0 | U88: 0.9 | V88: 1 | W88: 0 | X88: 0 | Y88: 0 | Z88: 0.1 | AA88: 0 | AB88: 0 | AC88: 0.002 | AD88: 63
A89: Australian Shares - Imputation | B89: =INDEX(MenuOptionFullMenu,MATCH(C89,'Full menu'!C:C,0)) -> OnePath Wholesale Blue Chip Imputation Trust | C89: MMF0340AU | D89: Essentials | E89: =IFERROR(VLOOKUP(TRIM(C89),rebates!A:G,7,FALSE),"") -> 0.002 | F89: TL_CUSTOM_GROUP.ANZSingleClass | G89: 0.3 | H89: n/a | I89: n/a | J89: =VLOOKUP(C89,'Full menu'!C:J,8,FALSE) -> 0.0113 | K89: 6 | L89: High | M89: 7610 | N89: 2015-12-31 | O89: 0 | P89: 0.05 | Q89: 0 | R89: 0 | S89: 0 | T89: 0 | U89: 0.95 | V89: 1 | W89: 0 | X89: 0 | Y89: 0 | Z89: 0 | AA89: 0 | AB89: 0 | AC89: 0.005 | AD89: 67
A90: Australian Shares - Imputation | B90: =INDEX(MenuOptionFullMenu,MATCH(C90,'Full menu'!C:C,0)) -> Perennial Value Shares for Income Trust | C90: IOF0078AU | D90: Essentials | E90: =IFERROR(VLOOKUP(TRIM(C90),rebates!A:G,7,FALSE),"") -> 0.0018 | F90: TL_CUSTOM_GROUP.ANZSingleClass | G90: 0.3 | H90: n/a | I90: n/a | J90: =VLOOKUP(C90,'Full menu'!C:J,8,FALSE) -> 0.0092 | K90: 6 | L90: High | M90: 14254 | N90: 2015-12-31 | O90: 0 | P90: 0.1 | Q90: 0 | R90: 0 | S90: 0 | T90: 0 | U90: 0.9 | V90: 1 | W90: 0 | X90: 0 | Y90: 0 | Z90: 0 | AA90: 0 | AB90: 0 | AC90: 0.006 | AD90: 68
A91: Australian Shares - Imputation | B91: =INDEX(MenuOptionFullMenu,MATCH(C91,'Full menu'!C:C,0)) -> Vanguard Australian Shares High Yield Fund | C91: VAN0104AU | D91: Essentials | E91: =IFERROR(VLOOKUP(TRIM(C91),rebates!A:G,7,FALSE),"") -> 0.0004 | F91: TL_CUSTOM_GROUP.ANZSingleClass | G91: 0.3 | H91: n/a | I91: n/a | J91: =VLOOKUP(C91,'Full menu'!C:J,8,FALSE) -> 0.0035 | K91: 6 | L91: High | M91: 6429 | N91: 2015-12-31 | O91: 0 | P91: 0 | Q91: 0 | R91: 0 | S91: 0 | T91: 0 | U91: 1 | V91: 1 | W91: 0 | X91: 0 | Y91: 0 | Z91: 0 | AA91: 0 | AB91: 0 | AC91: 0.002 | AD91: 70
A92: Australian Shares - Concentrated | B92: =INDEX(MenuOptionFullMenu,MATCH(C92,'Full menu'!C:C,0)) -> OnePath Wholesale Select Leaders Trust | C92: ANZ0216AU | D92: Essentials | E92: =IFERROR(VLOOKUP(TRIM(C92),rebates!A:G,7,FALSE),"") -> 0.002 | F92: TL_CUSTOM_GROUP.ANZSingleClass | G92: 0.3 | H92: n/a | I92: n/a | J92: =VLOOKUP(C92,'Full menu'!C:J,8,FALSE) -> 0.0116 | K92: 6 | L92: High | M92: 7696 | N92: 2015-12-31 | O92: 0 | P92: 0.1 | Q92: 0 | R92: 0 | S92: 0 | T92: 0 | U92: 0.9 | V92: 1 | W92: 0 | X92: 0 | Y92: 0 | Z92: 0 | AA92: 0 | AB92: 0 | AC92: 0.005 | AD92: 71
A93: Australian Shares - Ethical | B93: =INDEX(MenuOptionFullMenu,MATCH(C93,'Full menu'!C:C,0)) -> Alphinity Sustainable Share Fund | C93: HOW0121AU | D93: Essentials | E93: =IFERROR(VLOOKUP(TRIM(C93),rebates!A:G,7,FALSE),"") ->  | F93: TL_CUSTOM_GROUP.ANZSingleClass | G93: 0.3 | H93: n/a | I93: n/a | J93: =VLOOKUP(C93,'Full menu'!C:J,8,FALSE) -> 0.0095 | K93: 6 | L93: High | M93: 10167 | N93: 2015-12-31 | O93: 0 | P93: 0.05 | Q93: 0 | R93: 0 | S93: 0 | T93: 0 | U93: 0.95 | V93: 1 | W93: 0 | X93: 0 | Y93: 0 | Z93: 0 | AA93: 0 | AB93: 0 | AC93: 0.004 | AD93: 72
A94: Australian Shares - Ethical | B94: =INDEX(MenuOptionFullMenu,MATCH(C94,'Full menu'!C:C,0)) -> OnePath Sustainable Investments Wholesale Australian Share Trust | C94: MMF0335AU | D94: Essentials | E94: =IFERROR(VLOOKUP(TRIM(C94),rebates!A:G,7,FALSE),"") -> 0.002 | F94: TL_CUSTOM_GROUP.ANZSingleClass | G94: 0.3 | H94: n/a | I94: n/a | J94: =VLOOKUP(C94,'Full menu'!C:J,8,FALSE) -> 0.0105 | K94: 6 | L94: High | M94: 8009 | N94: 2015-12-31 | O94: 0 | P94: 0.05 | Q94: 0 | R94: 0 | S94: 0 | T94: 0 | U94: 0.95 | V94: 1 | W94: 0 | X94: 0 | Y94: 0 | Z94: 0 | AA94: 0 | AB94: 0 | AC94: 0.005 | AD94: 74
A95: Australian Shares - Ethical | B95: =INDEX(MenuOptionFullMenu,MATCH(C95,'Full menu'!C:C,0)) -> Pendal Ethical Share Fund | C95: RFA0025AU | D95: Essentials | E95: =IFERROR(VLOOKUP(TRIM(C95),rebates!A:G,7,FALSE),"") -> 0.001 | F95: TL_CUSTOM_GROUP.ANZSingleClass | G95: 0.3 | H95: n/a | I95: n/a | J95: =VLOOKUP(C95,'Full menu'!C:J,8,FALSE) -> 0.0095 | K95: 6 | L95: High | M95: 6924 | N95: 2015-12-31 | O95: 0 | P95: 0.05 | Q95: 0 | R95: 0 | S95: 0 | T95: 0 | U95: 0.95 | V95: 1 | W95: 0 | X95: 0 | Y95: 0 | Z95: 0 | AA95: 0 | AB95: 0 | AC95: 0.005 | AD95: 75
A96: Australian Shares - Geared | B96: =INDEX(MenuOptionFullMenu,MATCH(C96,'Full menu'!C:C,0)) -> OnePath Wholesale Geared Australian Shares Index Trust | C96: MMF0990AU | D96: Essentials | E96: =IFERROR(VLOOKUP(TRIM(C96),rebates!A:G,7,FALSE),"") ->  | F96: TL_CUSTOM_GROUP.ANZSingleClass | G96: 0.3 | H96: TL_CUSTOM_GROUP.ANZGeared | I96: 0.2 | J96: =VLOOKUP(C96,'Full menu'!C:J,8,FALSE) -> 0.0167 | K96: 7 | L96: Very high | M96: 14367 | N96: 2015-12-31 | O96: 0 | P96: 0.1 | Q96: 0 | R96: 0 | S96: 0 | T96: 0 | U96: 0.9 | V96: 1 | W96: 0 | X96: 0 | Y96: 0 | Z96: 0 | AA96: 0 | AB96: 0 | AC96: 0.01 | AD96: 76
A97: Australian Shares - Specialist | B97: =INDEX(MenuOptionFullMenu,MATCH(C97,'Full menu'!C:C,0)) -> First Sentier Wholesale Equity Income Fund | C97: FSF0961AU | D97: Essentials | E97: =IFERROR(VLOOKUP(TRIM(C97),rebates!A:G,7,FALSE),"") -> 0.0025 | F97: TL_CUSTOM_GROUP.ANZSingleClass | G97: 0.3 | H97: n/a | I97: n/a | J97: =VLOOKUP(C97,'Full menu'!C:J,8,FALSE) -> 0.0122 | M97: 19026 | N97: 2015-12-31 | O97: 0 | P97: 0.1 | Q97: 0 | R97: 0 | S97: 0 | T97: 0 | U97: 0.9 | V97: 1 | W97: 0 | X97: 0 | Y97: 0 | Z97: 0 | AA97: 0 | AB97: 0 | AC97: 0.005012 | AD97: 64
A98: Australian Shares - Specialist | B98: =INDEX(MenuOptionFullMenu,MATCH(C98,'Full menu'!C:C,0)) -> Legg Mason Martin Currie Real Income Fund | C98: SSB0026AU | D98: Essentials | E98: =IFERROR(VLOOKUP(TRIM(C98),rebates!A:G,7,FALSE),"") -> 0.001 | F98: TL_CUSTOM_GROUP.ANZSingleClass | G98: 0.3 | H98: n/a | I98: n/a | J98: =VLOOKUP(C98,'Full menu'!C:J,8,FALSE) -> 0.0085 | M98: 19026 | N98: 2015-12-31 | O98: 0 | P98: 0.1 | Q98: 0 | R98: 0 | S98: 0 | T98: 0 | U98: 0.9 | V98: 1 | W98: 0 | X98: 0 | Y98: 0 | Z98: 0 | AA98: 0 | AB98: 0 | AC98: 0.005012 | AD98: 65
A99: Australian Shares - Specialist | B99: =INDEX(MenuOptionFullMenu,MATCH(C99,'Full menu'!C:C,0)) -> Merlon Australian Share Income Fund | C99: HBC0011AU | D99: Essentials | E99: =IFERROR(VLOOKUP(TRIM(C99),rebates!A:G,7,FALSE),"") -> 0.001425 | F99: TL_CUSTOM_GROUP.ANZSingleClass | G99: 0.3 | H99: n/a | I99: n/a | J99: =VLOOKUP(C99,'Full menu'!C:J,8,FALSE) -> 0.0095 | K99: 6 | L99: High | M99: 3683 | N99: 2015-12-31 | O99: 0 | P99: 0.3 | Q99: 0 | R99: 0 | S99: 0 | T99: 0 | U99: 0.6 | V99: 1 | W99: 0 | X99: 0 | Y99: 0 | Z99: 0 | AA99: 0 | AB99: 0 | AC99: 0.006 | AD99: 66
A100: Australian Shares - Specialist | B100: =INDEX(MenuOptionFullMenu,MATCH(C100,'Full menu'!C:C,0)) -> Plato Australian Shares Income Fund | C100: WHT0039AU | D100: Essentials | E100: =IFERROR(VLOOKUP(TRIM(C100),rebates!A:G,7,FALSE),"") -> 0.0005 | F100: TL_CUSTOM_GROUP.ANZSingleClass | G100: 0.3 | H100: n/a | I100: n/a | J100: =VLOOKUP(C100,'Full menu'!C:J,8,FALSE) -> 0.009 | K100: 6 | L100: High | M100: 19295 | N100: 2015-12-31 | O100: 0 | P100: 0.1 | Q100: 0 | R100: 0 | S100: 0 | T100: 0 | U100: 0.9 | V100: 1 | W100: 0 | X100: 0 | Y100: 0 | Z100: 0 | AA100: 0 | AB100: 0 | AC100: 0.004006 | AD100: 69
A101: Australian Shares - Specialist | B101: =INDEX(MenuOptionFullMenu,MATCH(C101,'Full menu'!C:C,0)) -> Wavestone Dynamic Equity Fund | C101: HOW0053AU | D101: Essentials | E101: =IFERROR(VLOOKUP(TRIM(C101),rebates!A:G,7,FALSE),"") ->  | F101: TL_CUSTOM_GROUP.ANZSingleClass | G101: 0.3 | H101: n/a | I101: n/a | J101: =VLOOKUP(C101,'Full menu'!C:J,8,FALSE) -> 0.0111 | K101: 6 | L101: High | M101: 19295 | N101: 2015-12-31 | O101: 0 | P101: 0.1 | Q101: 0 | R101: 0 | S101: 0 | T101: 0 | U101: 0.9 | V101: 1 | W101: 0 | X101: 0 | Y101: 0 | Z101: 0 | AA101: 0 | AB101: 0 | AC101: 0.004006 | AD101: 69
A102: Australian Smaller Companies Portfolios | B102: =INDEX(MenuOptionFullMenu,MATCH(C102,'Full menu'!C:C,0)) -> Australian Ethical Australian Share Fund | C102: AUG0018AU | D102: Essentials | E102: =IFERROR(VLOOKUP(TRIM(C102),rebates!A:G,7,FALSE),"") ->  | F102: TL_CUSTOM_GROUP.ANZSingleClass | G102: 0.3 | H102: n/a | I102: n/a | J102: =VLOOKUP(C102,'Full menu'!C:J,8,FALSE) -> 0.011 | K102: 6 | L102: High | M102: 3921 | N102: 2015-12-31 | O102: 0 | P102: 0.2 | Q102: 0 | R102: 0 | S102: 0 | T102: 0 | U102: 0.8 | V102: 1 | W102: 0 | X102: 0 | Y102: 0 | Z102: 0 | AA102: 0 | AB102: 0 | AC102: 0.004 | AD102: 73
A103: Australian Smaller Companies Portfolios | B103: =INDEX(MenuOptionFullMenu,MATCH(C103,'Full menu'!C:C,0)) -> OnePath Wholesale Emerging Companies Trust | C103: MMF0112AU | D103: Essentials | E103: =IFERROR(VLOOKUP(TRIM(C103),rebates!A:G,7,FALSE),"") -> 0.002 | F103: TL_CUSTOM_GROUP.ANZSingleClass | G103: 0.3 | H103: n/a | I103: n/a | J103: =VLOOKUP(C103,'Full menu'!C:J,8,FALSE) -> 0.0118 | K103: 6 | L103: High | M103: 4501 | N103: 2015-12-31 | O103: 0 | P103: 0.2 | Q103: 0 | R103: 0 | S103: 0 | T103: 0 | U103: 0.8 | V103: 1 | W103: 0 | X103: 0 | Y103: 0 | Z103: 0 | AA103: 0 | AB103: 0 | AC103: 0 | AD103: 78
A104: Australian Smaller Companies Portfolios | B104: =INDEX(MenuOptionFullMenu,MATCH(C104,'Full menu'!C:C,0)) -> Pendal Smaller Companies Fund | C104: RFA0819AU | D104: Essentials | E104: =IFERROR(VLOOKUP(TRIM(C104),rebates!A:G,7,FALSE),"") -> 0.0025 | F104: TL_CUSTOM_GROUP.ANZSingleClass | G104: 0.3 | H104: n/a | I104: n/a | J104: =VLOOKUP(C104,'Full menu'!C:J,8,FALSE) -> 0.0124 | K104: 6 | L104: High | M104: 2725 | N104: 2015-12-31 | O104: 0 | P104: 0.2 | Q104: 0 | R104: 0 | S104: 0 | T104: 0 | U104: 0.8 | V104: 1 | W104: 0 | X104: 0.1 | Y104: 0 | Z104: 0 | AA104: 0 | AB104: 0 | AC104: 0.005 | AD104: 79
A105: Australian Smaller Companies Portfolios | B105: =INDEX(MenuOptionFullMenu,MATCH(C105,'Full menu'!C:C,0)) -> Spheria Australian Small Companies Fund | C105: WHT0008AU | D105: Essentials | E105: =IFERROR(VLOOKUP(TRIM(C105),rebates!A:G,7,FALSE),"") -> 0.001 | F105: TL_CUSTOM_GROUP.ANZSingleClass | G105: 0.3 | H105: n/a | I105: n/a | J105: =VLOOKUP(C105,'Full menu'!C:J,8,FALSE) -> 0.011 | K105: 6 | L105: High | M105: 15723 | N105: 2015-12-31 | O105: 0 | P105: 0.2 | Q105: 0 | R105: 0 | S105: 0 | T105: 0 | U105: 0.8 | V105: 1 | W105: 0 | X105: 0.1 | Y105: 0 | Z105: 0 | AA105: 0 | AB105: 0 | AC105: 0.006 | AD105: 80
A106: International Shares | B106: =INDEX(MenuOptionFullMenu,MATCH(C106,'Full menu'!C:C,0)) -> AB Global Equities Fund | C106: ACM0009AU | D106: Essentials | E106: =IFERROR(VLOOKUP(TRIM(C106),rebates!A:G,7,FALSE),"") -> 0 | F106: TL_CUSTOM_GROUP.ANZSingleClass | G106: 0.3 | H106: n/a | I106: n/a | J106: =VLOOKUP(C106,'Full menu'!C:J,8,FALSE) -> 0.0085 | K106: 6 | L106: High | M106: 40956 | N106: 2015-12-31 | O106: 0 | P106: 0.05 | Q106: 0 | R106: 0 | S106: 0 | T106: 0 | U106: 0 | V106: 0 | W106: 0.95 | X106: 1 | Y106: 0 | Z106: 0 | AA106: 0 | AB106: 0 | AC106: 0.004 | AD106: 81
A107: International Shares | B107: =INDEX(MenuOptionFullMenu,MATCH(C107,'Full menu'!C:C,0)) -> Arrowstreet Global Equity Fund | C107: MAQ0464AU | D107: Essentials | E107: =IFERROR(VLOOKUP(TRIM(C107),rebates!A:G,7,FALSE),"") -> 0 | F107: TL_CUSTOM_GROUP.ANZSingleClass | G107: 0.3 | H107: n/a | I107: n/a | J107: =VLOOKUP(C107,'Full menu'!C:J,8,FALSE) -> 0.0128 | K107: 6 | L107: High | M107: 14739 | N107: 2015-12-31 | O107: 0 | P107: 0.05 | Q107: 0 | R107: 0 | S107: 0 | T107: 0 | U107: 0 | V107: 0 | W107: 0.95 | X107: 1 | Y107: 0 | Z107: 0 | AA107: 0 | AB107: 0 | AC107: 0.003 | AD107: 82
A108: International Shares | B108: =INDEX(MenuOptionFullMenu,MATCH(C108,'Full menu'!C:C,0)) -> AXA IM Sustainable Equity Fund | C108: ETL0171AU | D108: Essentials | E108: =IFERROR(VLOOKUP(TRIM(C108),rebates!A:G,7,FALSE),"") ->  | F108: TL_CUSTOM_GROUP.ANZSingleClass | G108: 0.3 | H108: n/a | I108: n/a | J108: =VLOOKUP(C108,'Full menu'!C:J,8,FALSE) -> 0.0035 | K108: 6 | L108: High | M108: 40549 | N108: 2015-12-31 | O108: 0 | P108: 0.05 | Q108: 0 | R108: 0 | S108: 0 | T108: 0 | U108: 0 | V108: 0 | W108: 0.95 | X108: 1 | Y108: 0 | Z108: 0 | AA108: 0 | AB108: 0 | AC108: 0.002 | AD108: 83
A109: International Shares | B109: =INDEX(MenuOptionFullMenu,MATCH(C109,'Full menu'!C:C,0)) -> Capital New Perspective Fund | C109: CIM0006AU | D109: Essentials | E109: =IFERROR(VLOOKUP(TRIM(C109),rebates!A:G,7,FALSE),"") -> 0.001 | F109: TL_CUSTOM_GROUP.ANZSingleClass | G109: 0.3 | H109: n/a | I109: n/a | J109: =VLOOKUP(C109,'Full menu'!C:J,8,FALSE) -> 0.0095 | K109: 6 | L109: High | M109: 14739 | N109: 2015-12-31 | O109: 0 | P109: 0.05 | Q109: 0 | R109: 0 | S109: 0 | T109: 0 | U109: 0 | V109: 0 | W109: 0.95 | X109: 1 | Y109: 0 | Z109: 0 | AA109: 0 | AB109: 0 | AC109: 0.0029 | AD109: 84
A110: International Shares | B110: =INDEX(MenuOptionFullMenu,MATCH(C110,'Full menu'!C:C,0)) -> Epoch Global Equity ShareHolder Yield (Unhedged) Fund | C110: GSF0002AU | D110: Essentials | E110: =IFERROR(VLOOKUP(TRIM(C110),rebates!A:G,7,FALSE),"") -> 0.002 | F110: TL_CUSTOM_GROUP.ANZSingleClass | G110: 0.3 | H110: n/a | I110: n/a | J110: =VLOOKUP(C110,'Full menu'!C:J,8,FALSE) -> 0.0125 | K110: 6 | L110: High | M110: 16301 | N110: 2015-12-31 | O110: 0 | P110: 0.1 | Q110: 0 | R110: 0 | S110: 0 | T110: 0 | U110: 0 | V110: 0 | W110: 0.9 | X110: 1 | Y110: 0 | Z110: 0 | AA110: 0 | AB110: 0 | AC110: 0.004 | AD110: 85
A111: International Shares | B111: =INDEX(MenuOptionFullMenu,MATCH(C111,'Full menu'!C:C,0)) -> IOOF MultiMix International Shares Trust | C111: IOF0098AU | D111: Essentials | E111: =IFERROR(VLOOKUP(TRIM(C111),rebates!A:G,7,FALSE),"") ->  | F111: TL_CUSTOM_GROUP.ANZSingleClass | G111: 0.3 | H111: n/a | I111: n/a | J111: =VLOOKUP(C111,'Full menu'!C:J,8,FALSE) -> 0.009 | K111: 6 | L111: High | M111: 16301 | O111: 0 | P111: 0.1 | Q111: 0 | R111: 0 | S111: 0 | T111: 0 | U111: 0 | V111: 0 | W111: 0.9 | X111: 1 | Y111: 0 | Z111: 0 | AA111: 0 | AB111: 0 | AD111: 85
A112: International Shares | B112: =INDEX(MenuOptionFullMenu,MATCH(C112,'Full menu'!C:C,0)) -> Magellan Global Fund | C112: MGE0001AU | D112: Essentials | E112: =IFERROR(VLOOKUP(TRIM(C112),rebates!A:G,7,FALSE),"") ->  | F112: TL_CUSTOM_GROUP.ANZSingleClass | G112: 0.3 | H112: n/a | I112: n/a | J112: =VLOOKUP(C112,'Full menu'!C:J,8,FALSE) -> 0.0157 | K112: 6 | L112: High | M112: 15699 | N112: 2015-12-31 | O112: 0 | P112: 0.5 | Q112: 0 | R112: 0 | S112: 0 | T112: 0 | U112: 0 | V112: 0 | W112: 0.9 | X112: 1 | Y112: 0 | Z112: 0 | AA112: 0 | AB112: 0 | AC112: 0.002 | AD112: 86
A113: International Shares | B113: =INDEX(MenuOptionFullMenu,MATCH(C113,'Full menu'!C:C,0)) -> MFS Global Equity Trust | C113: MIA0001AU | D113: Essentials | E113: =IFERROR(VLOOKUP(TRIM(C113),rebates!A:G,7,FALSE),"") ->  | F113: TL_CUSTOM_GROUP.ANZSingleClass | G113: 0.3 | H113: n/a | I113: n/a | J113: =VLOOKUP(C113,'Full menu'!C:J,8,FALSE) -> 0.0077 | K113: 6 | L113: High | M113: 4532 | N113: 2015-12-31 | O113: 0 | P113: 0.2 | Q113: 0 | R113: 0 | S113: 0 | T113: 0 | U113: 0 | V113: 0 | W113: 0.8 | X113: 1 | Y113: 0 | Z113: 0 | AA113: 0 | AB113: 0 | AC113: 0.007 | AD113: 87
A114: International Shares | B114: =INDEX(MenuOptionFullMenu,MATCH(C114,'Full menu'!C:C,0)) -> Nanuk New World Fund | C114: SLT2171AU | D114: Essentials | E114: =IFERROR(VLOOKUP(TRIM(C114),rebates!A:G,7,FALSE),"") ->  | F114: TL_CUSTOM_GROUP.ANZSingleClass | G114: 0.3 | H114: n/a | I114: n/a | J114: =VLOOKUP(C114,'Full menu'!C:J,8,FALSE) -> 0.012 | K114: 6 | L114: High | M114: 41749 | N114: 2015-12-31 | O114: 0 | P114: 0.2 | Q114: 0 | R114: 0 | S114: 0 | T114: 0 | U114: 0 | V114: 0 | W114: 0.8 | X114: 1 | Y114: 0 | Z114: 0 | AA114: 0 | AB114: 0 | AC114: 0.005 | AD114: 88
A115: International Shares | B115: =INDEX(MenuOptionFullMenu,MATCH(C115,'Full menu'!C:C,0)) -> Orbis Global Equity Fund | C115: ETL0463AU | D115: Essentials | E115: =IFERROR(VLOOKUP(TRIM(C115),rebates!A:G,7,FALSE),"") ->  | F115: TL_CUSTOM_GROUP.ANZSingleClass | G115: 0.3 | H115: n/a | I115: n/a | J115: =VLOOKUP(C115,'Full menu'!C:J,8,FALSE) -> 0.0143 | K115: 6 | L115: High | M115: 41069 | N115: 2015-12-31 | O115: 0 | P115: 0.2 | Q115: 0 | R115: 0 | S115: 0 | T115: 0 | U115: 0 | V115: 0 | W115: 0.8 | X115: 1 | Y115: 0 | Z115: 0 | AA115: 0 | AB115: 0 | AC115: 0.005 | AD115: 89
A116: International Shares | B116: =INDEX(MenuOptionFullMenu,MATCH(C116,'Full menu'!C:C,0)) -> Pengana WHEB Sustainable Impact Fund | C116: HHA0007AU | D116: Essentials | E116: =IFERROR(VLOOKUP(TRIM(C116),rebates!A:G,7,FALSE),"") ->  | F116: TL_CUSTOM_GROUP.ANZSingleClass | G116: 0.3 | H116: n/a | I116: n/a | J116: =VLOOKUP(C116,'Full menu'!C:J,8,FALSE) -> 0.0135 | K116: 6 | L116: High | M116: 15887 | N116: 2015-12-31 | O116: 0 | P116: 1 | Q116: 0 | R116: 0 | S116: 0 | T116: 0 | U116: 0 | V116: 0 | W116: 0 | X116: 1 | Y116: 0 | Z116: 0 | AA116: 0 | AB116: 0 | AC116: 0.006 | AD116: 90
A117: International Shares | B117: =INDEX(MenuOptionFullMenu,MATCH(C117,'Full menu'!C:C,0)) -> Platinum International Fund | C117: PLA0002AU | D117: Essentials | E117: =IFERROR(VLOOKUP(TRIM(C117),rebates!A:G,7,FALSE),"") ->  | F117: TL_CUSTOM_GROUP.ANZSingleClass | G117: 0.3 | H117: n/a | I117: n/a | J117: =VLOOKUP(C117,'Full menu'!C:J,8,FALSE) -> 0.0141 | K117: 6 | L117: High | M117: 4505 | N117: 2015-12-31 | O117: 0 | P117: 1 | Q117: 0 | R117: 0 | S117: 0 | T117: 0 | U117: 0 | V117: 0 | W117: 0 | X117: 1 | Y117: 0 | Z117: 0 | AA117: 0 | AB117: 0 | AC117: 0.004 | AD117: 91
A118: International Shares | B118: =INDEX(MenuOptionFullMenu,MATCH(C118,'Full menu'!C:C,0)) -> Talaria Global Equity Fund - Hedged | C118: WFS0547AU | D118: Essentials | F118: TL_CUSTOM_GROUP.ANZSingleClass | G118: 0.3 | H118: n/a | I118: n/a | J118: =VLOOKUP(C118,'Full menu'!C:J,8,FALSE) -> 0.0132 | AD118: 97
A119: International Shares | B119: =INDEX(MenuOptionFullMenu,MATCH(C119,'Full menu'!C:C,0)) -> State Street Global Equity Fund | C119: SST0050AU | D119: Essentials | E119: =IFERROR(VLOOKUP(TRIM(C119),rebates!A:G,7,FALSE),"") -> 0.0005 | F119: TL_CUSTOM_GROUP.ANZSingleClass | G119: 0.3 | H119: n/a | I119: n/a | J119: =VLOOKUP(C119,'Full menu'!C:J,8,FALSE) -> 0.0085 | K119: 6 | L119: High | M119: 40280 | N119: 2015-12-31 | O119: 0 | P119: 1 | Q119: 0 | R119: 0 | S119: 0 | T119: 0 | U119: 0 | V119: 0 | W119: 0 | X119: 1 | Y119: 0 | Z119: 0 | AA119: 0 | AB119: 0 | AC119: 0.002 | AD119: 92
A120: International Shares | B120: =INDEX(MenuOptionFullMenu,MATCH(C120,'Full menu'!C:C,0)) -> Vanguard International Shares Index Fund | C120: VAN0003AU | D120: Essentials | E120: =IFERROR(VLOOKUP(TRIM(C120),rebates!A:G,7,FALSE),"") -> 0.0002 | F120: TL_CUSTOM_GROUP.ANZSingleClass | G120: 0.3 | H120: n/a | I120: n/a | J120: =VLOOKUP(C120,'Full menu'!C:J,8,FALSE) -> 0.0018 | K120: 6 | L120: High | M120: 4489 | N120: 2015-12-31 | O120: 0 | P120: 0 | Q120: 0 | R120: 0 | S120: 0 | T120: 0 | U120: 0 | V120: 0 | W120: 1 | X120: 1 | Y120: 0 | Z120: 0 | AA120: 0 | AB120: 0 | AC120: 0.002 | AD120: 93
A121: International Shares - Hedged | B121: =INDEX(MenuOptionFullMenu,MATCH(C121,'Full menu'!C:C,0)) -> Arrowstreet Global Equity Fund Hedged | C121: MAQ0079AU | D121: Essentials | E121: =IFERROR(VLOOKUP(TRIM(C121),rebates!A:G,7,FALSE),"") -> 0 | F121: TL_CUSTOM_GROUP.ANZSingleClass | G121: 0.3 | H121: n/a | I121: n/a | J121: =VLOOKUP(C121,'Full menu'!C:J,8,FALSE) -> 0.0128 | K121: 6 | L121: High | M121: 4635 | N121: 2015-12-31 | O121: 0 | P121: 0.05 | Q121: 0 | R121: 0 | S121: 0 | T121: 0 | U121: 0 | V121: 0 | W121: 0.95 | X121: 1 | Y121: 0 | Z121: 0 | AA121: 0 | AB121: 0 | AC121: 0.0041 | AD121: 94
A122: International Shares - Hedged | B122: =INDEX(MenuOptionFullMenu,MATCH(C122,'Full menu'!C:C,0)) -> Epoch Global Equity ShareHolder Yield (Hedged) Fund | C122: GSF0001AU | D122: Essentials | E122: =IFERROR(VLOOKUP(TRIM(C122),rebates!A:G,7,FALSE),"") -> 0.002 | F122: TL_CUSTOM_GROUP.ANZSingleClass | G122: 0.3 | H122: n/a | I122: n/a | J122: =VLOOKUP(C122,'Full menu'!C:J,8,FALSE) -> 0.013 | K122: 6 | L122: High | M122: 16302 | N122: 2015-12-31 | O122: 0 | P122: 0.1 | Q122: 0 | R122: 0 | S122: 0 | T122: 0 | U122: 0 | V122: 0 | W122: 0.9 | X122: 1 | Y122: 0 | Z122: 0 | AA122: 0 | AB122: 0 | AC122: 0.004 | AD122: 95
A123: International Shares - Hedged | B123: =INDEX(MenuOptionFullMenu,MATCH(C123,'Full menu'!C:C,0)) -> Magellan Global Fund (Hedged) | C123: MGE0007AU | D123: Essentials | E123: =IFERROR(VLOOKUP(TRIM(C123),rebates!A:G,7,FALSE),"") ->  | F123: TL_CUSTOM_GROUP.ANZSingleClass | G123: 0.3 | H123: n/a | I123: n/a | J123: =VLOOKUP(C123,'Full menu'!C:J,8,FALSE) -> 0.0145 | M123: 19877 | N123: 2015-12-31 | O123: 0 | P123: 0.2 | Q123: 0 | R123: 0 | S123: 0 | T123: 0 | U123: 0 | V123: 1 | W123: 0 | X123: 1 | Y123: 0 | Z123: 0 | AA123: 0 | AB123: 0 | AC123: 0.001998 | AD123: 96
A124: International Shares - Hedged | B124: =INDEX(MenuOptionFullMenu,MATCH(C124,'Full menu'!C:C,0)) -> Vanguard International Shares Index Fund (Hedged) | C124: VAN0105AU | D124: Essentials | E124: =IFERROR(VLOOKUP(TRIM(C124),rebates!A:G,7,FALSE),"") -> 0.0002 | F124: TL_CUSTOM_GROUP.ANZSingleClass | G124: 0.3 | H124: n/a | I124: n/a | J124: =VLOOKUP(C124,'Full menu'!C:J,8,FALSE) -> 0.0021 | K124: 6 | L124: High | M124: 6430 | N124: 2015-12-31 | O124: 0 | P124: 0 | Q124: 0 | R124: 0 | S124: 0 | T124: 0 | U124: 0 | V124: 0 | W124: 1 | X124: 1 | Y124: 0 | Z124: 0 | AA124: 0 | AB124: 0 | AC124: 0.0026 | AD124: 98
A125: International Shares - Regional and Emerging Markets | B125: =INDEX(MenuOptionFullMenu,MATCH(C125,'Full menu'!C:C,0)) -> Aberdeen Standard Emerging Opportunities Fund | C125: ETL0032AU | D125: Essentials | E125: =IFERROR(VLOOKUP(TRIM(C125),rebates!A:G,7,FALSE),"") -> 0.003 | F125: TL_CUSTOM_GROUP.ANZSingleClass | G125: 0.3 | H125: n/a | I125: n/a | J125: =VLOOKUP(C125,'Full menu'!C:J,8,FALSE) -> 0.0154 | K125: 7 | L125: Very high | M125: 11594 | N125: 2015-12-31 | O125: 0 | P125: 0.1 | Q125: 0 | R125: 0 | S125: 0 | T125: 0 | U125: 0 | V125: 0 | W125: 0.9 | X125: 1 | Y125: 0 | Z125: 0 | AA125: 0 | AB125: 0 | AC125: 0.011 | AD125: 99
A126: International Shares - Regional and Emerging Markets | B126: =INDEX(MenuOptionFullMenu,MATCH(C126,'Full menu'!C:C,0)) -> OnePath Wholesale Global Emerging Markets Share Trust | C126: MMF0275AU | D126: Essentials | E126: =IFERROR(VLOOKUP(TRIM(C126),rebates!A:G,7,FALSE),"") -> 0.0015 | F126: TL_CUSTOM_GROUP.ANZSingleClass | G126: 0.3 | H126: n/a | I126: n/a | J126: =VLOOKUP(C126,'Full menu'!C:J,8,FALSE) -> 0.0111 | K126: 7 | L126: Very high | M126: 6632 | N126: 2015-12-31 | O126: 0 | P126: 0.1 | Q126: 0 | R126: 0 | S126: 0 | T126: 0 | U126: 0 | V126: 0 | W126: 0.9 | X126: 1 | Y126: 0 | Z126: 0 | AA126: 0 | AB126: 0 | AC126: 0.0065 | AD126: 100
A127: International Shares - Regional and Emerging Markets | B127: =INDEX(MenuOptionFullMenu,MATCH(C127,'Full menu'!C:C,0)) -> Pendal Global Emerging Market Opportunities Fund | C127: BTA0419AU | D127: Essentials | E127: =IFERROR(VLOOKUP(TRIM(C127),rebates!A:G,7,FALSE),"") -> 0 | F127: TL_CUSTOM_GROUP.ANZSingleClass | G127: 0.3 | H127: n/a | I127: n/a | J127: =VLOOKUP(C127,'Full menu'!C:J,8,FALSE) -> 0.0118 | K127: 7 | L127: Very high | M127: 19536 | N127: 2015-12-31 | O127: 0 | P127: 1 | Q127: 0 | R127: 0 | S127: 0 | T127: 0 | U127: 0 | V127: 0 | W127: 0 | X127: 1 | Y127: 0 | Z127: 0 | AA127: 0 | AB127: 0 | AC127: 0.006 | AD127: 101
A128: International Shares - Regional and Emerging Markets | B128: =INDEX(MenuOptionFullMenu,MATCH(C128,'Full menu'!C:C,0)) -> Platinum Asia Fund | C128: PLA0004AU | D128: Essentials | E128: =IFERROR(VLOOKUP(TRIM(C128),rebates!A:G,7,FALSE),"") ->  | F128: TL_CUSTOM_GROUP.ANZSingleClass | G128: 0.3 | H128: n/a | I128: n/a | J128: =VLOOKUP(C128,'Full menu'!C:J,8,FALSE) -> 0.0137 | K128: 6 | L128: High | M128: 9894 | N128: 2015-12-31 | O128: 0 | P128: 1 | Q128: 0 | R128: 0 | S128: 0 | T128: 0 | U128: 0 | V128: 0 | W128: 0 | X128: 1 | Y128: 0 | Z128: 0 | AA128: 0 | AB128: 0 | AC128: 0.005 | AD128: 102
A129: International Shares - Regional and Emerging Markets | B129: =INDEX(MenuOptionFullMenu,MATCH(C129,'Full menu'!C:C,0)) -> Vanguard Emerging Markets Shares Index Fund | C129: VAN0005AU | D129: Essentials | E129: =IFERROR(VLOOKUP(TRIM(C129),rebates!A:G,7,FALSE),"") -> 0.0006 | F129: TL_CUSTOM_GROUP.ANZSingleClass | G129: 0.3 | H129: n/a | I129: n/a | J129: =VLOOKUP(C129,'Full menu'!C:J,8,FALSE) -> 0.0057 | K129: 7 | L129: Very high | M129: 4743 | N129: 2015-12-31 | O129: 0 | P129: 0 | Q129: 0 | R129: 0 | S129: 0 | T129: 0 | U129: 0 | V129: 0 | W129: 1 | X129: 1 | Y129: 0 | Z129: 0 | AA129: 0 | AB129: 0 | AC129: 0.006 | AD129: 103
A130: International Shares - Small Companies | B130: =INDEX(MenuOptionFullMenu,MATCH(C130,'Full menu'!C:C,0)) -> Bell Global Emerging Companies Fund | C130: BPF0029AU | D130: Essentials | E130: =IFERROR(VLOOKUP(TRIM(C130),rebates!A:G,7,FALSE),"") ->  | F130: TL_CUSTOM_GROUP.ANZSingleClass | G130: 0.3 | H130: n/a | I130: n/a | J130: =VLOOKUP(C130,'Full menu'!C:J,8,FALSE) -> 0.0139 | K130: 6 | L130: High | M130: 19696 | N130: 2015-12-31 | O130: 0 | P130: 0.1 | Q130: 0 | R130: 0 | S130: 0 | T130: 0 | U130: 0 | V130: 0 | W130: 0.9 | X130: 1 | Y130: 0 | Z130: 0 | AA130: 0 | AB130: 0 | AC130: 0.0028 | AD130: 104
A131: International Shares - Small Companies | B131: =INDEX(MenuOptionFullMenu,MATCH(C131,'Full menu'!C:C,0)) -> Optimix Wholesale Global Smaller Companies Trust Class B Units | C131: LEF0173AU | D131: Essentials | E131: =IFERROR(VLOOKUP(TRIM(C131),rebates!A:G,7,FALSE),"") ->  | F131: TL_CUSTOM_GROUP.ANZSingleClass | G131: 0.3 | H131: n/a | I131: n/a | J131: =VLOOKUP(C131,'Full menu'!C:J,8,FALSE) -> 0.0142 | K131: 6 | L131: High | M131: 9387 | N131: 2015-12-31 | O131: 0 | P131: 0.1 | Q131: 0 | R131: 0 | S131: 0 | T131: 0 | U131: 0 | V131: 0 | W131: 0.9 | X131: 1 | Y131: 0 | Z131: 0 | AA131: 0 | AB131: 0 | AC131: 0.005 | AD131: 105
A132: International Shares - Small Companies | B132: =INDEX(MenuOptionFullMenu,MATCH(C132,'Full menu'!C:C,0)) -> Vanguard International Small Companies Index Fund | C132: VAN0021AU | D132: Essentials | E132: =IFERROR(VLOOKUP(TRIM(C132),rebates!A:G,7,FALSE),"") -> 0.0004 | F132: TL_CUSTOM_GROUP.ANZSingleClass | G132: 0.3 | H132: n/a | I132: n/a | J132: =VLOOKUP(C132,'Full menu'!C:J,8,FALSE) -> 0.004 | K132: 6 | L132: High | M132: 15897 | N132: 2015-12-31 | O132: 0 | P132: 0 | Q132: 0 | R132: 0 | S132: 0 | T132: 0 | U132: 0 | V132: 0 | W132: 1 | X132: 1 | Y132: 0 | Z132: 0 | AA132: 0 | AB132: 0 | AC132: 0.004 | AD132: 106
A133: International Shares - Small Companies | B133: =INDEX(MenuOptionFullMenu,MATCH(C133,'Full menu'!C:C,0)) -> Vanguard International Small Companies Index Fund (Hedged) | C133: VAN0022AU | D133: Essentials | E133: =IFERROR(VLOOKUP(TRIM(C133),rebates!A:G,7,FALSE),"") -> 0.0005 | F133: TL_CUSTOM_GROUP.ANZSingleClass | G133: 0.3 | H133: n/a | I133: n/a | J133: =VLOOKUP(C133,'Full menu'!C:J,8,FALSE) -> 0.0043 | K133: 6 | L133: High | M133: 15898 | N133: 2015-12-31 | O133: 0 | P133: 0 | Q133: 0 | R133: 0 | S133: 0 | T133: 0 | U133: 0 | V133: 0 | W133: 1 | X133: 1 | Y133: 0 | Z133: 0 | AA133: 0 | AB133: 0 | AC133: 0.0046 | AD133: 107
A134: International Shares - Infrastructure | B134: =INDEX(MenuOptionFullMenu,MATCH(C134,'Full menu'!C:C,0)) -> Magellan Infrastructure Fund | C134: MGE0002AU | D134: Essentials | E134: =IFERROR(VLOOKUP(TRIM(C134),rebates!A:G,7,FALSE),"") ->  | F134: TL_CUSTOM_GROUP.ANZSingleClass | G134: 0.3 | H134: n/a | I134: n/a | J134: =VLOOKUP(C134,'Full menu'!C:J,8,FALSE) -> 0.0121 | M134: 15700 | N134: 2015-12-31 | O134: 0 | P134: 0.2 | Q134: 0 | R134: 0 | S134: 0 | T134: 0 | U134: 0 | V134: 1 | W134: 0 | X134: 1 | Y134: 0 | Z134: 0 | AA134: 0 | AB134: 0 | AC134: 0.003012 | AD134: 108
A135: International Shares - Infrastructure | B135: =INDEX(MenuOptionFullMenu,MATCH(C135,'Full menu'!C:C,0)) -> ClearBridge RARE Infrastructure Value Fund - Hedged | C135: TGP0008AU | D135: Essentials | E135: =IFERROR(VLOOKUP(TRIM(C135),rebates!A:G,7,FALSE),"") -> 0.001 | F135: TL_CUSTOM_GROUP.ANZSingleClass | G135: 0.3 | H135: n/a | I135: n/a | J135: =VLOOKUP(C135,'Full menu'!C:J,8,FALSE) -> 0.0133 | K135: 6 | L135: High | M135: 14651 | N135: 2015-12-31 | O135: 0 | P135: 0.2 | Q135: 0 | R135: 0 | S135: 0 | T135: 0 | U135: 0 | V135: 0 | W135: 0.8 | X135: 1 | Y135: 0 | Z135: 0 | AA135: 0 | AB135: 0 | AC135: 0.0045 | AD135: 109
A136: International Shares - Infrastructure | B136: =INDEX(MenuOptionFullMenu,MATCH(C136,'Full menu'!C:C,0)) -> ClearBridge RARE Infrastructure Value Fund - Unhedged | C136: TGP0034AU | D136: Essentials | E136: =IFERROR(VLOOKUP(TRIM(C136),rebates!A:G,7,FALSE),"") -> 0.001 | F136: TL_CUSTOM_GROUP.ANZSingleClass | G136: 0.3 | H136: n/a | I136: n/a | J136: =VLOOKUP(C136,'Full menu'!C:J,8,FALSE) -> 0.0127 | K136: 6 | L136: High | M136: 19109 | N136: 2015-12-31 | O136: 0 | P136: 0 | Q136: 0 | R136: 0 | S136: 0 | T136: 0 | U136: 0 | V136: 0.2 | W136: 0.8 | X136: 1 | Y136: 0 | Z136: 0 | AA136: 0 | AB136: 0 | AC136: 0.0045 | AD136: 110
A137: International Shares - Specialist | B137: =INDEX(MenuOptionFullMenu,MATCH(C137,'Full menu'!C:C,0)) -> Acadian Global Managed Volatility Equity Fund | C137: FSF1240AU | D137: Essentials | E137: =IFERROR(VLOOKUP(TRIM(C137),rebates!A:G,7,FALSE),"") -> 0 | F137: TL_CUSTOM_GROUP.ANZSingleClass | G137: 0.3 | H137: n/a | I137: n/a | J137: =VLOOKUP(C137,'Full menu'!C:J,8,FALSE) -> 0.0062 | M137: 19591 | N137: 2015-12-31 | O137: 0 | P137: 0.05 | Q137: 0 | R137: 0 | S137: 0 | T137: 0 | U137: 0 | V137: 0 | W137: 0.95 | X137: 1 | Y137: 0 | Z137: 0 | AA137: 0 | AB137: 0 | AC137: 0.004014 | AD137: 111
A138: International Shares - Specialist | B138: =INDEX(MenuOptionFullMenu,MATCH(C138,'Full menu'!C:C,0)) -> Stewart Investors Worldwide Sustainability Fund | C138: FSF1675AU | D138: Essentials | E138: =IFERROR(VLOOKUP(TRIM(C138),rebates!A:G,7,FALSE),"") -> 0 | G138: 0.3 | J138: =VLOOKUP(C138,'Full menu'!C:J,8,FALSE) -> 0.0075 | AD138: 112
A139: Alternatives | B139: =INDEX(MenuOptionFullMenu,MATCH(C139,'Full menu'!C:C,0)) -> GMO Systematic Global Macro Trust | C139: GMO0006AU | D139: Essentials | E139: =IFERROR(VLOOKUP(TRIM(C139),rebates!A:G,7,FALSE),"") ->  | F139: TL_CUSTOM_GROUP.ANZAlternateLiquidity | G139: 0.2 | H139: n/a | I139: n/a | J139: =VLOOKUP(C139,'Full menu'!C:J,8,FALSE) -> 0.0101 | K139: 6 | L139: High | M139: 17475 | N139: 2015-12-31 | O139: 0 | P139: 0 | Q139: 0 | R139: 0 | S139: 0 | T139: 0 | U139: 0 | V139: 0 | W139: 0 | X139: 0 | Y139: 0 | Z139: 0 | AA139: 1 | AB139: 1 | AC139: 0.003 | AD139: 113
A140: Alternatives | B140: =INDEX(MenuOptionFullMenu,MATCH(C140,'Full menu'!C:C,0)) -> Man AHL Alpha (AUD) Fund | C140: MAN0002AU | D140: Essentials | E140: =IFERROR(VLOOKUP(TRIM(C140),rebates!A:G,7,FALSE),"") -> 0 | F140: TL_CUSTOM_GROUP.ANZAlternateLiquidity | G140: 0.2 | H140: n/a | I140: n/a | J140: =VLOOKUP(C140,'Full menu'!C:J,8,FALSE) -> 0.0261 | K140: 6 | L140: High | M140: 17475 | N140: 2015-12-31 | O140: 0 | P140: 0 | Q140: 0 | R140: 0 | S140: 0 | T140: 0 | U140: 0 | V140: 0 | W140: 0 | X140: 0 | Y140: 0 | Z140: 0 | AA140: 1 | AB140: 1 | AC140: 0.003 | AD140: 113
A141: Alternatives | B141: =INDEX(MenuOptionFullMenu,MATCH(C141,'Full menu'!C:C,0)) -> OnePath Alternatives Growth Fund | C141: MMF1471AU | D141: Essentials | E141: =IFERROR(VLOOKUP(TRIM(C141),rebates!A:G,7,FALSE),"") -> 0.0025 | F141: TL_CUSTOM_GROUP.ANZAlternateLiquidity | G141: 0.2 | H141: n/a | I141: n/a | J141: =VLOOKUP(C141,'Full menu'!C:J,8,FALSE) -> 0.0204 | N141: 2015-12-31 | O141: 0 | P141: 0 | Q141: 0 | R141: 0 | S141: 0 | T141: 0 | U141: 0 | V141: 0 | W141: 0 | X141: 0 | Y141: 0 | Z141: 0 | AA141: 1 | AB141: 1 | AD141: 114
A142: Alternatives | B142: =INDEX(MenuOptionFullMenu,MATCH(C142,'Full menu'!C:C,0)) -> Winton Global Alpha Fund | C142: MAQ0482AU | D142: Essentials | E142: =IFERROR(VLOOKUP(TRIM(C142),rebates!A:G,7,FALSE),"") -> 0 | F142: TL_CUSTOM_GROUP.ANZAlternateLiquidity | G142: 0.2 | H142: n/a | I142: n/a | J142: =VLOOKUP(C142,'Full menu'!C:J,8,FALSE) -> 0.0168 | K142: 5 | L142: Medium to high | M142: 15811 | N142: 2015-12-31 | O142: 0 | P142: 0.1 | Q142: 0 | R142: 0 | S142: 0 | T142: 0 | U142: 0 | V142: 0 | W142: 0 | X142: 0 | Y142: 0 | Z142: 0 | AA142: 0.9 | AB142: 1 | AC142: 0.0063 | AD142: 115
A143: ETF - Listed Australian shares | B143: =INDEX(MenuOptionFullMenu,MATCH(C143,'Full menu'!C:C,0)) -> ETFS S&P/ASX 300 High Yield Plus ETF | C143: ZYAU | G143: 0.3 | J143: =VLOOKUP(C143,'Full menu'!C:J,8,FALSE) -> 0.0035
A144: ETF - Listed Australian shares | B144: =INDEX(MenuOptionFullMenu,MATCH(C144,'Full menu'!C:C,0)) -> BetaShares Australian 200 ETF | C144: A200 | G144: 0.3 | J144: =VLOOKUP(C144,'Full menu'!C:J,8,FALSE) -> 0.0007
A145: ETF - Listed Australian shares | B145: =INDEX(MenuOptionFullMenu,MATCH(C145,'Full menu'!C:C,0)) -> BetaShares Australian Sustainability | C145: FAIR | G145: 0.3 | J145: =VLOOKUP(C145,'Full menu'!C:J,8,FALSE) -> 0.0049
A146: ETF - Listed Australian shares | B146: =INDEX(MenuOptionFullMenu,MATCH(C146,'Full menu'!C:C,0)) -> BetaShares FTSE RAFI Australian 200 ETF | C146: QOZ | G146: 0.3 | J146: =VLOOKUP(C146,'Full menu'!C:J,8,FALSE) -> 0.004
A147: ETF - Listed Australian shares | B147: =INDEX(MenuOptionFullMenu,MATCH(C147,'Full menu'!C:C,0)) -> BetaShares Global Sustainability Leaders | C147: ETHI | G147: 0.3 | J147: =VLOOKUP(C147,'Full menu'!C:J,8,FALSE) -> 0.0059
A148: ETF - Listed Australian shares | B148: =INDEX(MenuOptionFullMenu,MATCH(C148,'Full menu'!C:C,0)) -> BetaShares Gold Bullion ETF (A$ Hedged) | C148: QAU | G148: 0.3 | J148: =VLOOKUP(C148,'Full menu'!C:J,8,FALSE) -> 0.0059
A149: ETF - Listed Australian shares | B149: =INDEX(MenuOptionFullMenu,MATCH(C149,'Full menu'!C:C,0)) -> Betashares Managed Risk Australian Share Fund | C149: AUST | G149: 0.3 | J149: =VLOOKUP(C149,'Full menu'!C:J,8,FALSE) -> 0.0059
A150: ETF - Listed Australian shares | B150: =INDEX(MenuOptionFullMenu,MATCH(C150,'Full menu'!C:C,0)) -> BetaShares S&P/ASX Australian Technology | C150: ATEC | G150: 0.3 | J150: =VLOOKUP(C150,'Full menu'!C:J,8,FALSE) -> 0.0048
A151: ETF - Listed Australian shares | B151: =INDEX(MenuOptionFullMenu,MATCH(C151,'Full menu'!C:C,0)) -> iShare S&P/ASX 20 | C151: ILC | G151: 0.3 | J151: =VLOOKUP(C151,'Full menu'!C:J,8,FALSE) -> 0.0024
A152: ETF - Listed Australian shares | B152: =INDEX(MenuOptionFullMenu,MATCH(C152,'Full menu'!C:C,0)) -> iShares Edge MSCI Australia Multifactor ETF | C152: AUMF | G152: 0.3 | J152: =VLOOKUP(C152,'Full menu'!C:J,8,FALSE) -> 0.003
A153: ETF - Listed Australian shares | B153: =INDEX(MenuOptionFullMenu,MATCH(C153,'Full menu'!C:C,0)) -> iShares MSCI Australia 200 | C153: IOZ | G153: 0.3 | J153: =VLOOKUP(C153,'Full menu'!C:J,8,FALSE) -> 0.0009
A154: ETF - Listed Australian shares | B154: =INDEX(MenuOptionFullMenu,MATCH(C154,'Full menu'!C:C,0)) -> iShares S&P/ASX Dividend Opportunities | C154: IHD | G154: 0.3 | J154: =VLOOKUP(C154,'Full menu'!C:J,8,FALSE) -> 0.003
A155: ETF - Listed Australian shares | B155: =INDEX(MenuOptionFullMenu,MATCH(C155,'Full menu'!C:C,0)) -> iShares S&P/ASX Small Ordinaries | C155: ISO | G155: 0.3 | J155: =VLOOKUP(C155,'Full menu'!C:J,8,FALSE) -> 0.0055
A156: ETF - Listed Australian shares | B156: =INDEX(MenuOptionFullMenu,MATCH(C156,'Full menu'!C:C,0)) -> SPDR MSCI Australia Select High Dividend | C156: SYI | G156: 0.3 | J156: =VLOOKUP(C156,'Full menu'!C:J,8,FALSE) -> 0.0035
A157: ETF - Listed Australian shares | B157: =INDEX(MenuOptionFullMenu,MATCH(C157,'Full menu'!C:C,0)) -> SPDR S&P/ASX 200 | C157: STW | G157: 0.3 | J157: =VLOOKUP(C157,'Full menu'!C:J,8,FALSE) -> 0.0013
A158: ETF - Listed Australian shares | B158: =INDEX(MenuOptionFullMenu,MATCH(C158,'Full menu'!C:C,0)) -> SPDR S&P/ASX 200 Financials ex A-REITs Fund | C158: OZF | G158: 0.3 | J158: =VLOOKUP(C158,'Full menu'!C:J,8,FALSE) -> 0.004
A159: ETF - Listed Australian shares | B159: =INDEX(MenuOptionFullMenu,MATCH(C159,'Full menu'!C:C,0)) -> SPDR S&P/ASX 200 Resources Fund | C159: OZR | G159: 0.3 | J159: =VLOOKUP(C159,'Full menu'!C:J,8,FALSE) -> 0.004
A160: ETF - Listed Australian shares | B160: =INDEX(MenuOptionFullMenu,MATCH(C160,'Full menu'!C:C,0)) -> SPDR S&P/ASX Small Ordinaries | C160: SSO | G160: 0.3 | J160: =VLOOKUP(C160,'Full menu'!C:J,8,FALSE) -> 0.005
A161: ETF - Listed Australian shares | B161: =INDEX(MenuOptionFullMenu,MATCH(C161,'Full menu'!C:C,0)) -> SPDR S&P/ASX 50 | C161: SFY | G161: 0.3 | J161: =VLOOKUP(C161,'Full menu'!C:J,8,FALSE) -> 0.00286
A162: ETF - Listed Australian shares | B162: =INDEX(MenuOptionFullMenu,MATCH(C162,'Full menu'!C:C,0)) -> UBS IQ Morningstar Australia Dividend Yield ETF | C162: DIV | G162: 0.3 | J162: =VLOOKUP(C162,'Full menu'!C:J,8,FALSE) -> 0.003
A163: ETF - Listed Australian shares | B163: =INDEX(MenuOptionFullMenu,MATCH(C163,'Full menu'!C:C,0)) -> Vanguard Australian Shares High Yield | C163: VHY | G163: 0.3 | J163: =VLOOKUP(C163,'Full menu'!C:J,8,FALSE) -> 0.0025
A164: ETF - Listed Australian shares | B164: =INDEX(MenuOptionFullMenu,MATCH(C164,'Full menu'!C:C,0)) -> Vanguard Australian Shares Index | C164: VAS | G164: 0.3 | J164: =VLOOKUP(C164,'Full menu'!C:J,8,FALSE) -> 0.001
A165: ETF - Listed Australian shares | B165: =INDEX(MenuOptionFullMenu,MATCH(C165,'Full menu'!C:C,0)) -> Vanguard MSCI Australian Small Comp Index | C165: VSO | G165: 0.3 | J165: =VLOOKUP(C165,'Full menu'!C:J,8,FALSE) -> 0.003
A166: ETF - Listed Alternatives | B166: =INDEX(MenuOptionFullMenu,MATCH(C166,'Full menu'!C:C,0)) -> ETFS Physical Gold ETF | C166: GOLD | G166: 0.2 | J166: =VLOOKUP(C166,'Full menu'!C:J,8,FALSE) -> 0.004
A167: ETF - Listed Fixed Income or Cash | B167: =INDEX(MenuOptionFullMenu,MATCH(C167,'Full menu'!C:C,0)) -> ActiveX Ardea Real Outcome Bond Fund | C167: XARO | G167: 0.3 | J167: =VLOOKUP(C167,'Full menu'!C:J,8,FALSE) -> 0.005
A168: ETF - Listed Fixed Income or Cash | B168: =INDEX(MenuOptionFullMenu,MATCH(C168,'Full menu'!C:C,0)) -> BetaShares Australian Bank Senior Floating Rate Bond ETF | C168: QPON | G168: 0.3 | J168: =VLOOKUP(C168,'Full menu'!C:J,8,FALSE) -> 0.0022
A169: ETF - Listed Fixed Income or Cash | B169: =INDEX(MenuOptionFullMenu,MATCH(C169,'Full menu'!C:C,0)) -> BetaShares Sustainability Leaders Diversified Bond ETF | C169: GBND | G169: 0.3 | J169: =VLOOKUP(C169,'Full menu'!C:J,8,FALSE) -> 0.0049
A170: ETF - Listed Fixed Income or Cash | B170: =INDEX(MenuOptionFullMenu,MATCH(C170,'Full menu'!C:C,0)) -> iShares Composite Bond ETF | C170: IAF | G170: 0.3 | J170: =VLOOKUP(C170,'Full menu'!C:J,8,FALSE) -> 0.0015
A171: ETF - Listed Fixed Income or Cash | B171: =INDEX(MenuOptionFullMenu,MATCH(C171,'Full menu'!C:C,0)) -> iShares Core Cash ETF | C171: BILL | G171: 0.3 | J171: =VLOOKUP(C171,'Full menu'!C:J,8,FALSE) -> 0.0007
A172: ETF - Listed Fixed Income or Cash | B172: =INDEX(MenuOptionFullMenu,MATCH(C172,'Full menu'!C:C,0)) -> iShares Global Corporate Bond (AUD Hedged) | C172: IHCB | G172: 0.3 | J172: =VLOOKUP(C172,'Full menu'!C:J,8,FALSE) -> 0.0026
A173: ETF - Listed Fixed Income or Cash | B173: =INDEX(MenuOptionFullMenu,MATCH(C173,'Full menu'!C:C,0)) -> iShares Treasury ETF | C173: IGB | G173: 0.3 | J173: =VLOOKUP(C173,'Full menu'!C:J,8,FALSE) -> 0.0018
A174: ETF - Listed Fixed Income or Cash | B174: =INDEX(MenuOptionFullMenu,MATCH(C174,'Full menu'!C:C,0)) -> iShares Yield Plus ETF | C174: IYLD | G174: 0.3 | J174: =VLOOKUP(C174,'Full menu'!C:J,8,FALSE) -> 0.0018
A175: ETF - Listed Fixed Income or Cash | B175: =INDEX(MenuOptionFullMenu,MATCH(C175,'Full menu'!C:C,0)) -> VanEck Emerging Income Opportunities Active ETF (Managed Fund) | C175: EBND | G175: 0.3 | J175: =VLOOKUP(C175,'Full menu'!C:J,8,FALSE) -> 0.0026
A176: ETF - Listed Fixed Income or Cash | B176: =INDEX(MenuOptionFullMenu,MATCH(C176,'Full menu'!C:C,0)) -> Vanguard Australian Corporate Fixed Interest Index ETF | C176: VACF | G176: 0.3 | J176: =VLOOKUP(C176,'Full menu'!C:J,8,FALSE) -> 0.0026
A177: ETF - Listed Fixed Income or Cash | B177: =INDEX(MenuOptionFullMenu,MATCH(C177,'Full menu'!C:C,0)) -> Vanguard Australian Fixed Interest | C177: VAF | G177: 0.3 | J177: =VLOOKUP(C177,'Full menu'!C:J,8,FALSE) -> 0.002
A178: ETF - Listed Fixed Income or Cash | B178: =INDEX(MenuOptionFullMenu,MATCH(C178,'Full menu'!C:C,0)) -> Vanguard Australian Government Bond | C178: VGB | G178: 0.3 | J178: =VLOOKUP(C178,'Full menu'!C:J,8,FALSE) -> 0.002
A179: ETF - Listed Fixed Income or Cash | B179: =INDEX(MenuOptionFullMenu,MATCH(C179,'Full menu'!C:C,0)) -> Vanguard Ethically Conscious Global Aggregate Bond Index (Hedged) ETF | C179: VEFI | G179: 0.3 | J179: =VLOOKUP(C179,'Full menu'!C:J,8,FALSE) -> 0.0026
A180: ETF - Listed Fixed Income or Cash | B180: =INDEX(MenuOptionFullMenu,MATCH(C180,'Full menu'!C:C,0)) -> Vanguard Global Aggregated Bond Index (Hedged) ETF | C180: VBND | G180: 0.3 | J180: =VLOOKUP(C180,'Full menu'!C:J,8,FALSE) -> 0.0026
A181: ETF - Listed Fixed Income or Cash | B181: =INDEX(MenuOptionFullMenu,MATCH(C181,'Full menu'!C:C,0)) -> Vanguard International Credit Securities Index (Hedged) | C181: VCF | G181: 0.3 | J181: =VLOOKUP(C181,'Full menu'!C:J,8,FALSE) -> 0.003
A182: ETF - Listed Fixed Income or Cash | B182: =INDEX(MenuOptionFullMenu,MATCH(C182,'Full menu'!C:C,0)) -> Vanguard International Fixed Interest (Hedged) | C182: VIF | G182: 0.3 | J182: =VLOOKUP(C182,'Full menu'!C:J,8,FALSE) -> 0.002
A183: ETF - Listed Global shares | B183: =INDEX(MenuOptionFullMenu,MATCH(C183,'Full menu'!C:C,0)) -> BetaShares Asia Technology Tigers ETF | C183: ASIA | G183: 0.3 | J183: =VLOOKUP(C183,'Full menu'!C:J,8,FALSE) -> 0.0067
A184: ETF - Listed Global shares | B184: =INDEX(MenuOptionFullMenu,MATCH(C184,'Full menu'!C:C,0)) -> Betashares FTSE 100 ETF | C184: F100 | G184: 0.3 | J184: =VLOOKUP(C184,'Full menu'!C:J,8,FALSE) -> 0.0067
A185: ETF - Listed Global shares | B185: =INDEX(MenuOptionFullMenu,MATCH(C185,'Full menu'!C:C,0)) -> BetaShares Global Quality Leaders ETF | C185: QLTY | G185: 0.3 | J185: =VLOOKUP(C185,'Full menu'!C:J,8,FALSE) -> 0.0035
A186: ETF - Listed Global shares | B186: =INDEX(MenuOptionFullMenu,MATCH(C186,'Full menu'!C:C,0)) -> BetaShares NASDAQ 100 ETF | C186: NDQ | G186: 0.3 | J186: =VLOOKUP(C186,'Full menu'!C:J,8,FALSE) -> 0.0048
A187: ETF - Listed Global shares | B187: =INDEX(MenuOptionFullMenu,MATCH(C187,'Full menu'!C:C,0)) -> ETFS EURO STOXX 50 ETF | C187: ESTX | G187: 0.3 | J187: =VLOOKUP(C187,'Full menu'!C:J,8,FALSE) -> 0.0035
A188: ETF - Listed Global shares | B188: =INDEX(MenuOptionFullMenu,MATCH(C188,'Full menu'!C:C,0)) -> ETFS FANG+ ETF | C188: FANG | G188: 0.3 | J188: =VLOOKUP(C188,'Full menu'!C:J,8,FALSE) -> 0.0035
A189: ETF - Listed Global shares | B189: =INDEX(MenuOptionFullMenu,MATCH(C189,'Full menu'!C:C,0)) -> ETFS Morningstar Global Technology ETF | C189: TECH | G189: 0.3 | J189: =VLOOKUP(C189,'Full menu'!C:J,8,FALSE) -> 0.0045
A190: ETF - Listed Global shares | B190: =INDEX(MenuOptionFullMenu,MATCH(C190,'Full menu'!C:C,0)) -> ETFS ROBO Global Robotics and Automation ETF | C190: ROBO | G190: 0.3 | J190: =VLOOKUP(C190,'Full menu'!C:J,8,FALSE) -> 0.0069
A191: ETF - Listed Global shares | B191: =INDEX(MenuOptionFullMenu,MATCH(C191,'Full menu'!C:C,0)) -> ETFS S&P 500 High Yield Low Volitility ETF | C191: ZYUS | G191: 0.3 | J191: =VLOOKUP(C191,'Full menu'!C:J,8,FALSE) -> 0.0035
A192: ETF - Listed Global shares | B192: =INDEX(MenuOptionFullMenu,MATCH(C192,'Full menu'!C:C,0)) -> iShares China Large-Cap | C192: IZZ | G192: 0.3 | J192: =VLOOKUP(C192,'Full menu'!C:J,8,FALSE) -> 0.0074
A193: ETF - Listed Global shares | B193: =INDEX(MenuOptionFullMenu,MATCH(C193,'Full menu'!C:C,0)) -> iShares Core MSCI World All Cap ETF | C193: IWLD | G193: 0.3 | J193: =VLOOKUP(C193,'Full menu'!C:J,8,FALSE) -> 0.0009
A194: ETF - Listed Global shares | B194: =INDEX(MenuOptionFullMenu,MATCH(C194,'Full menu'!C:C,0)) -> iShares Core MSCI World All Cap AUD Hedged ETF | C194: IHWL | G194: 0.3 | J194: =VLOOKUP(C194,'Full menu'!C:J,8,FALSE) -> 0.0012
A195: ETF - Listed Global shares | B195: =INDEX(MenuOptionFullMenu,MATCH(C195,'Full menu'!C:C,0)) -> iShares Core S&P Mid-Cap | C195: IJH | G195: 0.3 | J195: =VLOOKUP(C195,'Full menu'!C:J,8,FALSE) -> 0.0007
A196: ETF - Listed Global shares | B196: =INDEX(MenuOptionFullMenu,MATCH(C196,'Full menu'!C:C,0)) -> iShares Core S&P Small-Cap | C196: IJR | G196: 0.3 | J196: =VLOOKUP(C196,'Full menu'!C:J,8,FALSE) -> 0.0007
A197: ETF - Listed Global shares | B197: =INDEX(MenuOptionFullMenu,MATCH(C197,'Full menu'!C:C,0)) -> iShares Edge MSCI World Multifactor ETF | C197: WDMF | G197: 0.3 | J197: =VLOOKUP(C197,'Full menu'!C:J,8,FALSE) -> 0.0035
A198: ETF - Listed Global shares | B198: =INDEX(MenuOptionFullMenu,MATCH(C198,'Full menu'!C:C,0)) -> iShares Europe | C198: IEU | G198: 0.3 | J198: =VLOOKUP(C198,'Full menu'!C:J,8,FALSE) -> 0.006
A199: ETF - Listed Global shares | B199: =INDEX(MenuOptionFullMenu,MATCH(C199,'Full menu'!C:C,0)) -> iShares Global Consumer Staples ETF | C199: IXI | G199: 0.3 | J199: =VLOOKUP(C199,'Full menu'!C:J,8,FALSE) -> 0.0047
A200: ETF - Listed Global shares | B200: =INDEX(MenuOptionFullMenu,MATCH(C200,'Full menu'!C:C,0)) -> iShares Global Healthcare ETF | C200: IXJ | G200: 0.3 | J200: =VLOOKUP(C200,'Full menu'!C:J,8,FALSE) -> 0.0047
A201: ETF - Listed Global shares | B201: =INDEX(MenuOptionFullMenu,MATCH(C201,'Full menu'!C:C,0)) -> iShares Japan | C201: IJP | G201: 0.3 | J201: =VLOOKUP(C201,'Full menu'!C:J,8,FALSE) -> 0.0047
A202: ETF - Listed Global shares | B202: =INDEX(MenuOptionFullMenu,MATCH(C202,'Full menu'!C:C,0)) -> iShares MSCI EAFE | C202: IVE | G202: 0.3 | J202: =VLOOKUP(C202,'Full menu'!C:J,8,FALSE) -> 0.0031
... 50 more rows

Sheet Full menu (hidden)
O1: Asset Allocation
B2: Product | C2: APIR Code | D2: Blue Menu | E2: FM Rebates confirmed | F2: Single Asset Diversification Rules | G2: % Single Limit | H2: Aggregated Diversification Rules | I2: % Aggregated Limit | J2: ICR | K2: Risk Band | L2: Risk Label | M2: MorningStar ID | N2: Month End Date | O2: Cash | P2: Cash | Q2: Aust F.I | R2: Aust F.I | S2: Int'l F.I | T2: Int'l F.I | U2: Aust Shares | V2: Aust Shares | W2: Int'l Shares | X2: Int'l Shares | Y2: Prop | Z2: Prop | AA2: Other | AB2: Other | AC2: Buy/Sell Spread | AD2: Asset Class for lookup | AE2: Fund Name for lookup
B3: Cash Account / Hub | C3: n/a | F3: No applicable limits to cash accounts | G3: 1 | H3: n/a | I3: n/a
B4: ANZ Term Deposits | C4: ANZTD | D4: Essentials | F4: No applicable limits to term deposits | G4: 1 | H4: n/a | I4: n/a
B5: Macquarie Term Deposits | C5: MACTD | D5: Essentials | F5: No applicable limits to term deposits | G5: 1 | H5: n/a | I5: n/a
AJ7: Check APIR present (1/9/2021) | AK7: New ICR (1/11/21) | AL7: ICR Difference after update (1/9/21) | AN7: Fund name lookup (12/3/21) | AO7: Same name | AP7: Rebate lookup (12/3/21) | AQ7: Rebate difference
A8: Conservative | B8: IOOF MultiMix Capital Stable Trust | C8: IOF0094AU | D8: Essentials | G8: 1 | H8: n/a | I8: n/a | J8: 0.0059 | AB8: 0 | AC8: 0.0004 | AD8: =A8 -> Conservative | AE8: IOOF MultiMix Capital Stable Trust | AJ8: IOF0094AU | AK8: 0.0059 | AL8: =AK8-J8 -> 0
A9: Moderate | B9: IOOF MultiMix Conservative Trust | C9: IOF0095AU | D9: Essentials | E9: =IFERROR(VLOOKUP(C9,rebates!A:G,7,FALSE),"") ->  | G9: 1 | H9: n/a | I9: n/a | J9: 0.008 | K9: 4 | L9: Medium | M9: 13403 | N9: 2015-12-31 | O9: 0 | P9: 0.2 | Q9: 0.15 | R9: 0.45 | S9: 0.15 | T9: 0.45 | U9: 0 | V9: 0.25 | W9: 0 | X9: 0.25 | Y9: 0 | Z9: 0.15 | AA9: 0 | AB9: 0 | AC9: 0.0016 | AD9: =A9 -> Moderate | AE9: =B9 -> IOOF MultiMix Conservative Trust | AJ9: IOF0095AU | AK9: 0.008 | AL9: =AK9-J9 -> 0 | AN9: MLC Wholesale Horizon 2 Income Fund | AO9: TRUE | AQ9: 0
A10: Moderate | B10: IOOF MultiSeries 30 Trust | C10: IOF0253AU | D10: Essentials | E10: =IFERROR(VLOOKUP(C10,rebates!A:G,7,FALSE),"") ->  | G10: 1 | H10: n/a | I10: n/a | J10: 0.004 | K10: 4 | L10: Medium | M10: 13403 | N10: 2015-12-31 | O10: 0 | P10: 0.2 | Q10: 0.15 | R10: 0.45 | S10: 0.15 | T10: 0.45 | U10: 0 | V10: 0.25 | W10: 0 | X10: 0.25 | Y10: 0 | Z10: 0.15 | AA10: 0 | AB10: 0 | AC10: 0.0008 | AD10: =A10 -> Moderate | AE10: =B10 -> IOOF MultiSeries 30 Trust | AJ10: IOF0253AU | AK10: 0.004 | AL10: 0 | AN10: MLC Wholesale Horizon 2 Income Fund | AO10: TRUE | AQ10: 0
A11: Moderate | B11: MLC Wholesale Horizon 2 Income Fund | C11: MLC0670AU | D11: Optional Extensive MFs | E11: =IFERROR(VLOOKUP(C11,rebates!A:G,7,FALSE),"") ->  | F11: TL_CUSTOM_GROUP.ANZMultiAsset | G11: 1 | H11: n/a | I11: n/a | J11: 0.0083 | K11: 4 | L11: Medium | M11: 13403 | N11: 2015-12-31 | O11: 0 | P11: 0.2 | Q11: 0.15 | R11: 0.45 | S11: 0.15 | T11: 0.45 | U11: 0 | V11: 0.25 | W11: 0 | X11: 0.25 | Y11: 0 | Z11: 0.15 | AA11: 0 | AB11: 0.15 | AC11: 0.001 | AD11: Moderate | AE11: =B11 -> MLC Wholesale Horizon 2 Income Fund | AJ11: MLC0670AU | AK11: 0.0083 | AL11: 0 | AN11: MLC Wholesale Horizon 2 Income Fund | AO11: TRUE | AQ11: 0
A12: Moderate | B12: Optimix Wholesale Conservative Trust Class B Units | C12: LEF0108AU | D12: Essentials | E12: =IFERROR(VLOOKUP(C12,rebates!A:G,7,FALSE),"") -> 0.0005 | F12: TL_CUSTOM_GROUP.ANZMultiAsset | G12: 1 | H12: n/a | I12: n/a | J12: 0.0101 | K12: 3 | L12: Low to medium | M12: 4732 | N12: 2015-12-31 | O12: 0 | P12: 0.4 | Q12: 0 | R12: 0.4 | S12: 0.07 | T12: 0.37 | U12: 0.04 | V12: 0.24 | W12: 0 | X12: 0.2 | Y12: 0 | Z12: 0.1 | AA12: 0.02 | AB12: 0.18 | AC12: 0.001 | AD12: Moderate | AE12: =B12 -> Optimix Wholesale Conservative Trust Class B Units | AJ12: LEF0108AU | AK12: 0.0101 | AL12: 0 | AN12: Optimix Wholesale Conservative Trust Class B Units** | AO12: TRUE | AP12: 0.0005 | AQ12: 0
A13: Moderate | B13: Pendal Monthly Income Plus Fund | C13: BTA0318AU | D13: Essentials | E13: =IFERROR(VLOOKUP(C13,rebates!A:G,7,FALSE),"") -> 0.0005 | F13: TL_CUSTOM_GROUP.ANZMultiAsset | G13: 1 | H13: n/a | I13: n/a | J13: 0.0065 | M13: 17784 | N13: 2015-12-31 | O13: 0 | P13: 0.5 | Q13: 0.2 | R13: 1 | S13: 0 | T13: 0 | U13: 0 | V13: 0.3 | W13: 0 | X13: 0 | Y13: 0 | Z13: 0 | AA13: 0 | AB13: 0 | AC13: 0.0069 | AD13: =A13 -> Moderate | AE13: =B13 -> Pendal Monthly Income Plus Fund | AJ13: BTA0318AU | AK13: 0.0065 | AL13: 0 | AN13: Pendal Monthly Income Plus Fund | AO13: TRUE | AP13: 0.0005 | AQ13: 0
A14: Moderate | B14: Pendal Active Conservative Fund | C14: BTA0805AU | D14: Optional Extensive MFs | E14: =IFERROR(VLOOKUP(C14,rebates!A:G,7,FALSE),"") -> 0.001 | F14: TL_CUSTOM_GROUP.ANZMultiAsset | G14: 1 | H14: n/a | I14: n/a | J14: 0.0085 | K14: 4 | L14: Medium | M14: 2507 | N14: 2015-12-31 | O14: 0 | P14: 0.4 | Q14: 0.2 | R14: 0.55 | S14: 0.05 | T14: 0.35 | U14: 0.05 | V14: 0.25 | W14: 0 | X14: 0.18 | Y14: 0 | Z14: 0.2 | AA14: 0 | AB14: 0.1 | AC14: 0.0017 | AD14: =A14 -> Moderate | AE14: =B14 -> Pendal Active Conservative Fund | AJ14: BTA0805AU | AK14: 0.0085 | AL14: 0 | AN14: Pendal Active Conservative Fund | AO14: TRUE | AP14: 0.001 | AQ14: 0
A15: Moderate | B15: Perpetual Wholesale Conservative Growth Fund | C15: PER0077AU | D15: Optional Extensive MFs | E15: =IFERROR(VLOOKUP(C15,rebates!A:G,7,FALSE),"") -> 0.0006 | F15: TL_CUSTOM_GROUP.ANZMultiAsset | G15: 1 | H15: n/a | I15: n/a | J15: 0.0094 | K15: 4 | L15: Medium | M15: 10600 | N15: 2015-12-31 | O15: 0.15 | P15: 0.45 | Q15: 0.25 | R15: 0.55 | S15: 0 | T15: 0 | U15: 0 | V15: 0.25 | W15: 0 | X15: 0.2 | Y15: 0 | Z15: 0.1 | AA15: 0 | AB15: 0.3 | AC15: 0.0061 | AD15: Moderate | AE15: Perpetual Wholesale Conservative Growth Fund | AJ15: PER0077AU | AK15: 0.0094 | AL15: 0 | AN15: Perpetual Wholesale Conservative Growth Fund | AO15: TRUE | AP15: 0.0006 | AQ15: 0
A16: Moderate | B16: Russell Investments Conservative Fund Class A | C16: RIM0002AU | D16: Optional Extensive MFs | E16: =IFERROR(VLOOKUP(C16,rebates!A:G,7,FALSE),"") ->  | F16: TL_CUSTOM_GROUP.ANZMultiAsset | G16: 1 | H16: n/a | I16: n/a | J16: 0.0072 | K16: 4 | L16: Medium | M16: 11181 | N16: 2015-12-31 | O16: 0.3 | P16: 0.9 | Q16: 0.3 | R16: 0.9 | S16: 0.3 | T16: 0.9 | U16: 0 | V16: 0.25 | W16: 0 | X16: 0.25 | Y16: 0 | Z16: 0.2 | AA16: 0 | AB16: 0.25 | AC16: 0.0028 | AD16: Moderate | AE16: Russell Investments Conservative Fund Class A | AJ16: RIM0002AU | AK16: 0.0072 | AL16: 0 | AN16: Russell Investments Conservative Fund Class A | AO16: TRUE | AQ16: 0
A17: Moderate | B17: UBS Tactical Beta - Conservative | C17: UBS0036AU | D17: Essentials | E17: =IFERROR(VLOOKUP(C17,rebates!A:G,7,FALSE),"") ->  | F17: TL_CUSTOM_GROUP.ANZMultiAsset | G17: 1 | H17: n/a | I17: n/a | J17: 0.0037 | K17: 3 | L17: Low to medium | M17: 19477 | N17: 2015-12-31 | O17: 0 | P17: 0.3 | Q17: 0 | R17: 0.9 | S17: 0 | T17: 0.9 | U17: 0 | V17: 0.3 | W17: 0 | X17: 0.5 | Y17: 0 | Z17: 0.1 | AA17: 0 | AB17: 0 | AC17: 0.0052 | AD17: Moderate | AE17: UBS Tactical Beta - Conservative | AJ17: UBS0036AU | AK17: 0.0037 | AL17: 0 | AN17: UBS Tactical Beta - Conservative | AO17: TRUE | AQ17: 0
A18: Moderate | B18: Vanguard Conservative Index Fund | C18: VAN0109AU | D18: Essentials | E18: =IFERROR(VLOOKUP(C18,rebates!A:G,7,FALSE),"") -> 0.0004 | F18: TL_CUSTOM_GROUP.ANZMultiAsset | G18: 1 | H18: n/a | I18: n/a | J18: 0.0029 | K18: 4 | L18: Medium | M18: 9143 | N18: 2015-12-31 | O18: 0.08 | P18: 0.12 | Q18: 0.22 | R18: 0.26 | S18: 0.32 | T18: 0.4 | U18: 0.11 | V18: 0.15 | W18: 0.08 | X18: 0.19 | Y18: 0 | Z18: 0.08 | AA18: 0 | AB18: 0 | AC18: 0.0056 | AD18: Moderate | AE18: Vanguard Conservative Index Fund | AJ18: VAN0109AU | AK18: 0.0029 | AL18: 0 | AN18: Vanguard Conservative Index Fund | AO18: TRUE | AP18: 0.0004 | AQ18: 0
A19: Balanced | B19: AMP Capital Multi-Asset Fund | C19: AMP1685AU | D19: Optional Extensive MFs | E19: =IFERROR(VLOOKUP(C19,rebates!A:G,7,FALSE),"") ->  | F19: TL_CUSTOM_GROUP.ANZMultiAsset | G19: 1 | H19: n/a | I19: n/a | J19: 0.0118 | K19: 5 | L19: Medium to high | N19: 2015-12-31 | O19: 0 | P19: 0.2 | Q19: 0.05 | R19: 0.32 | S19: 0 | T19: 0.2 | U19: 0.23 | V19: 0.43 | W19: 0.1 | X19: 0.3 | Y19: 0 | Z19: 0.2 | AA19: 0 | AB19: 0.1 | AC19: 0.0021 | AD19: =A19 -> Balanced | AE19: =B19 -> AMP Capital Multi-Asset Fund | AJ19: AMP1685AU | AK19: 0.0118 | AL19: 0 | AN19: AMP Capital Multi-Asset Fund | AO19: TRUE | AP19: 0 | AQ19: 0
A20: Balanced | B20: IOOF MultiMix Moderate Growth Trust | C20: UFM0051AU | D20: Essentials | E20: =IFERROR(VLOOKUP(C20,rebates!A:G,7,FALSE),"") ->  | G20: 1 | H20: n/a | I20: n/a | J20: 0.0087 | K20: 5 | L20: Medium to high | N20: 2015-12-31 | O20: 0 | P20: 0.2 | Q20: 0.05 | R20: 0.32 | S20: 0 | T20: 0.2 | U20: 0.23 | V20: 0.43 | W20: 0.1 | X20: 0.3 | Y20: 0 | Z20: 0.2 | AA20: 0 | AD20: =A20 -> Balanced | AE20: =B20 -> IOOF MultiMix Moderate Growth Trust | AJ20: UFM0051AU | AK20: 0.0087 | AL20: 0 | AN20: AMP Capital Multi-Asset Fund | AO20: TRUE | AP20: 0 | AQ20: 0
A21: Balanced | B21: IOOF MultiSeries 50 Trust | C21: IOF0254AU | D21: Essentials | E21: =IFERROR(VLOOKUP(C21,rebates!A:G,7,FALSE),"") ->  | G21: 1 | H21: n/a | I21: n/a | J21: 0.0045 | K21: 5 | L21: Medium to high | N21: 2015-12-31 | O21: 0 | P21: 0.2 | Q21: 0.05 | R21: 0.32 | S21: 0 | T21: 0.2 | U21: 0.23 | V21: 0.43 | W21: 0.1 | X21: 0.3 | Y21: 0 | Z21: 0.2 | AA21: 0 | AC21: 0.0012 | AD21: =A21 -> Balanced | AE21: =B21 -> IOOF MultiSeries 50 Trust | AJ21: IOF0254AU | AK21: 0.0045 | AL21: 0 | AN21: AMP Capital Multi-Asset Fund | AO21: TRUE | AP21: 0 | AQ21: 0
A22: Balanced | B22: Legg Mason Martin Currie Diversified Income Fund | C22: SSB0061AU | D22: Essentials | E22: =IFERROR(VLOOKUP(C22,rebates!A:G,7,FALSE),"") -> 0.001 | F22: TL_CUSTOM_GROUP.ANZMultiAsset | G22: 1 | H22: n/a | I22: n/a | J22: 0.008 | AC22: 0.004 | AD22: Balanced | AE22: Legg Mason Martin Currie Diversified Income Fund | AJ22: SSB0061AU | AK22: 0.008 | AL22: 0 | AN22: Legg Mason Martin Currie Diversified Income Fund | AO22: TRUE | AP22: 0.001 | AQ22: 0
A23: Balanced | B23: MLC Wholesale Horizon 3 Conservative Growth Portfolio | C23: MLC0398AU | D23: Optional Extensive MFs | E23: =IFERROR(VLOOKUP(C23,rebates!A:G,7,FALSE),"") ->  | F23: TL_CUSTOM_GROUP.ANZMultiAsset | G23: 1 | H23: n/a | I23: n/a | J23: 0.0088 | K23: 5 | L23: Medium to high | M23: 9207 | N23: 2015-12-31 | O23: 0 | P23: 0.1 | Q23: 0.277 | R23: 0.317 | S23: 0.183 | T23: 0.223 | U23: 0.19 | V23: 0.23 | W23: 0.23 | X23: 0.27 | Y23: 0.01 | Z23: 0.05 | AA23: 0 | AB23: 0.03 | AC23: 0.001 | AD23: Balanced | AE23: MLC Wholesale Horizon 3 Conservative Growth Portfolio | AJ23: MLC0398AU | AK23: 0.0088 | AL23: 0 | AN23: MLC Wholesale Horizon 3 Conservative Growth Portfolio | AO23: TRUE | AQ23: 0
A24: Balanced | B24: Optimix Wholesale Moderate Trust Class B Units | C24: LEF0027AU | D24: Essentials | E24: =IFERROR(VLOOKUP(C24,rebates!A:G,7,FALSE),"") -> 0.0005 | F24: TL_CUSTOM_GROUP.ANZMultiAsset | G24: 1 | H24: n/a | I24: n/a | J24: 0.0113 | K24: 5 | L24: Medium to high | M24: 10006 | N24: 2015-12-31 | O24: 0 | P24: 0.28 | Q24: 0 | R24: 0.35 | S24: 0.05 | T24: 0.35 | U24: 0.1 | V24: 0.3 | W24: 0.09 | X24: 0.29 | Y24: 0 | Z24: 0.2 | AA24: 0.06 | AB24: 0.2 | AC24: 0.0015 | AD24: Balanced | AE24: Optimix Wholesale Moderate Trust Class B Units | AJ24: LEF0027AU | AK24: 0.0113 | AL24: 0 | AN24: Optimix Wholesale Moderate Trust Class B Units** | AO24: TRUE | AP24: 0.0005 | AQ24: 0
A25: Balanced | B25: Pendal Balanced Returns Fund | C25: BTA0806AU | D25: Optional Extensive MFs | E25: =IFERROR(VLOOKUP(C25,rebates!A:G,7,FALSE),"") -> 0.001 | F25: TL_CUSTOM_GROUP.ANZMultiAsset | G25: 1 | H25: n/a | I25: n/a | J25: 0.009 | K25: 6 | L25: High | M25: 2504 | N25: 2015-12-31 | O25: 0 | P25: 0.2 | Q25: 0.05 | R25: 0.32 | S25: 0 | T25: 0.2 | U25: 0.23 | V25: 0.43 | W25: 0.1 | X25: 0.3 | Y25: 0 | Z25: 0.2 | AA25: 0 | AB25: 0.1 | AC25: 0.0025 | AD25: =A25 -> Balanced | AE25: =B25 -> Pendal Balanced Returns Fund | AJ25: BTA0806AU | AK25: 0.009 | AL25: 0 | AN25: Pendal Balanced Returns Fund | AO25: TRUE | AP25: 0.001 | AQ25: 0
A26: Balanced | B26: Russell Investments Diversified 50 Fund Class A | C26: RIM0003AU | D26: Optional Extensive MFs | E26: =IFERROR(VLOOKUP(C26,rebates!A:G,7,FALSE),"") ->  | F26: TL_CUSTOM_GROUP.ANZMultiAsset | G26: 1 | H26: n/a | I26: n/a | J26: 0.0081 | K26: 5 | L26: Medium to high | M26: 11182 | N26: 2015-12-31 | O26: 0.2 | P26: 0.7 | Q26: 0.2 | R26: 0.7 | S26: 0.2 | T26: 0.7 | U26: 0.1 | V26: 0.35 | W26: 0.1 | X26: 0.35 | Y26: 0 | Z26: 0.2 | AA26: 0 | AB26: 0.3 | AC26: 0.0031 | AD26: Balanced | AE26: Russell Investments Diversified 50 Fund Class A | AJ26: RIM0003AU | AK26: 0.0081 | AL26: 0 | AN26: Russell Investments Diversified 50 Fund Class A | AO26: TRUE | AQ26: 0
A27: Balanced | B27: Schroder Real Return Fund | C27: SCH0047AU | D27: Essentials | E27: =IFERROR(VLOOKUP(C27,rebates!A:G,7,FALSE),"") -> 0 | F27: TL_CUSTOM_GROUP.ANZMultiAsset | G27: 1 | H27: n/a | I27: n/a | J27: 0.0086 | K27: 3 | L27: Low to medium | M27: 18353 | N27: 2015-12-31 | O27: 0 | P27: 1 | Q27: 0 | R27: 1 | S27: 0 | T27: 1 | U27: 0 | V27: 0.75 | W27: 0 | X27: 0.75 | Y27: 0 | Z27: 0.75 | AA27: 0 | AB27: 1 | AC27: 0.0078 | AD27: Balanced | AE27: Schroder Real Return Fund | AJ27: SCH0047AU | AK27: 0.0086 | AL27: 0 | AN27: Schroder Real Return Fund | AO27: TRUE | AP27: 0 | AQ27: 0
A28: Balanced | B28: UBS Tactical Beta - Balanced | C28: UBS0041AU | D28: Essentials | E28: =IFERROR(VLOOKUP(C28,rebates!A:G,7,FALSE),"") ->  | F28: TL_CUSTOM_GROUP.ANZMultiAsset | G28: 1 | H28: n/a | I28: n/a | J28: 0.0036 | K28: 5 | L28: Medium to high | M28: 19582 | N28: 2015-12-31 | O28: 0 | P28: 0.3 | Q28: 0 | R28: 0.75 | S28: 0 | T28: 0.75 | U28: 0.08 | V28: 0.45 | W28: 0.08 | X28: 0.6 | Y28: 0 | Z28: 0.13 | AA28: 0 | AB28: 0 | AC28: 0.0051 | AD28: Balanced | AE28: UBS Tactical Beta - Balanced | AJ28: UBS0041AU | AK28: 0.0036 | AL28: 0 | AN28: UBS Tactical Beta - Balanced | AO28: TRUE | AQ28: 0
A29: Balanced | B29: Vanguard Balanced Index Fund | C29: VAN0108AU | D29: Essentials | E29: =IFERROR(VLOOKUP(C29,rebates!A:G,7,FALSE),"") -> 0.0004 | F29: TL_CUSTOM_GROUP.ANZMultiAsset | G29: 1 | H29: n/a | I29: n/a | J29: 0.0029 | K29: 5 | L29: Medium to high | M29: 9144 | N29: 2015-12-31 | O29: 0.2 | P29: 0.24 | Q29: 0.09 | R29: 0.13 | S29: 0.15 | T29: 0.19 | U29: 0.22 | V29: 0.26 | W29: 0.165 | X29: 0.235 | Y29: 0.05 | Z29: 0.07 | AA29: 0 | AB29: 0 | AC29: 0.0049 | AD29: Balanced | AE29: Vanguard Balanced Index Fund | AJ29: VAN0108AU | AK29: 0.0029 | AL29: 0 | AN29: Vanguard Balanced Index Fund | AO29: TRUE | AP29: 0.0004 | AQ29: 0
A30: Growth | B30: BlackRock Tactical Growth Fund | C30: PWA0822AU | D30: Essentials | E30: =IFERROR(VLOOKUP(C30,rebates!A:G,7,FALSE),"") ->  | F30: TL_CUSTOM_GROUP.ANZMultiAsset | G30: 1 | H30: n/a | I30: n/a | J30: 0.0085 | K30: 6 | L30: High | N30: 2015-12-31 | O30: 0 | P30: 0.1 | Q30: 0.05 | R30: 0.3 | S30: 0.15 | T30: 0.25 | U30: 0.2 | V30: 0.45 | W30: 0.1 | X30: 0.4 | Y30: 0 | Z30: 0.15 | AA30: 0 | AB30: 0.15 | AC30: 0.0035 | AD30: =A30 -> Growth | AE30: =B30 -> BlackRock Tactical Growth Fund | AJ30: PWA0822AU | AK30: 0.0085 | AL30: 0 | AN30: BlackRock Tactical Growth Fund | AO30: TRUE | AP30: 0 | AQ30: 0
A31: Growth | B31: IOOF MultiMix Balanced Growth Trust | C31: IOF0093AU | D31: Essentials | E31: =IFERROR(VLOOKUP(C31,rebates!A:G,7,FALSE),"") ->  | F31: TL_CUSTOM_GROUP.ANZMultiAsset | G31: 1 | H31: n/a | I31: n/a | J31: 0.0109 | K31: 6 | L31: High | N31: 2015-12-31 | O31: 0 | P31: 0.1 | Q31: 0.05 | R31: 0.3 | S31: 0.15 | T31: 0.25 | U31: 0.2 | V31: 0.45 | W31: 0.1 | X31: 0.4 | Y31: 0 | Z31: 0.15 | AA31: 0 | AB31: 0.15 | AC31: 0.0035 | AD31: =A31 -> Growth | AE31: =B31 -> IOOF MultiMix Balanced Growth Trust | AJ31: IOF0093AU | AK31: 0.0109 | AL31: 0 | AN31: BlackRock Tactical Growth Fund | AO31: TRUE | AP31: 0 | AQ31: 0
A32: Growth | B32: IOOF MultiSeries 70 Trust | C32: IOF0090AU | D32: Essentials | E32: =IFERROR(VLOOKUP(C32,rebates!A:G,7,FALSE),"") ->  | F32: TL_CUSTOM_GROUP.ANZMultiAsset | G32: 1 | H32: n/a | I32: n/a | J32: 0.005 | K32: 6 | L32: High | N32: 2015-12-31 | O32: 0 | P32: 0.1 | Q32: 0.05 | R32: 0.3 | S32: 0.15 | T32: 0.25 | U32: 0.2 | V32: 0.45 | W32: 0.1 | X32: 0.4 | Y32: 0 | Z32: 0.15 | AA32: 0 | AB32: 0.15 | AC32: 0.0035 | AD32: =A32 -> Growth | AE32: =B32 -> IOOF MultiSeries 70 Trust | AJ32: IOF0090AU | AK32: 0.005 | AL32: 0 | AN32: BlackRock Tactical Growth Fund | AO32: TRUE | AP32: 0 | AQ32: 0
A33: Growth | B33: MLC Wholesale Horizon 4 Balanced Portfolio Fund | C33: MLC0260AU | D33: Optional Extensive MFs | E33: =IFERROR(VLOOKUP(C33,rebates!A:G,7,FALSE),"") ->  | F33: TL_CUSTOM_GROUP.ANZMultiAsset | G33: 1 | H33: n/a | I33: n/a | J33: 0.0093 | K33: 5 | L33: Medium to high | M33: 4774 | N33: 2015-12-31 | O33: 0 | P33: 0.1 | Q33: 0.05 | R33: 0.3 | S33: 0.15 | T33: 0.25 | U33: 0.2 | V33: 0.45 | W33: 0.1 | X33: 0.4 | Y33: 0 | Z33: 0.15 | AA33: 0 | AB33: 0.15 | AC33: 0.0015 | AD33: Growth | AE33: MLC Wholesale Horizon 4 Balanced Portfolio Fund | AJ33: MLC0260AU | AK33: 0.0093 | AL33: 0 | AN33: MLC Wholesale Horizon 4 Balanced Portfolio Fund | AO33: TRUE | AQ33: 0
A34: Growth | B34: OnePath Tax Effective Income Trust Wholesale Units | C34: MMF0700AU | D34: Optional Extensive MFs | E34: =IFERROR(VLOOKUP(C34,rebates!A:G,7,FALSE),"") -> 0.002 | F34: TL_CUSTOM_GROUP.ANZMultiAsset | G34: 1 | H34: n/a | I34: n/a | J34: 0.0103 | K34: 6 | L34: High | M34: 10966 | N34: 2015-12-31 | O34: 0 | P34: 0.25 | Q34: 0 | R34: 0.5 | S34: 0 | T34: 0 | U34: 0.2 | V34: 0.6 | W34: 0 | X34: 0 | Y34: 0.2 | Z34: 0.6 | AA34: 0 | AB34: 0 | AC34: 0 | AD34: Growth | AE34: OnePath Tax Effective Income Trust Wholesale Units | AJ34: MMF0700AU | AK34: 0.0103 | AL34: 0 | AN34: OnePath Tax Effective Income Trust Wholesale Units** | AO34: TRUE | AP34: 0.002 | AQ34: 0
A35: Growth | B35: Optimix Wholesale Balanced Trust Class B Units | C35: LEF0107AU | D35: Essentials | E35: =IFERROR(VLOOKUP(C35,rebates!A:G,7,FALSE),"") -> 0.0005 | F35: TL_CUSTOM_GROUP.ANZMultiAsset | G35: 1 | H35: n/a | I35: n/a | J35: 0.0121 | K35: 5 | L35: Medium to high | M35: 4733 | N35: 2015-12-31 | O35: 0 | P35: 0.19 | Q35: 0 | R35: 0.25 | S35: 0 | T35: 0.26 | U35: 0.19 | V35: 0.39 | W35: 0.17 | X35: 0.37 | Y35: 0 | Z35: 0.2 | AA35: 0.07 | AB35: 0.21 | AC35: 0.0019 | AD35: Growth | AE35: Optimix Wholesale Balanced Trust Class B Units | AJ35: LEF0107AU | AK35: 0.0121 | AL35: 0 | AN35: Optimix Wholesale Balanced Trust Class B Units** | AO35: TRUE | AP35: 0.0005 | AQ35: 0
A36: Growth | B36: Optimix Wholesale Growth Trust Class B Units | C36: LEF0106AU | D36: Essentials | E36: =IFERROR(VLOOKUP(C36,rebates!A:G,7,FALSE),"") -> 0.0005 | F36: TL_CUSTOM_GROUP.ANZMultiAsset | G36: 1 | H36: n/a | I36: n/a | J36: 0.0115 | K36: 6 | L36: High | M36: 4734 | N36: 2015-12-31 | O36: 0 | P36: 0.16 | Q36: 0 | R36: 0.15 | S36: 0 | T36: 0.19 | U36: 0.27 | V36: 0.47 | W36: 0.23 | X36: 0.43 | Y36: 0 | Z36: 0.2 | AA36: 0.08 | AB36: 0.22 | AC36: 0.0022 | AD36: Growth | AE36: Optimix Wholesale Growth Trust Class B Units | AJ36: LEF0106AU | AK36: 0.0115 | AL36: 0 | AN36: Optimix Wholesale Growth Trust Class B Units** | AO36: TRUE | AP36: 0.0005 | AQ36: 0
A37: Growth | B37: Russell Investments Balanced Fund Class A | C37: RIM0001AU | D37: Optional Extensive MFs | E37: =IFERROR(VLOOKUP(C37,rebates!A:G,7,FALSE),"") ->  | F37: TL_CUSTOM_GROUP.ANZMultiAsset | G37: 1 | H37: n/a | I37: n/a | J37: 0.0088 | K37: 5 | L37: Medium to high | M37: 11183 | N37: 2015-12-31 | O37: 0.1 | P37: 0.5 | Q37: 0.1 | R37: 0.5 | S37: 0.1 | T37: 0.5 | U37: 0.15 | V37: 0.45 | W37: 0.15 | X37: 0.45 | Y37: 0 | Z37: 0.2 | AA37: 0 | AB37: 0.35 | AC37: 0.0035 | AD37: Growth | AE37: Russell Investments Balanced Fund Class A | AJ37: RIM0001AU | AK37: 0.0088 | AL37: 0 | AN37: Russell Investments Balanced Fund Class A | AO37: TRUE | AQ37: 0
A38: Growth | B38: Schroder Strategic Growth Fund | C38: SCH0102AU | D38: Optional Extensive MFs | E38: =IFERROR(VLOOKUP(C38,rebates!A:G,7,FALSE),"") -> 0 | F38: TL_CUSTOM_GROUP.ANZMultiAsset | G38: 1 | H38: n/a | I38: n/a | J38: 0.0085 | K38: 5 | L38: Medium to high | M38: 8921 | N38: 2015-12-31 | O38: 0 | P38: 0.2 | Q38: 0 | R38: 0.35 | S38: 0.05 | T38: 0.35 | U38: 0.28 | V38: 0.45 | W38: 0.1 | X38: 0.3 | Y38: 0 | Z38: 0.15 | AA38: 0 | AB38: 0.15 | AC38: 0.0074 | AD38: Growth | AE38: Schroder Strategic Growth Fund | AJ38: SCH0102AU | AK38: 0.0085 | AL38: 0 | AN38: Schroder Strategic Growth Fund | AO38: TRUE | AP38: 0 | AQ38: 0
A39: Growth | B39: UBS Tactical Beta - Growth | C39: UBS0037AU | D39: Essentials | E39: =IFERROR(VLOOKUP(C39,rebates!A:G,7,FALSE),"") ->  | F39: TL_CUSTOM_GROUP.ANZMultiAsset | G39: 1 | H39: n/a | I39: n/a | J39: 0.0033 | K39: 5 | L39: Medium to high | M39: 19478 | N39: 2015-12-31 | O39: 0 | P39: 0.3 | Q39: 0 | R39: 0.6 | S39: 0 | T39: 0.6 | U39: 0.15 | V39: 0.6 | W39: 0.15 | X39: 0.6 | Y39: 0 | Z39: 0.15 | AA39: 0 | AB39: 0 | AC39: 0.0034 | AD39: Growth | AE39: UBS Tactical Beta - Growth | AJ39: UBS0037AU | AK39: 0.0033 | AL39: 0 | AN39: UBS Tactical Beta - Growth | AO39: TRUE | AQ39: 0
A40: Growth | B40: Vanguard Growth Index Fund | C40: VAN0110AU | D40: Essentials | E40: =IFERROR(VLOOKUP(C40,rebates!A:G,7,FALSE),"") -> 0.0004 | F40: TL_CUSTOM_GROUP.ANZMultiAsset | G40: 1 | H40: n/a | I40: n/a | J40: 0.0029 | K40: 6 | L40: High | M40: 9145 | N40: 2015-12-31 | O40: 0.01 | P40: 0.03 | Q40: 0.09 | R40: 0.13 | S40: 0.15 | T40: 0.19 | U40: 0.32 | V40: 0.36 | W40: 0.245 | X40: 0.315 | Y40: 0.07 | Z40: 0.09 | AA40: 0 | AB40: 0 | AC40: 0.0035 | AD40: Growth | AE40: Vanguard Growth Index Fund | AJ40: VAN0110AU | AK40: 0.0029 | AL40: 0 | AN40: Vanguard Growth Index Fund | AO40: TRUE | AP40: 0.0004 | AQ40: 0
A41: High Growth | B41: IOOF MultiSeries 90 Trust | C41: IOF0255AU | D41: Optional Extensive MFs | E41: =IFERROR(VLOOKUP(C41,rebates!A:G,7,FALSE),"") ->  | F41: TL_CUSTOM_GROUP.ANZMultiAsset | G41: 1 | H41: n/a | I41: n/a | J41: 0.0055 | K41: 6 | L41: High | M41: 4775 | N41: 2015-12-31 | O41: 0 | P41: 0.1 | Q41: 0 | R41: 0.2 | S41: 0 | T41: 0.2 | U41: 0.2 | V41: 0.5 | W41: 0.1 | X41: 0.45 | Y41: 0 | Z41: 0.15 | AA41: 0 | AB41: 0.15 | AC41: 0.002 | AD41: =A41 -> High Growth | AE41: =B41 -> IOOF MultiSeries 90 Trust | AJ41: IOF0255AU | AK41: 0.0055 | AL41: 0 | AN41: MLC Wholesale Horizon 5 Growth Portfolio Fund | AO41: TRUE | AQ41: 0
A42: High Growth | B42: IOOF MultiMix Growth Trust | C42: IOF0097AU | D42: Optional Extensive MFs | E42: =IFERROR(VLOOKUP(C42,rebates!A:G,7,FALSE),"") ->  | F42: TL_CUSTOM_GROUP.ANZMultiAsset | G42: 1 | H42: n/a | I42: n/a | J42: 0.0114 | K42: 6 | L42: High | M42: 4775 | N42: 2015-12-31 | O42: 0 | P42: 0.1 | Q42: 0 | R42: 0.2 | S42: 0 | T42: 0.2 | U42: 0.2 | V42: 0.5 | W42: 0.1 | X42: 0.45 | Y42: 0 | Z42: 0.15 | AA42: 0 | AB42: 0.15 | AC42: 0.002 | AD42: =A42 -> High Growth | AE42: =B42 -> IOOF MultiMix Growth Trust | AJ42: IOF0097AU | AK42: 0.0114 | AL42: 0 | AN42: MLC Wholesale Horizon 5 Growth Portfolio Fund | AO42: TRUE | AQ42: 0
A43: High Growth | B43: MLC Wholesale Horizon 5 Growth Portfolio Fund | C43: MLC0265AU | D43: Optional Extensive MFs | E43: =IFERROR(VLOOKUP(C43,rebates!A:G,7,FALSE),"") ->  | F43: TL_CUSTOM_GROUP.ANZMultiAsset | G43: 1 | H43: n/a | I43: n/a | J43: 0.0097 | K43: 6 | L43: High | M43: 4775 | N43: 2015-12-31 | O43: 0 | P43: 0.1 | Q43: 0 | R43: 0.2 | S43: 0 | T43: 0.2 | U43: 0.2 | V43: 0.5 | W43: 0.1 | X43: 0.45 | Y43: 0 | Z43: 0.15 | AA43: 0 | AB43: 0.15 | AC43: 0.002 | AD43: High Growth | AE43: MLC Wholesale Horizon 5 Growth Portfolio Fund | AJ43: MLC0265AU | AK43: 0.0097 | AL43: 0 | AN43: MLC Wholesale Horizon 5 Growth Portfolio Fund | AO43: TRUE | AQ43: 0
A44: High Growth | B44: MLC Wholesale Horizon 6 Share Portfolio | C44: MLC0397AU | D44: Optional Extensive MFs | E44: =IFERROR(VLOOKUP(C44,rebates!A:G,7,FALSE),"") ->  | F44: TL_CUSTOM_GROUP.ANZMultiAsset | G44: 1 | H44: n/a | I44: n/a | J44: 0.0101 | K44: 6 | L44: High | M44: 9206 | N44: 2015-12-31 | O44: 0 | P44: 0.02 | Q44: 0 | R44: 0 | S44: 0 | T44: 0 | U44: 0.38 | V44: 0.42 | W44: 0.55 | X44: 0.59 | Y44: 0 | Z44: 0 | AA44: 0.01 | AB44: 0.05 | AC44: 0.002 | AD44: High Growth | AE44: MLC Wholesale Horizon 6 Share Portfolio | AJ44: MLC0397AU | AK44: 0.0101 | AL44: 0 | AN44: MLC Wholesale Horizon 6 Share Portfolio | AO44: TRUE | AQ44: 0
A45: High Growth | B45: MLC Wholesale Horizon 7 Accelerated Growth Portfolio | C45: MLC0449AU | D45: Optional Extensive MFs | E45: =IFERROR(VLOOKUP(C45,rebates!A:G,7,FALSE),"") ->  | F45: TL_CUSTOM_GROUP.ANZMultiAsset | G45: 1 | H45: n/a | I45: n/a | J45: 0.0115 | K45: 6 | L45: High | M45: 9208 | N45: 2015-12-31 | O45: 0 | P45: 0.02 | Q45: 0 | R45: 0 | S45: 0 | T45: 0 | U45: 0.38 | V45: 0.42 | W45: 0.55 | X45: 0.59 | Y45: 0 | Z45: 0 | AA45: 0.01 | AB45: 0.05 | AC45: 0.0025 | AD45: High Growth | AE45: MLC Wholesale Horizon 7 Accelerated Growth Portfolio | AJ45: MLC0449AU | AK45: 0.0115 | AL45: 0 | AN45: MLC Wholesale Horizon 7 Accelerated Growth Portfolio | AO45: TRUE | AQ45: 0
A46: High Growth | B46: Optimix Wholesale High Growth Trust Class B Units | C46: LEF0100AU | D46: Essentials | E46: =IFERROR(VLOOKUP(C46,rebates!A:G,7,FALSE),"") -> 0.0005 | F46: TL_CUSTOM_GROUP.ANZMultiAsset | G46: 1 | H46: n/a | I46: n/a | J46: 0.011 | K46: 6 | L46: High | M46: 6709 | N46: 2015-12-31 | O46: 0 | P46: 0.1 | Q46: 0 | R46: 0 | S46: 0 | T46: 0 | U46: 0.25 | V46: 0.65 | W46: 0.28 | X46: 0.63 | Y46: 0 | Z46: 0.19 | AA46: 0.07 | AB46: 0.2 | AC46: 0.0027 | AD46: High Growth | AE46: Optimix Wholesale High Growth Trust Class B Units | AJ46: LEF0100AU | AK46: 0.011 | AL46: 0 | AN46: Optimix Wholesale High Growth Trust Class B Units** | AO46: TRUE | AP46: 0.0005 | AQ46: 0
A47: High Growth | B47: Russell Investments Growth Fund Class A | C47: RIM0004AU | D47: Optional Extensive MFs | E47: =IFERROR(VLOOKUP(C47,rebates!A:G,7,FALSE),"") ->  | F47: TL_CUSTOM_GROUP.ANZMultiAsset | G47: 1 | H47: n/a | I47: n/a | J47: 0.0096 | K47: 6 | L47: High | M47: 11184 | N47: 2015-12-31 | O47: 0 | P47: 0.3 | Q47: 0 | R47: 0.3 | S47: 0 | T47: 0.3 | U47: 0.2 | V47: 0.6 | W47: 0.2 | X47: 0.6 | Y47: 0 | Z47: 0.3 | AA47: 0 | AB47: 0.35 | AC47: 0.0038 | AD47: High Growth | AE47: Russell Investments Growth Fund Class A | AJ47: RIM0004AU | AK47: 0.0096 | AL47: 0 | AN47: Russell Investments Growth Fund Class A | AO47: TRUE | AQ47: 0
A48: High Growth | B48: Russell Investments High Growth Fund Class A | C48: RIM0034AU | D48: Optional Extensive MFs | E48: =IFERROR(VLOOKUP(C48,rebates!A:G,7,FALSE),"") ->  | F48: TL_CUSTOM_GROUP.ANZMultiAsset | G48: 1 | H48: n/a | I48: n/a | J48: 0.0109 | K48: 6 | L48: High | M48: 14339 | N48: 2015-12-31 | O48: 0 | P48: 0.15 | Q48: 0 | R48: 0.15 | S48: 0 | T48: 0.15 | U48: 0.25 | V48: 0.65 | W48: 0.25 | X48: 0.65 | Y48: 0 | Z48: 0.3 | AA48: 0 | AB48: 0.35 | AC48: 0.0042 | AD48: High Growth | AE48: Russell Investments High Growth Fund Class A | AJ48: RIM0034AU | AK48: 0.0109 | AL48: 0 | AN48: Russell Investments High Growth Fund Class A | AO48: TRUE | AQ48: 0
A49: High Growth | B49: Vanguard High Growth Index Fund | C49: VAN0111AU | D49: Essentials | E49: =IFERROR(VLOOKUP(C49,rebates!A:G,7,FALSE),"") -> 0.0004 | F49: TL_CUSTOM_GROUP.ANZMultiAsset | G49: 1 | H49: n/a | I49: n/a | J49: 0.0029 | K49: 6 | L49: High | M49: 9146 | N49: 2015-12-31 | O49: 0 | P49: 0 | Q49: 0.02 | R49: 0.06 | S49: 0.02 | T49: 0.06 | U49: 0.38 | V49: 0.42 | W49: 0.29 | X49: 0.33 | Y49: 0.03 | Z49: 0.07 | AA49: 0 | AB49: 0 | AC49: 0.0022 | AD49: High Growth | AE49: Vanguard High Growth Index Fund | AJ49: VAN0111AU | AK49: 0.0029 | AL49: 0 | AN49: Vanguard High Growth Index Fund | AO49: TRUE | AP49: 0.0004 | AQ49: 0
A50: Cash | B50: IOOF Cash Management Trust | C50: AUX0021AU | D50: Essentials | E50: =IFERROR(VLOOKUP(C50,rebates!A:G,7,FALSE),"") ->  | F50: TL_CUSTOM_GROUP.ANZSingleClass | G50: 1 | H50: n/a | I50: n/a | J50: 0.003 | K50: 1 | L50: Very Low | M50: 16252 | N50: 2015-12-31 | O50: 0 | P50: 1 | Q50: 0 | R50: 1 | S50: 0 | T50: 0 | U50: 0 | V50: 0 | W50: 0 | X50: 0 | Y50: 0 | Z50: 0 | AA50: 0 | AB50: 0 | AC50: 0 | AD50: =A50 -> Cash | AE50: =B50 -> IOOF Cash Management Trust | AJ50: AUX0021AU | AK50: 0.003 | AL50: 0 | AN50: IOOF Cash Management Trust** | AO50: TRUE | AP50: 0 | AQ50: 0
A51: Cash | B51: IOOF MultiMix Cash Enhanced Trust | C51: IOF0091AU | D51: Essentials | E51: =IFERROR(VLOOKUP(C51,rebates!A:G,7,FALSE),"") ->  | F51: TL_CUSTOM_GROUP.ANZSingleClass | G51: 1 | H51: n/a | I51: n/a | J51: 0.0036 | K51: 1 | L51: Very Low | M51: 16252 | N51: 2015-12-31 | O51: 0 | P51: 1 | Q51: 0 | R51: 1 | S51: 0 | T51: 0 | U51: 0 | V51: 0 | W51: 0 | X51: 0 | Y51: 0 | Z51: 0 | AA51: 0 | AB51: 0 | AC51: 0 | AD51: =A51 -> Cash | AE51: =B51 -> IOOF MultiMix Cash Enhanced Trust | AJ51: IOF0091AU | AK51: 0.0036 | AL51: 0 | AN51: IOOF Cash Management Trust** | AO51: TRUE | AP51: 0 | AQ51: 0
A52: Cash | B52: Macquarie Master Cash Fund | C52: MAQ0187AU | D52: Optional Extensive MFs | E52: =IFERROR(VLOOKUP(C52,rebates!A:G,7,FALSE),"") -> 0 | F52: TL_CUSTOM_GROUP.ANZSingleClass | G52: 1 | H52: n/a | I52: n/a | J52: 0.0051 | K52: 1 | L52: Very Low | M52: 6610 | N52: 2015-12-31 | O52: 0 | P52: 1 | Q52: 0 | R52: 1 | S52: 0 | T52: 0 | U52: 0 | V52: 0 | W52: 0 | X52: 0 | Y52: 0 | Z52: 0 | AA52: 0 | AB52: 0 | AC52: 0 | AD52: Cash | AE52: Macquarie Master Cash Fund | AJ52: MAQ0187AU | AK52: 0.0051 | AL52: 0 | AN52: Macquarie Master Cash Fund | AO52: TRUE | AQ52: 0
A53: Cash | B53: Perpetual Exact Market Return Fund | C53: PER0258AU | D53: Essentials | E53: =IFERROR(VLOOKUP(C53,rebates!A:G,7,FALSE),"") -> 0 | F53: TL_CUSTOM_GROUP.ANZSingleClass | G53: 1 | H53: n/a | I53: n/a | J53: 0 | K53: 1 | L53: Very Low | M53: 16252 | N53: 2015-12-31 | O53: 0 | P53: 1 | Q53: 0 | R53: 1 | S53: 0 | T53: 0 | U53: 0 | V53: 0 | W53: 0 | X53: 0 | Y53: 0 | Z53: 0 | AA53: 0 | AB53: 0 | AC53: 0 | AD53: Cash | AE53: Perpetual Exact Market Return Fund | AJ53: PER0258AU | AK53: 0 | AL53: 0 | AN53: Perpetual Exact Market Return Fund | AO53: TRUE | AP53: 0 | AQ53: 0
A54: Cash | B54: UBS Cash Fund | C54: SBC0811AU | D54: Essentials | E54: =IFERROR(VLOOKUP(C54,rebates!A:G,7,FALSE),"") ->  | F54: TL_CUSTOM_GROUP.ANZSingleClass | G54: 1 | H54: n/a | I54: n/a | J54: 0.001 | K54: 1 | L54: Very Low | M54: 2723 | N54: 2015-12-31 | O54: 1 | P54: 1 | Q54: 0 | R54: 0 | S54: 0 | T54: 0 | U54: 0 | V54: 0 | W54: 0 | X54: 0 | Y54: 0 | Z54: 0 | AA54: 0 | AB54: 0 | AC54: 0 | AD54: Cash | AE54: UBS Cash Fund | AJ54: SBC0811AU | AK54: 0.001 | AL54: 0 | AN54: UBS Cash Fund | AO54: TRUE | AQ54: 0
A55: Australian Fixed Interest | B55: Altius Sustainable Bond Fund | C55: AUS0071AU | D55: Essentials | E55: =IFERROR(VLOOKUP(C55,rebates!A:G,7,FALSE),"") -> 0 | F55: TL_CUSTOM_GROUP.ANZSingleClass | G55: 0.3 | H55: n/a | I55: n/a | J55: 0.0049 | K55: 3 | L55: Low to medium | M55: 5666 | N55: 2015-12-31 | O55: 0 | P55: 0.2 | Q55: 0.8 | R55: 1 | S55: 0 | T55: 0 | U55: 0 | V55: 0 | W55: 0 | X55: 0 | Y55: 0 | Z55: 0 | AA55: 0 | AB55: 0.3 | AC55: 0.001 | AD55: =A55 -> Australian Fixed Interest | AE55: =B55 -> Altius Sustainable Bond Fund | AJ55: AUS0071AU | AK55: 0.0049 | AL55: 0 | AN55: Altius Sustainable Bond Fund | AO55: TRUE | AP55: 0.0007 | AQ55: 0
A56: Australian Fixed Interest | B56: Janus Henderson Australian Fixed Interest Fund | C56: IOF0046AU | D56: Essentials | E56: =IFERROR(VLOOKUP(C56,rebates!A:G,7,FALSE),"") -> 0.0005 | F56: TL_CUSTOM_GROUP.ANZSingleClass | G56: 0.3 | H56: n/a | I56: n/a | J56: 0.0045 | K56: 3 | L56: Low to medium | M56: 5666 | N56: 2015-12-31 | O56: 0 | P56: 0.2 | Q56: 0.8 | R56: 1 | S56: 0 | T56: 0 | U56: 0 | V56: 0 | W56: 0 | X56: 0 | Y56: 0 | Z56: 0 | AA56: 0 | AB56: 0 | AC56: 0.007 | AD56: Australian Fixed Interest | AE56: Janus Henderson Australian Fixed Interest Fund | AJ56: IOF0046AU | AK56: 0.0045 | AL56: 0 | AN56: Janus Henderson Australian Fixed Interest Fund | AO56: TRUE | AP56: 0.0007 | AQ56: 0
A57: Australian Fixed Interest | B57: Janus Henderson Tactical Income Fund | C57: IOF0145AU | D57: Essentials | E57: =IFERROR(VLOOKUP(C57,rebates!A:G,7,FALSE),"") -> 0.0005 | F57: TL_CUSTOM_GROUP.ANZSingleClass | G57: 0.3 | H57: n/a | I57: n/a | J57: 0.0045 | K57: 1 | L57: Very Low | M57: 17406 | N57: 2015-12-31 | O57: 0 | P57: 0.2 | Q57: 0 | R57: 1 | S57: 0 | T57: 0 | U57: 0 | V57: 0 | W57: 0 | X57: 0 | Y57: 0 | Z57: 0 | AA57: 0 | AB57: 0 | AC57: 0.007 | AD57: Australian Fixed Interest | AE57: Janus Henderson Tactical Income Fund | AJ57: IOF0145AU | AK57: 0.0045 | AL57: 0 | AN57: Janus Henderson Tactical Income Fund | AO57: TRUE | AP57: 0.0005 | AQ57: 0
A58: Australian Fixed Interest | B58: Legg Mason Western Asset Australian Bond Fund | C58: SSB0122AU | D58: Essentials | E58: =IFERROR(VLOOKUP(C58,rebates!A:G,7,FALSE),"") -> 0 | F58: TL_CUSTOM_GROUP.ANZSingleClass | G58: 0.3 | H58: n/a | I58: n/a | J58: 0.0042 | K58: 3 | L58: Low to medium | M58: 10858 | N58: 2015-12-31 | O58: 0 | P58: 0.5 | Q58: 0.5 | R58: 1 | S58: 0 | T58: 0 | U58: 0 | V58: 0 | W58: 0 | X58: 0 | Y58: 0 | Z58: 0 | AA58: 0 | AB58: 0 | AC58: 0.0058 | AD58: =A58 -> Australian Fixed Interest | AE58: =B58 -> Legg Mason Western Asset Australian Bond Fund | AJ58: SSB0122AU | AK58: 0.0042 | AL58: 0 | AN58: Legg Mason Western Asset Australian Bond Fund | AO58: FALSE | AP58: 0 | AQ58: 0
A59: Australian Fixed Interest | B59: Macquarie Australian Fixed Interest Fund | C59: MAQ0061AU | D59: Essentials | E59: =IFERROR(VLOOKUP(C59,rebates!A:G,7,FALSE),"") ->  | F59: TL_CUSTOM_GROUP.ANZSingleClass | G59: 0.3 | H59: n/a | I59: n/a | J59: 0.004 | K59: 3 | L59: Low to medium | M59: 10858 | N59: 2015-12-31 | O59: 0 | P59: 0.5 | Q59: 0.5 | R59: 1 | S59: 0 | T59: 0 | U59: 0 | V59: 0 | W59: 0 | X59: 0 | Y59: 0 | Z59: 0 | AA59: 0 | AB59: 0 | AC59: 0.0012 | AD59: =A59 -> Australian Fixed Interest | AE59: =B59 -> Macquarie Australian Fixed Interest Fund | AJ59: MAQ0061AU | AK59: 0.004 | AL59: =AK59-J59 -> 0 | AN59: Legg Mason Western Asset Australian Bond Fund | AO59: FALSE | AP59: 0 | AQ59: 0
A60: Australian Fixed Interest | B60: Nikko AM Australian Bond Fund | C60: TYN0104AU | D60: Optional Extensive MFs | E60: =IFERROR(VLOOKUP(C60,rebates!A:G,7,FALSE),"") -> 0.001 | F60: TL_CUSTOM_GROUP.ANZSingleClass | G60: 0.3 | H60: n/a | I60: n/a | J60: 0.003 | K60: 3 | L60: Low to medium | M60: 10858 | N60: 2015-12-31 | O60: 0 | P60: 0.5 | Q60: 0.5 | R60: 1 | S60: 0 | T60: 0 | U60: 0 | V60: 0 | W60: 0 | X60: 0 | Y60: 0 | Z60: 0 | AA60: 0 | AB60: 0 | AC60: 0.004 | AD60: Australian Fixed Interest | AE60: Nikko AM Australian Bond Fund | AJ60: TYN0104AU | AK60: 0.003 | AL60: 0 | AN60: Nikko AM Australian Bond Fund | AO60: TRUE | AP60: 0.001 | AQ60: 0
A61: Australian Fixed Interest | B61: Pendal Sustainable Australian Fixed Interest Fund | C61: BTA0507AU | D61: Essentials | E61: =IFERROR(VLOOKUP(C61,rebates!A:G,7,FALSE),"") ->  | F61: TL_CUSTOM_GROUP.ANZSingleClass | G61: 0.3 | H61: n/a | I61: n/a | J61: 0.004 | K61: 4 | L61: Medium | M61: 10881 | N61: 2015-12-31 | O61: 0 | P61: 0 | Q61: 0.7 | R61: 1 | S61: 0 | T61: 0.3 | U61: 0 | V61: 0 | W61: 0 | X61: 0 | Y61: 0 | Z61: 0 | AA61: 0 | AB61: 0 | AC61: 0.0014 | AD61: =A61 -> Australian Fixed Interest | AE61: =B61 -> Pendal Sustainable Australian Fixed Interest Fund | AJ61: BTA0507AU | AK61: 0.004 | AL61: 0 | AN61: Pendal Sustainable Australian Fixed Interest Fund | AO61: TRUE | AQ61: 0
A62: Australian Fixed Interest | B62: PIMCO Wholesale Australian Bond Fund | C62: ETL0015AU | D62: Essentials | E62: =IFERROR(VLOOKUP(C62,rebates!A:G,7,FALSE),"") ->  | F62: TL_CUSTOM_GROUP.ANZSingleClass | G62: 0.3 | H62: n/a | I62: n/a | J62: 0.0054 | K62: 4 | L62: Medium | M62: 10881 | N62: 2015-12-31 | O62: 0 | P62: 0 | Q62: 0.7 | R62: 1 | S62: 0 | T62: 0.3 | U62: 0 | V62: 0 | W62: 0 | X62: 0 | Y62: 0 | Z62: 0 | AA62: 0 | AB62: 0 | AC62: 0.0011 | AD62: Australian Fixed Interest | AE62: PIMCO Wholesale Australian Bond Fund | AJ62: ETL0015AU | AK62: 0.0054 | AL62: 0 | AN62: PIMCO Wholesale Australian Bond Fund | AO62: TRUE | AQ62: 0
A63: Australian Fixed Interest | B63: Schroder Fixed Income Fund | C63: SCH0028AU | D63: Essentials | E63: =IFERROR(VLOOKUP(C63,rebates!A:G,7,FALSE),"") -> 0 | F63: TL_CUSTOM_GROUP.ANZSingleClass | G63: 0.3 | H63: n/a | I63: n/a | J63: 0.0046 | K63: 2 | L63: Low | M63: 10862 | N63: 2015-12-31 | O63: 0 | P63: 0.5 | Q63: 0 | R63: 0.75 | S63: 0 | T63: 0.5 | U63: 0 | V63: 0 | W63: 0 | X63: 0 | Y63: 0 | Z63: 0 | AA63: 0 | AB63: 0 | AC63: 0.0087 | AD63: Australian Fixed Interest | AE63: Schroder Fixed Income Fund | AJ63: SCH0028AU | AK63: 0.0046 | AL63: 0 | AN63: Schroder Fixed Income Fund | AO63: TRUE | AP63: 0 | AQ63: 0
A64: Australian Fixed Interest | B64: UBS Australian Bond Fund | C64: SBC0813AU | D64: Essentials | E64: =IFERROR(VLOOKUP(C64,rebates!A:G,7,FALSE),"") -> 0.00045 | F64: TL_CUSTOM_GROUP.ANZSingleClass | G64: 0.3 | H64: n/a | I64: n/a | J64: 0.0045 | K64: 3 | L64: Low to medium | M64: 2579 | N64: 2015-12-31 | O64: 0 | P64: 1 | Q64: 0 | R64: 1 | S64: 0 | T64: 0 | U64: 0 | V64: 0 | W64: 0 | X64: 0 | Y64: 0 | Z64: 0 | AA64: 0 | AB64: 0 | AC64: 0.0084 | AD64: Australian Fixed Interest | AE64: UBS Australian Bond Fund | AJ64: SBC0813AU | AK64: 0.0045 | AL64: 0 | AN64: UBS Australian Bond Fund | AO64: TRUE | AP64: 0.00045 | AQ64: 0
A65: Australian Fixed Interest | B65: Vanguard Australian Fixed Interest Index Fund | C65: VAN0001AU | D65: Essentials | E65: =IFERROR(VLOOKUP(C65,rebates!A:G,7,FALSE),"") -> 0.0003 | F65: TL_CUSTOM_GROUP.ANZSingleClass | G65: 0.3 | H65: n/a | I65: n/a | J65: 0.0024 | K65: 4 | L65: Medium | M65: 4487 | N65: 2015-12-31 | O65: 0 | P65: 0.1 | Q65: 0.9 | R65: 1 | S65: 0 | T65: 0 | U65: 0 | V65: 0 | W65: 0 | X65: 0 | Y65: 0 | Z65: 0 | AA65: 0 | AB65: 0 | AC65: 0.0058 | AD65: Australian Fixed Interest | AE65: Vanguard Australian Fixed Interest Index Fund | AJ65: VAN0001AU | AK65: 0.0024 | AL65: 0 | AN65: Vanguard Australian Fixed Interest Index Fund | AO65: TRUE | AP65: 0.0003 | AQ65: 0
A66: International Fixed Interest | B66: Colchester Global Government Bond Fund - Class I | C66: ETL5525AU | D66: Essentials | E66: =IFERROR(VLOOKUP(C66,rebates!A:G,7,FALSE),"") ->  | F66: TL_CUSTOM_GROUP.ANZSingleClass | G66: 0.3 | H66: n/a | I66: n/a | J66: 0.0062 | K66: 3 | L66: Low to medium | M66: 10883 | N66: 2015-12-31 | O66: 0 | P66: 0.1 | Q66: 0 | R66: 0.1 | S66: 0.9 | T66: 1 | U66: 0 | V66: 0 | W66: 0 | X66: 0 | Y66: 0 | Z66: 0 | AA66: 0 | AB66: 0 | AC66: 0 | AD66: =A66 -> International Fixed Interest | AE66: =B66 -> Colchester Global Government Bond Fund - Class I | AJ66: ETL5525AU | AK66: 0.0062 | AL66: 0 | AN66: Colchester Global Government Bond Fund - Class I | AO66: FALSE | AQ66: 0
A67: International Fixed Interest | B67: PIMCO ESG Global Bond Fund - Wholesale Class | C67: PIC6396AU | D67: Essentials | E67: =IFERROR(VLOOKUP(C67,rebates!A:G,7,FALSE),"") ->  | F67: TL_CUSTOM_GROUP.ANZSingleClass | G67: 0.3 | H67: n/a | I67: n/a | J67: 0.0092 | K67: 3 | L67: Low to medium | M67: 10883 | N67: 2015-12-31 | O67: 0 | P67: 0.1 | Q67: 0 | R67: 0.1 | S67: 0.9 | T67: 1 | U67: 0 | V67: 0 | W67: 0 | X67: 0 | Y67: 0 | Z67: 0 | AA67: 0 | AB67: 0 | AC67: 0 | AD67: International Fixed Interest | AE67: PIMCO ESG Global Bond Fund - Wholesale Class | AJ67: PIC6396AU | AK67: 0.0092 | AL67: 0 | AN67: PIMCO ESG Global Bond Fund - Wholesale Class | AO67: TRUE | AQ67: 0
A68: International Fixed Interest | B68: PIMCO Wholesale Global Bond Fund | C68: ETL0018AU | D68: Essentials | E68: =IFERROR(VLOOKUP(C68,rebates!A:G,7,FALSE),"") ->  | F68: TL_CUSTOM_GROUP.ANZSingleClass | G68: 0.3 | H68: n/a | I68: n/a | J68: 0.0075 | K68: 3 | L68: Low to medium | M68: 10883 | N68: 2015-12-31 | O68: 0 | P68: 0.1 | Q68: 0 | R68: 0.1 | S68: 0.9 | T68: 1 | U68: 0 | V68: 0 | W68: 0 | X68: 0 | Y68: 0 | Z68: 0 | AA68: 0 | AB68: 0 | AC68: 0.0011 | AD68: International Fixed Interest | AE68: PIMCO Wholesale Global Bond Fund | AJ68: ETL0018AU | AK68: 0.0075 | AL68: 0 | AN68: PIMCO Wholesale Global Bond Fund | AO68: TRUE | AQ68: 0
A69: International Fixed Interest | B69: T. Rowe Price Dynamic Global Bond Fund | C69: ETL0398AU | D69: Essentials | E69: =IFERROR(VLOOKUP(C69,rebates!A:G,7,FALSE),"") -> 0 | F69: TL_CUSTOM_GROUP.ANZSingleClass | G69: 0.3 | H69: n/a | I69: n/a | J69: 0.004 | N69: 2015-12-31 | O69: 0 | P69: 0.1 | Q69: 0 | R69: 0 | S69: 0.9 | T69: 1 | U69: 0 | V69: 0 | W69: 0 | X69: 0 | Y69: 0 | Z69: 0 | AA69: 0 | AB69: 0 | AC69: 0.005 | AD69: International Fixed Interest | AE69: T. Rowe Price Dynamic Global Bond Fund | AJ69: ETL0398AU | AK69: 0.004 | AL69: 0 | AN69: T. Rowe Price Dynamic Global Bond Fund | AO69: TRUE | AQ69: 0
A70: International Fixed Interest | B70: Vanguard International Fixed Interest Index Fund (Hedged) | C70: VAN0103AU | D70: Essentials | E70: =IFERROR(VLOOKUP(C70,rebates!A:G,7,FALSE),"") -> 0.0003 | F70: TL_CUSTOM_GROUP.ANZSingleClass | G70: 0.3 | H70: n/a | I70: n/a | J70: 0.0026 | K70: 4 | L70: Medium | M70: 6428 | N70: 2015-12-31 | O70: 0 | P70: 0 | Q70: 0 | R70: 0 | S70: 1 | T70: 1 | U70: 0 | V70: 0 | W70: 0 | X70: 0 | Y70: 0 | Z70: 0 | AA70: 0 | AB70: 0 | AC70: 0.0056 | AD70: International Fixed Interest | AE70: Vanguard International Fixed Interest Index Fund (Hedged) | AJ70: VAN0103AU | AK70: 0.0026 | AL70: 0 | AN70: Vanguard International Fixed Interest Index Fund (Hedged) | AO70: TRUE | AP70: 0.0003 | AQ70: 0
A71: Diversified Fixed Interest | B71: Ardea Real Outcome Fund | C71: HOW0098AU | D71: Optional Extensive MFs | E71: =IFERROR(VLOOKUP(C71,rebates!A:G,7,FALSE),"") ->  | F71: TL_CUSTOM_GROUP.ANZSingleClass | G71: 0.3 | H71: n/a | I71: n/a | J71: 0.005 | K71: 4 | L71: Medium | M71: 9839 | N71: 2015-12-31 | O71: 0 | P71: 0 | Q71: 0.2 | R71: 1 | S71: 0.5 | T71: 1 | U71: 0 | V71: 0 | W71: 0 | X71: 0 | Y71: 0 | Z71: 0 | AA71: 0 | AB71: 0 | AC71: 0.0015 | AD71: =A71 -> Diversified Fixed Interest | AE71: =B71 -> Ardea Real Outcome Fund | AJ71: HOW0098AU | AK71: 0.005 | AL71: 0 | AN71: Ardea Real Outcome Fund | AO71: TRUE | AP71: 0 | AQ71: 0
A72: Diversified Fixed Interest | B72: Franklin Australian Absolute Return Bond | C72: FRT0027AU | D72: Optional Extensive MFs | E72: =IFERROR(VLOOKUP(C72,rebates!A:G,7,FALSE),"") ->  | F72: TL_CUSTOM_GROUP.ANZSingleClass | G72: 0.3 | H72: n/a | I72: n/a | J72: 0.0066 | K72: 4 | L72: Medium | M72: 9839 | N72: 2015-12-31 | O72: 0 | P72: 0 | Q72: 0.2 | R72: 1 | S72: 0.5 | T72: 1 | U72: 0 | V72: 0 | W72: 0 | X72: 0 | Y72: 0 | Z72: 0 | AA72: 0 | AB72: 0 | AC72: 0.0015 | AD72: Diversified Fixed Interest | AE72: Franklin Australian Absolute Return Bond | AJ72: IOF0096AU | AK72: 0.0066 | AL72: =AK72-J72 -> 0 | AN72: Ardea Real Outcome Fund | AO72: TRUE | AP72: 0 | AQ72: 0
A73: Diversified Fixed Interest | B73: IOOF MultiMix Diversified Fixed Interest Trust | C73: IOF0096AU | D73: Essentials | E73: =IFERROR(VLOOKUP(C73,rebates!A:G,7,FALSE),"") ->  | F73: TL_CUSTOM_GROUP.ANZSingleClass | G73: 0.3 | H73: n/a | I73: n/a | J73: 0.0066 | K73: 4 | L73: Medium | M73: 9839 | N73: 2015-12-31 | O73: 0 | P73: 0 | Q73: 0.2 | R73: 1 | S73: 0.5 | T73: 1 | U73: 0 | V73: 0 | W73: 0 | X73: 0 | Y73: 0 | Z73: 0 | AA73: 0 | AB73: 0 | AC73: 0.0015 | AD73: =A73 -> Diversified Fixed Interest | AE73: =B73 -> IOOF MultiMix Diversified Fixed Interest Trust | AJ73: IOF0096AU | AK73: 0.0066 | AL73: 0 | AN73: Ardea Real Outcome Fund | AO73: TRUE | AP73: 0 | AQ73: 0
A74: Diversified Fixed Interest | B74: Macquarie Dynamic Bond Fund | C74: MAQ0274AU | D74: Optional Extensive MFs | E74: =IFERROR(VLOOKUP(C74,rebates!A:G,7,FALSE),"") -> 0 | F74: TL_CUSTOM_GROUP.ANZSingleClass | G74: 0.3 | H74: n/a | I74: n/a | J74: 0.0063 | K74: 4 | L74: Medium | M74: 9839 | N74: 2015-12-31 | O74: 0 | P74: 0 | Q74: 0.2 | R74: 1 | S74: 0.5 | T74: 1 | U74: 0 | V74: 0 | W74: 0 | X74: 0 | Y74: 0 | Z74: 0 | AA74: 0 | AB74: 0 | AC74: 0.0015 | AD74: Diversified Fixed Interest | AE74: Macquarie Dynamic Bond Fund | AJ74: MAQ0274AU | AK74: 0.0063 | AL74: =AK74-J74 -> 0 | AN74: Macquarie Dynamic Bond Fund | AO74: TRUE | AQ74: 0
A75: Diversified Fixed Interest | B75: OnePath Wholesale Diversified Fixed Interest Trust | C75: ANZ0212AU | D75: Essentials | E75: =IFERROR(VLOOKUP(C75,rebates!A:G,7,FALSE),"") -> 0.001 | F75: TL_CUSTOM_GROUP.ANZSingleClass | G75: 0.3 | H75: n/a | I75: n/a | J75: 0.0063 | K75: 3 | L75: Low to medium | M75: 7697 | N75: 2015-12-31 | O75: 0 | P75: 0.9 | Q75: 0 | R75: 0.9 | S75: 0 | T75: 0.9 | U75: 0 | V75: 0 | W75: 0 | X75: 0 | Y75: 0 | Z75: 0 | AA75: 0 | AB75: 0 | AC75: 0.0005 | AD75: Diversified Fixed Interest | AE75: OnePath Wholesale Diversified Fixed Interest Trust | AJ75: ANZ0212AU | AK75: 0.0063 | AL75: 0 | AN75: OnePath Wholesale Diversified Fixed Interest Trust** | AO75: FALSE | AP75: 0.001 | AQ75: 0
A76: Diversified Fixed Interest | B76: Perpetual Wholesale Diversified Income Fund | C76: PER0260AU | D76: Optional Extensive MFs | F76: TL_CUSTOM_GROUP.ANZSingleClass | G76: 0.3 | J76: 0.0059 | AC76: 0.0145 | AD76: =A76 -> Diversified Fixed Interest | AE76: =B76 -> Perpetual Wholesale Diversified Income Fund | AJ76: PER0260AU | AK76: 0.0059 | AL76: 0 | AN76: Perpetual Wholesale Diversified Income Fund | AO76: TRUE | AP76: 0 | AQ76: 0
A77: Diversified Fixed Interest | B77: PIMCO Diversified Fixed Interest Fund - Wholesale Class | C77: ETL0016AU | D77: Essentials | E77: =IFERROR(VLOOKUP(C77,rebates!A:G,7,FALSE),"") -> 0 | F77: TL_CUSTOM_GROUP.ANZSingleClass | G77: 0.3 | H77: n/a | I77: n/a | J77: 0.0065 | K77: 3 | L77: Low to medium | M77: 4866 | N77: 2015-12-31 | O77: 0.2 | P77: 0.8 | Q77: 0.2 | R77: 0.8 | S77: 0.2 | T77: 0.8 | U77: 0 | V77: 0 | W77: 0 | X77: 0 | Y77: 0 | Z77: 0 | AA77: 0 | AB77: 0 | AC77: 0.0011 | AD77: Diversified Fixed Interest | AE77: PIMCO Diversified Fixed Interest Fund - Wholesale Class | AJ77: ETL0016AU | AK77: 0.0065 | AL77: 0 | AN77: PIMCO Diversified Fixed Interest Fund - Wholesale Class | AO77: TRUE | AP77: 0 | AQ77: 0
A78: Diversified Fixed Interest | B78: UBS Diversified Fixed Income Fund | C78: SBC0007AU | D78: Essentials | E78: =IFERROR(VLOOKUP(C78,rebates!A:G,7,FALSE),"") -> 0.00055 | F78: TL_CUSTOM_GROUP.ANZSingleClass | G78: 0.3 | H78: n/a | I78: n/a | J78: 0.0055 | K78: 3 | L78: Low to medium | M78: 4866 | N78: 2015-12-31 | O78: 0.2 | P78: 0.8 | Q78: 0.2 | R78: 0.8 | S78: 0.2 | T78: 0.8 | U78: 0 | V78: 0 | W78: 0 | X78: 0 | Y78: 0 | Z78: 0 | AA78: 0 | AB78: 0 | AC78: 0.01 | AD78: Diversified Fixed Interest | AE78: UBS Diversified Fixed Income Fund | AJ78: SBC0007AU | AK78: 0.0055 | AL78: 0 | AN78: UBS Diversified Fixed Income Fund | AO78: TRUE | AP78: 0.00055 | AQ78: 0
A79: Diversified Fixed Interest | B79: Vanguard Diversified Bond Index Fund | C79: VAN0042AU | D79: Essentials | E79: =IFERROR(VLOOKUP(C79,rebates!A:G,7,FALSE),"") -> 0.0004 | F79: TL_CUSTOM_GROUP.ANZSingleClass | G79: 0.3 | H79: n/a | I79: n/a | J79: 0.0029 | K79: 4 | L79: Medium | M79: 19090 | N79: 2015-12-31 | O79: 0 | P79: 0 | Q79: 0.4 | R79: 0.4 | S79: 0.6 | T79: 0.6 | U79: 0 | V79: 0 | W79: 0 | X79: 0 | Y79: 0 | Z79: 0 | AA79: 0 | AB79: 0 | AC79: 0.0081 | AD79: Diversified Fixed Interest | AE79: Vanguard Diversified Bond Index Fund | AJ79: VAN0042AU | AK79: 0.0029 | AL79: 0 | AN79: Vanguard Diversified Bond Index Fund | AO79: TRUE | AP79: 0.0004 | AQ79: 0
A80: Diversified Credit | B80: Bentham Syndicated Loan Fund | C80: CSA0046AU | D80: Optional Extensive MFs | E80: =IFERROR(VLOOKUP(C80,rebates!A:G,7,FALSE),"") ->  | F80: TL_CUSTOM_GROUP.ANZSingleClass | G80: 0.3 | H80: n/a | I80: n/a | J80: 0.0084 | K80: 3 | L80: Low to medium | M80: 10872 | N80: 2015-12-31 | O80: 0 | P80: 1 | Q80: 0 | R80: 1 | S80: 0 | T80: 1 | U80: 0 | V80: 0 | W80: 0 | X80: 0 | Y80: 0 | Z80: 0 | AA80: 0 | AB80: 0 | AD80: =A80 -> Diversified Credit | AE80: =B80 -> Bentham Syndicated Loan Fund | AJ80: CSA0046AU | AK80: 0.0084 | AL80: =AK80-J80 -> 0 | AN80: First Sentier Wholesale Global Credit Income Fund | AO80: TRUE | AQ80: 0
A81: Diversified Credit | B81: First Sentier Wholesale Global Credit Income Fund | C81: FSF0084AU | D81: Essentials | E81: =IFERROR(VLOOKUP(C81,rebates!A:G,7,FALSE),"") -> 0 | F81: TL_CUSTOM_GROUP.ANZSingleClass | G81: 0.3 | H81: n/a | I81: n/a | J81: 0.0062 | K81: 3 | L81: Low to medium | M81: 10872 | N81: 2015-12-31 | O81: 0 | P81: 1 | Q81: 0 | R81: 1 | S81: 0 | T81: 1 | U81: 0 | V81: 0 | W81: 0 | X81: 0 | Y81: 0 | Z81: 0 | AA81: 0 | AB81: 0 | AC81: 0.005 | AD81: Diversified Credit | AE81: First Sentier Wholesale Global Credit Income Fund | AJ81: FSF0084AU | AK81: 0.0062 | AL81: 0 | AN81: First Sentier Wholesale Global Credit Income Fund | AO81: TRUE | AQ81: 0
A82: Diversified Credit | B82: Kapstream Absolute Return Income Fund | C82: HOW0052AU | D82: Essentials | E82: =IFERROR(VLOOKUP(C82,rebates!A:G,7,FALSE),"") -> 0 | F82: TL_CUSTOM_GROUP.ANZSingleClass | G82: 0.3 | H82: n/a | I82: n/a | J82: 0.0055 | K82: 3 | L82: Low to medium | M82: 17256 | N82: 2015-12-31 | O82: 0 | P82: 1 | Q82: 0 | R82: 0 | S82: 0 | T82: 1 | U82: 0 | V82: 0 | W82: 0 | X82: 0 | Y82: 0 | Z82: 0 | AA82: 0 | AB82: 0 | AC82: 0.0175 | AD82: =A82 -> Diversified Credit | AE82: =B82 -> Kapstream Absolute Return Income Fund | AJ82: HOW0052AU | AK82: 0.0055 | AL82: 0 | AN82: Kapstream Absolute Return Income Fund | AO82: TRUE | AP82: 0 | AQ82: 0
A83: Diversified Credit | B83: Macquarie Income Opportunities Fund | C83: MAQ0277AU | D83: Essentials | E83: =IFERROR(VLOOKUP(C83,rebates!A:G,7,FALSE),"") -> 0 | F83: TL_CUSTOM_GROUP.ANZSingleClass | G83: 0.3 | H83: n/a | I83: n/a | J83: 0.0051 | K83: 3 | L83: Low to medium | M83: 10715 | N83: 2015-12-31 | O83: 0 | P83: 1 | Q83: 0.2 | R83: 1 | S83: 0 | T83: 0.75 | U83: 0 | V83: 0 | W83: 0 | X83: 0 | Y83: 0 | Z83: 0 | AA83: 0 | AB83: 0 | AC83: 0.0029 | AD83: Diversified Credit | AE83: Macquarie Income Opportunities Fund | AJ83: MAQ0277AU | AK83: 0.0051 | AL83: 0 | AN83: Macquarie Income Opportunities Fund | AO83: TRUE | AQ83: 0
A84: Diversified Credit | B84: UBS Income Solution Fund | C84: UBS0003AU | D84: Optional Extensive MFs | E84: =IFERROR(VLOOKUP(C84,rebates!A:G,7,FALSE),"") -> 0.0007 | F84: TL_CUSTOM_GROUP.ANZSingleClass | G84: 0.3 | H84: n/a | I84: n/a | J84: 0.006 | K84: 3 | L84: Low to medium | M84: 8855 | N84: 2015-12-31 | O84: 0 | P84: 0.2 | Q84: 0 | R84: 1 | S84: 0 | T84: 1 | U84: 0 | V84: 0 | W84: 0 | X84: 0 | Y84: 0 | Z84: 0 | AA84: 0 | AB84: 0 | AC84: 0.02 | AD84: Diversified Credit | AE84: UBS Income Solution Fund | AJ84: UBS0003AU | AK84: 0.006 | AL84: 0 | AN84: UBS Income Solution Fund | AO84: TRUE | AP84: 0.0007 | AQ84: 0
A85: Growth Fixed Income | B85: Bentham Global Income Fund | C85: CSA0038AU | D85: Essentials | E85: =IFERROR(VLOOKUP(C85,rebates!A:G,7,FALSE),"") -> 0.0025 | F85: TL_CUSTOM_GROUP.ANZSingleClass | G85: 0.3 | H85: n/a | I85: n/a | J85: 0.0077 | K85: 3 | L85: Low to medium | M85: 10751 | N85: 2015-12-31 | O85: 0 | P85: 0.2 | Q85: 0 | R85: 0.3 | S85: 0.6 | T85: 1 | U85: 0 | V85: 0 | W85: 0 | X85: 0 | Y85: 0 | Z85: 0 | AA85: 0 | AB85: 0 | AC85: 0.016 | AD85: Growth Fixed Income | AE85: Bentham Global Income Fund | AJ85: CSA0038AU | AK85: 0.0077 | AL85: 0 | AN85: Bentham Global Income Fund | AO85: TRUE | AP85: 0.0025 | AQ85: 0
A86: Growth Fixed Income | B86: Franklin Templeton Multisector Bond Fund (Class W) | C86: FRT0011AU | D86: Optional Extensive MFs | E86: =IFERROR(VLOOKUP(C86,rebates!A:G,7,FALSE),"") -> 0 | F86: TL_CUSTOM_GROUP.ANZSingleClass | G86: 0.3 | H86: n/a | I86: n/a | J86: 0.0085 | K86: 3 | L86: Low to medium | M86: 17390 | N86: 2015-12-31 | O86: 0 | P86: 1 | Q86: 0 | R86: 0 | S86: 0 | T86: 1 | U86: 0 | V86: 0 | W86: 0 | X86: 0 | Y86: 0 | Z86: 0 | AA86: 0 | AB86: 0 | AC86: 0 | AD86: Growth Fixed Income | AE86: Franklin Templeton Multisector Bond Fund (Class W) | AJ86: FRT0011AU | AK86: 0.0085 | AL86: 0 | AN86: Franklin Templeton Multisector Bond Fund (Class W) | AO86: TRUE | AP86: 0 | AQ86: 0 | AR86: Confirmed to be zero not 0.05% p.a.
A87: Growth Fixed Income | B87: J P Morgan Global Strategic Bond Fund | C87: PER0727AU | D87: Optional Extensive MFs | E87: =IFERROR(VLOOKUP(C87,rebates!A:G,7,FALSE),"") ->  | F87: TL_CUSTOM_GROUP.ANZSingleClass | G87: 0.3 | H87: n/a | I87: n/a | J87: 0.0052 | K87: 4 | L87: Medium | M87: 40257 | N87: 2015-12-31 | O87: 0 | P87: 1 | Q87: 0 | R87: 0.3 | S87: 0 | T87: 1 | U87: 0 | V87: 0 | W87: 0 | X87: 0 | Y87: 0 | Z87: 0 | AA87: 0 | AB87: 0 | AC87: 0.0031 | AD87: Growth Fixed Income | AE87: J P Morgan Global Strategic Bond Fund | AJ87: PER0727AU | AK87: 0.0052 | AL87: 0 | AN87: J P Morgan Global Strategic Bond Fund | AO87: TRUE | AQ87: 0
A88: Growth Fixed Income | B88: Payden Global Income Opportunities Fund | C88: GSF0008AU | D88: Essentials | E88: =IFERROR(VLOOKUP(C88,rebates!A:G,7,FALSE),"") -> 0.0014 | F88: TL_CUSTOM_GROUP.ANZSingleClass | G88: 0.3 | H88: n/a | I88: n/a | J88: 0.0072 | K88: 4 | L88: Medium | M88: 40257 | N88: 2015-12-31 | O88: 0 | P88: 1 | Q88: 0 | R88: 0.3 | S88: 0 | T88: 1 | U88: 0 | V88: 0 | W88: 0 | X88: 0 | Y88: 0 | Z88: 0 | AA88: 0 | AB88: 0 | AC88: 0.0019 | AD88: =A88 -> Growth Fixed Income | AE88: =B88 -> Payden Global Income Opportunities Fund | AJ88: GSF0008AU | AK88: 0.0072 | AL88: 0 | AN88: Payden Global Income Opportunities Fund | AO88: TRUE | AP88: 0.0014 | AQ88: 0
A89: Growth Fixed Income | B89: PIMCO Income Fund - Wholesale Class | C89: ETL0458AU | D89: Optional Extensive MFs | F89: TL_CUSTOM_GROUP.ANZSingleClass | G89: 0.3 | H89: n/a | I89: n/a | J89: 0.0096 | AC89: 0 | AD89: Growth Fixed Income | AE89: PIMCO Income Fund - Wholesale Class | AJ89: ETL0458AU | AK89: 0.0096 | AL89: 0 | AN89: PIMCO Income Fund - Wholesale Class | AO89: TRUE | AQ89: 0
A90: Property - Australian | B90: APN AREIT Fund | C90: APN0008AU | D90: Optional Extensive MFs | E90: =IFERROR(VLOOKUP(C90,rebates!A:G,7,FALSE),"") -> 0.001 | F90: TL_CUSTOM_GROUP.ANZSingleClass | G90: 0.3 | H90: n/a | I90: n/a | J90: 0.0085 | K90: 6 | L90: High | M90: 17006 | N90: 2015-12-31 | O90: 0 | P90: 0.1 | Q90: 0 | R90: 0 | S90: 0 | T90: 0 | U90: 0 | V90: 0 | W90: 0 | X90: 0 | Y90: 0.9 | Z90: 1 | AA90: 0 | AB90: 0 | AC90: 0.0051 | AD90: Property - Australian | AE90: APN AREIT Fund | AJ90: APN0008AU | AK90: 0.0085 | AL90: 0 | AN90: APN AREIT Fund | AO90: TRUE | AP90: 0.10% - 0.15% | AQ90: 0.001 | AR90: Okay
A91: Property - Australian | B91: OnePath Wholesale Property Securities Trust | C91: AJF0803AU | D91: Essentials | E91: =IFERROR(VLOOKUP(C91,rebates!A:G,7,FALSE),"") -> 0.0015 | F91: TL_CUSTOM_GROUP.ANZSingleClass | G91: 0.3 | H91: n/a | I91: n/a | J91: 0.0095 | K91: 6 | L91: High | M91: 3202 | N91: 2015-12-31 | O91: 0 | P91: 0.05 | Q91: 0 | R91: 0 | S91: 0 | T91: 0 | U91: 0 | V91: 0 | W91: 0 | X91: 0 | Y91: 0.95 | Z91: 1 | AA91: 0 | AB91: 0 | AC91: 0.0033 | AD91: Property - Australian | AE91: OnePath Wholesale Property Securities Trust | AJ91: AJF0803AU | AK91: 0.0095 | AL91: 0 | AN91: OnePath Wholesale Property Securities Trust** | AO91: FALSE | AP91: 0.0015 | AQ91: 0
A92: Property - Australian | B92: Pendal Property Investment Fund | C92: RFA0817AU | D92: Optional Extensive MFs | E92: =IFERROR(VLOOKUP(C92,rebates!A:G,7,FALSE),"") -> 0.001 | F92: TL_CUSTOM_GROUP.ANZSingleClass | G92: 0.3 | H92: n/a | I92: n/a | J92: 0.0065 | K92: 6 | L92: High | M92: 2727 | N92: 2015-12-31 | O92: 0 | P92: 0.2 | Q92: 0 | R92: 0 | S92: 0 | T92: 0 | U92: 0 | V92: 0 | W92: 0 | X92: 0 | Y92: 0.8 | Z92: 1 | AA92: 0 | AB92: 0 | AC92: 0.005 | AD92: =A92 -> Property - Australian | AE92: =B92 -> Pendal Property Investment Fund | AJ92: RFA0817AU | AK92: 0.0065 | AL92: 0 | AN92: Pendal Property Investment Fund | AO92: TRUE | AP92: 0.001 | AQ92: 0
A93: Property - Australian | B93: Vanguard Australian Property Securities Index Fund | C93: VAN0004AU | D93: Essentials | E93: =IFERROR(VLOOKUP(C93,rebates!A:G,7,FALSE),"") -> 0.0003 | F93: TL_CUSTOM_GROUP.ANZSingleClass | G93: 0.3 | H93: n/a | I93: n/a | J93: 0.0023 | K93: 7 | L93: Very high | M93: 4744 | N93: 2015-12-31 | O93: 0 | P93: 0 | Q93: 0 | R93: 0 | S93: 0 | T93: 0 | U93: 0 | V93: 0 | W93: 0 | X93: 0 | Y93: 1 | Z93: 1 | AA93: 0 | AB93: 0 | AC93: 0.0012 | AD93: Property - Australian | AE93: Vanguard Australian Property Securities Index Fund | AJ93: VAN0004AU | AK93: 0.0023 | AL93: 0 | AN93: Vanguard Australian Property Securities Index Fund | AO93: TRUE | AP93: 0.0003 | AQ93: 0
A94: Property - Australian | B94: Zurich Investments Australian Property Securities Fund | C94: ZUR0064AU | D94: Essentials | E94: =IFERROR(VLOOKUP(C94,rebates!A:G,7,FALSE),"") -> 0.0009 | F94: TL_CUSTOM_GROUP.ANZSingleClass | G94: 0.3 | H94: n/a | I94: n/a | J94: 0.0081 | K94: 6 | L94: High | M94: 5396 | N94: 2015-12-31 | O94: 0 | P94: 0.05 | Q94: 0 | R94: 0 | S94: 0 | T94: 0 | U94: 0 | V94: 0 | W94: 0 | X94: 0 | Y94: 0.95 | Z94: 1 | AA94: 0 | AB94: 0 | AC94: 0.0060359 | AD94: Property - Australian | AE94: Zurich Investments Australian Property Securities Fund | AJ94: ZUR0064AU | AK94: 0.0081 | AL94: 0 | AN94: Zurich Investments Australian Property Securities Fund | AO94: TRUE | AP94: 0.09% - 0.13% | AQ94: 0.0009 | AR94: Okay
A95: Property - Global | B95: IOOF Specialist Property Fund | C95: WPC0012AU | D95: Essentials | E95: =IFERROR(VLOOKUP(C95,rebates!A:G,7,FALSE),"") ->  | F95: TL_CUSTOM_GROUP.ANZSingleClass | G95: 0.3 | H95: n/a | I95: n/a | J95: 0.0097 | K95: 7 | L95: Very high | M95: 12113 | N95: 2015-12-31 | O95: 0 | P95: 0.06 | Q95: 0 | R95: 0 | S95: 0 | T95: 0 | U95: 0 | V95: 0 | W95: 0 | X95: 0 | Y95: 0.94 | Z95: 1 | AA95: 0 | AB95: 0 | AC95: 0.0061 | AD95: =A95 -> Property - Global | AE95: =B95 -> IOOF Specialist Property Fund | AJ95: MGL0010AU | AK95: 0.0097 | AL95: =AK95-J95 -> 0 | AN95: Ironbark Global (ex-Australia) Property Securities Fund | AO95: TRUE | AP95: 0.10% - 0.20% | AQ95: 0.001 | AR95: Okay
A96: Property - Global | B96: Ironbark Global (ex-Australia) Property Securities Fund | C96: MGL0010AU | D96: Essentials | E96: =IFERROR(VLOOKUP(C96,rebates!A:G,7,FALSE),"") -> 0.001 | F96: TL_CUSTOM_GROUP.ANZSingleClass | G96: 0.3 | H96: n/a | I96: n/a | J96: 0.0123 | K96: 7 | L96: Very high | M96: 12113 | N96: 2015-12-31 | O96: 0 | P96: 0.06 | Q96: 0 | R96: 0 | S96: 0 | T96: 0 | U96: 0 | V96: 0 | W96: 0 | X96: 0 | Y96: 0.94 | Z96: 1 | AA96: 0 | AB96: 0 | AC96: 0.0061 | AD96: Property - Global | AE96: Ironbark Global (ex-Australia) Property Securities Fund | AJ96: MGL0010AU | AK96: 0.0123 | AL96: 0 | AN96: Ironbark Global (ex-Australia) Property Securities Fund | AO96: TRUE | AP96: 0.10% - 0.20% | AQ96: 0.001 | AR96: Okay
A97: Property - Global | B97: Quay Global Real Estate Fund | C97: BFL0020AU | D97: Essentials | F97: TL_CUSTOM_GROUP.ANZSingleClass | G97: 0.3 | H97: n/a | I97: n/a | J97: 0.0153 | K97: 7 | L97: Very high | M97: 12113 | N97: 2015-12-31 | O97: 0 | P97: 0.06 | Q97: 0 | R97: 0 | S97: 0 | T97: 0 | U97: 0 | V97: 0 | W97: 0 | X97: 0 | Y97: 0.94 | Z97: 1 | AA97: 0 | AB97: 0 | AC97: 0.0055 | AD97: =A97 -> Property - Global | AE97: =B97 -> Quay Global Real Estate Fund | AJ97: BFL0020AU | AK97: 0.0153 | AL97: 0 | AN97: Quay Global Real Estate Fund | AO97: TRUE | AQ97: 0
A98: Property - Global | B98: Resolution Capital Global Property Securities Fund | C98: WHT0015AU | D98: Essentials | E98: =IFERROR(VLOOKUP(C98,rebates!A:G,7,FALSE),"") -> 0.0005 | F98: TL_CUSTOM_GROUP.ANZSingleClass | G98: 0.3 | H98: n/a | I98: n/a | J98: 0.008 | K98: 6 | L98: High | M98: 16747 | N98: 2015-12-31 | O98: 0 | P98: 0.15 | Q98: 0 | R98: 0 | S98: 0 | T98: 0 | U98: 0 | V98: 0 | W98: 0 | X98: 0 | Y98: 0.85 | Z98: 1 | AA98: 0 | AB98: 0 | AC98: 0.006 | AD98: =A98 -> Property - Global | AE98: =B98 -> Resolution Capital Global Property Securities Fund | AJ98: WHT0015AU | AK98: 0.008 | AL98: 0 | AN98: Resolution Capital Global Property Securities Fund | AO98: TRUE | AP98: 0.0005 | AQ98: 0
A99: Property - Global | B99: Resolution Capital Global Property Securities Fund Series II | C99: IOF0081AU | D99: Essentials | E99: =IFERROR(VLOOKUP(C99,rebates!A:G,7,FALSE),"") ->  | F99: TL_CUSTOM_GROUP.ANZSingleClass | G99: 0.3 | H99: n/a | I99: n/a | J99: 0.0105 | K99: 6 | L99: High | M99: 16747 | N99: 2015-12-31 | O99: 0 | P99: 0.15 | Q99: 0 | R99: 0 | S99: 0 | T99: 0 | U99: 0 | V99: 0 | W99: 0 | X99: 0 | Y99: 0.85 | Z99: 1 | AA99: 0 | AB99: 0 | AC99: 0.006 | AD99: =A99 -> Property - Global | AE99: =B99 -> Resolution Capital Global Property Securities Fund Series II | AJ99: IOF0081AU | AK99: 0.0105 | AL99: 0 | AN99: Resolution Capital Global Property Securities Fund Series II | AO99: TRUE | AQ99: 0
A100: Property - Global | B100: Resolution Capital Global Property Securities Fund Series II - Unhedged | C100: IOF0184AU | D100: Essentials | E100: =IFERROR(VLOOKUP(C100,rebates!A:G,7,FALSE),"") ->  | F100: TL_CUSTOM_GROUP.ANZSingleClass | G100: 0.3 | H100: n/a | I100: n/a | J100: 0.0105 | K100: 6 | L100: High | M100: 16747 | N100: 2015-12-31 | O100: 0 | P100: 0.15 | Q100: 0 | R100: 0 | S100: 0 | T100: 0 | U100: 0 | V100: 0 | W100: 0 | X100: 0 | Y100: 0.85 | Z100: 1 | AA100: 0 | AB100: 0 | AC100: 0.006 | AD100: =A100 -> Property - Global | AE100: =B100 -> Resolution Capital Global Property Securities Fund Series II - Unhedged | AJ100: IOF0184AU | AK100: 0.0105 | AL100: =AK100-J100 -> 0 | AN100: Resolution Capital Global Property Securities Fund Series II | AO100: TRUE | AQ100: 0
A101: Property - Global | B101: UBS Clarion Global Property Securities Fund | C101: HML0016AU | D101: Essentials | E101: =IFERROR(VLOOKUP(C101,rebates!A:G,7,FALSE),"") -> 0.0009 | F101: TL_CUSTOM_GROUP.ANZSingleClass | G101: 0.3 | H101: n/a | I101: n/a | J101: 0.009 | K101: 6 | L101: High | M101: 14291 | N101: 2015-12-31 | O101: 0 | P101: 0.1 | Q101: 0 | R101: 0 | S101: 0 | T101: 0 | U101: 0 | V101: 0 | W101: 0 | X101: 0 | Y101: 0.9 | Z101: 1 | AA101: 0 | AB101: 0 | AC101: 0.005 | AD101: Property - Global | AE101: UBS Clarion Global Property Securities Fund | AJ101: HML0016AU | AK101: 0.009 | AL101: 0 | AN101: UBS Clarion Global Property Securities Fund | AO101: TRUE | AP101: 0.0009 | AQ101: 0
A102: Property - Global | B102: Vanguard International Property Securities Index Fund | C102: VAN0018AU | D102: Essentials | E102: =IFERROR(VLOOKUP(C102,rebates!A:G,7,FALSE),"") -> 0.0004 | F102: TL_CUSTOM_GROUP.ANZSingleClass | G102: 0.3 | H102: n/a | I102: n/a | J102: 0.004 | K102: 7 | L102: Very high | M102: 13426 | N102: 2015-12-31 | O102: 0 | P102: 0 | Q102: 0 | R102: 0 | S102: 0 | T102: 0 | U102: 0 | V102: 0 | W102: 0 | X102: 0 | Y102: 1 | Z102: 1 | AA102: 0 | AB102: 0 | AC102: 0.0014 | AD102: Property - Global | AE102: Vanguard International Property Securities Index Fund | AJ102: VAN0018AU | AK102: 0.004 | AL102: 0 | AN102: Vanguard International Property Securities Index Fund | AO102: TRUE | AP102: 0.0004 | AQ102: 0
A103: Property - Global | B103: Vanguard International Property Securities Index Fund (Hedged) | C103: VAN0019AU | D103: Essentials | E103: =IFERROR(VLOOKUP(C103,rebates!A:G,7,FALSE),"") -> 0.0005 | F103: TL_CUSTOM_GROUP.ANZSingleClass | G103: 0.3 | H103: n/a | I103: n/a | J103: 0.0043 | K103: 7 | L103: Very high | M103: 13427 | N103: 2015-12-31 | O103: 0 | P103: 0 | Q103: 0 | R103: 0 | S103: 0 | T103: 0 | U103: 0 | V103: 0 | W103: 0 | X103: 0 | Y103: 1 | Z103: 1 | AA103: 0 | AB103: 0 | AC103: 0.0018 | AD103: Property - Global | AE103: Vanguard International Property Securities Index Fund (Hedged) | AJ103: VAN0019AU | AK103: 0.0043 | AL103: 0 | AN103: Vanguard International Property Securities Index Fund (Hedged) | AO103: TRUE | AP103: 0.0005 | AQ103: 0
A104: Australian Shares | B104: Aberdeen Standard Ex-20 Australian Equities Fund | C104: CRS0003AU | D104: Optional Extensive MFs | E104: =IFERROR(VLOOKUP(C104,rebates!A:G,7,FALSE),"") ->  | F104: TL_CUSTOM_GROUP.ANZSingleClass | G104: 0.3 | H104: n/a | I104: n/a | J104: 0.0095 | AC104: 0.006 | AD104: Australian Shares | AE104: Aberdeen Standard Ex-20 Australian Equities Fund | AJ104: ETL0060AU | AK104: 0.0095 | AL104: 0 | AN104: Ausbil 130/30 Focus Fund | AO104: TRUE | AP104: 0 | AQ104: 0.001 | AR104: Murray confirmed 10 bp correct. Menu needs to be updated.
A105: Australian Shares | B105: Allan Gray Australia Equity Fund | C105: ETL0060AU | D105: Essentials | E105: =IFERROR(VLOOKUP(C105,rebates!A:G,7,FALSE),"") ->  | F105: TL_CUSTOM_GROUP.ANZSingleClass | G105: 0.3 | H105: n/a | I105: n/a | J105: 0.0132 | AC105: 0.006 | AD105: =A105 -> Australian Shares | AE105: =B105 -> Allan Gray Australia Equity Fund | AJ105: ETL0060AU | AK105: 0.0132 | AL105: =AK105-J105 -> 0 | AN105: Ausbil 130/30 Focus Fund | AO105: TRUE | AP105: 0 | AQ105: 0.001 | AR105: Murray confirmed 10 bp correct. Menu needs to be updated.
A106: Australian Shares | B106: Ausbil 130/30 Focus Fund | C106: AAP0008AU | D106: Essentials | E106: =IFERROR(VLOOKUP(C106,rebates!A:G,7,FALSE),"") -> 0.001 | F106: TL_CUSTOM_GROUP.ANZSingleClass | G106: 0.3 | H106: n/a | I106: n/a | J106: 0.0139 | AC106: 0.006 | AD106: Australian Shares | AE106: Ausbil 130/30 Focus Fund | AJ106: AAP0008AU | AK106: 0.0139 | AL106: 0 | AN106: Ausbil 130/30 Focus Fund | AO106: TRUE | AP106: 0 | AQ106: 0.001 | AR106: Murray confirmed 10 bp correct. Menu needs to be updated.
A107: Australian Shares | B107: Ausbil Australian Active Equity Fund | C107: AAP0103AU | D107: Optional Extensive MFs | E107: =IFERROR(VLOOKUP(C107,rebates!A:G,7,FALSE),"") -> 0.0009 | F107: TL_CUSTOM_GROUP.ANZSingleClass | G107: 0.3 | H107: n/a | I107: n/a | J107: 0.009 | K107: 6 | L107: High | M107: 6117 | N107: 2015-12-31 | O107: 0 | P107: 0.1 | Q107: 0 | R107: 0 | S107: 0 | T107: 0 | U107: 0.9 | V107: 1 | W107: 0 | X107: 0 | Y107: 0 | Z107: 0 | AA107: 0 | AB107: 0 | AC107: 0.006 | AD107: Australian Shares | AE107: Ausbil Australian Active Equity Fund | AJ107: AAP0103AU | AK107: 0.009 | AL107: 0 | AN107: Ausbil Australian Active Equity Fund | AO107: TRUE | AP107: 0.0009 | AQ107: 0
A108: Australian Shares | B108: Bennelong Australian Equity Fund | C108: BFL0001AU | D108: Essentials | E108: =IFERROR(VLOOKUP(C108,rebates!A:G,7,FALSE),"") -> 0.001 | F108: TL_CUSTOM_GROUP.ANZSingleClass | G108: 0.3 | H108: n/a | I108: n/a | J108: 0.01 | K108: 6 | L108: High | M108: 16998 | N108: 2015-12-31 | O108: 0 | P108: 0.1 | Q108: 0 | R108: 0 | S108: 0 | T108: 0 | U108: 0.9 | V108: 1 | W108: 0 | X108: 0 | Y108: 0 | Z108: 0 | AA108: 0 | AB108: 0 | AC108: 0.005 | AD108: Australian Shares | AE108: Bennelong Australian Equity Fund | AJ108: BFL0001AU | AK108: 0.01 | AL108: 0 | AN108: Bennelong Australian Equity Fund | AO108: TRUE | AP108: 0.001 | AQ108: 0
A109: Australian Shares | B109: Fidelity Australian Equities Fund | C109: FID0008AU | D109: Essentials | E109: =IFERROR(VLOOKUP(C109,rebates!A:G,7,FALSE),"") ->  | F109: TL_CUSTOM_GROUP.ANZSingleClass | G109: 0.3 | H109: n/a | I109: n/a | J109: 0.0085 | K109: 6 | L109: High | M109: 12292 | N109: 2015-12-31 | O109: 0 | P109: 0.1 | Q109: 0 | R109: 0 | S109: 0 | T109: 0 | U109: 0.9 | V109: 1 | W109: 0 | X109: 0 | Y109: 0 | Z109: 0 | AA109: 0 | AB109: 0 | AC109: 0.005 | AD109: Australian Shares | AE109: Fidelity Australian Equities Fund | AJ109: FID0008AU | AK109: 0.0085 | AL109: 0 | AN109: Fidelity Australian Equities Fund | AO109: TRUE | AQ109: 0
A110: Australian Shares | B110: Fidelity Australian Opportunities Fund | C110: FID0021AU | D110: Essentials | E110: =IFERROR(VLOOKUP(C110,rebates!A:G,7,FALSE),"") ->  | F110: TL_CUSTOM_GROUP.ANZSingleClass | G110: 0.3 | H110: n/a | I110: n/a | J110: 0.0085 | K110: 6 | L110: High | M110: 12292 | N110: 2015-12-31 | O110: 0 | P110: 0.1 | Q110: 0 | R110: 0 | S110: 0 | T110: 0 | U110: 0.9 | V110: 1 | W110: 0 | X110: 0 | Y110: 0 | Z110: 0 | AA110: 0 | AB110: 0 | AC110: 0.005 | AD110: =A110 -> Australian Shares | AE110: =B110 -> Fidelity Australian Opportunities Fund | AJ110: FID0021AU | AK110: 0.0085 | AL110: =AK110-J110 -> 0 | AN110: Fidelity Australian Equities Fund | AO110: TRUE | AQ110: 0
A111: Australian Shares | B111: Greencape Broadcap Fund | C111: HOW0034AU | D111: Essentials | E111: =IFERROR(VLOOKUP(C111,rebates!A:G,7,FALSE),"") -> 0.001425 | F111: TL_CUSTOM_GROUP.ANZSingleClass | G111: 0.3 | H111: n/a | I111: n/a | J111: 0.0146 | K111: 6 | L111: High | M111: 14654 | N111: 2015-12-31 | O111: 0 | P111: 0.15 | Q111: 0 | R111: 0 | S111: 0 | T111: 0 | U111: 0.85 | V111: 1 | W111: 0 | X111: 0 | Y111: 0 | Z111: 0 | AA111: 0 | AB111: 0 | AC111: 0.004 | AD111: Australian Shares | AE111: Greencape Broadcap Fund | AJ111: HOW0034AU | AK111: 0.0146 | AL111: 0 | AN111: Greencape Broadcap Fund | AO111: TRUE | AP111: 0.001425 | AQ111: 0
A112: Australian Shares | B112: Hyperion Australian Growth Companies Fund | C112: BNT0003AU | D112: Optional Extensive MFs | E112: =IFERROR(VLOOKUP(C112,rebates!A:G,7,FALSE),"") ->  | F112: TL_CUSTOM_GROUP.ANZSingleClass | G112: 0.3 | H112: n/a | I112: n/a | J112: 0.0095 | K112: 6 | L112: High | M112: 3344 | N112: 2015-12-31 | O112: 0 | P112: 0.2 | Q112: 0 | R112: 0 | S112: 0 | T112: 0 | U112: 0.8 | V112: 1 | W112: 0 | X112: 0 | Y112: 0 | Z112: 0 | AA112: 0 | AB112: 0 | AC112: 0.006 | AD112: Australian Shares | AE112: Hyperion Australian Growth Companies Fund | AJ112: BNT0003AU | AK112: 0.0095 | AL112: 0 | AN112: Hyperion Australian Growth Companies Fund | AO112: TRUE | AQ112: 0
A113: Australian Shares | B113: Investors Mutual Australian Share Fund | C113: IML0002AU | D113: Optional Extensive MFs | E113: =IFERROR(VLOOKUP(C113,rebates!A:G,7,FALSE),"") ->  | F113: TL_CUSTOM_GROUP.ANZSingleClass | G113: 0.3 | H113: n/a | I113: n/a | J113: 0.0099 | K113: 6 | L113: High | M113: 5339 | N113: 2015-12-31 | O113: 0 | P113: 0.1 | Q113: 0 | R113: 0 | S113: 0 | T113: 0 | U113: 0.9 | V113: 1 | W113: 0 | X113: 0 | Y113: 0 | Z113: 0 | AA113: 0 | AB113: 0 | AC113: 0.005 | AD113: Australian Shares | AE113: Investors Mutual Australian Share Fund | AJ113: IML0002AU | AK113: 0.0099 | AL113: 0 | AN113: Investors Mutual Australian Share Fund | AO113: TRUE | AQ113: 0
A114: Australian Shares | B114: Investors Mutual All Industrials Share Fund | C114: IML0004AU | D114: Optional Extensive MFs | E114: =IFERROR(VLOOKUP(C114,rebates!A:G,7,FALSE),"") ->  | F114: TL_CUSTOM_GROUP.ANZSingleClass | G114: 0.3 | H114: n/a | I114: n/a | J114: 0.0099 | K114: 6 | L114: High | M114: 8742 | N114: 2015-12-31 | O114: 0 | P114: 0.2 | Q114: 0 | R114: 0 | S114: 0 | T114: 0 | U114: 0.8 | V114: 1 | W114: 0 | X114: 0 | Y114: 0 | Z114: 0 | AA114: 0 | AB114: 0 | AC114: 0.005 | AD114: Australian Shares | AE114: Investors Mutual All Industrials Share Fund | AJ114: IML0004AU | AK114: 0.0099 | AL114: 0 | AN114: Investors Mutual All Industrials Share Fund | AO114: TRUE | AQ114: 0
A115: Australian Shares | B115: IOOF MultiMix Australian Share Trust | C115: IOF0092AU | D115: Essentials | E115: =IFERROR(VLOOKUP(C115,rebates!A:G,7,FALSE),"") ->  | F115: TL_CUSTOM_GROUP.ANZSingleClass | G115: 0.3 | H115: n/a | I115: n/a | J115: 0.0127 | K115: 6 | L115: High | M115: 8742 | N115: 2015-12-31 | O115: 0 | P115: 0.2 | Q115: 0 | R115: 0 | S115: 0 | T115: 0 | U115: 0.8 | V115: 1 | W115: 0 | X115: 0 | Y115: 0 | Z115: 0 | AA115: 0 | AB115: 0 | AC115: 0.005 | AD115: =A115 -> Australian Shares | AE115: =B115 -> IOOF MultiMix Australian Share Trust | AJ115: IOF0092AU | AK115: 0.0127 | AL115: 0 | AN115: Investors Mutual All Industrials Share Fund | AO115: TRUE | AQ115: 0
A116: Australian Shares | B116: Lazard Australian Equity Fund - Wholesale | C116: LAZ0010AU | D116: Essentials | E116: =IFERROR(VLOOKUP(C116,rebates!A:G,7,FALSE),"") -> 0.0025 | F116: TL_CUSTOM_GROUP.ANZSingleClass | G116: 0.3 | H116: n/a | I116: n/a | J116: 0.009 | K116: 6 | L116: High | M116: 3987 | N116: 2015-12-31 | O116: 0 | P116: 0.1 | Q116: 0 | R116: 0 | S116: 0 | T116: 0 | U116: 0 | V116: 1 | W116: 0 | X116: 0 | Y116: 0 | Z116: 0 | AA116: 0 | AB116: 0 | AC116: 0.0041 | AD116: =A116 -> Australian Shares | AE116: =B116 -> Lazard Australian Equity Fund - Wholesale | AJ116: LAZ0010AU | AK116: 0.009 | AL116: 0 | AN116: Lazard Australian Equity Fund - Wholesale | AO116: FALSE | AP116: 0.0025 | AQ116: 0
A117: Australian Shares | B117: Macquarie Australian Share Fund | C117: MAQ0443AU | D117: Optional Extensive MFs | E117: =IFERROR(VLOOKUP(C117,rebates!A:G,7,FALSE),"") ->  | F117: TL_CUSTOM_GROUP.ANZSingleClass | G117: 0.3 | H117: n/a | I117: n/a | J117: 0.006 | K117: 6 | L117: High | M117: 3987 | N117: 2015-12-31 | O117: 0 | P117: 0.1 | Q117: 0 | R117: 0 | S117: 0 | T117: 0 | U117: 0 | V117: 1 | W117: 0 | X117: 0 | Y117: 0 | Z117: 0 | AA117: 0 | AB117: 0 | AC117: 0.0041 | AD117: =A117 -> Australian Shares | AE117: =B117 -> Macquarie Australian Share Fund | AJ117: MAQ0443AU | AK117: 0.006 | AL117: =AK117-J117 -> 0 | AN117: Lazard Australian Equity Fund - Wholesale | AO117: FALSE | AP117: 0.0025 | AQ117: 0
A118: Australian Shares | B118: Nikko AM Australian Share Wholesale Fund | C118: TYN0028AU | D118: Essentials | E118: =IFERROR(VLOOKUP(C118,rebates!A:G,7,FALSE),"") -> 0.0015 | F118: TL_CUSTOM_GROUP.ANZSingleClass | G118: 0.3 | H118: n/a | I118: n/a | J118: 0.008 | K118: 6 | L118: High | M118: 3987 | N118: 2015-12-31 | O118: 0 | P118: 0.1 | Q118: 0 | R118: 0 | S118: 0 | T118: 0 | U118: 0 | V118: 1 | W118: 0 | X118: 0 | Y118: 0 | Z118: 0 | AA118: 0 | AB118: 0 | AC118: 0.006 | AD118: Australian Shares | AE118: Nikko AM Australian Share Wholesale Fund | AJ118: TYN0028AU | AK118: 0.008 | AL118: 0 | AN118: Nikko AM Australian Share Wholesale Fund | AO118: TRUE | AP118: 0.0015 | AQ118: 0
A119: Australian Shares | B119: OnePath Wholesale Australian Share Trust | C119: AJF0804AU | D119: Essentials | E119: =IFERROR(VLOOKUP(C119,rebates!A:G,7,FALSE),"") -> 0.002 | F119: TL_CUSTOM_GROUP.ANZSingleClass | G119: 0.3 | H119: n/a | I119: n/a | J119: 0.0103 | K119: 6 | L119: High | M119: 3477 | N119: 2015-12-31 | O119: 0 | P119: 0.05 | Q119: 0 | R119: 0 | S119: 0 | T119: 0 | U119: 0.95 | V119: 1 | W119: 0 | X119: 0 | Y119: 0 | Z119: 0.06 | AA119: 0 | AB119: 0 | AC119: 0.0026 | AD119: Australian Shares | AE119: OnePath Wholesale Australian Share Trust | AJ119: AJF0804AU | AK119: 0.0103 | AL119: 0 | AN119: OnePath Wholesale Australian Share Trust** | AO119: FALSE | AP119: 0.002 | AQ119: 0
A120: Australian Shares | B120: Pendal Australian Share Fund | C120: RFA0818AU | D120: Optional Extensive MFs | E120: =IFERROR(VLOOKUP(C120,rebates!A:G,7,FALSE),"") -> 0.0015 | F120: TL_CUSTOM_GROUP.ANZSingleClass | G120: 0.3 | H120: n/a | I120: n/a | J120: 0.0079 | K120: 6 | L120: High | M120: 2726 | N120: 2015-12-31 | O120: 0 | P120: 0.2 | Q120: 0 | R120: 0 | S120: 0 | T120: 0 | U120: 0.8 | V120: 1 | W120: 0 | X120: 0 | Y120: 0 | Z120: 0 | AA120: 0 | AB120: 0 | AC120: 0.005 | AD120: =A120 -> Australian Shares | AE120: =B120 -> Pendal Australian Share Fund | AJ120: RFA0818AU | AK120: 0.0079 | AL120: 0 | AN120: Pendal Australian Share Fund | AO120: TRUE | AP120: 0.0015 | AQ120: 0
A121: Australian Shares | B121: Perennial Value Shares Wholesale Trust | C121: IOF0206AU | D121: Essentials | E121: =IFERROR(VLOOKUP(C121,rebates!A:G,7,FALSE),"") -> 0.0018 | F121: TL_CUSTOM_GROUP.ANZSingleClass | G121: 0.3 | H121: n/a | I121: n/a | J121: 0.0092 | K121: 6 | L121: High | M121: 7817 | N121: 2015-12-31 | O121: 0 | P121: 0.1 | Q121: 0 | R121: 0 | S121: 0 | T121: 0 | U121: 0.9 | V121: 1 | W121: 0 | X121: 0 | Y121: 0 | Z121: 0 | AA121: 0 | AB121: 0 | AC121: 0.006 | AD121: Australian Shares | AE121: Perennial Value Shares Wholesale Trust | AJ121: IOF0206AU | AK121: 0.0092 | AL121: 0 | AN121: Perennial Value Shares Wholesale Trust | AO121: TRUE | AP121: 0.0018 | AQ121: 0
A122: Australian Shares | B122: Perpetual Wholesale Australian Share Fund | C122: PER0049AU | D122: Essentials | E122: =IFERROR(VLOOKUP(C122,rebates!A:G,7,FALSE),"") -> 0.0006 | F122: TL_CUSTOM_GROUP.ANZSingleClass | G122: 0.3 | H122: n/a | I122: n/a | J122: 0.0099 | K122: 6 | L122: High | M122: 4361 | N122: 2015-12-31 | O122: 0 | P122: 0.1 | Q122: 0 | R122: 0 | S122: 0 | T122: 0 | U122: 0.9 | V122: 1 | W122: 0 | X122: 0 | Y122: 0 | Z122: 0 | AA122: 0 | AB122: 0 | AC122: 0.003 | AD122: Australian Shares | AE122: Perpetual Wholesale Australian Share Fund | AJ122: PER0049AU | AK122: 0.0099 | AL122: 0 | AN122: Perpetual Wholesale Australian Share Fund | AO122: TRUE | AP122: 0.0006 | AQ122: 0
A123: Australian Shares | B123: Perpetual Wholesale Industrial Share Fund | C123: PER0046AU | D123: Optional Extensive MFs | E123: =IFERROR(VLOOKUP(C123,rebates!A:G,7,FALSE),"") -> 0.0006 | F123: TL_CUSTOM_GROUP.ANZSingleClass | G123: 0.3 | H123: n/a | I123: n/a | J123: 0.0099 | K123: 6 | L123: High | M123: 4362 | N123: 2015-12-31 | O123: 0 | P123: 0.1 | Q123: 0 | R123: 0 | S123: 0 | T123: 0 | U123: 0.9 | V123: 1 | W123: 0 | X123: 0 | Y123: 0 | Z123: 0 | AA123: 0 | AB123: 0 | AC123: 0.003 | AD123: Australian Shares | AE123: Perpetual Wholesale Industrial Share Fund | AJ123: PER0046AU | AK123: 0.0099 | AL123: 0 | AN123: Perpetual Wholesale Industrial Share Fund | AO123: TRUE | AP123: 0.0006 | AQ123: 0
A124: Australian Shares | B124: Perpetual Wholesale SHARE-PLUS Long-Short Fund | C124: PER0072AU | D124: Optional Extensive MFs | E124: =IFERROR(VLOOKUP(C124,rebates!A:G,7,FALSE),"") -> 0 | F124: TL_CUSTOM_GROUP.ANZSingleClass | G124: 0.3 | H124: n/a | I124: n/a | J124: 0.0139 | K124: 6 | L124: High | M124: 4362 | N124: 2015-12-31 | O124: 0 | P124: 0.1 | Q124: 0 | R124: 0 | S124: 0 | T124: 0 | U124: 0.9 | V124: 1 | W124: 0 | X124: 0 | Y124: 0 | Z124: 0 | AA124: 0 | AB124: 0 | AC124: 0.004 | AD124: =A124 -> Australian Shares | AE124: =B124 -> Perpetual Wholesale SHARE-PLUS Long-Short Fund | AJ124: PER0072AU | AK124: 0.0139 | AL124: 0 | AN124: Perpetual Wholesale Industrial Share Fund | AO124: TRUE | AP124: 0.0006 | AQ124: 0
A125: Australian Shares | B125: Platypus Australian Equities Fund - Wholesale | C125: AUS0030AU | D125: Optional Extensive MFs | F125: TL_CUSTOM_GROUP.ANZSingleClass | G125: 0.3 | H125: n/a | I125: n/a | J125: 0.0197 | K125: 6 | L125: High | M125: 4362 | N125: 2015-12-31 | O125: 0 | P125: 0.1 | Q125: 0 | R125: 0 | S125: 0 | T125: 0 | U125: 0.9 | V125: 1 | W125: 0 | X125: 0 | Y125: 0 | Z125: 0 | AA125: 0 | AB125: 0 | AC125: 0.003 | AD125: =A125 -> Australian Shares | AE125: =B125 -> Platypus Australian Equities Fund - Wholesale | AJ125: AUS0030AU | AK125: 0.0197 | AL125: 0 | AN125: Platypus Australian Equities Fund - Wholesale | AO125: TRUE | AQ125: 0
A126: Australian Shares | B126: Schroder Wholesale Australian Equity Fund | C126: SCH0101AU | D126: Essentials | E126: =IFERROR(VLOOKUP(C126,rebates!A:G,7,FALSE),"") -> 0 | F126: TL_CUSTOM_GROUP.ANZSingleClass | G126: 0.3 | H126: n/a | I126: n/a | J126: 0.008 | K126: 6 | L126: High | M126: 8847 | N126: 2015-12-31 | O126: 0 | P126: 0.05 | Q126: 0 | R126: 0 | S126: 0 | T126: 0 | U126: 0.95 | V126: 1 | W126: 0 | X126: 0 | Y126: 0 | Z126: 0 | AA126: 0 | AB126: 0 | AC126: 0.005 | AD126: Australian Shares | AE126: Schroder Wholesale Australian Equity Fund | AJ126: SCH0101AU | AK126: 0.008 | AL126: 0 | AN126: Schroder Wholesale Australian Equity Fund | AO126: TRUE | AP126: 0 | AQ126: 0
A127: Australian Shares | B127: State Street Australian Equity Fund | C127: SST0048AU | D127: Essentials | E127: =IFERROR(VLOOKUP(C127,rebates!A:G,7,FALSE),"") -> 0.0005 | F127: TL_CUSTOM_GROUP.ANZSingleClass | G127: 0.3 | H127: n/a | I127: n/a | J127: 0.007 | K127: 6 | L127: High | M127: 19501 | N127: 2015-12-31 | O127: 0 | P127: 0.05 | Q127: 0 | R127: 0 | S127: 0 | T127: 0 | U127: 0.95 | V127: 1 | W127: 0 | X127: 0 | Y127: 0 | Z127: 0 | AA127: 0 | AB127: 0 | AC127: 0.0056 | AD127: Australian Shares | AE127: State Street Australian Equity Fund | AJ127: SST0048AU | AK127: 0.007 | AL127: 0 | AN127: State Street Australian Equity Fund | AO127: TRUE | AP127: 0.0005 | AQ127: 0
A128: Australian Shares | B128: Vanguard Australian Shares Index Fund | C128: VAN0002AU | D128: Essentials | E128: =IFERROR(VLOOKUP(C128,rebates!A:G,7,FALSE),"") -> 0.0002 | F128: TL_CUSTOM_GROUP.ANZSingleClass | G128: 0.3 | H128: n/a | I128: n/a | J128: 0.0016 | K128: 6 | L128: High | M128: 4488 | N128: 2015-12-31 | O128: 0 | P128: 0 | Q128: 0 | R128: 0 | S128: 0 | T128: 0 | U128: 0.9 | V128: 1 | W128: 0 | X128: 0 | Y128: 0 | Z128: 0.1 | AA128: 0 | AB128: 0 | AC128: 0.001 | AD128: Australian Shares | AE128: Vanguard Australian Shares Index Fund | AJ128: VAN0002AU | AK128: 0.0016 | AL128: 0 | AN128: Vanguard Australian Shares Index Fund | AO128: TRUE | AP128: 0.0002 | AQ128: 0
A129: Australian Shares | B129: Yarra Australian Equities Fund | C129: JBW0009AU | D129: Optional Extensive MFs | E129: =IFERROR(VLOOKUP(C129,rebates!A:G,7,FALSE),"") -> 0.0015 | F129: TL_CUSTOM_GROUP.ANZSingleClass | G129: 0.3 | H129: n/a | I129: n/a | J129: 0.009 | K129: 6 | L129: High | M129: 4544 | N129: 2015-12-31 | O129: 0 | P129: 0.2 | Q129: 0 | R129: 0 | S129: 0 | T129: 0 | U129: 0.8 | V129: 1 | W129: 0 | X129: 0 | Y129: 0 | Z129: 0.02 | AA129: 0 | AB129: 0.05 | AC129: 0.003 | AD129: =A129 -> Australian Shares | AE129: =B129 -> Yarra Australian Equities Fund | AJ129: JBW0009AU | AK129: 0.009 | AL129: 0 | AN129: Yarra Australian Equities Fund | AO129: TRUE | AP129: 0.0015 | AQ129: 0
A130: Australian Shares - Imputation | B130: MLC Wholesale IncomeBuilder FundTM | C130: MLC0264AU | D130: Optional Extensive MFs | E130: =IFERROR(VLOOKUP(C130,rebates!A:G,7,FALSE),"") ->  | F130: TL_CUSTOM_GROUP.ANZSingleClass | G130: 0.3 | H130: n/a | I130: n/a | J130: 0.0072 | K130: 6 | L130: High | M130: 4779 | N130: 2015-12-31 | O130: 0 | P130: 0.2 | Q130: 0 | R130: 0 | S130: 0 | T130: 0 | U130: 0.8 | V130: 1 | W130: 0 | X130: 0 | Y130: 0 | Z130: 0.05 | AA130: 0 | AB130: 0 | AC130: 0.004 | AD130: Australian Shares - Imputation | AE130: MLC Wholesale IncomeBuilder FundTM | AJ130: MLC0264AU | AK130: 0.0072 | AL130: 0 | AN130: MLC Wholesale IncomeBuilder Fund™ | AO130: FALSE | AP130: 0 | AQ130: 0
A131: Australian Shares - Imputation | B131: OnePath Wholesale Blue Chip Imputation Trust | C131: MMF0340AU | D131: Essentials | E131: =IFERROR(VLOOKUP(C131,rebates!A:G,7,FALSE),"") -> 0.002 | F131: TL_CUSTOM_GROUP.ANZSingleClass | G131: 0.3 | H131: n/a | I131: n/a | J131: 0.0113 | K131: 6 | L131: High | M131: 7610 | N131: 2015-12-31 | O131: 0 | P131: 0.05 | Q131: 0 | R131: 0 | S131: 0 | T131: 0 | U131: 0.95 | V131: 1 | W131: 0 | X131: 0 | Y131: 0 | Z131: 0 | AA131: 0 | AB131: 0 | AC131: 0.0026 | AD131: Australian Shares - Imputation | AE131: OnePath Wholesale Blue Chip Imputation Trust | AJ131: MMF0340AU | AK131: 0.0113 | AL131: 0 | AN131: OnePath Wholesale Blue Chip Imputation Trust** | AO131: FALSE | AP131: 0.002 | AQ131: 0
A132: Australian Shares - Imputation | B132: Pendal Imputation Fund | C132: RFA0103AU | D132: Optional Extensive MFs | E132: =IFERROR(VLOOKUP(C132,rebates!A:G,7,FALSE),"") -> 0.0015 | F132: TL_CUSTOM_GROUP.ANZSingleClass | G132: 0.3 | H132: n/a | I132: n/a | J132: 0.009 | K132: 6 | L132: High | M132: 5730 | N132: 2015-12-31 | O132: 0 | P132: 0.15 | Q132: 0 | R132: 0 | S132: 0 | T132: 0 | U132: 0.6 | V132: 1 | W132: 0 | X132: 0 | Y132: 0 | Z132: 0.15 | AA132: 0 | AB132: 0 | AC132: 0.005 | AD132: =A132 -> Australian Shares - Imputation | AE132: =B132 -> Pendal Imputation Fund | AJ132: RFA0103AU | AK132: 0.009 | AL132: 0 | AN132: Pendal Imputation Fund | AO132: TRUE | AP132: 0.0015 | AQ132: 0
A133: Australian Shares - Imputation | B133: Perennial Value Shares for Income Trust | C133: IOF0078AU | D133: Essentials | E133: =IFERROR(VLOOKUP(C133,rebates!A:G,7,FALSE),"") -> 0.0018 | F133: TL_CUSTOM_GROUP.ANZSingleClass | G133: 0.3 | H133: n/a | I133: n/a | J133: 0.0092 | K133: 6 | L133: High | M133: 14254 | N133: 2015-12-31 | O133: 0 | P133: 0.1 | Q133: 0 | R133: 0 | S133: 0 | T133: 0 | U133: 0.9 | V133: 1 | W133: 0 | X133: 0 | Y133: 0 | Z133: 0 | AA133: 0 | AB133: 0 | AC133: 0.006 | AD133: Australian Shares - Imputation | AE133: Perennial Value Shares for Income Trust | AJ133: IOF0078AU | AK133: 0.0092 | AL133: 0 | AN133: Perennial Value Shares for Income Trust | AO133: TRUE | AP133: 0.0018 | AQ133: 0
A134: Australian Shares - Imputation | B134: Vanguard Australian Shares High Yield Fund | C134: VAN0104AU | D134: Essentials | E134: =IFERROR(VLOOKUP(C134,rebates!A:G,7,FALSE),"") -> 0.0004 | F134: TL_CUSTOM_GROUP.ANZSingleClass | G134: 0.3 | H134: n/a | I134: n/a | J134: 0.0035 | K134: 6 | L134: High | M134: 6429 | N134: 2015-12-31 | O134: 0 | P134: 0 | Q134: 0 | R134: 0 | S134: 0 | T134: 0 | U134: 1 | V134: 1 | W134: 0 | X134: 0 | Y134: 0 | Z134: 0 | AA134: 0 | AB134: 0 | AC134: 0.001 | AD134: Australian Shares - Imputation | AE134: Vanguard Australian Shares High Yield Fund | AJ134: VAN0104AU | AK134: 0.0035 | AL134: 0 | AN134: Vanguard Australian Shares High Yield Fund | AO134: TRUE | AP134: 0.0004 | AQ134: 0
A135: Australian Shares - Concentrated | B135: Nikko AM Australian Share Concentrated Fund | C135: TYN0040AU | D135: Optional Extensive MFs | E135: =IFERROR(VLOOKUP(C135,rebates!A:G,7,FALSE),"") -> 0.001 | F135: TL_CUSTOM_GROUP.ANZSingleClass | G135: 0.3 | H135: n/a | I135: n/a | J135: 0.01 | N135: 2015-12-31 | O135: 0 | P135: 0.1 | Q135: 0 | R135: 0 | S135: 0 | T135: 0 | U135: 0.9 | V135: 1 | W135: 0 | X135: 0 | Y135: 0 | Z135: 0 | AA135: 0 | AB135: 0 | AC135: 0.006 | AD135: Australian Shares - Concentrated | AE135: Nikko AM Australian Share Concentrated Fund | AJ135: TYN0040AU | AK135: 0.01 | AL135: 0 | AN135: Nikko AM Australian Share Concentrated Fund | AO135: TRUE | AP135: 0.001 | AQ135: 0
A136: Australian Shares - Concentrated | B136: OnePath Wholesale Select Leaders Trust | C136: ANZ0216AU | D136: Essentials | E136: =IFERROR(VLOOKUP(C136,rebates!A:G,7,FALSE),"") -> 0.002 | F136: TL_CUSTOM_GROUP.ANZSingleClass | G136: 0.3 | H136: n/a | I136: n/a | J136: 0.0116 | K136: 6 | L136: High | M136: 7696 | N136: 2015-12-31 | O136: 0 | P136: 0.1 | Q136: 0 | R136: 0 | S136: 0 | T136: 0 | U136: 0.9 | V136: 1 | W136: 0 | X136: 0 | Y136: 0 | Z136: 0 | AA136: 0 | AB136: 0 | AC136: 0.0041 | AD136: Australian Shares - Concentrated | AE136: OnePath Wholesale Select Leaders Trust | AJ136: ANZ0216AU | AK136: 0.0116 | AL136: 0 | AN136: OnePath Wholesale Select Leaders Trust** | AO136: FALSE | AP136: 0.002 | AQ136: 0
A137: Australian Shares - Concentrated | B137: Perpetual Wholesale Concentrated Equity Fund | C137: PER0102AU | D137: Optional Extensive MFs | E137: =IFERROR(VLOOKUP(C137,rebates!A:G,7,FALSE),"") -> 0.0006 | F137: TL_CUSTOM_GROUP.ANZSingleClass | G137: 0.3 | H137: n/a | I137: n/a | J137: 0.011 | K137: 6 | L137: High | M137: 5893 | N137: 2015-12-31 | O137: 0 | P137: 0.1 | Q137: 0 | R137: 0 | S137: 0 | T137: 0 | U137: 0.9 | V137: 1 | W137: 0 | X137: 0 | Y137: 0 | Z137: 0 | AA137: 0 | AB137: 0 | AC137: 0.003 | AD137: Australian Shares - Concentrated | AE137: Perpetual Wholesale Concentrated Equity Fund | AJ137: PER0102AU | AK137: 0.011 | AL137: 0 | AN137: Perpetual Wholesale Concentrated Equity Fund | AO137: TRUE | AP137: 0.0006 | AQ137: 0
A138: Australian Shares - Ethical | B138: Alphinity Sustainable Share Fund | C138: HOW0121AU | D138: Essentials | E138: =IFERROR(VLOOKUP(C138,rebates!A:G,7,FALSE),"") ->  | F138: TL_CUSTOM_GROUP.ANZSingleClass | G138: 0.3 | H138: n/a | I138: n/a | J138: 0.0095 | K138: 6 | L138: High | M138: 8009 | N138: 2015-12-31 | O138: 0 | P138: 0.05 | Q138: 0 | R138: 0 | S138: 0 | T138: 0 | U138: 0.95 | V138: 1 | W138: 0 | X138: 0 | Y138: 0 | Z138: 0 | AA138: 0 | AB138: 0 | AC138: 0.004 | AD138: =A138 -> Australian Shares - Ethical | AE138: =B138 -> Alphinity Sustainable Share Fund | AJ138: HOW0121AU | AK138: 0.0095 | AL138: 0 | AN138: Alphinity Sustainable Share Fund | AO138: TRUE | AQ138: 0
A139: Australian Shares - Ethical | B139: OnePath Sustainable Investments Wholesale Australian Share Trust | C139: MMF0335AU | D139: Essentials | E139: =IFERROR(VLOOKUP(C139,rebates!A:G,7,FALSE),"") -> 0.002 | F139: TL_CUSTOM_GROUP.ANZSingleClass | G139: 0.3 | H139: n/a | I139: n/a | J139: 0.0105 | K139: 6 | L139: High | M139: 8009 | N139: 2015-12-31 | O139: 0 | P139: 0.05 | Q139: 0 | R139: 0 | S139: 0 | T139: 0 | U139: 0.95 | V139: 1 | W139: 0 | X139: 0 | Y139: 0 | Z139: 0 | AA139: 0 | AB139: 0 | AC139: 0.0035 | AD139: Australian Shares - Ethical | AE139: OnePath Sustainable Investments Wholesale Australian Share Trust | AJ139: MMF0335AU | AK139: 0.0105 | AL139: 0 | AN139: OnePath Sustainable Investments Wholesale Australian Share Trust** | AO139: FALSE | AP139: 0.002 | AQ139: 0
A140: Australian Shares - Ethical | B140: Pendal Ethical Share Fund | C140: RFA0025AU | D140: Essentials | E140: =IFERROR(VLOOKUP(C140,rebates!A:G,7,FALSE),"") -> 0.001 | F140: TL_CUSTOM_GROUP.ANZSingleClass | G140: 0.3 | H140: n/a | I140: n/a | J140: 0.0095 | K140: 6 | L140: High | M140: 6924 | N140: 2015-12-31 | O140: 0 | P140: 0.2 | Q140: 0 | R140: 0 | S140: 0 | T140: 0 | U140: 0.8 | V140: 1 | W140: 0 | X140: 0 | Y140: 0 | Z140: 0 | AA140: 0 | AB140: 0 | AC140: 0.005 | AD140: =A140 -> Australian Shares - Ethical | AE140: =B140 -> Pendal Ethical Share Fund | AJ140: RFA0025AU | AK140: 0.0095 | AL140: 0 | AN140: Pendal Ethical Share Fund | AO140: TRUE | AP140: 0.001 | AQ140: 0
A141: Australian Shares - Ethical | B141: Perpetual Wholesale Ethical SRI Fund | C141: PER0116AU | D141: Optional Extensive MFs | E141: =IFERROR(VLOOKUP(C141,rebates!A:G,7,FALSE),"") -> 0.0006 | F141: TL_CUSTOM_GROUP.ANZSingleClass | G141: 0.3 | H141: n/a | I141: n/a | J141: 0.0118 | K141: 6 | L141: High | M141: 8649 | N141: 2015-12-31 | O141: 0 | P141: 0.1 | Q141: 0 | R141: 0 | S141: 0 | T141: 0 | U141: 0.9 | V141: 1 | W141: 0 | X141: 0 | Y141: 0 | Z141: 0 | AA141: 0 | AB141: 0 | AC141: 0.003 | AD141: Australian Shares - Ethical | AE141: Perpetual Wholesale Ethical SRI Fund | AJ141: PER0116AU | AK141: 0.0118 | AL141: 0 | AN141: Perpetual Wholesale Ethical SRI Fund | AO141: TRUE | AP141: 0.0006 | AQ141: 0
A142: Australian Shares - Geared | B142: First Sentier Wholesale Geared Share Fund | C142: FSF0043AU | D142: Optional Extensive MFs | E142: =IFERROR(VLOOKUP(C142,rebates!A:G,7,FALSE),"") -> 0 | F142: TL_CUSTOM_GROUP.ANZSingleClass | G142: 0.3 | H142: TL_CUSTOM_GROUP.ANZGeared | I142: 0.2 | J142: 0.0219 | K142: 7 | L142: Very high | M142: 4715 | N142: 2015-12-31 | O142: 0 | P142: 0.1 | Q142: 0 | R142: 0 | S142: 0 | T142: 0 | U142: 0.9 | V142: 1 | W142: 0 | X142: 0 | Y142: 0 | Z142: 0 | AA142: 0 | AB142: 0 | AC142: 0.01 | AD142: Australian Shares - Geared | AE142: First Sentier Wholesale Geared Share Fund | AJ142: FSF0043AU | AK142: 0.0219 | AL142: 0 | AN142: First Sentier Wholesale Geared Share Fund | AO142: TRUE | AP142: 0 | AQ142: 0
